{"text_format":"1","workbook":"xlsx","n_sheets":8,"sheets":["INTRO","COUNTRY_INFO","ALB_MBD","PZQ","IVM","SUMMARY","SHIPMENT","DATA_POLICY"],"not_rendered":{"charts":0,"images":4,"macros":1,"external_links":0,"defined_names":8,"comments":7,"pivot_tables":0},"unopened":[],"bounds":{"document_bytes":16777216,"sheet_cells":100000,"rows_first":2000,"rows_last":500,"rows_between":2000,"halvings":0,"cell_chars":16384,"cell_head_chars":4096},"cells_cut":0,"cells_raw":0,"read":"whole","date_system":"1900"}

{"sheet":"INTRO","index":0,"n_rows":51,"n_cols":8,"rows_kept":51,"cut":false,"hidden":false,"merged":[[21,1,21,4],[46,1,46,4],[38,1,38,2],[40,1,40,2],[42,1,42,2],[44,1,44,2],[36,1,36,2],[22,2,23,4],[25,2,26,4],[27,1,27,4],[32,1,32,2],[29,1,29,4],[30,1,30,4],[28,2,28,4],[24,1,24,4],[34,1,34,2],[0,1,0,4],[2,1,2,4],[1,1,1,4],[5,1,5,4],[3,1,3,4],[7,2,7,4],[11,1,11,4],[4,1,4,4],[10,2,10,4],[20,2,20,4],[17,1,17,4],[13,1,13,4],[18,2,18,4],[8,2,8,4],[9,2,9,4],[19,1,19,4],[12,1,12,4],[16,1,16,4],[14,1,14,4],[15,1,15,4]]}
[]
[null,"Joint request for selected PC medicines v.4.1 (Loa)"]
[]
[null,"As part of global efforts to accelerate expansion of preventive chemotherapy (PC) for control and elimination of lymphatic filariasis, schistosomiasis and soil-transmitted helminthiases, the World Health Organization (WHO) facilitates the supply of albendazole 400 mg tablets (GSK) to national lymphatic filariasis elimination programmes and national soil-transmitted helminth control programmes; diethylcarbamazine citrate 100 mg tablets (Eisai) to national lymphatic filariasis elimination programmes; mebendazole 500 mg tablets (J&J) for national soil-transmitted helminth control programmes; and praziquantel 600 mg tablets (Merck KGaA)  for school-age children to national schistosomiasis control programmes. WHO also collaborates to supply ivermectin 3 mg tablets (Merck) for onchocerciasis and lymphatic filariasis donation programmes.  \nThis Excel-based tool is designed to assist countries in quantifying the number of tablets of relevant PC medicines required to reach the planned target population and districts for the year of request. Output of the tool is a joint request for PC medicines, which can be printed, signed and submitted to WHO to request these medicines."]
[]
[null,"Structure of the application (worksheets):"]
[]
[null,"INTRO","This worksheet includes guides on how to complete the joint request for selected PC medicines and information about the status of PC for endemic diseases in the country."]
[null,"COUNTRY_INFO","This worksheet includes information about administrative structure of the country, population by age group, status of endemicity for each disease, population requiring PC and planned interventions."]
[null,"DEC, ALB_MBD, PZQ and IVM","These worksheets include information about endemic districts targeted for treatment with specified PC medicines, treatment plan, and number of tablets required and requested. "]
[null,"SUMMARY","This worksheet includes summary of number of tablets requested, information about stock, and date for submission of requested medicines. Before generating the report (run macros) please select the medicine for which the report is needed. Follow the same rule to see the number of people to be treated for the specific disease. \nThis worksheet should be printed and submitted as a joint request for selected PC medicines (see the instruction for submission in the SUMMARY worksheet)."]
[]
[null,"Instruction for data entry"]
[]
[null,"Most of the cells in the above-mentioned worksheets include formula that are calculated automatically according to the treatment policy recommended by WHO for each disease.\nSee the link https://www.who.int/publications/i/item/9789241599993."]
[]
[null,"Please enter your data into the cells according to their colour code:"]
[]
[null,null,"White - cell is not protected. Please enter the value of the requested indicator."]
[]
[null,null,"Yellow - cell is protected and includes name of indicator. No data entry required."]
[]
[null,null,"Orange - cell is not protected and includes a drop-down menu. Please select the value from the drop-down list."]
[]
[]
[null,null,"Green - cell is not protected and includes formula. Please change the value only if your data are different from those that are calculated automatically."]
[]
[]
[null,null,"Blue - cell is protected and includes formula. No data entry required."]
[]
[null,"Country data"]
[]
[null,"COUNTRY",null,null,"Gabon",null,"GA","GAB"]
[null,null,null,null,5]
[null,"Year for request of the medicine",null,null,2024]
[]
[null,"Is country endemic for lymphatic filariasis (LF)?",null,null,"Endemic"]
[]
[null,"Is country endemic for onchocerciasis (ONCHO)?",null,null,"Endemic"]
[]
[null,"Is country endemic for soil-transmitted helminthiases (STH)?",null,null,"Endemic"]
[]
[null,"Is country endemic for schistosomiasis (SCH)?",null,null,"Endemic"]
[]
[null,"How many administrative units in the country?",null,null,51]
[]
[null,"If demographical data at the second administrative level are not available by age group, please enter the proportion (%) of population by age group in the country. If data are available, please leave these cells blank."]
[null,"1-4 years age","Preschool-age children (PreSAC)",null,0.1045]
[null,"5-14 years age","School-age children (SAC)",null,0.23330000000000001]
[null,"15 years +","Adults",null,0.63580000000000003]
[null,"15-49 years","Women of reproductive age (WRA)",null,0.24809999999999999]

{"sheet":"COUNTRY_INFO","index":1,"n_rows":60,"n_cols":61,"rows_kept":60,"cut":false,"hidden":false,"merged":[[3,0,3,2],[3,7,3,11],[3,22,3,25],[5,0,5,2],[3,26,3,29],[5,26,5,29],[5,3,5,6],[5,7,5,11],[5,12,5,21],[5,22,5,25],[6,3,7,3],[6,2,7,2],[6,1,7,1],[6,0,7,0],[6,22,7,22],[6,14,6,17],[6,12,7,12],[6,13,7,13],[6,7,7,7],[6,8,7,8],[6,9,7,9],[6,11,7,11],[6,6,7,6],[6,5,7,5],[6,4,7,4],[6,10,7,10],[6,28,7,28],[6,29,7,29],[6,18,6,21],[6,23,7,23],[6,24,7,24],[6,25,7,25],[6,26,7,26],[6,27,7,27]]}
["COUNTRY INFORMATION"]
["Administrative structure, population by age group, status of endemicity and planned interventions",null,null,null,null,null,null,null,null,null,null,null,null,null,null,null,null,null,null,null,null,null,null,null,null,null,null,1.0205299999999999]
[]
["TOTAL",null,null,{"$f":"SUBTOTAL(9,D$10:D$1010)","v":2324961},{"$f":"SUBTOTAL(9,E$10:E$1010)","v":242956},542412,1478207,null,null,null,null,null,{"$f":"SUBTOTAL(9,M$10:M$1010)","v":391742},802400,151476,338180,359635,849291,26706,26704,63882,117292]
[]
["Country administrative structure",null,null,"Population",null,null,null,"Endemicity",null,null,null,null,"Population requiring PC",null,null,null,null,null,null,null,null,null,"Number of treatment rounds planned for the year",null,null,null,"Epidemiological surveys planned for the year"]
["Country","Province/State","District","Total","PreSAC","SAC","Adults","LF","Oncho","STH","SCH","Loa","LF","ONCHO","STH",null,null,null,"SCH",null,null,null,"LF","Oncho","STH","SCH","LF","Oncho","STH","SCH"]
[null,null,null,null,null,null,null,null,null,null,null,null,null,null,"PreSAC","SAC","WRA","TOTAL","PreSAC","SAC","Adults","TOTAL",null,null,null,null,null,null,null,null,null,null,null,"IU_ID","IU_NAME"]
[null,null,null,null,null,null,null,null,null,null,null,null,null,null,null,null,null,null,null,null,null,null,null,null,null,null,null,null,null,null,"x","x","x","x","x","x","x","x",null,null,null,"x","x","x","x","x","x","xx","x","x","x","x","xx","x","x","xx","x","x","x","xx","x"]
[{"$f":"IF(INTRO!$E$33<>0,INTRO!$E$33, \" \")","v":"Gabon"},"Libreville -Owendo","Libreville 1",322572,{"$f":"IF(INTRO!$E$48=\"\",\"\",ROUND($D10*INTRO!$E$48,0))","v":33709},{"$f":"IF(INTRO!$E$49=\"\",\"\",ROUND($D10*INTRO!$E$49,0))","v":75256},{"$f":"IF(INTRO!$E$50=\"\",\"\",ROUND($D10*INTRO!$E$50,0))","v":205091},0,4,2,1,1,{"$f":"IF(INTRO!$E$37=\"Endemic\",IF($H10>0,IF($H10=4,\"Unknown\",IF($H10=99,\"Stopped\",$D10)),0),\"Not required\")","v":0},{"$f":"IF(INTRO!$E$39=\"Endemic\", IF($I10>0, IF($I10=4,\"Unknown\",IF($I10=99,\"Stopped\",$D10)), 0),\"Not required\")","v":"Unknown"},{"$f":"IF(INTRO!$E$41=\"Endemic\", IF($J10>1, IF($J10=4, \"Unknown\", IF($J10=99, \"Surveillance\", E10)), 0),\"Not required\")","v":33709},{"$f":"IF(INTRO!$E$41=\"Endemic\", IF($J10>1, IF($J10=4, \"Unknown\", IF($J10=99, \"Surveillance\", F10)), 0),\"Not required\")","v":75256},{"$f":"IF(INTRO!$E$41=\"Endemic\", IF($J10>1, IF($J10=4, \"Unknown\", IF($J10=99, \"Surveillance\", ROUND(D10*INTRO!$E$51,0))), 0),\"Not required\")","v":80030},{"$f":"IF(INTRO!$E$41=\"Endemic\", IF($J10>1, IF($J10=4, \"Unknown\", IF($J10=99, \"Surveillance\", SUM($O10:$Q10))), 0),\"Not required\")","v":188995},0,0,0,{"$f":"IF(INTRO!$E$43=\"Endemic\", IF($K10>1, IF($K10=4, \"Unknown\", IF($K10=99, \"Surveillance\", SUM($S10:$U10))), 0),\"Not required\")","v":0},0,0,1,0,null,null,null,null,null,null,null,20330,"Libreville 1",{"$f":"ROUND(D10*$AB$2,0)","v":329194}]
[{"$f":"IF(INTRO!$E$33<>0,INTRO!$E$33, \" \")","v":"Gabon"},"Libreville -Owendo","Libreville 2",341197,{"$f":"IF(INTRO!$E$48=\"\",\"\",ROUND($D11*INTRO!$E$48,0))","v":35655},{"$f":"IF(INTRO!$E$49=\"\",\"\",ROUND($D11*INTRO!$E$49,0))","v":79601},{"$f":"IF(INTRO!$E$50=\"\",\"\",ROUND($D11*INTRO!$E$50,0))","v":216933},0,4,1,1,1,{"$f":"IF(INTRO!$E$37=\"Endemic\",IF($H11>0,IF($H11=4,\"Unknown\",IF($H11=99,\"Stopped\",$D11)),0),\"Not required\")","v":0},{"$f":"IF(INTRO!$E$39=\"Endemic\", IF($I11>0, IF($I11=4,\"Unknown\",IF($I11=99,\"Stopped\",$D11)), 0),\"Not required\")","v":"Unknown"},{"$f":"IF(INTRO!$E$41=\"Endemic\", IF($J11>1, IF($J11=4, \"Unknown\", IF($J11=99, \"Surveillance\", E11)), 0),\"Not required\")","v":0},{"$f":"IF(INTRO!$E$41=\"Endemic\", IF($J11>1, IF($J11=4, \"Unknown\", IF($J11=99, \"Surveillance\", F11)), 0),\"Not required\")","v":0},{"$f":"IF(INTRO!$E$41=\"Endemic\", IF($J11>1, IF($J11=4, \"Unknown\", IF($J11=99, \"Surveillance\", ROUND(D11*INTRO!$E$51,0))), 0),\"Not required\")","v":0},{"$f":"IF(INTRO!$E$41=\"Endemic\", IF($J11>1, IF($J11=4, \"Unknown\", IF($J11=99, \"Surveillance\", SUM($O11:$Q11))), 0),\"Not required\")","v":0},0,0,0,{"$f":"IF(INTRO!$E$43=\"Endemic\", IF($K11>1, IF($K11=4, \"Unknown\", IF($K11=99, \"Surveillance\", SUM($S11:$U11))), 0),\"Not required\")","v":0},0,0,0,0,null,null,null,null,null,null,null,20331,"Libreville 2",{"$f":"ROUND(D11*$AB$2,0)","v":348202}]
[{"$f":"IF(INTRO!$E$33<>0,INTRO!$E$33, \" \")","v":"Gabon"},"Libreville -Owendo","Libreville 3",265620,{"$f":"IF(INTRO!$E$48=\"\",\"\",ROUND($D12*INTRO!$E$48,0))","v":27757},{"$f":"IF(INTRO!$E$49=\"\",\"\",ROUND($D12*INTRO!$E$49,0))","v":61969},{"$f":"IF(INTRO!$E$50=\"\",\"\",ROUND($D12*INTRO!$E$50,0))","v":168881},0,4,1,1,1,{"$f":"IF(INTRO!$E$37=\"Endemic\",IF($H12>0,IF($H12=4,\"Unknown\",IF($H12=99,\"Stopped\",$D12)),0),\"Not required\")","v":0},{"$f":"IF(INTRO!$E$39=\"Endemic\", IF($I12>0, IF($I12=4,\"Unknown\",IF($I12=99,\"Stopped\",$D12)), 0),\"Not required\")","v":"Unknown"},{"$f":"IF(INTRO!$E$41=\"Endemic\", IF($J12>1, IF($J12=4, \"Unknown\", IF($J12=99, \"Surveillance\", E12)), 0),\"Not required\")","v":0},{"$f":"IF(INTRO!$E$41=\"Endemic\", IF($J12>1, IF($J12=4, \"Unknown\", IF($J12=99, \"Surveillance\", F12)), 0),\"Not required\")","v":0},{"$f":"IF(INTRO!$E$41=\"Endemic\", IF($J12>1, IF($J12=4, \"Unknown\", IF($J12=99, \"Surveillance\", ROUND(D12*INTRO!$E$51,0))), 0),\"Not required\")","v":0},{"$f":"IF(INTRO!$E$41=\"Endemic\", IF($J12>1, IF($J12=4, \"Unknown\", IF($J12=99, \"Surveillance\", SUM($O12:$Q12))), 0),\"Not required\")","v":0},0,0,0,{"$f":"IF(INTRO!$E$43=\"Endemic\", IF($K12>1, IF($K12=4, \"Unknown\", IF($K12=99, \"Surveillance\", SUM($S12:$U12))), 0),\"Not required\")","v":0},0,0,0,0,null,null,null,null,null,null,null,20332,"Libreville 3",271073]
[{"$f":"IF(INTRO!$E$33<>0,INTRO!$E$33, \" \")","v":"Gabon"},"Libreville -Owendo","Owendo",101060,{"$f":"IF(INTRO!$E$48=\"\",\"\",ROUND($D13*INTRO!$E$48,0))","v":10561},{"$f":"IF(INTRO!$E$49=\"\",\"\",ROUND($D13*INTRO!$E$49,0))","v":23577},{"$f":"IF(INTRO!$E$50=\"\",\"\",ROUND($D13*INTRO!$E$50,0))","v":64254},0,4,1,1,1,{"$f":"IF(INTRO!$E$37=\"Endemic\",IF($H13>0,IF($H13=4,\"Unknown\",IF($H13=99,\"Stopped\",$D13)),0),\"Not required\")","v":0},{"$f":"IF(INTRO!$E$39=\"Endemic\", IF($I13>0, IF($I13=4,\"Unknown\",IF($I13=99,\"Stopped\",$D13)), 0),\"Not required\")","v":"Unknown"},{"$f":"IF(INTRO!$E$41=\"Endemic\", IF($J13>1, IF($J13=4, \"Unknown\", IF($J13=99, \"Surveillance\", E13)), 0),\"Not required\")","v":0},{"$f":"IF(INTRO!$E$41=\"Endemic\", IF($J13>1, IF($J13=4, \"Unknown\", IF($J13=99, \"Surveillance\", F13)), 0),\"Not required\")","v":0},{"$f":"IF(INTRO!$E$41=\"Endemic\", IF($J13>1, IF($J13=4, \"Unknown\", IF($J13=99, \"Surveillance\", ROUND(D13*INTRO!$E$51,0))), 0),\"Not required\")","v":0},{"$f":"IF(INTRO!$E$41=\"Endemic\", IF($J13>1, IF($J13=4, \"Unknown\", IF($J13=99, \"Surveillance\", SUM($O13:$Q13))), 0),\"Not required\")","v":0},0,0,0,{"$f":"IF(INTRO!$E$43=\"Endemic\", IF($K13>1, IF($K13=4, \"Unknown\", IF($K13=99, \"Surveillance\", SUM($S13:$U13))), 0),\"Not required\")","v":0},0,0,0,0,null,null,null,null,null,null,null,20334,"Owendo",103135]
[{"$f":"IF(INTRO!$E$33<>0,INTRO!$E$33, \" \")","v":"Gabon"},"Estuaire","Komo-Mondah",111239,{"$f":"IF(INTRO!$E$48=\"\",\"\",ROUND($D14*INTRO!$E$48,0))","v":11624},{"$f":"IF(INTRO!$E$49=\"\",\"\",ROUND($D14*INTRO!$E$49,0))","v":25952},{"$f":"IF(INTRO!$E$50=\"\",\"\",ROUND($D14*INTRO!$E$50,0))","v":70726},1,0,2,2,1,{"$f":"IF(INTRO!$E$37=\"Endemic\",IF($H14>0,IF($H14=4,\"Unknown\",IF($H14=99,\"Stopped\",$D14)),0),\"Not required\")","v":111239},{"$f":"IF(INTRO!$E$39=\"Endemic\", IF($I14>0, IF($I14=4,\"Unknown\",IF($I14=99,\"Stopped\",$D14)), 0),\"Not required\")","v":0},{"$f":"IF(INTRO!$E$41=\"Endemic\", IF($J14>1, IF($J14=4, \"Unknown\", IF($J14=99, \"Surveillance\", E14)), 0),\"Not required\")","v":11624},{"$f":"IF(INTRO!$E$41=\"Endemic\", IF($J14>1, IF($J14=4, \"Unknown\", IF($J14=99, \"Surveillance\", F14)), 0),\"Not required\")","v":25952},{"$f":"IF(INTRO!$E$41=\"Endemic\", IF($J14>1, IF($J14=4, \"Unknown\", IF($J14=99, \"Surveillance\", ROUND(D14*INTRO!$E$51,0))), 0),\"Not required\")","v":27598},{"$f":"IF(INTRO!$E$41=\"Endemic\", IF($J14>1, IF($J14=4, \"Unknown\", IF($J14=99, \"Surveillance\", SUM($O14:$Q14))), 0),\"Not required\")","v":65174},3037,3037,7266,{"$f":"IF(INTRO!$E$43=\"Endemic\", IF($K14>1, IF($K14=4, \"Unknown\", IF($K14=99, \"Surveillance\", SUM($S14:$U14))), 0),\"Not required\")","v":13340},1,0,1,1,null,null,null,null,null,null,null,20333,"Komo-Mondah",113523]
[{"$f":"IF(INTRO!$E$33<>0,INTRO!$E$33, \" \")","v":"Gabon"},"Estuaire","Komo-Kango",21639,{"$f":"IF(INTRO!$E$48=\"\",\"\",ROUND($D15*INTRO!$E$48,0))","v":2261},{"$f":"IF(INTRO!$E$49=\"\",\"\",ROUND($D15*INTRO!$E$49,0))","v":5048},{"$f":"IF(INTRO!$E$50=\"\",\"\",ROUND($D15*INTRO!$E$50,0))","v":13758},0,4,2,2,1,{"$f":"IF(INTRO!$E$37=\"Endemic\",IF($H15>0,IF($H15=4,\"Unknown\",IF($H15=99,\"Stopped\",$D15)),0),\"Not required\")","v":0},{"$f":"IF(INTRO!$E$39=\"Endemic\", IF($I15>0, IF($I15=4,\"Unknown\",IF($I15=99,\"Stopped\",$D15)), 0),\"Not required\")","v":"Unknown"},{"$f":"IF(INTRO!$E$41=\"Endemic\", IF($J15>1, IF($J15=4, \"Unknown\", IF($J15=99, \"Surveillance\", E15)), 0),\"Not required\")","v":2261},{"$f":"IF(INTRO!$E$41=\"Endemic\", IF($J15>1, IF($J15=4, \"Unknown\", IF($J15=99, \"Surveillance\", F15)), 0),\"Not required\")","v":5048},{"$f":"IF(INTRO!$E$41=\"Endemic\", IF($J15>1, IF($J15=4, \"Unknown\", IF($J15=99, \"Surveillance\", ROUND(D15*INTRO!$E$51,0))), 0),\"Not required\")","v":5369},{"$f":"IF(INTRO!$E$41=\"Endemic\", IF($J15>1, IF($J15=4, \"Unknown\", IF($J15=99, \"Surveillance\", SUM($O15:$Q15))), 0),\"Not required\")","v":12678},630,630,1507,{"$f":"IF(INTRO!$E$43=\"Endemic\", IF($K15>1, IF($K15=4, \"Unknown\", IF($K15=99, \"Surveillance\", SUM($S15:$U15))), 0),\"Not required\")","v":2767},0,0,1,1,null,null,null,null,null,null,null,20329,"Komo-Kango",22083]
[{"$f":"IF(INTRO!$E$33<>0,INTRO!$E$33, \" \")","v":"Gabon"},"Estuaire","Noya",4674,{"$f":"IF(INTRO!$E$48=\"\",\"\",ROUND($D16*INTRO!$E$48,0))","v":488},{"$f":"IF(INTRO!$E$49=\"\",\"\",ROUND($D16*INTRO!$E$49,0))","v":1090},{"$f":"IF(INTRO!$E$50=\"\",\"\",ROUND($D16*INTRO!$E$50,0))","v":2972},0,0,3,1,1,{"$f":"IF(INTRO!$E$37=\"Endemic\",IF($H16>0,IF($H16=4,\"Unknown\",IF($H16=99,\"Stopped\",$D16)),0),\"Not required\")","v":0},{"$f":"IF(INTRO!$E$39=\"Endemic\", IF($I16>0, IF($I16=4,\"Unknown\",IF($I16=99,\"Stopped\",$D16)), 0),\"Not required\")","v":0},{"$f":"IF(INTRO!$E$41=\"Endemic\", IF($J16>1, IF($J16=4, \"Unknown\", IF($J16=99, \"Surveillance\", E16)), 0),\"Not required\")","v":488},{"$f":"IF(INTRO!$E$41=\"Endemic\", IF($J16>1, IF($J16=4, \"Unknown\", IF($J16=99, \"Surveillance\", F16)), 0),\"Not required\")","v":1090},{"$f":"IF(INTRO!$E$41=\"Endemic\", IF($J16>1, IF($J16=4, \"Unknown\", IF($J16=99, \"Surveillance\", ROUND(D16*INTRO!$E$51,0))), 0),\"Not required\")","v":1160},{"$f":"IF(INTRO!$E$41=\"Endemic\", IF($J16>1, IF($J16=4, \"Unknown\", IF($J16=99, \"Surveillance\", SUM($O16:$Q16))), 0),\"Not required\")","v":2738},0,0,0,{"$f":"IF(INTRO!$E$43=\"Endemic\", IF($K16>1, IF($K16=4, \"Unknown\", IF($K16=99, \"Surveillance\", SUM($S16:$U16))), 0),\"Not required\")","v":0},0,0,2,0,null,null,null,null,null,null,null,20328,"Noya",4770]
[{"$f":"IF(INTRO!$E$33<>0,INTRO!$E$33, \" \")","v":"Gabon"},"Haut Ogooué","Bayi-brikolo",4084,{"$f":"IF(INTRO!$E$48=\"\",\"\",ROUND($D17*INTRO!$E$48,0))","v":427},{"$f":"IF(INTRO!$E$49=\"\",\"\",ROUND($D17*INTRO!$E$49,0))","v":953},{"$f":"IF(INTRO!$E$50=\"\",\"\",ROUND($D17*INTRO!$E$50,0))","v":2597},0,4,3,0,1,{"$f":"IF(INTRO!$E$37=\"Endemic\",IF($H17>0,IF($H17=4,\"Unknown\",IF($H17=99,\"Stopped\",$D17)),0),\"Not required\")","v":0},{"$f":"IF(INTRO!$E$39=\"Endemic\", IF($I17>0, IF($I17=4,\"Unknown\",IF($I17=99,\"Stopped\",$D17)), 0),\"Not required\")","v":"Unknown"},{"$f":"IF(INTRO!$E$41=\"Endemic\", IF($J17>1, IF($J17=4, \"Unknown\", IF($J17=99, \"Surveillance\", E17)), 0),\"Not required\")","v":427},{"$f":"IF(INTRO!$E$41=\"Endemic\", IF($J17>1, IF($J17=4, \"Unknown\", IF($J17=99, \"Surveillance\", F17)), 0),\"Not required\")","v":953},{"$f":"IF(INTRO!$E$41=\"Endemic\", IF($J17>1, IF($J17=4, \"Unknown\", IF($J17=99, \"Surveillance\", ROUND(D17*INTRO!$E$51,0))), 0),\"Not required\")","v":1013},{"$f":"IF(INTRO!$E$41=\"Endemic\", IF($J17>1, IF($J17=4, \"Unknown\", IF($J17=99, \"Surveillance\", SUM($O17:$Q17))), 0),\"Not required\")","v":2393},0,0,0,{"$f":"IF(INTRO!$E$43=\"Endemic\", IF($K17>1, IF($K17=4, \"Unknown\", IF($K17=99, \"Surveillance\", SUM($S17:$U17))), 0),\"Not required\")","v":0},0,0,2,0,null,null,null,null,null,null,null,20335,"Bayi-brikolo",4168]
[{"$f":"IF(INTRO!$E$33<>0,INTRO!$E$33, \" \")","v":"Gabon"},"Haut Ogooué","Lékoni-lékori",11293,{"$f":"IF(INTRO!$E$48=\"\",\"\",ROUND($D18*INTRO!$E$48,0))","v":1180},{"$f":"IF(INTRO!$E$49=\"\",\"\",ROUND($D18*INTRO!$E$49,0))","v":2635},{"$f":"IF(INTRO!$E$50=\"\",\"\",ROUND($D18*INTRO!$E$50,0))","v":7180},0,0,3,1,1,{"$f":"IF(INTRO!$E$37=\"Endemic\",IF($H18>0,IF($H18=4,\"Unknown\",IF($H18=99,\"Stopped\",$D18)),0),\"Not required\")","v":0},{"$f":"IF(INTRO!$E$39=\"Endemic\", IF($I18>0, IF($I18=4,\"Unknown\",IF($I18=99,\"Stopped\",$D18)), 0),\"Not required\")","v":0},{"$f":"IF(INTRO!$E$41=\"Endemic\", IF($J18>1, IF($J18=4, \"Unknown\", IF($J18=99, \"Surveillance\", E18)), 0),\"Not required\")","v":1180},{"$f":"IF(INTRO!$E$41=\"Endemic\", IF($J18>1, IF($J18=4, \"Unknown\", IF($J18=99, \"Surveillance\", F18)), 0),\"Not required\")","v":2635},{"$f":"IF(INTRO!$E$41=\"Endemic\", IF($J18>1, IF($J18=4, \"Unknown\", IF($J18=99, \"Surveillance\", ROUND(D18*INTRO!$E$51,0))), 0),\"Not required\")","v":2802},{"$f":"IF(INTRO!$E$41=\"Endemic\", IF($J18>1, IF($J18=4, \"Unknown\", IF($J18=99, \"Surveillance\", SUM($O18:$Q18))), 0),\"Not required\")","v":6617},0,0,0,{"$f":"IF(INTRO!$E$43=\"Endemic\", IF($K18>1, IF($K18=4, \"Unknown\", IF($K18=99, \"Surveillance\", SUM($S18:$U18))), 0),\"Not required\")","v":0},0,0,2,0,null,null,null,null,null,null,null,20336,"Lékoni-lékori",11525]
[{"$f":"IF(INTRO!$E$33<>0,INTRO!$E$33, \" \")","v":"Gabon"},"Haut Ogooué","Lékoko",6803,{"$f":"IF(INTRO!$E$48=\"\",\"\",ROUND($D19*INTRO!$E$48,0))","v":711},{"$f":"IF(INTRO!$E$49=\"\",\"\",ROUND($D19*INTRO!$E$49,0))","v":1587},{"$f":"IF(INTRO!$E$50=\"\",\"\",ROUND($D19*INTRO!$E$50,0))","v":4325},0,0,2,1,1,{"$f":"IF(INTRO!$E$37=\"Endemic\",IF($H19>0,IF($H19=4,\"Unknown\",IF($H19=99,\"Stopped\",$D19)),0),\"Not required\")","v":0},{"$f":"IF(INTRO!$E$39=\"Endemic\", IF($I19>0, IF($I19=4,\"Unknown\",IF($I19=99,\"Stopped\",$D19)), 0),\"Not required\")","v":0},{"$f":"IF(INTRO!$E$41=\"Endemic\", IF($J19>1, IF($J19=4, \"Unknown\", IF($J19=99, \"Surveillance\", E19)), 0),\"Not required\")","v":711},{"$f":"IF(INTRO!$E$41=\"Endemic\", IF($J19>1, IF($J19=4, \"Unknown\", IF($J19=99, \"Surveillance\", F19)), 0),\"Not required\")","v":1587},{"$f":"IF(INTRO!$E$41=\"Endemic\", IF($J19>1, IF($J19=4, \"Unknown\", IF($J19=99, \"Surveillance\", ROUND(D19*INTRO!$E$51,0))), 0),\"Not required\")","v":1688},{"$f":"IF(INTRO!$E$41=\"Endemic\", IF($J19>1, IF($J19=4, \"Unknown\", IF($J19=99, \"Surveillance\", SUM($O19:$Q19))), 0),\"Not required\")","v":3986},0,0,0,{"$f":"IF(INTRO!$E$43=\"Endemic\", IF($K19>1, IF($K19=4, \"Unknown\", IF($K19=99, \"Surveillance\", SUM($S19:$U19))), 0),\"Not required\")","v":0},0,0,1,0,null,null,null,null,null,null,null,20337,"Lékoko",6943]
[{"$f":"IF(INTRO!$E$33<>0,INTRO!$E$33, \" \")","v":"Gabon"},"Haut Ogooué","Djouori-Agnili",7451,{"$f":"IF(INTRO!$E$48=\"\",\"\",ROUND($D20*INTRO!$E$48,0))","v":779},{"$f":"IF(INTRO!$E$49=\"\",\"\",ROUND($D20*INTRO!$E$49,0))","v":1738},{"$f":"IF(INTRO!$E$50=\"\",\"\",ROUND($D20*INTRO!$E$50,0))","v":4737},1,4,2,0,1,{"$f":"IF(INTRO!$E$37=\"Endemic\",IF($H20>0,IF($H20=4,\"Unknown\",IF($H20=99,\"Stopped\",$D20)),0),\"Not required\")","v":7451},{"$f":"IF(INTRO!$E$39=\"Endemic\", IF($I20>0, IF($I20=4,\"Unknown\",IF($I20=99,\"Stopped\",$D20)), 0),\"Not required\")","v":"Unknown"},{"$f":"IF(INTRO!$E$41=\"Endemic\", IF($J20>1, IF($J20=4, \"Unknown\", IF($J20=99, \"Surveillance\", E20)), 0),\"Not required\")","v":779},{"$f":"IF(INTRO!$E$41=\"Endemic\", IF($J20>1, IF($J20=4, \"Unknown\", IF($J20=99, \"Surveillance\", F20)), 0),\"Not required\")","v":1738},{"$f":"IF(INTRO!$E$41=\"Endemic\", IF($J20>1, IF($J20=4, \"Unknown\", IF($J20=99, \"Surveillance\", ROUND(D20*INTRO!$E$51,0))), 0),\"Not required\")","v":1849},{"$f":"IF(INTRO!$E$41=\"Endemic\", IF($J20>1, IF($J20=4, \"Unknown\", IF($J20=99, \"Surveillance\", SUM($O20:$Q20))), 0),\"Not required\")","v":4366},0,0,0,{"$f":"IF(INTRO!$E$43=\"Endemic\", IF($K20>1, IF($K20=4, \"Unknown\", IF($K20=99, \"Surveillance\", SUM($S20:$U20))), 0),\"Not required\")","v":0},1,0,1,0,null,null,null,null,null,null,null,20338,"Djouori-Agnili",7604]
[{"$f":"IF(INTRO!$E$33<>0,INTRO!$E$33, \" \")","v":"Gabon"},"Haut Ogooué","Ogooué -létili",4336,{"$f":"IF(INTRO!$E$48=\"\",\"\",ROUND($D21*INTRO!$E$48,0))","v":453},{"$f":"IF(INTRO!$E$49=\"\",\"\",ROUND($D21*INTRO!$E$49,0))","v":1012},{"$f":"IF(INTRO!$E$50=\"\",\"\",ROUND($D21*INTRO!$E$50,0))","v":2757},0,4,3,0,1,{"$f":"IF(INTRO!$E$37=\"Endemic\",IF($H21>0,IF($H21=4,\"Unknown\",IF($H21=99,\"Stopped\",$D21)),0),\"Not required\")","v":0},{"$f":"IF(INTRO!$E$39=\"Endemic\", IF($I21>0, IF($I21=4,\"Unknown\",IF($I21=99,\"Stopped\",$D21)), 0),\"Not required\")","v":"Unknown"},{"$f":"IF(INTRO!$E$41=\"Endemic\", IF($J21>1, IF($J21=4, \"Unknown\", IF($J21=99, \"Surveillance\", E21)), 0),\"Not required\")","v":453},{"$f":"IF(INTRO!$E$41=\"Endemic\", IF($J21>1, IF($J21=4, \"Unknown\", IF($J21=99, \"Surveillance\", F21)), 0),\"Not required\")","v":1012},{"$f":"IF(INTRO!$E$41=\"Endemic\", IF($J21>1, IF($J21=4, \"Unknown\", IF($J21=99, \"Surveillance\", ROUND(D21*INTRO!$E$51,0))), 0),\"Not required\")","v":1076},{"$f":"IF(INTRO!$E$41=\"Endemic\", IF($J21>1, IF($J21=4, \"Unknown\", IF($J21=99, \"Surveillance\", SUM($O21:$Q21))), 0),\"Not required\")","v":2541},0,0,0,{"$f":"IF(INTRO!$E$43=\"Endemic\", IF($K21>1, IF($K21=4, \"Unknown\", IF($K21=99, \"Surveillance\", SUM($S21:$U21))), 0),\"Not required\")","v":0},0,0,2,0,null,null,null,null,null,null,null,20339,"Ogooué -létili",4425]
[{"$f":"IF(INTRO!$E$33<>0,INTRO!$E$33, \" \")","v":"Gabon"},"Haut Ogooué","Mpassa",188297,{"$f":"IF(INTRO!$E$48=\"\",\"\",ROUND($D22*INTRO!$E$48,0))","v":19677},{"$f":"IF(INTRO!$E$49=\"\",\"\",ROUND($D22*INTRO!$E$49,0))","v":43930},{"$f":"IF(INTRO!$E$50=\"\",\"\",ROUND($D22*INTRO!$E$50,0))","v":119719},0,1,2,2,1,{"$f":"IF(INTRO!$E$37=\"Endemic\",IF($H22>0,IF($H22=4,\"Unknown\",IF($H22=99,\"Stopped\",$D22)),0),\"Not required\")","v":0},{"$f":"IF(INTRO!$E$39=\"Endemic\", IF($I22>0, IF($I22=4,\"Unknown\",IF($I22=99,\"Stopped\",$D22)), 0),\"Not required\")","v":188297},{"$f":"IF(INTRO!$E$41=\"Endemic\", IF($J22>1, IF($J22=4, \"Unknown\", IF($J22=99, \"Surveillance\", E22)), 0),\"Not required\")","v":19677},{"$f":"IF(INTRO!$E$41=\"Endemic\", IF($J22>1, IF($J22=4, \"Unknown\", IF($J22=99, \"Surveillance\", F22)), 0),\"Not required\")","v":43930},{"$f":"IF(INTRO!$E$41=\"Endemic\", IF($J22>1, IF($J22=4, \"Unknown\", IF($J22=99, \"Surveillance\", ROUND(D22*INTRO!$E$51,0))), 0),\"Not required\")","v":46716},{"$f":"IF(INTRO!$E$41=\"Endemic\", IF($J22>1, IF($J22=4, \"Unknown\", IF($J22=99, \"Surveillance\", SUM($O22:$Q22))), 0),\"Not required\")","v":110323},2982,2982,7135,{"$f":"IF(INTRO!$E$43=\"Endemic\", IF($K22>1, IF($K22=4, \"Unknown\", IF($K22=99, \"Surveillance\", SUM($S22:$U22))), 0),\"Not required\")","v":13099},0,0,1,1,null,null,null,null,null,null,null,20340,"Mpassa",192163]
[{"$f":"IF(INTRO!$E$33<>0,INTRO!$E$33, \" \")","v":"Gabon"},"Haut Ogooué","Plateaux",11311,{"$f":"IF(INTRO!$E$48=\"\",\"\",ROUND($D23*INTRO!$E$48,0))","v":1182},{"$f":"IF(INTRO!$E$49=\"\",\"\",ROUND($D23*INTRO!$E$49,0))","v":2639},{"$f":"IF(INTRO!$E$50=\"\",\"\",ROUND($D23*INTRO!$E$50,0))","v":7192},0,4,3,1,0,{"$f":"IF(INTRO!$E$37=\"Endemic\",IF($H23>0,IF($H23=4,\"Unknown\",IF($H23=99,\"Stopped\",$D23)),0),\"Not required\")","v":0},{"$f":"IF(INTRO!$E$39=\"Endemic\", IF($I23>0, IF($I23=4,\"Unknown\",IF($I23=99,\"Stopped\",$D23)), 0),\"Not required\")","v":"Unknown"},{"$f":"IF(INTRO!$E$41=\"Endemic\", IF($J23>1, IF($J23=4, \"Unknown\", IF($J23=99, \"Surveillance\", E23)), 0),\"Not required\")","v":1182},{"$f":"IF(INTRO!$E$41=\"Endemic\", IF($J23>1, IF($J23=4, \"Unknown\", IF($J23=99, \"Surveillance\", F23)), 0),\"Not required\")","v":2639},{"$f":"IF(INTRO!$E$41=\"Endemic\", IF($J23>1, IF($J23=4, \"Unknown\", IF($J23=99, \"Surveillance\", ROUND(D23*INTRO!$E$51,0))), 0),\"Not required\")","v":2806},{"$f":"IF(INTRO!$E$41=\"Endemic\", IF($J23>1, IF($J23=4, \"Unknown\", IF($J23=99, \"Surveillance\", SUM($O23:$Q23))), 0),\"Not required\")","v":6627},0,0,0,{"$f":"IF(INTRO!$E$43=\"Endemic\", IF($K23>1, IF($K23=4, \"Unknown\", IF($K23=99, \"Surveillance\", SUM($S23:$U23))), 0),\"Not required\")","v":0},0,0,2,0,null,null,null,null,null,null,null,20341,"Plateaux",11543]
[{"$f":"IF(INTRO!$E$33<>0,INTRO!$E$33, \" \")","v":"Gabon"},"Haut Ogooué","Lébombi-Léyou",83427,{"$f":"IF(INTRO!$E$48=\"\",\"\",ROUND($D24*INTRO!$E$48,0))","v":8718},{"$f":"IF(INTRO!$E$49=\"\",\"\",ROUND($D24*INTRO!$E$49,0))","v":19464},{"$f":"IF(INTRO!$E$50=\"\",\"\",ROUND($D24*INTRO!$E$50,0))","v":53043},0,1,2,1,1,{"$f":"IF(INTRO!$E$37=\"Endemic\",IF($H24>0,IF($H24=4,\"Unknown\",IF($H24=99,\"Stopped\",$D24)),0),\"Not required\")","v":0},{"$f":"IF(INTRO!$E$39=\"Endemic\", IF($I24>0, IF($I24=4,\"Unknown\",IF($I24=99,\"Stopped\",$D24)), 0),\"Not required\")","v":83427},{"$f":"IF(INTRO!$E$41=\"Endemic\", IF($J24>1, IF($J24=4, \"Unknown\", IF($J24=99, \"Surveillance\", E24)), 0),\"Not required\")","v":8718},{"$f":"IF(INTRO!$E$41=\"Endemic\", IF($J24>1, IF($J24=4, \"Unknown\", IF($J24=99, \"Surveillance\", F24)), 0),\"Not required\")","v":19464},{"$f":"IF(INTRO!$E$41=\"Endemic\", IF($J24>1, IF($J24=4, \"Unknown\", IF($J24=99, \"Surveillance\", ROUND(D24*INTRO!$E$51,0))), 0),\"Not required\")","v":20698},{"$f":"IF(INTRO!$E$41=\"Endemic\", IF($J24>1, IF($J24=4, \"Unknown\", IF($J24=99, \"Surveillance\", SUM($O24:$Q24))), 0),\"Not required\")","v":48880},0,0,0,{"$f":"IF(INTRO!$E$43=\"Endemic\", IF($K24>1, IF($K24=4, \"Unknown\", IF($K24=99, \"Surveillance\", SUM($S24:$U24))), 0),\"Not required\")","v":0},0,0,1,0,null,null,null,null,null,null,null,20342,"Lébombi-Léyou",85140]
[{"$f":"IF(INTRO!$E$33<>0,INTRO!$E$33, \" \")","v":"Gabon"},"Haut Ogooué","Lékabi-léwolo",12148,{"$f":"IF(INTRO!$E$48=\"\",\"\",ROUND($D25*INTRO!$E$48,0))","v":1269},{"$f":"IF(INTRO!$E$49=\"\",\"\",ROUND($D25*INTRO!$E$49,0))","v":2834},{"$f":"IF(INTRO!$E$50=\"\",\"\",ROUND($D25*INTRO!$E$50,0))","v":7724},0,4,2,1,1,{"$f":"IF(INTRO!$E$37=\"Endemic\",IF($H25>0,IF($H25=4,\"Unknown\",IF($H25=99,\"Stopped\",$D25)),0),\"Not required\")","v":0},{"$f":"IF(INTRO!$E$39=\"Endemic\", IF($I25>0, IF($I25=4,\"Unknown\",IF($I25=99,\"Stopped\",$D25)), 0),\"Not required\")","v":"Unknown"},{"$f":"IF(INTRO!$E$41=\"Endemic\", IF($J25>1, IF($J25=4, \"Unknown\", IF($J25=99, \"Surveillance\", E25)), 0),\"Not required\")","v":1269},{"$f":"IF(INTRO!$E$41=\"Endemic\", IF($J25>1, IF($J25=4, \"Unknown\", IF($J25=99, \"Surveillance\", F25)), 0),\"Not required\")","v":2834},{"$f":"IF(INTRO!$E$41=\"Endemic\", IF($J25>1, IF($J25=4, \"Unknown\", IF($J25=99, \"Surveillance\", ROUND(D25*INTRO!$E$51,0))), 0),\"Not required\")","v":3014},{"$f":"IF(INTRO!$E$41=\"Endemic\", IF($J25>1, IF($J25=4, \"Unknown\", IF($J25=99, \"Surveillance\", SUM($O25:$Q25))), 0),\"Not required\")","v":7117},0,0,0,{"$f":"IF(INTRO!$E$43=\"Endemic\", IF($K25>1, IF($K25=4, \"Unknown\", IF($K25=99, \"Surveillance\", SUM($S25:$U25))), 0),\"Not required\")","v":0},0,0,1,0,null,null,null,null,null,null,null,20343,"Lékabi-léwolo",12397]
[{"$f":"IF(INTRO!$E$33<>0,INTRO!$E$33, \" \")","v":"Gabon"},"Haut Ogooué","Sébé-brikoli",22826,{"$f":"IF(INTRO!$E$48=\"\",\"\",ROUND($D26*INTRO!$E$48,0))","v":2385},{"$f":"IF(INTRO!$E$49=\"\",\"\",ROUND($D26*INTRO!$E$49,0))","v":5325},{"$f":"IF(INTRO!$E$50=\"\",\"\",ROUND($D26*INTRO!$E$50,0))","v":14513},0,1,2,2,1,{"$f":"IF(INTRO!$E$37=\"Endemic\",IF($H26>0,IF($H26=4,\"Unknown\",IF($H26=99,\"Stopped\",$D26)),0),\"Not required\")","v":0},{"$f":"IF(INTRO!$E$39=\"Endemic\", IF($I26>0, IF($I26=4,\"Unknown\",IF($I26=99,\"Stopped\",$D26)), 0),\"Not required\")","v":22826},{"$f":"IF(INTRO!$E$41=\"Endemic\", IF($J26>1, IF($J26=4, \"Unknown\", IF($J26=99, \"Surveillance\", E26)), 0),\"Not required\")","v":2385},{"$f":"IF(INTRO!$E$41=\"Endemic\", IF($J26>1, IF($J26=4, \"Unknown\", IF($J26=99, \"Surveillance\", F26)), 0),\"Not required\")","v":5325},{"$f":"IF(INTRO!$E$41=\"Endemic\", IF($J26>1, IF($J26=4, \"Unknown\", IF($J26=99, \"Surveillance\", ROUND(D26*INTRO!$E$51,0))), 0),\"Not required\")","v":5663},{"$f":"IF(INTRO!$E$41=\"Endemic\", IF($J26>1, IF($J26=4, \"Unknown\", IF($J26=99, \"Surveillance\", SUM($O26:$Q26))), 0),\"Not required\")","v":13373},107,107,256,{"$f":"IF(INTRO!$E$43=\"Endemic\", IF($K26>1, IF($K26=4, \"Unknown\", IF($K26=99, \"Surveillance\", SUM($S26:$U26))), 0),\"Not required\")","v":470},0,0,1,1,null,null,null,null,null,null,null,20344,"Sébé-brikoli",23295]
[{"$f":"IF(INTRO!$E$33<>0,INTRO!$E$33, \" \")","v":"Gabon"},"Haut Ogooué","Djoué",5129,{"$f":"IF(INTRO!$E$48=\"\",\"\",ROUND($D27*INTRO!$E$48,0))","v":536},{"$f":"IF(INTRO!$E$49=\"\",\"\",ROUND($D27*INTRO!$E$49,0))","v":1197},{"$f":"IF(INTRO!$E$50=\"\",\"\",ROUND($D27*INTRO!$E$50,0))","v":3261},0,4,3,1,1,{"$f":"IF(INTRO!$E$37=\"Endemic\",IF($H27>0,IF($H27=4,\"Unknown\",IF($H27=99,\"Stopped\",$D27)),0),\"Not required\")","v":0},{"$f":"IF(INTRO!$E$39=\"Endemic\", IF($I27>0, IF($I27=4,\"Unknown\",IF($I27=99,\"Stopped\",$D27)), 0),\"Not required\")","v":"Unknown"},{"$f":"IF(INTRO!$E$41=\"Endemic\", IF($J27>1, IF($J27=4, \"Unknown\", IF($J27=99, \"Surveillance\", E27)), 0),\"Not required\")","v":536},{"$f":"IF(INTRO!$E$41=\"Endemic\", IF($J27>1, IF($J27=4, \"Unknown\", IF($J27=99, \"Surveillance\", F27)), 0),\"Not required\")","v":1197},{"$f":"IF(INTRO!$E$41=\"Endemic\", IF($J27>1, IF($J27=4, \"Unknown\", IF($J27=99, \"Surveillance\", ROUND(D27*INTRO!$E$51,0))), 0),\"Not required\")","v":1273},{"$f":"IF(INTRO!$E$41=\"Endemic\", IF($J27>1, IF($J27=4, \"Unknown\", IF($J27=99, \"Surveillance\", SUM($O27:$Q27))), 0),\"Not required\")","v":3006},0,0,0,{"$f":"IF(INTRO!$E$43=\"Endemic\", IF($K27>1, IF($K27=4, \"Unknown\", IF($K27=99, \"Surveillance\", SUM($S27:$U27))), 0),\"Not required\")","v":0},0,0,2,0,null,null,null,null,null,null,null,20345,"Djoué",5234]
[{"$f":"IF(INTRO!$E$33<>0,INTRO!$E$33, \" \")","v":"Gabon"},"Moyen Ogooué","Ogooué et Lacs",70887,{"$f":"IF(INTRO!$E$48=\"\",\"\",ROUND($D28*INTRO!$E$48,0))","v":7408},{"$f":"IF(INTRO!$E$49=\"\",\"\",ROUND($D28*INTRO!$E$49,0))","v":16538},{"$f":"IF(INTRO!$E$50=\"\",\"\",ROUND($D28*INTRO!$E$50,0))","v":45070},0,0,2,2,1,{"$f":"IF(INTRO!$E$37=\"Endemic\",IF($H28>0,IF($H28=4,\"Unknown\",IF($H28=99,\"Stopped\",$D28)),0),\"Not required\")","v":0},{"$f":"IF(INTRO!$E$39=\"Endemic\", IF($I28>0, IF($I28=4,\"Unknown\",IF($I28=99,\"Stopped\",$D28)), 0),\"Not required\")","v":0},{"$f":"IF(INTRO!$E$41=\"Endemic\", IF($J28>1, IF($J28=4, \"Unknown\", IF($J28=99, \"Surveillance\", E28)), 0),\"Not required\")","v":7408},{"$f":"IF(INTRO!$E$41=\"Endemic\", IF($J28>1, IF($J28=4, \"Unknown\", IF($J28=99, \"Surveillance\", F28)), 0),\"Not required\")","v":16538},{"$f":"IF(INTRO!$E$41=\"Endemic\", IF($J28>1, IF($J28=4, \"Unknown\", IF($J28=99, \"Surveillance\", ROUND(D28*INTRO!$E$51,0))), 0),\"Not required\")","v":17587},{"$f":"IF(INTRO!$E$41=\"Endemic\", IF($J28>1, IF($J28=4, \"Unknown\", IF($J28=99, \"Surveillance\", SUM($O28:$Q28))), 0),\"Not required\")","v":41533},4392,4391,10503,{"$f":"IF(INTRO!$E$43=\"Endemic\", IF($K28>1, IF($K28=4, \"Unknown\", IF($K28=99, \"Surveillance\", SUM($S28:$U28))), 0),\"Not required\")","v":19286},0,0,1,1,null,null,null,null,null,null,null,20346,"Ogooué et Lacs",72342]
[{"$f":"IF(INTRO!$E$33<>0,INTRO!$E$33, \" \")","v":"Gabon"},"Moyen Ogooué","Abanga -Bigné",19958,{"$f":"IF(INTRO!$E$48=\"\",\"\",ROUND($D29*INTRO!$E$48,0))","v":2086},{"$f":"IF(INTRO!$E$49=\"\",\"\",ROUND($D29*INTRO!$E$49,0))","v":4656},{"$f":"IF(INTRO!$E$50=\"\",\"\",ROUND($D29*INTRO!$E$50,0))","v":12689},1,1,2,2,1,{"$f":"IF(INTRO!$E$37=\"Endemic\",IF($H29>0,IF($H29=4,\"Unknown\",IF($H29=99,\"Stopped\",$D29)),0),\"Not required\")","v":19958},{"$f":"IF(INTRO!$E$39=\"Endemic\", IF($I29>0, IF($I29=4,\"Unknown\",IF($I29=99,\"Stopped\",$D29)), 0),\"Not required\")","v":19958},{"$f":"IF(INTRO!$E$41=\"Endemic\", IF($J29>1, IF($J29=4, \"Unknown\", IF($J29=99, \"Surveillance\", E29)), 0),\"Not required\")","v":2086},{"$f":"IF(INTRO!$E$41=\"Endemic\", IF($J29>1, IF($J29=4, \"Unknown\", IF($J29=99, \"Surveillance\", F29)), 0),\"Not required\")","v":4656},{"$f":"IF(INTRO!$E$41=\"Endemic\", IF($J29>1, IF($J29=4, \"Unknown\", IF($J29=99, \"Surveillance\", ROUND(D29*INTRO!$E$51,0))), 0),\"Not required\")","v":4952},{"$f":"IF(INTRO!$E$41=\"Endemic\", IF($J29>1, IF($J29=4, \"Unknown\", IF($J29=99, \"Surveillance\", SUM($O29:$Q29))), 0),\"Not required\")","v":11694},91,91,215,{"$f":"IF(INTRO!$E$43=\"Endemic\", IF($K29>1, IF($K29=4, \"Unknown\", IF($K29=99, \"Surveillance\", SUM($S29:$U29))), 0),\"Not required\")","v":397},1,0,1,1,null,null,null,null,null,null,null,20347,"Abanga -Bigné",20368]
[{"$f":"IF(INTRO!$E$33<>0,INTRO!$E$33, \" \")","v":"Gabon"},"Ngounié","Tsamba -Magotsi",17092,{"$f":"IF(INTRO!$E$48=\"\",\"\",ROUND($D30*INTRO!$E$48,0))","v":1786},{"$f":"IF(INTRO!$E$49=\"\",\"\",ROUND($D30*INTRO!$E$49,0))","v":3988},{"$f":"IF(INTRO!$E$50=\"\",\"\",ROUND($D30*INTRO!$E$50,0))","v":10867},0,1,2,2,1,{"$f":"IF(INTRO!$E$37=\"Endemic\",IF($H30>0,IF($H30=4,\"Unknown\",IF($H30=99,\"Stopped\",$D30)),0),\"Not required\")","v":0},{"$f":"IF(INTRO!$E$39=\"Endemic\", IF($I30>0, IF($I30=4,\"Unknown\",IF($I30=99,\"Stopped\",$D30)), 0),\"Not required\")","v":17092},{"$f":"IF(INTRO!$E$41=\"Endemic\", IF($J30>1, IF($J30=4, \"Unknown\", IF($J30=99, \"Surveillance\", E30)), 0),\"Not required\")","v":1786},{"$f":"IF(INTRO!$E$41=\"Endemic\", IF($J30>1, IF($J30=4, \"Unknown\", IF($J30=99, \"Surveillance\", F30)), 0),\"Not required\")","v":3988},{"$f":"IF(INTRO!$E$41=\"Endemic\", IF($J30>1, IF($J30=4, \"Unknown\", IF($J30=99, \"Surveillance\", ROUND(D30*INTRO!$E$51,0))), 0),\"Not required\")","v":4241},{"$f":"IF(INTRO!$E$41=\"Endemic\", IF($J30>1, IF($J30=4, \"Unknown\", IF($J30=99, \"Surveillance\", SUM($O30:$Q30))), 0),\"Not required\")","v":10015},684,684,1639,{"$f":"IF(INTRO!$E$43=\"Endemic\", IF($K30>1, IF($K30=4, \"Unknown\", IF($K30=99, \"Surveillance\", SUM($S30:$U30))), 0),\"Not required\")","v":3007},0,0,1,1,null,null,null,null,null,null,null,20348,"Tsamba -Magotsi",17443]
[{"$f":"IF(INTRO!$E$33<>0,INTRO!$E$33, \" \")","v":"Gabon"},"Ngounié","Louetsi-Wano",12351,{"$f":"IF(INTRO!$E$48=\"\",\"\",ROUND($D31*INTRO!$E$48,0))","v":1291},{"$f":"IF(INTRO!$E$49=\"\",\"\",ROUND($D31*INTRO!$E$49,0))","v":2881},{"$f":"IF(INTRO!$E$50=\"\",\"\",ROUND($D31*INTRO!$E$50,0))","v":7853},1,1,3,1,1,{"$f":"IF(INTRO!$E$37=\"Endemic\",IF($H31>0,IF($H31=4,\"Unknown\",IF($H31=99,\"Stopped\",$D31)),0),\"Not required\")","v":12351},{"$f":"IF(INTRO!$E$39=\"Endemic\", IF($I31>0, IF($I31=4,\"Unknown\",IF($I31=99,\"Stopped\",$D31)), 0),\"Not required\")","v":12351},{"$f":"IF(INTRO!$E$41=\"Endemic\", IF($J31>1, IF($J31=4, \"Unknown\", IF($J31=99, \"Surveillance\", E31)), 0),\"Not required\")","v":1291},{"$f":"IF(INTRO!$E$41=\"Endemic\", IF($J31>1, IF($J31=4, \"Unknown\", IF($J31=99, \"Surveillance\", F31)), 0),\"Not required\")","v":2881},{"$f":"IF(INTRO!$E$41=\"Endemic\", IF($J31>1, IF($J31=4, \"Unknown\", IF($J31=99, \"Surveillance\", ROUND(D31*INTRO!$E$51,0))), 0),\"Not required\")","v":3064},{"$f":"IF(INTRO!$E$41=\"Endemic\", IF($J31>1, IF($J31=4, \"Unknown\", IF($J31=99, \"Surveillance\", SUM($O31:$Q31))), 0),\"Not required\")","v":7236},0,0,0,{"$f":"IF(INTRO!$E$43=\"Endemic\", IF($K31>1, IF($K31=4, \"Unknown\", IF($K31=99, \"Surveillance\", SUM($S31:$U31))), 0),\"Not required\")","v":0},1,0,2,0,null,null,null,null,null,null,null,20349,"Louetsi-Wano",12605]
[{"$f":"IF(INTRO!$E$33<>0,INTRO!$E$33, \" \")","v":"Gabon"},"Ngounié","Louetsi-Bibaka",2882,{"$f":"IF(INTRO!$E$48=\"\",\"\",ROUND($D32*INTRO!$E$48,0))","v":301},{"$f":"IF(INTRO!$E$49=\"\",\"\",ROUND($D32*INTRO!$E$49,0))","v":672},{"$f":"IF(INTRO!$E$50=\"\",\"\",ROUND($D32*INTRO!$E$50,0))","v":1832},1,0,3,0,1,{"$f":"IF(INTRO!$E$37=\"Endemic\",IF($H32>0,IF($H32=4,\"Unknown\",IF($H32=99,\"Stopped\",$D32)),0),\"Not required\")","v":2882},{"$f":"IF(INTRO!$E$39=\"Endemic\", IF($I32>0, IF($I32=4,\"Unknown\",IF($I32=99,\"Stopped\",$D32)), 0),\"Not required\")","v":0},{"$f":"IF(INTRO!$E$41=\"Endemic\", IF($J32>1, IF($J32=4, \"Unknown\", IF($J32=99, \"Surveillance\", E32)), 0),\"Not required\")","v":301},{"$f":"IF(INTRO!$E$41=\"Endemic\", IF($J32>1, IF($J32=4, \"Unknown\", IF($J32=99, \"Surveillance\", F32)), 0),\"Not required\")","v":672},{"$f":"IF(INTRO!$E$41=\"Endemic\", IF($J32>1, IF($J32=4, \"Unknown\", IF($J32=99, \"Surveillance\", ROUND(D32*INTRO!$E$51,0))), 0),\"Not required\")","v":715},{"$f":"IF(INTRO!$E$41=\"Endemic\", IF($J32>1, IF($J32=4, \"Unknown\", IF($J32=99, \"Surveillance\", SUM($O32:$Q32))), 0),\"Not required\")","v":1688},0,0,0,{"$f":"IF(INTRO!$E$43=\"Endemic\", IF($K32>1, IF($K32=4, \"Unknown\", IF($K32=99, \"Surveillance\", SUM($S32:$U32))), 0),\"Not required\")","v":0},1,0,2,0,null,null,null,null,null,null,null,20350,"Louetsi-Bibaka",2941]
[{"$f":"IF(INTRO!$E$33<>0,INTRO!$E$33, \" \")","v":"Gabon"},"Ngounié","Ndolou",6758,{"$f":"IF(INTRO!$E$48=\"\",\"\",ROUND($D33*INTRO!$E$48,0))","v":706},{"$f":"IF(INTRO!$E$49=\"\",\"\",ROUND($D33*INTRO!$E$49,0))","v":1577},{"$f":"IF(INTRO!$E$50=\"\",\"\",ROUND($D33*INTRO!$E$50,0))","v":4297},1,0,2,1,1,{"$f":"IF(INTRO!$E$37=\"Endemic\",IF($H33>0,IF($H33=4,\"Unknown\",IF($H33=99,\"Stopped\",$D33)),0),\"Not required\")","v":6758},{"$f":"IF(INTRO!$E$39=\"Endemic\", IF($I33>0, IF($I33=4,\"Unknown\",IF($I33=99,\"Stopped\",$D33)), 0),\"Not required\")","v":0},{"$f":"IF(INTRO!$E$41=\"Endemic\", IF($J33>1, IF($J33=4, \"Unknown\", IF($J33=99, \"Surveillance\", E33)), 0),\"Not required\")","v":706},{"$f":"IF(INTRO!$E$41=\"Endemic\", IF($J33>1, IF($J33=4, \"Unknown\", IF($J33=99, \"Surveillance\", F33)), 0),\"Not required\")","v":1577},{"$f":"IF(INTRO!$E$41=\"Endemic\", IF($J33>1, IF($J33=4, \"Unknown\", IF($J33=99, \"Surveillance\", ROUND(D33*INTRO!$E$51,0))), 0),\"Not required\")","v":1677},{"$f":"IF(INTRO!$E$41=\"Endemic\", IF($J33>1, IF($J33=4, \"Unknown\", IF($J33=99, \"Surveillance\", SUM($O33:$Q33))), 0),\"Not required\")","v":3960},0,0,0,{"$f":"IF(INTRO!$E$43=\"Endemic\", IF($K33>1, IF($K33=4, \"Unknown\", IF($K33=99, \"Surveillance\", SUM($S33:$U33))), 0),\"Not required\")","v":0},1,0,1,0,null,null,null,null,null,null,null,20351,"Ndolou",6897]
[{"$f":"IF(INTRO!$E$33<>0,INTRO!$E$33, \" \")","v":"Gabon"},"Ngounié","Boumi-Louetsi",17411,{"$f":"IF(INTRO!$E$48=\"\",\"\",ROUND($D34*INTRO!$E$48,0))","v":1819},{"$f":"IF(INTRO!$E$49=\"\",\"\",ROUND($D34*INTRO!$E$49,0))","v":4062},{"$f":"IF(INTRO!$E$50=\"\",\"\",ROUND($D34*INTRO!$E$50,0))","v":11070},1,1,3,0,1,{"$f":"IF(INTRO!$E$37=\"Endemic\",IF($H34>0,IF($H34=4,\"Unknown\",IF($H34=99,\"Stopped\",$D34)),0),\"Not required\")","v":17411},{"$f":"IF(INTRO!$E$39=\"Endemic\", IF($I34>0, IF($I34=4,\"Unknown\",IF($I34=99,\"Stopped\",$D34)), 0),\"Not required\")","v":17411},{"$f":"IF(INTRO!$E$41=\"Endemic\", IF($J34>1, IF($J34=4, \"Unknown\", IF($J34=99, \"Surveillance\", E34)), 0),\"Not required\")","v":1819},{"$f":"IF(INTRO!$E$41=\"Endemic\", IF($J34>1, IF($J34=4, \"Unknown\", IF($J34=99, \"Surveillance\", F34)), 0),\"Not required\")","v":4062},{"$f":"IF(INTRO!$E$41=\"Endemic\", IF($J34>1, IF($J34=4, \"Unknown\", IF($J34=99, \"Surveillance\", ROUND(D34*INTRO!$E$51,0))), 0),\"Not required\")","v":4320},{"$f":"IF(INTRO!$E$41=\"Endemic\", IF($J34>1, IF($J34=4, \"Unknown\", IF($J34=99, \"Surveillance\", SUM($O34:$Q34))), 0),\"Not required\")","v":10201},0,0,0,{"$f":"IF(INTRO!$E$43=\"Endemic\", IF($K34>1, IF($K34=4, \"Unknown\", IF($K34=99, \"Surveillance\", SUM($S34:$U34))), 0),\"Not required\")","v":0},1,0,2,0,null,null,null,null,null,null,null,20352,"Boumi-Louetsi",17768]
[{"$f":"IF(INTRO!$E$33<>0,INTRO!$E$33, \" \")","v":"Gabon"},"Ngounié","Ogoulou",9417,{"$f":"IF(INTRO!$E$48=\"\",\"\",ROUND($D35*INTRO!$E$48,0))","v":984},{"$f":"IF(INTRO!$E$49=\"\",\"\",ROUND($D35*INTRO!$E$49,0))","v":2197},{"$f":"IF(INTRO!$E$50=\"\",\"\",ROUND($D35*INTRO!$E$50,0))","v":5987},1,1,3,1,1,{"$f":"IF(INTRO!$E$37=\"Endemic\",IF($H35>0,IF($H35=4,\"Unknown\",IF($H35=99,\"Stopped\",$D35)),0),\"Not required\")","v":9417},{"$f":"IF(INTRO!$E$39=\"Endemic\", IF($I35>0, IF($I35=4,\"Unknown\",IF($I35=99,\"Stopped\",$D35)), 0),\"Not required\")","v":9417},{"$f":"IF(INTRO!$E$41=\"Endemic\", IF($J35>1, IF($J35=4, \"Unknown\", IF($J35=99, \"Surveillance\", E35)), 0),\"Not required\")","v":984},{"$f":"IF(INTRO!$E$41=\"Endemic\", IF($J35>1, IF($J35=4, \"Unknown\", IF($J35=99, \"Surveillance\", F35)), 0),\"Not required\")","v":2197},{"$f":"IF(INTRO!$E$41=\"Endemic\", IF($J35>1, IF($J35=4, \"Unknown\", IF($J35=99, \"Surveillance\", ROUND(D35*INTRO!$E$51,0))), 0),\"Not required\")","v":2336},{"$f":"IF(INTRO!$E$41=\"Endemic\", IF($J35>1, IF($J35=4, \"Unknown\", IF($J35=99, \"Surveillance\", SUM($O35:$Q35))), 0),\"Not required\")","v":5517},0,0,0,{"$f":"IF(INTRO!$E$43=\"Endemic\", IF($K35>1, IF($K35=4, \"Unknown\", IF($K35=99, \"Surveillance\", SUM($S35:$U35))), 0),\"Not required\")","v":0},1,0,2,0,null,null,null,null,null,null,null,20353,"Ogoulou",9610]
[{"$f":"IF(INTRO!$E$33<>0,INTRO!$E$33, \" \")","v":"Gabon"},"Ngounié","Douya-Onoye",39925,{"$f":"IF(INTRO!$E$48=\"\",\"\",ROUND($D36*INTRO!$E$48,0))","v":4172},{"$f":"IF(INTRO!$E$49=\"\",\"\",ROUND($D36*INTRO!$E$49,0))","v":9315},{"$f":"IF(INTRO!$E$50=\"\",\"\",ROUND($D36*INTRO!$E$50,0))","v":25384},1,1,2,2,1,{"$f":"IF(INTRO!$E$37=\"Endemic\",IF($H36>0,IF($H36=4,\"Unknown\",IF($H36=99,\"Stopped\",$D36)),0),\"Not required\")","v":39925},{"$f":"IF(INTRO!$E$39=\"Endemic\", IF($I36>0, IF($I36=4,\"Unknown\",IF($I36=99,\"Stopped\",$D36)), 0),\"Not required\")","v":39925},{"$f":"IF(INTRO!$E$41=\"Endemic\", IF($J36>1, IF($J36=4, \"Unknown\", IF($J36=99, \"Surveillance\", E36)), 0),\"Not required\")","v":4172},{"$f":"IF(INTRO!$E$41=\"Endemic\", IF($J36>1, IF($J36=4, \"Unknown\", IF($J36=99, \"Surveillance\", F36)), 0),\"Not required\")","v":9315},{"$f":"IF(INTRO!$E$41=\"Endemic\", IF($J36>1, IF($J36=4, \"Unknown\", IF($J36=99, \"Surveillance\", ROUND(D36*INTRO!$E$51,0))), 0),\"Not required\")","v":9905},{"$f":"IF(INTRO!$E$41=\"Endemic\", IF($J36>1, IF($J36=4, \"Unknown\", IF($J36=99, \"Surveillance\", SUM($O36:$Q36))), 0),\"Not required\")","v":23392},2998,2998,7175,{"$f":"IF(INTRO!$E$43=\"Endemic\", IF($K36>1, IF($K36=4, \"Unknown\", IF($K36=99, \"Surveillance\", SUM($S36:$U36))), 0),\"Not required\")","v":13171},1,0,1,1,null,null,null,null,null,null,null,20354,"Douya-Onoye",40745]
[{"$f":"IF(INTRO!$E$33<>0,INTRO!$E$33, \" \")","v":"Gabon"},"Ngounié","Dola",10050,{"$f":"IF(INTRO!$E$48=\"\",\"\",ROUND($D37*INTRO!$E$48,0))","v":1050},{"$f":"IF(INTRO!$E$49=\"\",\"\",ROUND($D37*INTRO!$E$49,0))","v":2345},{"$f":"IF(INTRO!$E$50=\"\",\"\",ROUND($D37*INTRO!$E$50,0))","v":6390},0,1,2,2,1,{"$f":"IF(INTRO!$E$37=\"Endemic\",IF($H37>0,IF($H37=4,\"Unknown\",IF($H37=99,\"Stopped\",$D37)),0),\"Not required\")","v":0},{"$f":"IF(INTRO!$E$39=\"Endemic\", IF($I37>0, IF($I37=4,\"Unknown\",IF($I37=99,\"Stopped\",$D37)), 0),\"Not required\")","v":10050},{"$f":"IF(INTRO!$E$41=\"Endemic\", IF($J37>1, IF($J37=4, \"Unknown\", IF($J37=99, \"Surveillance\", E37)), 0),\"Not required\")","v":1050},{"$f":"IF(INTRO!$E$41=\"Endemic\", IF($J37>1, IF($J37=4, \"Unknown\", IF($J37=99, \"Surveillance\", F37)), 0),\"Not required\")","v":2345},{"$f":"IF(INTRO!$E$41=\"Endemic\", IF($J37>1, IF($J37=4, \"Unknown\", IF($J37=99, \"Surveillance\", ROUND(D37*INTRO!$E$51,0))), 0),\"Not required\")","v":2493},{"$f":"IF(INTRO!$E$41=\"Endemic\", IF($J37>1, IF($J37=4, \"Unknown\", IF($J37=99, \"Surveillance\", SUM($O37:$Q37))), 0),\"Not required\")","v":5888},672,672,1608,{"$f":"IF(INTRO!$E$43=\"Endemic\", IF($K37>1, IF($K37=4, \"Unknown\", IF($K37=99, \"Surveillance\", SUM($S37:$U37))), 0),\"Not required\")","v":2952},0,0,1,1,null,null,null,null,null,null,null,20355,"Dola",10256]
[{"$f":"IF(INTRO!$E$33<>0,INTRO!$E$33, \" \")","v":"Gabon"},"Ngounié","Mougalaba",1296,{"$f":"IF(INTRO!$E$48=\"\",\"\",ROUND($D38*INTRO!$E$48,0))","v":135},{"$f":"IF(INTRO!$E$49=\"\",\"\",ROUND($D38*INTRO!$E$49,0))","v":302},{"$f":"IF(INTRO!$E$50=\"\",\"\",ROUND($D38*INTRO!$E$50,0))","v":824},1,1,3,1,1,{"$f":"IF(INTRO!$E$37=\"Endemic\",IF($H38>0,IF($H38=4,\"Unknown\",IF($H38=99,\"Stopped\",$D38)),0),\"Not required\")","v":1296},{"$f":"IF(INTRO!$E$39=\"Endemic\", IF($I38>0, IF($I38=4,\"Unknown\",IF($I38=99,\"Stopped\",$D38)), 0),\"Not required\")","v":1296},{"$f":"IF(INTRO!$E$41=\"Endemic\", IF($J38>1, IF($J38=4, \"Unknown\", IF($J38=99, \"Surveillance\", E38)), 0),\"Not required\")","v":135},{"$f":"IF(INTRO!$E$41=\"Endemic\", IF($J38>1, IF($J38=4, \"Unknown\", IF($J38=99, \"Surveillance\", F38)), 0),\"Not required\")","v":302},{"$f":"IF(INTRO!$E$41=\"Endemic\", IF($J38>1, IF($J38=4, \"Unknown\", IF($J38=99, \"Surveillance\", ROUND(D38*INTRO!$E$51,0))), 0),\"Not required\")","v":322},{"$f":"IF(INTRO!$E$41=\"Endemic\", IF($J38>1, IF($J38=4, \"Unknown\", IF($J38=99, \"Surveillance\", SUM($O38:$Q38))), 0),\"Not required\")","v":759},0,0,0,{"$f":"IF(INTRO!$E$43=\"Endemic\", IF($K38>1, IF($K38=4, \"Unknown\", IF($K38=99, \"Surveillance\", SUM($S38:$U38))), 0),\"Not required\")","v":0},1,0,2,0,null,null,null,null,null,null,null,20356,"Mougalaba",1323]
[{"$f":"IF(INTRO!$E$33<>0,INTRO!$E$33, \" \")","v":"Gabon"},"Nyanga","Doutsila",3640,{"$f":"IF(INTRO!$E$48=\"\",\"\",ROUND($D39*INTRO!$E$48,0))","v":380},{"$f":"IF(INTRO!$E$49=\"\",\"\",ROUND($D39*INTRO!$E$49,0))","v":849},{"$f":"IF(INTRO!$E$50=\"\",\"\",ROUND($D39*INTRO!$E$50,0))","v":2314},0,4,3,1,1,{"$f":"IF(INTRO!$E$37=\"Endemic\",IF($H39>0,IF($H39=4,\"Unknown\",IF($H39=99,\"Stopped\",$D39)),0),\"Not required\")","v":0},{"$f":"IF(INTRO!$E$39=\"Endemic\", IF($I39>0, IF($I39=4,\"Unknown\",IF($I39=99,\"Stopped\",$D39)), 0),\"Not required\")","v":"Unknown"},{"$f":"IF(INTRO!$E$41=\"Endemic\", IF($J39>1, IF($J39=4, \"Unknown\", IF($J39=99, \"Surveillance\", E39)), 0),\"Not required\")","v":380},{"$f":"IF(INTRO!$E$41=\"Endemic\", IF($J39>1, IF($J39=4, \"Unknown\", IF($J39=99, \"Surveillance\", F39)), 0),\"Not required\")","v":849},{"$f":"IF(INTRO!$E$41=\"Endemic\", IF($J39>1, IF($J39=4, \"Unknown\", IF($J39=99, \"Surveillance\", ROUND(D39*INTRO!$E$51,0))), 0),\"Not required\")","v":903},{"$f":"IF(INTRO!$E$41=\"Endemic\", IF($J39>1, IF($J39=4, \"Unknown\", IF($J39=99, \"Surveillance\", SUM($O39:$Q39))), 0),\"Not required\")","v":2132},0,0,0,{"$f":"IF(INTRO!$E$43=\"Endemic\", IF($K39>1, IF($K39=4, \"Unknown\", IF($K39=99, \"Surveillance\", SUM($S39:$U39))), 0),\"Not required\")","v":0},0,0,2,0,null,null,null,null,null,null,null,20357,"Doutsila",3715]
[{"$f":"IF(INTRO!$E$33<>0,INTRO!$E$33, \" \")","v":"Gabon"},"Nyanga","Basse-Banio",8068,{"$f":"IF(INTRO!$E$48=\"\",\"\",ROUND($D40*INTRO!$E$48,0))","v":843},{"$f":"IF(INTRO!$E$49=\"\",\"\",ROUND($D40*INTRO!$E$49,0))","v":1882},{"$f":"IF(INTRO!$E$50=\"\",\"\",ROUND($D40*INTRO!$E$50,0))","v":5130},1,1,2,1,1,{"$f":"IF(INTRO!$E$37=\"Endemic\",IF($H40>0,IF($H40=4,\"Unknown\",IF($H40=99,\"Stopped\",$D40)),0),\"Not required\")","v":8068},{"$f":"IF(INTRO!$E$39=\"Endemic\", IF($I40>0, IF($I40=4,\"Unknown\",IF($I40=99,\"Stopped\",$D40)), 0),\"Not required\")","v":8068},{"$f":"IF(INTRO!$E$41=\"Endemic\", IF($J40>1, IF($J40=4, \"Unknown\", IF($J40=99, \"Surveillance\", E40)), 0),\"Not required\")","v":843},{"$f":"IF(INTRO!$E$41=\"Endemic\", IF($J40>1, IF($J40=4, \"Unknown\", IF($J40=99, \"Surveillance\", F40)), 0),\"Not required\")","v":1882},{"$f":"IF(INTRO!$E$41=\"Endemic\", IF($J40>1, IF($J40=4, \"Unknown\", IF($J40=99, \"Surveillance\", ROUND(D40*INTRO!$E$51,0))), 0),\"Not required\")","v":2002},{"$f":"IF(INTRO!$E$41=\"Endemic\", IF($J40>1, IF($J40=4, \"Unknown\", IF($J40=99, \"Surveillance\", SUM($O40:$Q40))), 0),\"Not required\")","v":4727},0,0,0,{"$f":"IF(INTRO!$E$43=\"Endemic\", IF($K40>1, IF($K40=4, \"Unknown\", IF($K40=99, \"Surveillance\", SUM($S40:$U40))), 0),\"Not required\")","v":0},1,0,1,0,null,null,null,null,null,null,null,20358,"Basse-Banio",8234]
[{"$f":"IF(INTRO!$E$33<>0,INTRO!$E$33, \" \")","v":"Gabon"},"Nyanga","Douigny",6287,{"$f":"IF(INTRO!$E$48=\"\",\"\",ROUND($D41*INTRO!$E$48,0))","v":657},{"$f":"IF(INTRO!$E$49=\"\",\"\",ROUND($D41*INTRO!$E$49,0))","v":1467},{"$f":"IF(INTRO!$E$50=\"\",\"\",ROUND($D41*INTRO!$E$50,0))","v":3997},0,1,3,0,1,{"$f":"IF(INTRO!$E$37=\"Endemic\",IF($H41>0,IF($H41=4,\"Unknown\",IF($H41=99,\"Stopped\",$D41)),0),\"Not required\")","v":0},{"$f":"IF(INTRO!$E$39=\"Endemic\", IF($I41>0, IF($I41=4,\"Unknown\",IF($I41=99,\"Stopped\",$D41)), 0),\"Not required\")","v":6287},{"$f":"IF(INTRO!$E$41=\"Endemic\", IF($J41>1, IF($J41=4, \"Unknown\", IF($J41=99, \"Surveillance\", E41)), 0),\"Not required\")","v":657},{"$f":"IF(INTRO!$E$41=\"Endemic\", IF($J41>1, IF($J41=4, \"Unknown\", IF($J41=99, \"Surveillance\", F41)), 0),\"Not required\")","v":1467},{"$f":"IF(INTRO!$E$41=\"Endemic\", IF($J41>1, IF($J41=4, \"Unknown\", IF($J41=99, \"Surveillance\", ROUND(D41*INTRO!$E$51,0))), 0),\"Not required\")","v":1560},{"$f":"IF(INTRO!$E$41=\"Endemic\", IF($J41>1, IF($J41=4, \"Unknown\", IF($J41=99, \"Surveillance\", SUM($O41:$Q41))), 0),\"Not required\")","v":3684},0,0,0,{"$f":"IF(INTRO!$E$43=\"Endemic\", IF($K41>1, IF($K41=4, \"Unknown\", IF($K41=99, \"Surveillance\", SUM($S41:$U41))), 0),\"Not required\")","v":0},0,0,2,0,null,null,null,null,null,null,null,20359,"Douigny",6416]
[{"$f":"IF(INTRO!$E$33<>0,INTRO!$E$33, \" \")","v":"Gabon"},"Nyanga","Mongo",4112,{"$f":"IF(INTRO!$E$48=\"\",\"\",ROUND($D42*INTRO!$E$48,0))","v":430},{"$f":"IF(INTRO!$E$49=\"\",\"\",ROUND($D42*INTRO!$E$49,0))","v":959},{"$f":"IF(INTRO!$E$50=\"\",\"\",ROUND($D42*INTRO!$E$50,0))","v":2614},0,1,2,1,1,{"$f":"IF(INTRO!$E$37=\"Endemic\",IF($H42>0,IF($H42=4,\"Unknown\",IF($H42=99,\"Stopped\",$D42)),0),\"Not required\")","v":0},{"$f":"IF(INTRO!$E$39=\"Endemic\", IF($I42>0, IF($I42=4,\"Unknown\",IF($I42=99,\"Stopped\",$D42)), 0),\"Not required\")","v":4112},{"$f":"IF(INTRO!$E$41=\"Endemic\", IF($J42>1, IF($J42=4, \"Unknown\", IF($J42=99, \"Surveillance\", E42)), 0),\"Not required\")","v":430},{"$f":"IF(INTRO!$E$41=\"Endemic\", IF($J42>1, IF($J42=4, \"Unknown\", IF($J42=99, \"Surveillance\", F42)), 0),\"Not required\")","v":959},{"$f":"IF(INTRO!$E$41=\"Endemic\", IF($J42>1, IF($J42=4, \"Unknown\", IF($J42=99, \"Surveillance\", ROUND(D42*INTRO!$E$51,0))), 0),\"Not required\")","v":1020},{"$f":"IF(INTRO!$E$41=\"Endemic\", IF($J42>1, IF($J42=4, \"Unknown\", IF($J42=99, \"Surveillance\", SUM($O42:$Q42))), 0),\"Not required\")","v":2409},0,0,0,{"$f":"IF(INTRO!$E$43=\"Endemic\", IF($K42>1, IF($K42=4, \"Unknown\", IF($K42=99, \"Surveillance\", SUM($S42:$U42))), 0),\"Not required\")","v":0},0,0,1,0,null,null,null,null,null,null,null,20360,"Mongo",4196]
[{"$f":"IF(INTRO!$E$33<>0,INTRO!$E$33, \" \")","v":"Gabon"},"Nyanga","Haute-Banio",2069,{"$f":"IF(INTRO!$E$48=\"\",\"\",ROUND($D43*INTRO!$E$48,0))","v":216},{"$f":"IF(INTRO!$E$49=\"\",\"\",ROUND($D43*INTRO!$E$49,0))","v":483},{"$f":"IF(INTRO!$E$50=\"\",\"\",ROUND($D43*INTRO!$E$50,0))","v":1315},0,4,3,0,1,{"$f":"IF(INTRO!$E$37=\"Endemic\",IF($H43>0,IF($H43=4,\"Unknown\",IF($H43=99,\"Stopped\",$D43)),0),\"Not required\")","v":0},{"$f":"IF(INTRO!$E$39=\"Endemic\", IF($I43>0, IF($I43=4,\"Unknown\",IF($I43=99,\"Stopped\",$D43)), 0),\"Not required\")","v":"Unknown"},{"$f":"IF(INTRO!$E$41=\"Endemic\", IF($J43>1, IF($J43=4, \"Unknown\", IF($J43=99, \"Surveillance\", E43)), 0),\"Not required\")","v":216},{"$f":"IF(INTRO!$E$41=\"Endemic\", IF($J43>1, IF($J43=4, \"Unknown\", IF($J43=99, \"Surveillance\", F43)), 0),\"Not required\")","v":483},{"$f":"IF(INTRO!$E$41=\"Endemic\", IF($J43>1, IF($J43=4, \"Unknown\", IF($J43=99, \"Surveillance\", ROUND(D43*INTRO!$E$51,0))), 0),\"Not required\")","v":513},{"$f":"IF(INTRO!$E$41=\"Endemic\", IF($J43>1, IF($J43=4, \"Unknown\", IF($J43=99, \"Surveillance\", SUM($O43:$Q43))), 0),\"Not required\")","v":1212},0,0,0,{"$f":"IF(INTRO!$E$43=\"Endemic\", IF($K43>1, IF($K43=4, \"Unknown\", IF($K43=99, \"Surveillance\", SUM($S43:$U43))), 0),\"Not required\")","v":0},0,0,2,0,null,null,null,null,null,null,null,20361,"Haute-Banio",2111]
[{"$f":"IF(INTRO!$E$33<>0,INTRO!$E$33, \" \")","v":"Gabon"},"Nyanga","Mougoutsi",34862,{"$f":"IF(INTRO!$E$48=\"\",\"\",ROUND($D44*INTRO!$E$48,0))","v":3643},{"$f":"IF(INTRO!$E$49=\"\",\"\",ROUND($D44*INTRO!$E$49,0))","v":8133},{"$f":"IF(INTRO!$E$50=\"\",\"\",ROUND($D44*INTRO!$E$50,0))","v":22165},0,1,2,1,1,{"$f":"IF(INTRO!$E$37=\"Endemic\",IF($H44>0,IF($H44=4,\"Unknown\",IF($H44=99,\"Stopped\",$D44)),0),\"Not required\")","v":0},{"$f":"IF(INTRO!$E$39=\"Endemic\", IF($I44>0, IF($I44=4,\"Unknown\",IF($I44=99,\"Stopped\",$D44)), 0),\"Not required\")","v":34862},{"$f":"IF(INTRO!$E$41=\"Endemic\", IF($J44>1, IF($J44=4, \"Unknown\", IF($J44=99, \"Surveillance\", E44)), 0),\"Not required\")","v":3643},{"$f":"IF(INTRO!$E$41=\"Endemic\", IF($J44>1, IF($J44=4, \"Unknown\", IF($J44=99, \"Surveillance\", F44)), 0),\"Not required\")","v":8133},{"$f":"IF(INTRO!$E$41=\"Endemic\", IF($J44>1, IF($J44=4, \"Unknown\", IF($J44=99, \"Surveillance\", ROUND(D44*INTRO!$E$51,0))), 0),\"Not required\")","v":8649},{"$f":"IF(INTRO!$E$41=\"Endemic\", IF($J44>1, IF($J44=4, \"Unknown\", IF($J44=99, \"Surveillance\", SUM($O44:$Q44))), 0),\"Not required\")","v":20425},0,0,0,{"$f":"IF(INTRO!$E$43=\"Endemic\", IF($K44>1, IF($K44=4, \"Unknown\", IF($K44=99, \"Surveillance\", SUM($S44:$U44))), 0),\"Not required\")","v":0},0,0,1,0,null,null,null,null,null,null,null,20362,"Mougoutsi",35578]
[{"$f":"IF(INTRO!$E$33<>0,INTRO!$E$33, \" \")","v":"Gabon"},"Ogooué-Ivindo","Lopé",17507,{"$f":"IF(INTRO!$E$48=\"\",\"\",ROUND($D45*INTRO!$E$48,0))","v":1829},{"$f":"IF(INTRO!$E$49=\"\",\"\",ROUND($D45*INTRO!$E$49,0))","v":4084},{"$f":"IF(INTRO!$E$50=\"\",\"\",ROUND($D45*INTRO!$E$50,0))","v":11131},1,1,2,1,1,{"$f":"IF(INTRO!$E$37=\"Endemic\",IF($H45>0,IF($H45=4,\"Unknown\",IF($H45=99,\"Stopped\",$D45)),0),\"Not required\")","v":17507},{"$f":"IF(INTRO!$E$39=\"Endemic\", IF($I45>0, IF($I45=4,\"Unknown\",IF($I45=99,\"Stopped\",$D45)), 0),\"Not required\")","v":17507},{"$f":"IF(INTRO!$E$41=\"Endemic\", IF($J45>1, IF($J45=4, \"Unknown\", IF($J45=99, \"Surveillance\", E45)), 0),\"Not required\")","v":1829},{"$f":"IF(INTRO!$E$41=\"Endemic\", IF($J45>1, IF($J45=4, \"Unknown\", IF($J45=99, \"Surveillance\", F45)), 0),\"Not required\")","v":4084},{"$f":"IF(INTRO!$E$41=\"Endemic\", IF($J45>1, IF($J45=4, \"Unknown\", IF($J45=99, \"Surveillance\", ROUND(D45*INTRO!$E$51,0))), 0),\"Not required\")","v":4343},{"$f":"IF(INTRO!$E$41=\"Endemic\", IF($J45>1, IF($J45=4, \"Unknown\", IF($J45=99, \"Surveillance\", SUM($O45:$Q45))), 0),\"Not required\")","v":10256},0,0,0,{"$f":"IF(INTRO!$E$43=\"Endemic\", IF($K45>1, IF($K45=4, \"Unknown\", IF($K45=99, \"Surveillance\", SUM($S45:$U45))), 0),\"Not required\")","v":0},1,0,1,0,null,null,null,null,null,null,null,20363,"Lopé",17866]
[{"$f":"IF(INTRO!$E$33<>0,INTRO!$E$33, \" \")","v":"Gabon"},"Ogooué-Ivindo","Ivindo",38547,{"$f":"IF(INTRO!$E$48=\"\",\"\",ROUND($D46*INTRO!$E$48,0))","v":4028},{"$f":"IF(INTRO!$E$49=\"\",\"\",ROUND($D46*INTRO!$E$49,0))","v":8993},{"$f":"IF(INTRO!$E$50=\"\",\"\",ROUND($D46*INTRO!$E$50,0))","v":24508},1,1,2,1,1,{"$f":"IF(INTRO!$E$37=\"Endemic\",IF($H46>0,IF($H46=4,\"Unknown\",IF($H46=99,\"Stopped\",$D46)),0),\"Not required\")","v":38547},{"$f":"IF(INTRO!$E$39=\"Endemic\", IF($I46>0, IF($I46=4,\"Unknown\",IF($I46=99,\"Stopped\",$D46)), 0),\"Not required\")","v":38547},{"$f":"IF(INTRO!$E$41=\"Endemic\", IF($J46>1, IF($J46=4, \"Unknown\", IF($J46=99, \"Surveillance\", E46)), 0),\"Not required\")","v":4028},{"$f":"IF(INTRO!$E$41=\"Endemic\", IF($J46>1, IF($J46=4, \"Unknown\", IF($J46=99, \"Surveillance\", F46)), 0),\"Not required\")","v":8993},{"$f":"IF(INTRO!$E$41=\"Endemic\", IF($J46>1, IF($J46=4, \"Unknown\", IF($J46=99, \"Surveillance\", ROUND(D46*INTRO!$E$51,0))), 0),\"Not required\")","v":9564},{"$f":"IF(INTRO!$E$41=\"Endemic\", IF($J46>1, IF($J46=4, \"Unknown\", IF($J46=99, \"Surveillance\", SUM($O46:$Q46))), 0),\"Not required\")","v":22585},0,0,0,{"$f":"IF(INTRO!$E$43=\"Endemic\", IF($K46>1, IF($K46=4, \"Unknown\", IF($K46=99, \"Surveillance\", SUM($S46:$U46))), 0),\"Not required\")","v":0},1,0,1,0,null,null,null,null,null,null,null,20364,"Ivindo",39338]
[{"$f":"IF(INTRO!$E$33<>0,INTRO!$E$33, \" \")","v":"Gabon"},"Ogooué-Ivindo","Zadié",15908,{"$f":"IF(INTRO!$E$48=\"\",\"\",ROUND($D47*INTRO!$E$48,0))","v":1662},{"$f":"IF(INTRO!$E$49=\"\",\"\",ROUND($D47*INTRO!$E$49,0))","v":3711},{"$f":"IF(INTRO!$E$50=\"\",\"\",ROUND($D47*INTRO!$E$50,0))","v":10114},1,1,3,0,1,{"$f":"IF(INTRO!$E$37=\"Endemic\",IF($H47>0,IF($H47=4,\"Unknown\",IF($H47=99,\"Stopped\",$D47)),0),\"Not required\")","v":15908},{"$f":"IF(INTRO!$E$39=\"Endemic\", IF($I47>0, IF($I47=4,\"Unknown\",IF($I47=99,\"Stopped\",$D47)), 0),\"Not required\")","v":15908},{"$f":"IF(INTRO!$E$41=\"Endemic\", IF($J47>1, IF($J47=4, \"Unknown\", IF($J47=99, \"Surveillance\", E47)), 0),\"Not required\")","v":1662},{"$f":"IF(INTRO!$E$41=\"Endemic\", IF($J47>1, IF($J47=4, \"Unknown\", IF($J47=99, \"Surveillance\", F47)), 0),\"Not required\")","v":3711},{"$f":"IF(INTRO!$E$41=\"Endemic\", IF($J47>1, IF($J47=4, \"Unknown\", IF($J47=99, \"Surveillance\", ROUND(D47*INTRO!$E$51,0))), 0),\"Not required\")","v":3947},{"$f":"IF(INTRO!$E$41=\"Endemic\", IF($J47>1, IF($J47=4, \"Unknown\", IF($J47=99, \"Surveillance\", SUM($O47:$Q47))), 0),\"Not required\")","v":9320},0,0,0,{"$f":"IF(INTRO!$E$43=\"Endemic\", IF($K47>1, IF($K47=4, \"Unknown\", IF($K47=99, \"Surveillance\", SUM($S47:$U47))), 0),\"Not required\")","v":0},1,0,2,0,null,null,null,null,null,null,null,20365,"Zadié",16235]
[{"$f":"IF(INTRO!$E$33<>0,INTRO!$E$33, \" \")","v":"Gabon"},"Ogooué-Ivindo","Mvoung",4997,{"$f":"IF(INTRO!$E$48=\"\",\"\",ROUND($D48*INTRO!$E$48,0))","v":522},{"$f":"IF(INTRO!$E$49=\"\",\"\",ROUND($D48*INTRO!$E$49,0))","v":1166},{"$f":"IF(INTRO!$E$50=\"\",\"\",ROUND($D48*INTRO!$E$50,0))","v":3177},1,1,3,2,1,{"$f":"IF(INTRO!$E$37=\"Endemic\",IF($H48>0,IF($H48=4,\"Unknown\",IF($H48=99,\"Stopped\",$D48)),0),\"Not required\")","v":4997},{"$f":"IF(INTRO!$E$39=\"Endemic\", IF($I48>0, IF($I48=4,\"Unknown\",IF($I48=99,\"Stopped\",$D48)), 0),\"Not required\")","v":4997},{"$f":"IF(INTRO!$E$41=\"Endemic\", IF($J48>1, IF($J48=4, \"Unknown\", IF($J48=99, \"Surveillance\", E48)), 0),\"Not required\")","v":522},{"$f":"IF(INTRO!$E$41=\"Endemic\", IF($J48>1, IF($J48=4, \"Unknown\", IF($J48=99, \"Surveillance\", F48)), 0),\"Not required\")","v":1166},{"$f":"IF(INTRO!$E$41=\"Endemic\", IF($J48>1, IF($J48=4, \"Unknown\", IF($J48=99, \"Surveillance\", ROUND(D48*INTRO!$E$51,0))), 0),\"Not required\")","v":1240},{"$f":"IF(INTRO!$E$41=\"Endemic\", IF($J48>1, IF($J48=4, \"Unknown\", IF($J48=99, \"Surveillance\", SUM($O48:$Q48))), 0),\"Not required\")","v":2928},46,46,108,{"$f":"IF(INTRO!$E$43=\"Endemic\", IF($K48>1, IF($K48=4, \"Unknown\", IF($K48=99, \"Surveillance\", SUM($S48:$U48))), 0),\"Not required\")","v":200},1,0,2,1,null,null,null,null,null,null,null,20366,"Mvoung",5100]
[{"$f":"IF(INTRO!$E$33<>0,INTRO!$E$33, \" \")","v":"Gabon"},"Ogooué-Lolo","Offoué-Onoye",3546,{"$f":"IF(INTRO!$E$48=\"\",\"\",ROUND($D49*INTRO!$E$48,0))","v":371},{"$f":"IF(INTRO!$E$49=\"\",\"\",ROUND($D49*INTRO!$E$49,0))","v":827},{"$f":"IF(INTRO!$E$50=\"\",\"\",ROUND($D49*INTRO!$E$50,0))","v":2255},1,1,3,2,1,{"$f":"IF(INTRO!$E$37=\"Endemic\",IF($H49>0,IF($H49=4,\"Unknown\",IF($H49=99,\"Stopped\",$D49)),0),\"Not required\")","v":3546},{"$f":"IF(INTRO!$E$39=\"Endemic\", IF($I49>0, IF($I49=4,\"Unknown\",IF($I49=99,\"Stopped\",$D49)), 0),\"Not required\")","v":3546},{"$f":"IF(INTRO!$E$41=\"Endemic\", IF($J49>1, IF($J49=4, \"Unknown\", IF($J49=99, \"Surveillance\", E49)), 0),\"Not required\")","v":371},{"$f":"IF(INTRO!$E$41=\"Endemic\", IF($J49>1, IF($J49=4, \"Unknown\", IF($J49=99, \"Surveillance\", F49)), 0),\"Not required\")","v":827},{"$f":"IF(INTRO!$E$41=\"Endemic\", IF($J49>1, IF($J49=4, \"Unknown\", IF($J49=99, \"Surveillance\", ROUND(D49*INTRO!$E$51,0))), 0),\"Not required\")","v":880},{"$f":"IF(INTRO!$E$41=\"Endemic\", IF($J49>1, IF($J49=4, \"Unknown\", IF($J49=99, \"Surveillance\", SUM($O49:$Q49))), 0),\"Not required\")","v":2078},55,55,132,{"$f":"IF(INTRO!$E$43=\"Endemic\", IF($K49>1, IF($K49=4, \"Unknown\", IF($K49=99, \"Surveillance\", SUM($S49:$U49))), 0),\"Not required\")","v":242},1,0,2,1,null,null,null,null,null,null,null,20367,"Offoué-Onoye",3619]
[{"$f":"IF(INTRO!$E$33<>0,INTRO!$E$33, \" \")","v":"Gabon"},"Ogooué-Lolo","Lolo-Bouenguidi",37065,{"$f":"IF(INTRO!$E$48=\"\",\"\",ROUND($D50*INTRO!$E$48,0))","v":3873},{"$f":"IF(INTRO!$E$49=\"\",\"\",ROUND($D50*INTRO!$E$49,0))","v":8647},{"$f":"IF(INTRO!$E$50=\"\",\"\",ROUND($D50*INTRO!$E$50,0))","v":23566},1,1,2,2,1,{"$f":"IF(INTRO!$E$37=\"Endemic\",IF($H50>0,IF($H50=4,\"Unknown\",IF($H50=99,\"Stopped\",$D50)),0),\"Not required\")","v":37065},{"$f":"IF(INTRO!$E$39=\"Endemic\", IF($I50>0, IF($I50=4,\"Unknown\",IF($I50=99,\"Stopped\",$D50)), 0),\"Not required\")","v":37065},{"$f":"IF(INTRO!$E$41=\"Endemic\", IF($J50>1, IF($J50=4, \"Unknown\", IF($J50=99, \"Surveillance\", E50)), 0),\"Not required\")","v":3873},{"$f":"IF(INTRO!$E$41=\"Endemic\", IF($J50>1, IF($J50=4, \"Unknown\", IF($J50=99, \"Surveillance\", F50)), 0),\"Not required\")","v":8647},{"$f":"IF(INTRO!$E$41=\"Endemic\", IF($J50>1, IF($J50=4, \"Unknown\", IF($J50=99, \"Surveillance\", ROUND(D50*INTRO!$E$51,0))), 0),\"Not required\")","v":9196},{"$f":"IF(INTRO!$E$41=\"Endemic\", IF($J50>1, IF($J50=4, \"Unknown\", IF($J50=99, \"Surveillance\", SUM($O50:$Q50))), 0),\"Not required\")","v":21716},2468,2468,5903,{"$f":"IF(INTRO!$E$43=\"Endemic\", IF($K50>1, IF($K50=4, \"Unknown\", IF($K50=99, \"Surveillance\", SUM($S50:$U50))), 0),\"Not required\")","v":10839},1,0,1,1,null,null,null,null,null,null,null,20368,"Lolo-Bouenguidi",37826]
[{"$f":"IF(INTRO!$E$33<>0,INTRO!$E$33, \" \")","v":"Gabon"},"Ogooué-Lolo","Mulundu",37416,{"$f":"IF(INTRO!$E$48=\"\",\"\",ROUND($D51*INTRO!$E$48,0))","v":3910},{"$f":"IF(INTRO!$E$49=\"\",\"\",ROUND($D51*INTRO!$E$49,0))","v":8729},{"$f":"IF(INTRO!$E$50=\"\",\"\",ROUND($D51*INTRO!$E$50,0))","v":23789},1,1,2,2,1,{"$f":"IF(INTRO!$E$37=\"Endemic\",IF($H51>0,IF($H51=4,\"Unknown\",IF($H51=99,\"Stopped\",$D51)),0),\"Not required\")","v":37416},{"$f":"IF(INTRO!$E$39=\"Endemic\", IF($I51>0, IF($I51=4,\"Unknown\",IF($I51=99,\"Stopped\",$D51)), 0),\"Not required\")","v":37416},{"$f":"IF(INTRO!$E$41=\"Endemic\", IF($J51>1, IF($J51=4, \"Unknown\", IF($J51=99, \"Surveillance\", E51)), 0),\"Not required\")","v":3910},{"$f":"IF(INTRO!$E$41=\"Endemic\", IF($J51>1, IF($J51=4, \"Unknown\", IF($J51=99, \"Surveillance\", F51)), 0),\"Not required\")","v":8729},{"$f":"IF(INTRO!$E$41=\"Endemic\", IF($J51>1, IF($J51=4, \"Unknown\", IF($J51=99, \"Surveillance\", ROUND(D51*INTRO!$E$51,0))), 0),\"Not required\")","v":9283},{"$f":"IF(INTRO!$E$41=\"Endemic\", IF($J51>1, IF($J51=4, \"Unknown\", IF($J51=99, \"Surveillance\", SUM($O51:$Q51))), 0),\"Not required\")","v":21922},752,752,1797,{"$f":"IF(INTRO!$E$43=\"Endemic\", IF($K51>1, IF($K51=4, \"Unknown\", IF($K51=99, \"Surveillance\", SUM($S51:$U51))), 0),\"Not required\")","v":3301},1,0,1,1,null,null,null,null,null,null,null,20369,"Mulundu",38184]
[{"$f":"IF(INTRO!$E$33<>0,INTRO!$E$33, \" \")","v":"Gabon"},"Ogooué-Lolo","Lombo-Bouenguidi",4893,{"$f":"IF(INTRO!$E$48=\"\",\"\",ROUND($D52*INTRO!$E$48,0))","v":511},{"$f":"IF(INTRO!$E$49=\"\",\"\",ROUND($D52*INTRO!$E$49,0))","v":1142},{"$f":"IF(INTRO!$E$50=\"\",\"\",ROUND($D52*INTRO!$E$50,0))","v":3111},0,1,3,1,1,{"$f":"IF(INTRO!$E$37=\"Endemic\",IF($H52>0,IF($H52=4,\"Unknown\",IF($H52=99,\"Stopped\",$D52)),0),\"Not required\")","v":0},{"$f":"IF(INTRO!$E$39=\"Endemic\", IF($I52>0, IF($I52=4,\"Unknown\",IF($I52=99,\"Stopped\",$D52)), 0),\"Not required\")","v":4893},{"$f":"IF(INTRO!$E$41=\"Endemic\", IF($J52>1, IF($J52=4, \"Unknown\", IF($J52=99, \"Surveillance\", E52)), 0),\"Not required\")","v":511},{"$f":"IF(INTRO!$E$41=\"Endemic\", IF($J52>1, IF($J52=4, \"Unknown\", IF($J52=99, \"Surveillance\", F52)), 0),\"Not required\")","v":1142},{"$f":"IF(INTRO!$E$41=\"Endemic\", IF($J52>1, IF($J52=4, \"Unknown\", IF($J52=99, \"Surveillance\", ROUND(D52*INTRO!$E$51,0))), 0),\"Not required\")","v":1214},{"$f":"IF(INTRO!$E$41=\"Endemic\", IF($J52>1, IF($J52=4, \"Unknown\", IF($J52=99, \"Surveillance\", SUM($O52:$Q52))), 0),\"Not required\")","v":2867},0,0,0,{"$f":"IF(INTRO!$E$43=\"Endemic\", IF($K52>1, IF($K52=4, \"Unknown\", IF($K52=99, \"Surveillance\", SUM($S52:$U52))), 0),\"Not required\")","v":0},0,0,2,0,null,null,null,null,null,null,null,20370,"Lombo-Bouenguidi",4993]
[{"$f":"IF(INTRO!$E$33<>0,INTRO!$E$33, \" \")","v":"Gabon"},"Ogooué-maritime","Ndougou",13192,{"$f":"IF(INTRO!$E$48=\"\",\"\",ROUND($D53*INTRO!$E$48,0))","v":1379},{"$f":"IF(INTRO!$E$49=\"\",\"\",ROUND($D53*INTRO!$E$49,0))","v":3078},{"$f":"IF(INTRO!$E$50=\"\",\"\",ROUND($D53*INTRO!$E$50,0))","v":8387},0,4,2,1,1,{"$f":"IF(INTRO!$E$37=\"Endemic\",IF($H53>0,IF($H53=4,\"Unknown\",IF($H53=99,\"Stopped\",$D53)),0),\"Not required\")","v":0},{"$f":"IF(INTRO!$E$39=\"Endemic\", IF($I53>0, IF($I53=4,\"Unknown\",IF($I53=99,\"Stopped\",$D53)), 0),\"Not required\")","v":"Unknown"},{"$f":"IF(INTRO!$E$41=\"Endemic\", IF($J53>1, IF($J53=4, \"Unknown\", IF($J53=99, \"Surveillance\", E53)), 0),\"Not required\")","v":1379},{"$f":"IF(INTRO!$E$41=\"Endemic\", IF($J53>1, IF($J53=4, \"Unknown\", IF($J53=99, \"Surveillance\", F53)), 0),\"Not required\")","v":3078},{"$f":"IF(INTRO!$E$41=\"Endemic\", IF($J53>1, IF($J53=4, \"Unknown\", IF($J53=99, \"Surveillance\", ROUND(D53*INTRO!$E$51,0))), 0),\"Not required\")","v":3273},{"$f":"IF(INTRO!$E$41=\"Endemic\", IF($J53>1, IF($J53=4, \"Unknown\", IF($J53=99, \"Surveillance\", SUM($O53:$Q53))), 0),\"Not required\")","v":7730},0,0,0,{"$f":"IF(INTRO!$E$43=\"Endemic\", IF($K53>1, IF($K53=4, \"Unknown\", IF($K53=99, \"Surveillance\", SUM($S53:$U53))), 0),\"Not required\")","v":0},0,0,1,0,null,null,null,null,null,null,null,20371,"Ndougou",13463]
[{"$f":"IF(INTRO!$E$33<>0,INTRO!$E$33, \" \")","v":"Gabon"},"Ogooué-maritime","Etimboué",5890,{"$f":"IF(INTRO!$E$48=\"\",\"\",ROUND($D54*INTRO!$E$48,0))","v":616},{"$f":"IF(INTRO!$E$49=\"\",\"\",ROUND($D54*INTRO!$E$49,0))","v":1374},{"$f":"IF(INTRO!$E$50=\"\",\"\",ROUND($D54*INTRO!$E$50,0))","v":3745},0,0,2,1,1,{"$f":"IF(INTRO!$E$37=\"Endemic\",IF($H54>0,IF($H54=4,\"Unknown\",IF($H54=99,\"Stopped\",$D54)),0),\"Not required\")","v":0},{"$f":"IF(INTRO!$E$39=\"Endemic\", IF($I54>0, IF($I54=4,\"Unknown\",IF($I54=99,\"Stopped\",$D54)), 0),\"Not required\")","v":0},{"$f":"IF(INTRO!$E$41=\"Endemic\", IF($J54>1, IF($J54=4, \"Unknown\", IF($J54=99, \"Surveillance\", E54)), 0),\"Not required\")","v":616},{"$f":"IF(INTRO!$E$41=\"Endemic\", IF($J54>1, IF($J54=4, \"Unknown\", IF($J54=99, \"Surveillance\", F54)), 0),\"Not required\")","v":1374},{"$f":"IF(INTRO!$E$41=\"Endemic\", IF($J54>1, IF($J54=4, \"Unknown\", IF($J54=99, \"Surveillance\", ROUND(D54*INTRO!$E$51,0))), 0),\"Not required\")","v":1461},{"$f":"IF(INTRO!$E$41=\"Endemic\", IF($J54>1, IF($J54=4, \"Unknown\", IF($J54=99, \"Surveillance\", SUM($O54:$Q54))), 0),\"Not required\")","v":3451},0,0,0,{"$f":"IF(INTRO!$E$43=\"Endemic\", IF($K54>1, IF($K54=4, \"Unknown\", IF($K54=99, \"Surveillance\", SUM($S54:$U54))), 0),\"Not required\")","v":0},0,0,1,0,null,null,null,null,null,null,null,20372,"Etimboué",6011]
[{"$f":"IF(INTRO!$E$33<>0,INTRO!$E$33, \" \")","v":"Gabon"},"Ogooué-maritime","Bendjé",167533,{"$f":"IF(INTRO!$E$48=\"\",\"\",ROUND($D55*INTRO!$E$48,0))","v":17507},{"$f":"IF(INTRO!$E$49=\"\",\"\",ROUND($D55*INTRO!$E$49,0))","v":39085},{"$f":"IF(INTRO!$E$50=\"\",\"\",ROUND($D55*INTRO!$E$50,0))","v":106517},0,4,1,2,1,{"$f":"IF(INTRO!$E$37=\"Endemic\",IF($H55>0,IF($H55=4,\"Unknown\",IF($H55=99,\"Stopped\",$D55)),0),\"Not required\")","v":0},{"$f":"IF(INTRO!$E$39=\"Endemic\", IF($I55>0, IF($I55=4,\"Unknown\",IF($I55=99,\"Stopped\",$D55)), 0),\"Not required\")","v":"Unknown"},{"$f":"IF(INTRO!$E$41=\"Endemic\", IF($J55>1, IF($J55=4, \"Unknown\", IF($J55=99, \"Surveillance\", E55)), 0),\"Not required\")","v":0},{"$f":"IF(INTRO!$E$41=\"Endemic\", IF($J55>1, IF($J55=4, \"Unknown\", IF($J55=99, \"Surveillance\", F55)), 0),\"Not required\")","v":0},{"$f":"IF(INTRO!$E$41=\"Endemic\", IF($J55>1, IF($J55=4, \"Unknown\", IF($J55=99, \"Surveillance\", ROUND(D55*INTRO!$E$51,0))), 0),\"Not required\")","v":0},{"$f":"IF(INTRO!$E$41=\"Endemic\", IF($J55>1, IF($J55=4, \"Unknown\", IF($J55=99, \"Surveillance\", SUM($O55:$Q55))), 0),\"Not required\")","v":0},7792,7791,18638,{"$f":"IF(INTRO!$E$43=\"Endemic\", IF($K55>1, IF($K55=4, \"Unknown\", IF($K55=99, \"Surveillance\", SUM($S55:$U55))), 0),\"Not required\")","v":34221},0,0,0,1,null,null,null,null,null,null,null,20373,"Bendjé",170972]
[{"$f":"IF(INTRO!$E$33<>0,INTRO!$E$33, \" \")","v":"Gabon"},"Woleu-Ntem","Ntem",49060,{"$f":"IF(INTRO!$E$48=\"\",\"\",ROUND($D56*INTRO!$E$48,0))","v":5127},{"$f":"IF(INTRO!$E$49=\"\",\"\",ROUND($D56*INTRO!$E$49,0))","v":11446},{"$f":"IF(INTRO!$E$50=\"\",\"\",ROUND($D56*INTRO!$E$50,0))","v":31192},0,1,3,1,1,{"$f":"IF(INTRO!$E$37=\"Endemic\",IF($H56>0,IF($H56=4,\"Unknown\",IF($H56=99,\"Stopped\",$D56)),0),\"Not required\")","v":0},{"$f":"IF(INTRO!$E$39=\"Endemic\", IF($I56>0, IF($I56=4,\"Unknown\",IF($I56=99,\"Stopped\",$D56)), 0),\"Not required\")","v":49060},{"$f":"IF(INTRO!$E$41=\"Endemic\", IF($J56>1, IF($J56=4, \"Unknown\", IF($J56=99, \"Surveillance\", E56)), 0),\"Not required\")","v":5127},{"$f":"IF(INTRO!$E$41=\"Endemic\", IF($J56>1, IF($J56=4, \"Unknown\", IF($J56=99, \"Surveillance\", F56)), 0),\"Not required\")","v":11446},{"$f":"IF(INTRO!$E$41=\"Endemic\", IF($J56>1, IF($J56=4, \"Unknown\", IF($J56=99, \"Surveillance\", ROUND(D56*INTRO!$E$51,0))), 0),\"Not required\")","v":12172},{"$f":"IF(INTRO!$E$41=\"Endemic\", IF($J56>1, IF($J56=4, \"Unknown\", IF($J56=99, \"Surveillance\", SUM($O56:$Q56))), 0),\"Not required\")","v":28745},0,0,0,{"$f":"IF(INTRO!$E$43=\"Endemic\", IF($K56>1, IF($K56=4, \"Unknown\", IF($K56=99, \"Surveillance\", SUM($S56:$U56))), 0),\"Not required\")","v":0},0,0,2,0,null,null,null,null,null,null,null,20374,"Ntem",50067]
[{"$f":"IF(INTRO!$E$33<>0,INTRO!$E$33, \" \")","v":"Gabon"},"Woleu-Ntem","Haut-Komo",4690,{"$f":"IF(INTRO!$E$48=\"\",\"\",ROUND($D57*INTRO!$E$48,0))","v":490},{"$f":"IF(INTRO!$E$49=\"\",\"\",ROUND($D57*INTRO!$E$49,0))","v":1094},{"$f":"IF(INTRO!$E$50=\"\",\"\",ROUND($D57*INTRO!$E$50,0))","v":2982},0,1,3,1,1,{"$f":"IF(INTRO!$E$37=\"Endemic\",IF($H57>0,IF($H57=4,\"Unknown\",IF($H57=99,\"Stopped\",$D57)),0),\"Not required\")","v":0},{"$f":"IF(INTRO!$E$39=\"Endemic\", IF($I57>0, IF($I57=4,\"Unknown\",IF($I57=99,\"Stopped\",$D57)), 0),\"Not required\")","v":4690},{"$f":"IF(INTRO!$E$41=\"Endemic\", IF($J57>1, IF($J57=4, \"Unknown\", IF($J57=99, \"Surveillance\", E57)), 0),\"Not required\")","v":490},{"$f":"IF(INTRO!$E$41=\"Endemic\", IF($J57>1, IF($J57=4, \"Unknown\", IF($J57=99, \"Surveillance\", F57)), 0),\"Not required\")","v":1094},{"$f":"IF(INTRO!$E$41=\"Endemic\", IF($J57>1, IF($J57=4, \"Unknown\", IF($J57=99, \"Surveillance\", ROUND(D57*INTRO!$E$51,0))), 0),\"Not required\")","v":1164},{"$f":"IF(INTRO!$E$41=\"Endemic\", IF($J57>1, IF($J57=4, \"Unknown\", IF($J57=99, \"Surveillance\", SUM($O57:$Q57))), 0),\"Not required\")","v":2748},0,0,0,{"$f":"IF(INTRO!$E$43=\"Endemic\", IF($K57>1, IF($K57=4, \"Unknown\", IF($K57=99, \"Surveillance\", SUM($S57:$U57))), 0),\"Not required\")","v":0},0,0,2,0,null,null,null,null,null,null,null,20375,"Haut-Komo",4786]
[{"$f":"IF(INTRO!$E$33<>0,INTRO!$E$33, \" \")","v":"Gabon"},"Woleu-Ntem","Haut-Ntem",15422,{"$f":"IF(INTRO!$E$48=\"\",\"\",ROUND($D58*INTRO!$E$48,0))","v":1612},{"$f":"IF(INTRO!$E$49=\"\",\"\",ROUND($D58*INTRO!$E$49,0))","v":3598},{"$f":"IF(INTRO!$E$50=\"\",\"\",ROUND($D58*INTRO!$E$50,0))","v":9805},0,1,3,1,1,{"$f":"IF(INTRO!$E$37=\"Endemic\",IF($H58>0,IF($H58=4,\"Unknown\",IF($H58=99,\"Stopped\",$D58)),0),\"Not required\")","v":0},{"$f":"IF(INTRO!$E$39=\"Endemic\", IF($I58>0, IF($I58=4,\"Unknown\",IF($I58=99,\"Stopped\",$D58)), 0),\"Not required\")","v":15422},{"$f":"IF(INTRO!$E$41=\"Endemic\", IF($J58>1, IF($J58=4, \"Unknown\", IF($J58=99, \"Surveillance\", E58)), 0),\"Not required\")","v":1612},{"$f":"IF(INTRO!$E$41=\"Endemic\", IF($J58>1, IF($J58=4, \"Unknown\", IF($J58=99, \"Surveillance\", F58)), 0),\"Not required\")","v":3598},{"$f":"IF(INTRO!$E$41=\"Endemic\", IF($J58>1, IF($J58=4, \"Unknown\", IF($J58=99, \"Surveillance\", ROUND(D58*INTRO!$E$51,0))), 0),\"Not required\")","v":3826},{"$f":"IF(INTRO!$E$41=\"Endemic\", IF($J58>1, IF($J58=4, \"Unknown\", IF($J58=99, \"Surveillance\", SUM($O58:$Q58))), 0),\"Not required\")","v":9036},0,0,0,{"$f":"IF(INTRO!$E$43=\"Endemic\", IF($K58>1, IF($K58=4, \"Unknown\", IF($K58=99, \"Surveillance\", SUM($S58:$U58))), 0),\"Not required\")","v":0},0,0,2,0,null,null,null,null,null,null,null,20376,"Haut-Ntem",15739]
[{"$f":"IF(INTRO!$E$33<>0,INTRO!$E$33, \" \")","v":"Gabon"},"Woleu-Ntem","Okano",19154,{"$f":"IF(INTRO!$E$48=\"\",\"\",ROUND($D59*INTRO!$E$48,0))","v":2002},{"$f":"IF(INTRO!$E$49=\"\",\"\",ROUND($D59*INTRO!$E$49,0))","v":4469},{"$f":"IF(INTRO!$E$50=\"\",\"\",ROUND($D59*INTRO!$E$50,0))","v":12178},0,0,3,1,1,{"$f":"IF(INTRO!$E$37=\"Endemic\",IF($H59>0,IF($H59=4,\"Unknown\",IF($H59=99,\"Stopped\",$D59)),0),\"Not required\")","v":0},{"$f":"IF(INTRO!$E$39=\"Endemic\", IF($I59>0, IF($I59=4,\"Unknown\",IF($I59=99,\"Stopped\",$D59)), 0),\"Not required\")","v":0},{"$f":"IF(INTRO!$E$41=\"Endemic\", IF($J59>1, IF($J59=4, \"Unknown\", IF($J59=99, \"Surveillance\", E59)), 0),\"Not required\")","v":2002},{"$f":"IF(INTRO!$E$41=\"Endemic\", IF($J59>1, IF($J59=4, \"Unknown\", IF($J59=99, \"Surveillance\", F59)), 0),\"Not required\")","v":4469},{"$f":"IF(INTRO!$E$41=\"Endemic\", IF($J59>1, IF($J59=4, \"Unknown\", IF($J59=99, \"Surveillance\", ROUND(D59*INTRO!$E$51,0))), 0),\"Not required\")","v":4752},{"$f":"IF(INTRO!$E$41=\"Endemic\", IF($J59>1, IF($J59=4, \"Unknown\", IF($J59=99, \"Surveillance\", SUM($O59:$Q59))), 0),\"Not required\")","v":11223},0,0,0,{"$f":"IF(INTRO!$E$43=\"Endemic\", IF($K59>1, IF($K59=4, \"Unknown\", IF($K59=99, \"Surveillance\", SUM($S59:$U59))), 0),\"Not required\")","v":0},0,0,2,0,null,null,null,null,null,null,null,20377,"Okano",19547]
[{"$f":"IF(INTRO!$E$33<>0,INTRO!$E$33, \" \")","v":"Gabon"},"Woleu-Ntem","Woleu",97970,{"$f":"IF(INTRO!$E$48=\"\",\"\",ROUND($D60*INTRO!$E$48,0))","v":10238},{"$f":"IF(INTRO!$E$49=\"\",\"\",ROUND($D60*INTRO!$E$49,0))","v":22856},{"$f":"IF(INTRO!$E$50=\"\",\"\",ROUND($D60*INTRO!$E$50,0))","v":62289},0,1,2,1,1,{"$f":"IF(INTRO!$E$37=\"Endemic\",IF($H60>0,IF($H60=4,\"Unknown\",IF($H60=99,\"Stopped\",$D60)),0),\"Not required\")","v":0},{"$f":"IF(INTRO!$E$39=\"Endemic\", IF($I60>0, IF($I60=4,\"Unknown\",IF($I60=99,\"Stopped\",$D60)), 0),\"Not required\")","v":97970},{"$f":"IF(INTRO!$E$41=\"Endemic\", IF($J60>1, IF($J60=4, \"Unknown\", IF($J60=99, \"Surveillance\", E60)), 0),\"Not required\")","v":10238},{"$f":"IF(INTRO!$E$41=\"Endemic\", IF($J60>1, IF($J60=4, \"Unknown\", IF($J60=99, \"Surveillance\", F60)), 0),\"Not required\")","v":22856},{"$f":"IF(INTRO!$E$41=\"Endemic\", IF($J60>1, IF($J60=4, \"Unknown\", IF($J60=99, \"Surveillance\", ROUND(D60*INTRO!$E$51,0))), 0),\"Not required\")","v":24306},{"$f":"IF(INTRO!$E$41=\"Endemic\", IF($J60>1, IF($J60=4, \"Unknown\", IF($J60=99, \"Surveillance\", SUM($O60:$Q60))), 0),\"Not required\")","v":57400},0,0,0,{"$f":"IF(INTRO!$E$43=\"Endemic\", IF($K60>1, IF($K60=4, \"Unknown\", IF($K60=99, \"Surveillance\", SUM($S60:$U60))), 0),\"Not required\")","v":0},0,0,1,0,null,null,null,null,null,null,null,20378,"Woleu",99981]

{"sheet":"ALB_MBD","index":2,"n_rows":60,"n_cols":25,"rows_kept":60,"cut":false,"hidden":false,"merged":[[0,8,0,12],[1,8,1,9],[1,11,1,12],[5,8,5,13],[6,8,6,9],[3,0,3,2],[3,3,3,4],[5,0,5,2],[5,3,5,4],[5,5,7,5],[6,0,7,0],[6,1,7,1],[6,2,7,2],[6,3,7,3],[6,4,7,4],[5,6,5,7],[6,6,7,6],[6,7,7,7],[5,14,5,19],[6,22,7,22],[5,20,5,22],[6,20,7,20],[6,21,7,21],[6,18,7,18],[6,19,7,19],[6,17,7,17],[6,14,7,14],[6,15,7,15],[6,16,7,16],[6,11,6,12],[6,13,7,13]]}
["Albendazole (ALB) and Mebendazole (MBD)",null,null,null,null,null,null,null,"Select medicine for treatment of STH for each age group"]
["Administrative structure, eligible population by age group, treatment plan and information about tablets",null,null,null,null,null,null,null,null,null,"ALB"]
[]
["TOTAL",null,null,null,null,{"$f":"SUBTOTAL(9,F$10:F$1010)","v":26298},{"$f":"SUBTOTAL(9,G$10:G$1010)","v":314162},null,null,{"$f":"SUBTOTAL(9,J$10:J$1010)","v":173822},281878.16251225676,null,299755.72874576028,755456,654622,0,654622,281879,0,281879,0,0,0]
[]
["Country administrative structure",null,null,"Treatment plan",null,"People targeted by PELF with ALB","Loa endemic areas",null,"Target population for STH",null,null,null,null,null,"Albendazole (ALB)",null,null,null,null,null,"Mebendazole (MBD)"]
["Country","Province/State","District","LF","STH",null,"Population","Rounds planned","PreSAC",null,"SAC","WRA",null,"Total","Total required","Remaining in stock (LF)","Tablets to be procured (LF)","Total required","Remaining in stock (STH)","Tablets to be procured (STH)","Total required","Remaining in stock","Tablets to be procured"]
[null,null,null,null,null,null,null,null,"Rounds","People","People","Rounds","People"]
[]
[{"$f":"IF(AND(INTRO!$E$37=\"Non-endemic\",INTRO!$E$41=\"Non-endemic\"),\" \",IF(COUNTRY_INFO!A10=0,\" \",COUNTRY_INFO!A10))","v":"Gabon"},{"$f":"IF(AND(INTRO!$E$37=\"Non-endemic\",INTRO!$E$41=\"Non-endemic\"),\" \",IF(COUNTRY_INFO!B10=0,\" \",COUNTRY_INFO!B10))","v":"Libreville -Owendo"},{"$f":"IF(AND(INTRO!$E$37=\"Non-endemic\",INTRO!$E$41=\"Non-endemic\"),\" \",IF(COUNTRY_INFO!C10=0,\" \",COUNTRY_INFO!C10))","v":"Libreville 1"},{"$f":"IF(AND(INTRO!$E$37=\"Non-endemic\",INTRO!$E$41=\"Non-endemic\"),0,COUNTRY_INFO!W10)","v":0},{"$f":"IF(AND(INTRO!$E$37=\"Non-endemic\",INTRO!$E$41=\"Non-endemic\"),0,COUNTRY_INFO!Y10)","v":1},{"$f":"IF($D10=1,IVM!G10,0)","v":0},{"$f":"IF($D10=0, \" \", IF(COUNTRY_INFO!$H10=1, IF(COUNTRY_INFO!$L10=1, 0,\" \"),\" \"))","v":" "},null,null,{"$f":"IF(OR(COUNTRY_INFO!O10=\"Unknown\",COUNTRY_INFO!O10=\"Surveillance\",COUNTRY_INFO!O10=\"Not required\",COUNTRY_INFO!O10=0),0,IF(INTRO!$E$39=\"Non-endemic\",IF(AND($E10<>0,$I10=\"\"),IF($F10=0,COUNTRY_INFO!O10*$E10,COUNTRY_INFO!O10*($E10-$D10)),IF(AND($E10<>0,$I10<>0),IF($F10=0,COUNTRY_INFO!O10*$I10,COUNTRY_INFO!O10*($I10-$D10)),0)),IF($I10=\"\",COUNTRY_INFO!O10*$E10,COUNTRY_INFO!O10*$I10)))","v":33709},{"$f":"MAX(0,IF(OR(COUNTRY_INFO!P10=\"Unknown\",COUNTRY_INFO!P10=\"Surveillance\",COUNTRY_INFO!P10=\"Not required\",COUNTRY_INFO!P10=0),0,IF($E10<>0,IF($D10=0,COUNTRY_INFO!P10*$E10,COUNTRY_INFO!P10*$E10-($F10*COUNTRY_INFO!$P10/(COUNTRY_INFO!$F10+COUNTRY_INFO!$G10)+IF($G10=\" \",0,COUNTRY_INFO!$P10/(COUNTRY_INFO!$F10+COUNTRY_INFO!$G10)*$G10*$H10))),0)))","v":75256},null,{"$f":"MAX(0,IF(OR(COUNTRY_INFO!Q10=\"Unknown\",COUNTRY_INFO!Q10=\"Surveillance\",COUNTRY_INFO!Q10=\"Not required\",COUNTRY_INFO!Q10=0),0,IF($E10<>0,IF($D10=0,COUNTRY_INFO!Q10*MIN($E10,$L10),COUNTRY_INFO!Q10*MIN($E10,$L10)-($F10*COUNTRY_INFO!$Q10/(COUNTRY_INFO!$F10+COUNTRY_INFO!$G10)+IF($G10=\" \",0,COUNTRY_INFO!$Q10/(COUNTRY_INFO!$F10+COUNTRY_INFO!$G10)*$G10*$H10))),0)))","v":80030},{"$f":"ROUND($J10,0)+ROUND($K10,0)+ROUND($M10,0)","v":188995},{"$f":"$F10+IF(OR(G10=0,G10=\" \"),0,G10*H10)","v":0},null,{"$f":"IF($O10>$P10, $O10-$P10,0)","v":0},{"$f":"ROUND((IF($I$2=\"ALB\",$J10,0)+IF($K$2=\"ALB\",$K10,0)+IF($L$2=\"ALB\",$M10,0)),0)","v":75256},null,{"$f":"IF($R10>$S10,$R10-$S10,0)","v":75256},{"$f":"ROUND((IF($I$2=\"MBD\",$J10,0)+IF($K$2=\"MBD\",$K10,0)+IF($L$2=\"MBD\",$M10,0)),0)","v":0},null,{"$f":"IF($U10>$V10,$U10-$V10,0)","v":0},null," "]
[{"$f":"IF(AND(INTRO!$E$37=\"Non-endemic\",INTRO!$E$41=\"Non-endemic\"),\" \",IF(COUNTRY_INFO!A11=0,\" \",COUNTRY_INFO!A11))","v":"Gabon"},{"$f":"IF(AND(INTRO!$E$37=\"Non-endemic\",INTRO!$E$41=\"Non-endemic\"),\" \",IF(COUNTRY_INFO!B11=0,\" \",COUNTRY_INFO!B11))","v":"Libreville -Owendo"},{"$f":"IF(AND(INTRO!$E$37=\"Non-endemic\",INTRO!$E$41=\"Non-endemic\"),\" \",IF(COUNTRY_INFO!C11=0,\" \",COUNTRY_INFO!C11))","v":"Libreville 2"},{"$f":"IF(AND(INTRO!$E$37=\"Non-endemic\",INTRO!$E$41=\"Non-endemic\"),0,COUNTRY_INFO!W11)","v":0},{"$f":"IF(AND(INTRO!$E$37=\"Non-endemic\",INTRO!$E$41=\"Non-endemic\"),0,COUNTRY_INFO!Y11)","v":0},{"$f":"IF($D11=1,IVM!G11,0)","v":0},{"$f":"IF($D11=0, \" \", IF(COUNTRY_INFO!$H11=1, IF(COUNTRY_INFO!$L11=1, 0,\" \"),\" \"))","v":" "},null,null,{"$f":"IF(OR(COUNTRY_INFO!O11=\"Unknown\",COUNTRY_INFO!O11=\"Surveillance\",COUNTRY_INFO!O11=\"Not required\",COUNTRY_INFO!O11=0),0,IF(INTRO!$E$39=\"Non-endemic\",IF(AND($E11<>0,$I11=\"\"),IF($F11=0,COUNTRY_INFO!O11*$E11,COUNTRY_INFO!O11*($E11-$D11)),IF(AND($E11<>0,$I11<>0),IF($F11=0,COUNTRY_INFO!O11*$I11,COUNTRY_INFO!O11*($I11-$D11)),0)),IF($I11=\"\",COUNTRY_INFO!O11*$E11,COUNTRY_INFO!O11*$I11)))","v":0},{"$f":"MAX(0,IF(OR(COUNTRY_INFO!P11=\"Unknown\",COUNTRY_INFO!P11=\"Surveillance\",COUNTRY_INFO!P11=\"Not required\",COUNTRY_INFO!P11=0),0,IF($E11<>0,IF($D11=0,COUNTRY_INFO!P11*$E11,COUNTRY_INFO!P11*$E11-($F11*COUNTRY_INFO!$P11/(COUNTRY_INFO!$F11+COUNTRY_INFO!$G11)+IF($G11=\" \",0,COUNTRY_INFO!$P11/(COUNTRY_INFO!$F11+COUNTRY_INFO!$G11)*$G11*$H11))),0)))","v":0},null,{"$f":"MAX(0,IF(OR(COUNTRY_INFO!Q11=\"Unknown\",COUNTRY_INFO!Q11=\"Surveillance\",COUNTRY_INFO!Q11=\"Not required\",COUNTRY_INFO!Q11=0),0,IF($E11<>0,IF($D11=0,COUNTRY_INFO!Q11*MIN($E11,$L11),COUNTRY_INFO!Q11*MIN($E11,$L11)-($F11*COUNTRY_INFO!$Q11/(COUNTRY_INFO!$F11+COUNTRY_INFO!$G11)+IF($G11=\" \",0,COUNTRY_INFO!$Q11/(COUNTRY_INFO!$F11+COUNTRY_INFO!$G11)*$G11*$H11))),0)))","v":0},0,{"$f":"$F11+IF(OR(G11=0,G11=\" \"),0,G11*H11)","v":0},null,0,0,null,0,0,null,0,null," "]
[{"$f":"IF(AND(INTRO!$E$37=\"Non-endemic\",INTRO!$E$41=\"Non-endemic\"),\" \",IF(COUNTRY_INFO!A12=0,\" \",COUNTRY_INFO!A12))","v":"Gabon"},{"$f":"IF(AND(INTRO!$E$37=\"Non-endemic\",INTRO!$E$41=\"Non-endemic\"),\" \",IF(COUNTRY_INFO!B12=0,\" \",COUNTRY_INFO!B12))","v":"Libreville -Owendo"},{"$f":"IF(AND(INTRO!$E$37=\"Non-endemic\",INTRO!$E$41=\"Non-endemic\"),\" \",IF(COUNTRY_INFO!C12=0,\" \",COUNTRY_INFO!C12))","v":"Libreville 3"},{"$f":"IF(AND(INTRO!$E$37=\"Non-endemic\",INTRO!$E$41=\"Non-endemic\"),0,COUNTRY_INFO!W12)","v":0},{"$f":"IF(AND(INTRO!$E$37=\"Non-endemic\",INTRO!$E$41=\"Non-endemic\"),0,COUNTRY_INFO!Y12)","v":0},{"$f":"IF($D12=1,IVM!G12,0)","v":0},{"$f":"IF($D12=0, \" \", IF(COUNTRY_INFO!$H12=1, IF(COUNTRY_INFO!$L12=1, 0,\" \"),\" \"))","v":" "},null,null,{"$f":"IF(OR(COUNTRY_INFO!O12=\"Unknown\",COUNTRY_INFO!O12=\"Surveillance\",COUNTRY_INFO!O12=\"Not required\",COUNTRY_INFO!O12=0),0,IF(INTRO!$E$39=\"Non-endemic\",IF(AND($E12<>0,$I12=\"\"),IF($F12=0,COUNTRY_INFO!O12*$E12,COUNTRY_INFO!O12*($E12-$D12)),IF(AND($E12<>0,$I12<>0),IF($F12=0,COUNTRY_INFO!O12*$I12,COUNTRY_INFO!O12*($I12-$D12)),0)),IF($I12=\"\",COUNTRY_INFO!O12*$E12,COUNTRY_INFO!O12*$I12)))","v":0},{"$f":"MAX(0,IF(OR(COUNTRY_INFO!P12=\"Unknown\",COUNTRY_INFO!P12=\"Surveillance\",COUNTRY_INFO!P12=\"Not required\",COUNTRY_INFO!P12=0),0,IF($E12<>0,IF($D12=0,COUNTRY_INFO!P12*$E12,COUNTRY_INFO!P12*$E12-($F12*COUNTRY_INFO!$P12/(COUNTRY_INFO!$F12+COUNTRY_INFO!$G12)+IF($G12=\" \",0,COUNTRY_INFO!$P12/(COUNTRY_INFO!$F12+COUNTRY_INFO!$G12)*$G12*$H12))),0)))","v":0},null,{"$f":"MAX(0,IF(OR(COUNTRY_INFO!Q12=\"Unknown\",COUNTRY_INFO!Q12=\"Surveillance\",COUNTRY_INFO!Q12=\"Not required\",COUNTRY_INFO!Q12=0),0,IF($E12<>0,IF($D12=0,COUNTRY_INFO!Q12*MIN($E12,$L12),COUNTRY_INFO!Q12*MIN($E12,$L12)-($F12*COUNTRY_INFO!$Q12/(COUNTRY_INFO!$F12+COUNTRY_INFO!$G12)+IF($G12=\" \",0,COUNTRY_INFO!$Q12/(COUNTRY_INFO!$F12+COUNTRY_INFO!$G12)*$G12*$H12))),0)))","v":0},0,0,null,0,0,null,0,0,null,0,null," "]
[{"$f":"IF(AND(INTRO!$E$37=\"Non-endemic\",INTRO!$E$41=\"Non-endemic\"),\" \",IF(COUNTRY_INFO!A13=0,\" \",COUNTRY_INFO!A13))","v":"Gabon"},{"$f":"IF(AND(INTRO!$E$37=\"Non-endemic\",INTRO!$E$41=\"Non-endemic\"),\" \",IF(COUNTRY_INFO!B13=0,\" \",COUNTRY_INFO!B13))","v":"Libreville -Owendo"},{"$f":"IF(AND(INTRO!$E$37=\"Non-endemic\",INTRO!$E$41=\"Non-endemic\"),\" \",IF(COUNTRY_INFO!C13=0,\" \",COUNTRY_INFO!C13))","v":"Owendo"},{"$f":"IF(AND(INTRO!$E$37=\"Non-endemic\",INTRO!$E$41=\"Non-endemic\"),0,COUNTRY_INFO!W13)","v":0},{"$f":"IF(AND(INTRO!$E$37=\"Non-endemic\",INTRO!$E$41=\"Non-endemic\"),0,COUNTRY_INFO!Y13)","v":0},{"$f":"IF($D13=1,IVM!G13,0)","v":0},{"$f":"IF($D13=0, \" \", IF(COUNTRY_INFO!$H13=1, IF(COUNTRY_INFO!$L13=1, 0,\" \"),\" \"))","v":" "},null,null,{"$f":"IF(OR(COUNTRY_INFO!O13=\"Unknown\",COUNTRY_INFO!O13=\"Surveillance\",COUNTRY_INFO!O13=\"Not required\",COUNTRY_INFO!O13=0),0,IF(INTRO!$E$39=\"Non-endemic\",IF(AND($E13<>0,$I13=\"\"),IF($F13=0,COUNTRY_INFO!O13*$E13,COUNTRY_INFO!O13*($E13-$D13)),IF(AND($E13<>0,$I13<>0),IF($F13=0,COUNTRY_INFO!O13*$I13,COUNTRY_INFO!O13*($I13-$D13)),0)),IF($I13=\"\",COUNTRY_INFO!O13*$E13,COUNTRY_INFO!O13*$I13)))","v":0},{"$f":"MAX(0,IF(OR(COUNTRY_INFO!P13=\"Unknown\",COUNTRY_INFO!P13=\"Surveillance\",COUNTRY_INFO!P13=\"Not required\",COUNTRY_INFO!P13=0),0,IF($E13<>0,IF($D13=0,COUNTRY_INFO!P13*$E13,COUNTRY_INFO!P13*$E13-($F13*COUNTRY_INFO!$P13/(COUNTRY_INFO!$F13+COUNTRY_INFO!$G13)+IF($G13=\" \",0,COUNTRY_INFO!$P13/(COUNTRY_INFO!$F13+COUNTRY_INFO!$G13)*$G13*$H13))),0)))","v":0},null,{"$f":"MAX(0,IF(OR(COUNTRY_INFO!Q13=\"Unknown\",COUNTRY_INFO!Q13=\"Surveillance\",COUNTRY_INFO!Q13=\"Not required\",COUNTRY_INFO!Q13=0),0,IF($E13<>0,IF($D13=0,COUNTRY_INFO!Q13*MIN($E13,$L13),COUNTRY_INFO!Q13*MIN($E13,$L13)-($F13*COUNTRY_INFO!$Q13/(COUNTRY_INFO!$F13+COUNTRY_INFO!$G13)+IF($G13=\" \",0,COUNTRY_INFO!$Q13/(COUNTRY_INFO!$F13+COUNTRY_INFO!$G13)*$G13*$H13))),0)))","v":0},0,0,null,0,0,null,0,0,null,0,null," "]
[{"$f":"IF(AND(INTRO!$E$37=\"Non-endemic\",INTRO!$E$41=\"Non-endemic\"),\" \",IF(COUNTRY_INFO!A14=0,\" \",COUNTRY_INFO!A14))","v":"Gabon"},{"$f":"IF(AND(INTRO!$E$37=\"Non-endemic\",INTRO!$E$41=\"Non-endemic\"),\" \",IF(COUNTRY_INFO!B14=0,\" \",COUNTRY_INFO!B14))","v":"Estuaire"},{"$f":"IF(AND(INTRO!$E$37=\"Non-endemic\",INTRO!$E$41=\"Non-endemic\"),\" \",IF(COUNTRY_INFO!C14=0,\" \",COUNTRY_INFO!C14))","v":"Komo-Mondah"},{"$f":"IF(AND(INTRO!$E$37=\"Non-endemic\",INTRO!$E$41=\"Non-endemic\"),0,COUNTRY_INFO!W14)","v":1},{"$f":"IF(AND(INTRO!$E$37=\"Non-endemic\",INTRO!$E$41=\"Non-endemic\"),0,COUNTRY_INFO!Y14)","v":1},{"$f":"IF($D14=1,IVM!G14,0)","v":8942},87736,2,null,{"$f":"IF(OR(COUNTRY_INFO!O14=\"Unknown\",COUNTRY_INFO!O14=\"Surveillance\",COUNTRY_INFO!O14=\"Not required\",COUNTRY_INFO!O14=0),0,IF(INTRO!$E$39=\"Non-endemic\",IF(AND($E14<>0,$I14=\"\"),IF($F14=0,COUNTRY_INFO!O14*$E14,COUNTRY_INFO!O14*($E14-$D14)),IF(AND($E14<>0,$I14<>0),IF($F14=0,COUNTRY_INFO!O14*$I14,COUNTRY_INFO!O14*($I14-$D14)),0)),IF($I14=\"\",COUNTRY_INFO!O14*$E14,COUNTRY_INFO!O14*$I14)))","v":11624},{"$f":"MAX(0,IF(OR(COUNTRY_INFO!P14=\"Unknown\",COUNTRY_INFO!P14=\"Surveillance\",COUNTRY_INFO!P14=\"Not required\",COUNTRY_INFO!P14=0),0,IF($E14<>0,IF($D14=0,COUNTRY_INFO!P14*$E14,COUNTRY_INFO!P14*$E14-($F14*COUNTRY_INFO!$P14/(COUNTRY_INFO!$F14+COUNTRY_INFO!$G14)+IF($G14=\" \",0,COUNTRY_INFO!$P14/(COUNTRY_INFO!$F14+COUNTRY_INFO!$G14)*$G14*$H14))),0)))","v":0},null,{"$f":"MAX(0,IF(OR(COUNTRY_INFO!Q14=\"Unknown\",COUNTRY_INFO!Q14=\"Surveillance\",COUNTRY_INFO!Q14=\"Not required\",COUNTRY_INFO!Q14=0),0,IF($E14<>0,IF($D14=0,COUNTRY_INFO!Q14*MIN($E14,$L14),COUNTRY_INFO!Q14*MIN($E14,$L14)-($F14*COUNTRY_INFO!$Q14/(COUNTRY_INFO!$F14+COUNTRY_INFO!$G14)+IF($G14=\" \",0,COUNTRY_INFO!$Q14/(COUNTRY_INFO!$F14+COUNTRY_INFO!$G14)*$G14*$H14))),0)))","v":0},11624,184414,null,184414,0,null,0,0,null,0]
[{"$f":"IF(AND(INTRO!$E$37=\"Non-endemic\",INTRO!$E$41=\"Non-endemic\"),\" \",IF(COUNTRY_INFO!A15=0,\" \",COUNTRY_INFO!A15))","v":"Gabon"},{"$f":"IF(AND(INTRO!$E$37=\"Non-endemic\",INTRO!$E$41=\"Non-endemic\"),\" \",IF(COUNTRY_INFO!B15=0,\" \",COUNTRY_INFO!B15))","v":"Estuaire"},{"$f":"IF(AND(INTRO!$E$37=\"Non-endemic\",INTRO!$E$41=\"Non-endemic\"),\" \",IF(COUNTRY_INFO!C15=0,\" \",COUNTRY_INFO!C15))","v":"Komo-Kango"},{"$f":"IF(AND(INTRO!$E$37=\"Non-endemic\",INTRO!$E$41=\"Non-endemic\"),0,COUNTRY_INFO!W15)","v":0},{"$f":"IF(AND(INTRO!$E$37=\"Non-endemic\",INTRO!$E$41=\"Non-endemic\"),0,COUNTRY_INFO!Y15)","v":1},{"$f":"IF($D15=1,IVM!G15,0)","v":0},{"$f":"IF($D15=0, \" \", IF(COUNTRY_INFO!$H15=1, IF(COUNTRY_INFO!$L15=1, 0,\" \"),\" \"))","v":" "},null,null,{"$f":"IF(OR(COUNTRY_INFO!O15=\"Unknown\",COUNTRY_INFO!O15=\"Surveillance\",COUNTRY_INFO!O15=\"Not required\",COUNTRY_INFO!O15=0),0,IF(INTRO!$E$39=\"Non-endemic\",IF(AND($E15<>0,$I15=\"\"),IF($F15=0,COUNTRY_INFO!O15*$E15,COUNTRY_INFO!O15*($E15-$D15)),IF(AND($E15<>0,$I15<>0),IF($F15=0,COUNTRY_INFO!O15*$I15,COUNTRY_INFO!O15*($I15-$D15)),0)),IF($I15=\"\",COUNTRY_INFO!O15*$E15,COUNTRY_INFO!O15*$I15)))","v":2261},{"$f":"MAX(0,IF(OR(COUNTRY_INFO!P15=\"Unknown\",COUNTRY_INFO!P15=\"Surveillance\",COUNTRY_INFO!P15=\"Not required\",COUNTRY_INFO!P15=0),0,IF($E15<>0,IF($D15=0,COUNTRY_INFO!P15*$E15,COUNTRY_INFO!P15*$E15-($F15*COUNTRY_INFO!$P15/(COUNTRY_INFO!$F15+COUNTRY_INFO!$G15)+IF($G15=\" \",0,COUNTRY_INFO!$P15/(COUNTRY_INFO!$F15+COUNTRY_INFO!$G15)*$G15*$H15))),0)))","v":5048},null,{"$f":"MAX(0,IF(OR(COUNTRY_INFO!Q15=\"Unknown\",COUNTRY_INFO!Q15=\"Surveillance\",COUNTRY_INFO!Q15=\"Not required\",COUNTRY_INFO!Q15=0),0,IF($E15<>0,IF($D15=0,COUNTRY_INFO!Q15*MIN($E15,$L15),COUNTRY_INFO!Q15*MIN($E15,$L15)-($F15*COUNTRY_INFO!$Q15/(COUNTRY_INFO!$F15+COUNTRY_INFO!$G15)+IF($G15=\" \",0,COUNTRY_INFO!$Q15/(COUNTRY_INFO!$F15+COUNTRY_INFO!$G15)*$G15*$H15))),0)))","v":5369},12678,0,null,0,5048,null,5048,0,null,0,null," "]
[{"$f":"IF(AND(INTRO!$E$37=\"Non-endemic\",INTRO!$E$41=\"Non-endemic\"),\" \",IF(COUNTRY_INFO!A16=0,\" \",COUNTRY_INFO!A16))","v":"Gabon"},{"$f":"IF(AND(INTRO!$E$37=\"Non-endemic\",INTRO!$E$41=\"Non-endemic\"),\" \",IF(COUNTRY_INFO!B16=0,\" \",COUNTRY_INFO!B16))","v":"Estuaire"},{"$f":"IF(AND(INTRO!$E$37=\"Non-endemic\",INTRO!$E$41=\"Non-endemic\"),\" \",IF(COUNTRY_INFO!C16=0,\" \",COUNTRY_INFO!C16))","v":"Noya"},{"$f":"IF(AND(INTRO!$E$37=\"Non-endemic\",INTRO!$E$41=\"Non-endemic\"),0,COUNTRY_INFO!W16)","v":0},{"$f":"IF(AND(INTRO!$E$37=\"Non-endemic\",INTRO!$E$41=\"Non-endemic\"),0,COUNTRY_INFO!Y16)","v":2},{"$f":"IF($D16=1,IVM!G16,0)","v":0},{"$f":"IF($D16=0, \" \", IF(COUNTRY_INFO!$H16=1, IF(COUNTRY_INFO!$L16=1, 0,\" \"),\" \"))","v":" "},null,null,{"$f":"IF(OR(COUNTRY_INFO!O16=\"Unknown\",COUNTRY_INFO!O16=\"Surveillance\",COUNTRY_INFO!O16=\"Not required\",COUNTRY_INFO!O16=0),0,IF(INTRO!$E$39=\"Non-endemic\",IF(AND($E16<>0,$I16=\"\"),IF($F16=0,COUNTRY_INFO!O16*$E16,COUNTRY_INFO!O16*($E16-$D16)),IF(AND($E16<>0,$I16<>0),IF($F16=0,COUNTRY_INFO!O16*$I16,COUNTRY_INFO!O16*($I16-$D16)),0)),IF($I16=\"\",COUNTRY_INFO!O16*$E16,COUNTRY_INFO!O16*$I16)))","v":976},{"$f":"MAX(0,IF(OR(COUNTRY_INFO!P16=\"Unknown\",COUNTRY_INFO!P16=\"Surveillance\",COUNTRY_INFO!P16=\"Not required\",COUNTRY_INFO!P16=0),0,IF($E16<>0,IF($D16=0,COUNTRY_INFO!P16*$E16,COUNTRY_INFO!P16*$E16-($F16*COUNTRY_INFO!$P16/(COUNTRY_INFO!$F16+COUNTRY_INFO!$G16)+IF($G16=\" \",0,COUNTRY_INFO!$P16/(COUNTRY_INFO!$F16+COUNTRY_INFO!$G16)*$G16*$H16))),0)))","v":2180},null,{"$f":"MAX(0,IF(OR(COUNTRY_INFO!Q16=\"Unknown\",COUNTRY_INFO!Q16=\"Surveillance\",COUNTRY_INFO!Q16=\"Not required\",COUNTRY_INFO!Q16=0),0,IF($E16<>0,IF($D16=0,COUNTRY_INFO!Q16*MIN($E16,$L16),COUNTRY_INFO!Q16*MIN($E16,$L16)-($F16*COUNTRY_INFO!$Q16/(COUNTRY_INFO!$F16+COUNTRY_INFO!$G16)+IF($G16=\" \",0,COUNTRY_INFO!$Q16/(COUNTRY_INFO!$F16+COUNTRY_INFO!$G16)*$G16*$H16))),0)))","v":2320},5476,0,null,0,2180,null,2180,0,null,0,null," "]
[{"$f":"IF(AND(INTRO!$E$37=\"Non-endemic\",INTRO!$E$41=\"Non-endemic\"),\" \",IF(COUNTRY_INFO!A17=0,\" \",COUNTRY_INFO!A17))","v":"Gabon"},{"$f":"IF(AND(INTRO!$E$37=\"Non-endemic\",INTRO!$E$41=\"Non-endemic\"),\" \",IF(COUNTRY_INFO!B17=0,\" \",COUNTRY_INFO!B17))","v":"Haut Ogooué"},{"$f":"IF(AND(INTRO!$E$37=\"Non-endemic\",INTRO!$E$41=\"Non-endemic\"),\" \",IF(COUNTRY_INFO!C17=0,\" \",COUNTRY_INFO!C17))","v":"Bayi-brikolo"},{"$f":"IF(AND(INTRO!$E$37=\"Non-endemic\",INTRO!$E$41=\"Non-endemic\"),0,COUNTRY_INFO!W17)","v":0},{"$f":"IF(AND(INTRO!$E$37=\"Non-endemic\",INTRO!$E$41=\"Non-endemic\"),0,COUNTRY_INFO!Y17)","v":2},{"$f":"IF($D17=1,IVM!G17,0)","v":0},{"$f":"IF($D17=0, \" \", IF(COUNTRY_INFO!$H17=1, IF(COUNTRY_INFO!$L17=1, 0,\" \"),\" \"))","v":" "},null,null,{"$f":"IF(OR(COUNTRY_INFO!O17=\"Unknown\",COUNTRY_INFO!O17=\"Surveillance\",COUNTRY_INFO!O17=\"Not required\",COUNTRY_INFO!O17=0),0,IF(INTRO!$E$39=\"Non-endemic\",IF(AND($E17<>0,$I17=\"\"),IF($F17=0,COUNTRY_INFO!O17*$E17,COUNTRY_INFO!O17*($E17-$D17)),IF(AND($E17<>0,$I17<>0),IF($F17=0,COUNTRY_INFO!O17*$I17,COUNTRY_INFO!O17*($I17-$D17)),0)),IF($I17=\"\",COUNTRY_INFO!O17*$E17,COUNTRY_INFO!O17*$I17)))","v":854},{"$f":"MAX(0,IF(OR(COUNTRY_INFO!P17=\"Unknown\",COUNTRY_INFO!P17=\"Surveillance\",COUNTRY_INFO!P17=\"Not required\",COUNTRY_INFO!P17=0),0,IF($E17<>0,IF($D17=0,COUNTRY_INFO!P17*$E17,COUNTRY_INFO!P17*$E17-($F17*COUNTRY_INFO!$P17/(COUNTRY_INFO!$F17+COUNTRY_INFO!$G17)+IF($G17=\" \",0,COUNTRY_INFO!$P17/(COUNTRY_INFO!$F17+COUNTRY_INFO!$G17)*$G17*$H17))),0)))","v":1906},null,{"$f":"MAX(0,IF(OR(COUNTRY_INFO!Q17=\"Unknown\",COUNTRY_INFO!Q17=\"Surveillance\",COUNTRY_INFO!Q17=\"Not required\",COUNTRY_INFO!Q17=0),0,IF($E17<>0,IF($D17=0,COUNTRY_INFO!Q17*MIN($E17,$L17),COUNTRY_INFO!Q17*MIN($E17,$L17)-($F17*COUNTRY_INFO!$Q17/(COUNTRY_INFO!$F17+COUNTRY_INFO!$G17)+IF($G17=\" \",0,COUNTRY_INFO!$Q17/(COUNTRY_INFO!$F17+COUNTRY_INFO!$G17)*$G17*$H17))),0)))","v":2026},4786,0,null,0,1906,null,1906,0,null,0,null," "]
[{"$f":"IF(AND(INTRO!$E$37=\"Non-endemic\",INTRO!$E$41=\"Non-endemic\"),\" \",IF(COUNTRY_INFO!A18=0,\" \",COUNTRY_INFO!A18))","v":"Gabon"},{"$f":"IF(AND(INTRO!$E$37=\"Non-endemic\",INTRO!$E$41=\"Non-endemic\"),\" \",IF(COUNTRY_INFO!B18=0,\" \",COUNTRY_INFO!B18))","v":"Haut Ogooué"},{"$f":"IF(AND(INTRO!$E$37=\"Non-endemic\",INTRO!$E$41=\"Non-endemic\"),\" \",IF(COUNTRY_INFO!C18=0,\" \",COUNTRY_INFO!C18))","v":"Lékoni-lékori"},{"$f":"IF(AND(INTRO!$E$37=\"Non-endemic\",INTRO!$E$41=\"Non-endemic\"),0,COUNTRY_INFO!W18)","v":0},{"$f":"IF(AND(INTRO!$E$37=\"Non-endemic\",INTRO!$E$41=\"Non-endemic\"),0,COUNTRY_INFO!Y18)","v":2},{"$f":"IF($D18=1,IVM!G18,0)","v":0},{"$f":"IF($D18=0, \" \", IF(COUNTRY_INFO!$H18=1, IF(COUNTRY_INFO!$L18=1, 0,\" \"),\" \"))","v":" "},null,null,{"$f":"IF(OR(COUNTRY_INFO!O18=\"Unknown\",COUNTRY_INFO!O18=\"Surveillance\",COUNTRY_INFO!O18=\"Not required\",COUNTRY_INFO!O18=0),0,IF(INTRO!$E$39=\"Non-endemic\",IF(AND($E18<>0,$I18=\"\"),IF($F18=0,COUNTRY_INFO!O18*$E18,COUNTRY_INFO!O18*($E18-$D18)),IF(AND($E18<>0,$I18<>0),IF($F18=0,COUNTRY_INFO!O18*$I18,COUNTRY_INFO!O18*($I18-$D18)),0)),IF($I18=\"\",COUNTRY_INFO!O18*$E18,COUNTRY_INFO!O18*$I18)))","v":2360},{"$f":"MAX(0,IF(OR(COUNTRY_INFO!P18=\"Unknown\",COUNTRY_INFO!P18=\"Surveillance\",COUNTRY_INFO!P18=\"Not required\",COUNTRY_INFO!P18=0),0,IF($E18<>0,IF($D18=0,COUNTRY_INFO!P18*$E18,COUNTRY_INFO!P18*$E18-($F18*COUNTRY_INFO!$P18/(COUNTRY_INFO!$F18+COUNTRY_INFO!$G18)+IF($G18=\" \",0,COUNTRY_INFO!$P18/(COUNTRY_INFO!$F18+COUNTRY_INFO!$G18)*$G18*$H18))),0)))","v":5270},null,{"$f":"MAX(0,IF(OR(COUNTRY_INFO!Q18=\"Unknown\",COUNTRY_INFO!Q18=\"Surveillance\",COUNTRY_INFO!Q18=\"Not required\",COUNTRY_INFO!Q18=0),0,IF($E18<>0,IF($D18=0,COUNTRY_INFO!Q18*MIN($E18,$L18),COUNTRY_INFO!Q18*MIN($E18,$L18)-($F18*COUNTRY_INFO!$Q18/(COUNTRY_INFO!$F18+COUNTRY_INFO!$G18)+IF($G18=\" \",0,COUNTRY_INFO!$Q18/(COUNTRY_INFO!$F18+COUNTRY_INFO!$G18)*$G18*$H18))),0)))","v":5604},13234,0,null,0,5270,null,5270,0,null,0,null," "]
[{"$f":"IF(AND(INTRO!$E$37=\"Non-endemic\",INTRO!$E$41=\"Non-endemic\"),\" \",IF(COUNTRY_INFO!A19=0,\" \",COUNTRY_INFO!A19))","v":"Gabon"},{"$f":"IF(AND(INTRO!$E$37=\"Non-endemic\",INTRO!$E$41=\"Non-endemic\"),\" \",IF(COUNTRY_INFO!B19=0,\" \",COUNTRY_INFO!B19))","v":"Haut Ogooué"},{"$f":"IF(AND(INTRO!$E$37=\"Non-endemic\",INTRO!$E$41=\"Non-endemic\"),\" \",IF(COUNTRY_INFO!C19=0,\" \",COUNTRY_INFO!C19))","v":"Lékoko"},{"$f":"IF(AND(INTRO!$E$37=\"Non-endemic\",INTRO!$E$41=\"Non-endemic\"),0,COUNTRY_INFO!W19)","v":0},{"$f":"IF(AND(INTRO!$E$37=\"Non-endemic\",INTRO!$E$41=\"Non-endemic\"),0,COUNTRY_INFO!Y19)","v":1},{"$f":"IF($D19=1,IVM!G19,0)","v":0},{"$f":"IF($D19=0, \" \", IF(COUNTRY_INFO!$H19=1, IF(COUNTRY_INFO!$L19=1, 0,\" \"),\" \"))","v":" "},null,null,{"$f":"IF(OR(COUNTRY_INFO!O19=\"Unknown\",COUNTRY_INFO!O19=\"Surveillance\",COUNTRY_INFO!O19=\"Not required\",COUNTRY_INFO!O19=0),0,IF(INTRO!$E$39=\"Non-endemic\",IF(AND($E19<>0,$I19=\"\"),IF($F19=0,COUNTRY_INFO!O19*$E19,COUNTRY_INFO!O19*($E19-$D19)),IF(AND($E19<>0,$I19<>0),IF($F19=0,COUNTRY_INFO!O19*$I19,COUNTRY_INFO!O19*($I19-$D19)),0)),IF($I19=\"\",COUNTRY_INFO!O19*$E19,COUNTRY_INFO!O19*$I19)))","v":711},{"$f":"MAX(0,IF(OR(COUNTRY_INFO!P19=\"Unknown\",COUNTRY_INFO!P19=\"Surveillance\",COUNTRY_INFO!P19=\"Not required\",COUNTRY_INFO!P19=0),0,IF($E19<>0,IF($D19=0,COUNTRY_INFO!P19*$E19,COUNTRY_INFO!P19*$E19-($F19*COUNTRY_INFO!$P19/(COUNTRY_INFO!$F19+COUNTRY_INFO!$G19)+IF($G19=\" \",0,COUNTRY_INFO!$P19/(COUNTRY_INFO!$F19+COUNTRY_INFO!$G19)*$G19*$H19))),0)))","v":1587},null,{"$f":"MAX(0,IF(OR(COUNTRY_INFO!Q19=\"Unknown\",COUNTRY_INFO!Q19=\"Surveillance\",COUNTRY_INFO!Q19=\"Not required\",COUNTRY_INFO!Q19=0),0,IF($E19<>0,IF($D19=0,COUNTRY_INFO!Q19*MIN($E19,$L19),COUNTRY_INFO!Q19*MIN($E19,$L19)-($F19*COUNTRY_INFO!$Q19/(COUNTRY_INFO!$F19+COUNTRY_INFO!$G19)+IF($G19=\" \",0,COUNTRY_INFO!$Q19/(COUNTRY_INFO!$F19+COUNTRY_INFO!$G19)*$G19*$H19))),0)))","v":1688},3986,0,null,0,1587,null,1587,0,null,0,null," "]
[{"$f":"IF(AND(INTRO!$E$37=\"Non-endemic\",INTRO!$E$41=\"Non-endemic\"),\" \",IF(COUNTRY_INFO!A20=0,\" \",COUNTRY_INFO!A20))","v":"Gabon"},{"$f":"IF(AND(INTRO!$E$37=\"Non-endemic\",INTRO!$E$41=\"Non-endemic\"),\" \",IF(COUNTRY_INFO!B20=0,\" \",COUNTRY_INFO!B20))","v":"Haut Ogooué"},{"$f":"IF(AND(INTRO!$E$37=\"Non-endemic\",INTRO!$E$41=\"Non-endemic\"),\" \",IF(COUNTRY_INFO!C20=0,\" \",COUNTRY_INFO!C20))","v":"Djouori-Agnili"},{"$f":"IF(AND(INTRO!$E$37=\"Non-endemic\",INTRO!$E$41=\"Non-endemic\"),0,COUNTRY_INFO!W20)","v":1},{"$f":"IF(AND(INTRO!$E$37=\"Non-endemic\",INTRO!$E$41=\"Non-endemic\"),0,COUNTRY_INFO!Y20)","v":1},{"$f":"IF($D20=1,IVM!G20,0)","v":732},5743,2,null,{"$f":"IF(OR(COUNTRY_INFO!O20=\"Unknown\",COUNTRY_INFO!O20=\"Surveillance\",COUNTRY_INFO!O20=\"Not required\",COUNTRY_INFO!O20=0),0,IF(INTRO!$E$39=\"Non-endemic\",IF(AND($E20<>0,$I20=\"\"),IF($F20=0,COUNTRY_INFO!O20*$E20,COUNTRY_INFO!O20*($E20-$D20)),IF(AND($E20<>0,$I20<>0),IF($F20=0,COUNTRY_INFO!O20*$I20,COUNTRY_INFO!O20*($I20-$D20)),0)),IF($I20=\"\",COUNTRY_INFO!O20*$E20,COUNTRY_INFO!O20*$I20)))","v":779},{"$f":"MAX(0,IF(OR(COUNTRY_INFO!P20=\"Unknown\",COUNTRY_INFO!P20=\"Surveillance\",COUNTRY_INFO!P20=\"Not required\",COUNTRY_INFO!P20=0),0,IF($E20<>0,IF($D20=0,COUNTRY_INFO!P20*$E20,COUNTRY_INFO!P20*$E20-($F20*COUNTRY_INFO!$P20/(COUNTRY_INFO!$F20+COUNTRY_INFO!$G20)+IF($G20=\" \",0,COUNTRY_INFO!$P20/(COUNTRY_INFO!$F20+COUNTRY_INFO!$G20)*$G20*$H20))),0)))","v":0},null,{"$f":"MAX(0,IF(OR(COUNTRY_INFO!Q20=\"Unknown\",COUNTRY_INFO!Q20=\"Surveillance\",COUNTRY_INFO!Q20=\"Not required\",COUNTRY_INFO!Q20=0),0,IF($E20<>0,IF($D20=0,COUNTRY_INFO!Q20*MIN($E20,$L20),COUNTRY_INFO!Q20*MIN($E20,$L20)-($F20*COUNTRY_INFO!$Q20/(COUNTRY_INFO!$F20+COUNTRY_INFO!$G20)+IF($G20=\" \",0,COUNTRY_INFO!$Q20/(COUNTRY_INFO!$F20+COUNTRY_INFO!$G20)*$G20*$H20))),0)))","v":0},779,12218,null,12218,0,null,0,0,null,0]
[{"$f":"IF(AND(INTRO!$E$37=\"Non-endemic\",INTRO!$E$41=\"Non-endemic\"),\" \",IF(COUNTRY_INFO!A21=0,\" \",COUNTRY_INFO!A21))","v":"Gabon"},{"$f":"IF(AND(INTRO!$E$37=\"Non-endemic\",INTRO!$E$41=\"Non-endemic\"),\" \",IF(COUNTRY_INFO!B21=0,\" \",COUNTRY_INFO!B21))","v":"Haut Ogooué"},{"$f":"IF(AND(INTRO!$E$37=\"Non-endemic\",INTRO!$E$41=\"Non-endemic\"),\" \",IF(COUNTRY_INFO!C21=0,\" \",COUNTRY_INFO!C21))","v":"Ogooué -létili"},{"$f":"IF(AND(INTRO!$E$37=\"Non-endemic\",INTRO!$E$41=\"Non-endemic\"),0,COUNTRY_INFO!W21)","v":0},{"$f":"IF(AND(INTRO!$E$37=\"Non-endemic\",INTRO!$E$41=\"Non-endemic\"),0,COUNTRY_INFO!Y21)","v":2},{"$f":"IF($D21=1,IVM!G21,0)","v":0},{"$f":"IF($D21=0, \" \", IF(COUNTRY_INFO!$H21=1, IF(COUNTRY_INFO!$L21=1, 0,\" \"),\" \"))","v":" "},null,null,{"$f":"IF(OR(COUNTRY_INFO!O21=\"Unknown\",COUNTRY_INFO!O21=\"Surveillance\",COUNTRY_INFO!O21=\"Not required\",COUNTRY_INFO!O21=0),0,IF(INTRO!$E$39=\"Non-endemic\",IF(AND($E21<>0,$I21=\"\"),IF($F21=0,COUNTRY_INFO!O21*$E21,COUNTRY_INFO!O21*($E21-$D21)),IF(AND($E21<>0,$I21<>0),IF($F21=0,COUNTRY_INFO!O21*$I21,COUNTRY_INFO!O21*($I21-$D21)),0)),IF($I21=\"\",COUNTRY_INFO!O21*$E21,COUNTRY_INFO!O21*$I21)))","v":906},{"$f":"MAX(0,IF(OR(COUNTRY_INFO!P21=\"Unknown\",COUNTRY_INFO!P21=\"Surveillance\",COUNTRY_INFO!P21=\"Not required\",COUNTRY_INFO!P21=0),0,IF($E21<>0,IF($D21=0,COUNTRY_INFO!P21*$E21,COUNTRY_INFO!P21*$E21-($F21*COUNTRY_INFO!$P21/(COUNTRY_INFO!$F21+COUNTRY_INFO!$G21)+IF($G21=\" \",0,COUNTRY_INFO!$P21/(COUNTRY_INFO!$F21+COUNTRY_INFO!$G21)*$G21*$H21))),0)))","v":2024},null,{"$f":"MAX(0,IF(OR(COUNTRY_INFO!Q21=\"Unknown\",COUNTRY_INFO!Q21=\"Surveillance\",COUNTRY_INFO!Q21=\"Not required\",COUNTRY_INFO!Q21=0),0,IF($E21<>0,IF($D21=0,COUNTRY_INFO!Q21*MIN($E21,$L21),COUNTRY_INFO!Q21*MIN($E21,$L21)-($F21*COUNTRY_INFO!$Q21/(COUNTRY_INFO!$F21+COUNTRY_INFO!$G21)+IF($G21=\" \",0,COUNTRY_INFO!$Q21/(COUNTRY_INFO!$F21+COUNTRY_INFO!$G21)*$G21*$H21))),0)))","v":2152},5082,0,null,0,2024,null,2024,0,null,0,null," "]
[{"$f":"IF(AND(INTRO!$E$37=\"Non-endemic\",INTRO!$E$41=\"Non-endemic\"),\" \",IF(COUNTRY_INFO!A22=0,\" \",COUNTRY_INFO!A22))","v":"Gabon"},{"$f":"IF(AND(INTRO!$E$37=\"Non-endemic\",INTRO!$E$41=\"Non-endemic\"),\" \",IF(COUNTRY_INFO!B22=0,\" \",COUNTRY_INFO!B22))","v":"Haut Ogooué"},{"$f":"IF(AND(INTRO!$E$37=\"Non-endemic\",INTRO!$E$41=\"Non-endemic\"),\" \",IF(COUNTRY_INFO!C22=0,\" \",COUNTRY_INFO!C22))","v":"Mpassa"},{"$f":"IF(AND(INTRO!$E$37=\"Non-endemic\",INTRO!$E$41=\"Non-endemic\"),0,COUNTRY_INFO!W22)","v":0},{"$f":"IF(AND(INTRO!$E$37=\"Non-endemic\",INTRO!$E$41=\"Non-endemic\"),0,COUNTRY_INFO!Y22)","v":1},{"$f":"IF($D22=1,IVM!G22,0)","v":0},{"$f":"IF($D22=0, \" \", IF(COUNTRY_INFO!$H22=1, IF(COUNTRY_INFO!$L22=1, 0,\" \"),\" \"))","v":" "},null,null,{"$f":"IF(OR(COUNTRY_INFO!O22=\"Unknown\",COUNTRY_INFO!O22=\"Surveillance\",COUNTRY_INFO!O22=\"Not required\",COUNTRY_INFO!O22=0),0,IF(INTRO!$E$39=\"Non-endemic\",IF(AND($E22<>0,$I22=\"\"),IF($F22=0,COUNTRY_INFO!O22*$E22,COUNTRY_INFO!O22*($E22-$D22)),IF(AND($E22<>0,$I22<>0),IF($F22=0,COUNTRY_INFO!O22*$I22,COUNTRY_INFO!O22*($I22-$D22)),0)),IF($I22=\"\",COUNTRY_INFO!O22*$E22,COUNTRY_INFO!O22*$I22)))","v":19677},{"$f":"MAX(0,IF(OR(COUNTRY_INFO!P22=\"Unknown\",COUNTRY_INFO!P22=\"Surveillance\",COUNTRY_INFO!P22=\"Not required\",COUNTRY_INFO!P22=0),0,IF($E22<>0,IF($D22=0,COUNTRY_INFO!P22*$E22,COUNTRY_INFO!P22*$E22-($F22*COUNTRY_INFO!$P22/(COUNTRY_INFO!$F22+COUNTRY_INFO!$G22)+IF($G22=\" \",0,COUNTRY_INFO!$P22/(COUNTRY_INFO!$F22+COUNTRY_INFO!$G22)*$G22*$H22))),0)))","v":43930},null,{"$f":"MAX(0,IF(OR(COUNTRY_INFO!Q22=\"Unknown\",COUNTRY_INFO!Q22=\"Surveillance\",COUNTRY_INFO!Q22=\"Not required\",COUNTRY_INFO!Q22=0),0,IF($E22<>0,IF($D22=0,COUNTRY_INFO!Q22*MIN($E22,$L22),COUNTRY_INFO!Q22*MIN($E22,$L22)-($F22*COUNTRY_INFO!$Q22/(COUNTRY_INFO!$F22+COUNTRY_INFO!$G22)+IF($G22=\" \",0,COUNTRY_INFO!$Q22/(COUNTRY_INFO!$F22+COUNTRY_INFO!$G22)*$G22*$H22))),0)))","v":46716},110323,0,null,0,43930,null,43930,0,null,0,null," "]
[{"$f":"IF(AND(INTRO!$E$37=\"Non-endemic\",INTRO!$E$41=\"Non-endemic\"),\" \",IF(COUNTRY_INFO!A23=0,\" \",COUNTRY_INFO!A23))","v":"Gabon"},{"$f":"IF(AND(INTRO!$E$37=\"Non-endemic\",INTRO!$E$41=\"Non-endemic\"),\" \",IF(COUNTRY_INFO!B23=0,\" \",COUNTRY_INFO!B23))","v":"Haut Ogooué"},{"$f":"IF(AND(INTRO!$E$37=\"Non-endemic\",INTRO!$E$41=\"Non-endemic\"),\" \",IF(COUNTRY_INFO!C23=0,\" \",COUNTRY_INFO!C23))","v":"Plateaux"},{"$f":"IF(AND(INTRO!$E$37=\"Non-endemic\",INTRO!$E$41=\"Non-endemic\"),0,COUNTRY_INFO!W23)","v":0},{"$f":"IF(AND(INTRO!$E$37=\"Non-endemic\",INTRO!$E$41=\"Non-endemic\"),0,COUNTRY_INFO!Y23)","v":2},{"$f":"IF($D23=1,IVM!G23,0)","v":0},{"$f":"IF($D23=0, \" \", IF(COUNTRY_INFO!$H23=1, IF(COUNTRY_INFO!$L23=1, 0,\" \"),\" \"))","v":" "},null,null,{"$f":"IF(OR(COUNTRY_INFO!O23=\"Unknown\",COUNTRY_INFO!O23=\"Surveillance\",COUNTRY_INFO!O23=\"Not required\",COUNTRY_INFO!O23=0),0,IF(INTRO!$E$39=\"Non-endemic\",IF(AND($E23<>0,$I23=\"\"),IF($F23=0,COUNTRY_INFO!O23*$E23,COUNTRY_INFO!O23*($E23-$D23)),IF(AND($E23<>0,$I23<>0),IF($F23=0,COUNTRY_INFO!O23*$I23,COUNTRY_INFO!O23*($I23-$D23)),0)),IF($I23=\"\",COUNTRY_INFO!O23*$E23,COUNTRY_INFO!O23*$I23)))","v":2364},{"$f":"MAX(0,IF(OR(COUNTRY_INFO!P23=\"Unknown\",COUNTRY_INFO!P23=\"Surveillance\",COUNTRY_INFO!P23=\"Not required\",COUNTRY_INFO!P23=0),0,IF($E23<>0,IF($D23=0,COUNTRY_INFO!P23*$E23,COUNTRY_INFO!P23*$E23-($F23*COUNTRY_INFO!$P23/(COUNTRY_INFO!$F23+COUNTRY_INFO!$G23)+IF($G23=\" \",0,COUNTRY_INFO!$P23/(COUNTRY_INFO!$F23+COUNTRY_INFO!$G23)*$G23*$H23))),0)))","v":5278},null,{"$f":"MAX(0,IF(OR(COUNTRY_INFO!Q23=\"Unknown\",COUNTRY_INFO!Q23=\"Surveillance\",COUNTRY_INFO!Q23=\"Not required\",COUNTRY_INFO!Q23=0),0,IF($E23<>0,IF($D23=0,COUNTRY_INFO!Q23*MIN($E23,$L23),COUNTRY_INFO!Q23*MIN($E23,$L23)-($F23*COUNTRY_INFO!$Q23/(COUNTRY_INFO!$F23+COUNTRY_INFO!$G23)+IF($G23=\" \",0,COUNTRY_INFO!$Q23/(COUNTRY_INFO!$F23+COUNTRY_INFO!$G23)*$G23*$H23))),0)))","v":5612},13254,0,null,0,5278,null,5278,0,null,0,null," "]
[{"$f":"IF(AND(INTRO!$E$37=\"Non-endemic\",INTRO!$E$41=\"Non-endemic\"),\" \",IF(COUNTRY_INFO!A24=0,\" \",COUNTRY_INFO!A24))","v":"Gabon"},{"$f":"IF(AND(INTRO!$E$37=\"Non-endemic\",INTRO!$E$41=\"Non-endemic\"),\" \",IF(COUNTRY_INFO!B24=0,\" \",COUNTRY_INFO!B24))","v":"Haut Ogooué"},{"$f":"IF(AND(INTRO!$E$37=\"Non-endemic\",INTRO!$E$41=\"Non-endemic\"),\" \",IF(COUNTRY_INFO!C24=0,\" \",COUNTRY_INFO!C24))","v":"Lébombi-Léyou"},{"$f":"IF(AND(INTRO!$E$37=\"Non-endemic\",INTRO!$E$41=\"Non-endemic\"),0,COUNTRY_INFO!W24)","v":0},{"$f":"IF(AND(INTRO!$E$37=\"Non-endemic\",INTRO!$E$41=\"Non-endemic\"),0,COUNTRY_INFO!Y24)","v":1},{"$f":"IF($D24=1,IVM!G24,0)","v":0},{"$f":"IF($D24=0, \" \", IF(COUNTRY_INFO!$H24=1, IF(COUNTRY_INFO!$L24=1, 0,\" \"),\" \"))","v":" "},null,null,{"$f":"IF(OR(COUNTRY_INFO!O24=\"Unknown\",COUNTRY_INFO!O24=\"Surveillance\",COUNTRY_INFO!O24=\"Not required\",COUNTRY_INFO!O24=0),0,IF(INTRO!$E$39=\"Non-endemic\",IF(AND($E24<>0,$I24=\"\"),IF($F24=0,COUNTRY_INFO!O24*$E24,COUNTRY_INFO!O24*($E24-$D24)),IF(AND($E24<>0,$I24<>0),IF($F24=0,COUNTRY_INFO!O24*$I24,COUNTRY_INFO!O24*($I24-$D24)),0)),IF($I24=\"\",COUNTRY_INFO!O24*$E24,COUNTRY_INFO!O24*$I24)))","v":8718},{"$f":"MAX(0,IF(OR(COUNTRY_INFO!P24=\"Unknown\",COUNTRY_INFO!P24=\"Surveillance\",COUNTRY_INFO!P24=\"Not required\",COUNTRY_INFO!P24=0),0,IF($E24<>0,IF($D24=0,COUNTRY_INFO!P24*$E24,COUNTRY_INFO!P24*$E24-($F24*COUNTRY_INFO!$P24/(COUNTRY_INFO!$F24+COUNTRY_INFO!$G24)+IF($G24=\" \",0,COUNTRY_INFO!$P24/(COUNTRY_INFO!$F24+COUNTRY_INFO!$G24)*$G24*$H24))),0)))","v":19464},null,{"$f":"MAX(0,IF(OR(COUNTRY_INFO!Q24=\"Unknown\",COUNTRY_INFO!Q24=\"Surveillance\",COUNTRY_INFO!Q24=\"Not required\",COUNTRY_INFO!Q24=0),0,IF($E24<>0,IF($D24=0,COUNTRY_INFO!Q24*MIN($E24,$L24),COUNTRY_INFO!Q24*MIN($E24,$L24)-($F24*COUNTRY_INFO!$Q24/(COUNTRY_INFO!$F24+COUNTRY_INFO!$G24)+IF($G24=\" \",0,COUNTRY_INFO!$Q24/(COUNTRY_INFO!$F24+COUNTRY_INFO!$G24)*$G24*$H24))),0)))","v":20698},48880,0,null,0,19464,null,19464,0,null,0,null," "]
[{"$f":"IF(AND(INTRO!$E$37=\"Non-endemic\",INTRO!$E$41=\"Non-endemic\"),\" \",IF(COUNTRY_INFO!A25=0,\" \",COUNTRY_INFO!A25))","v":"Gabon"},{"$f":"IF(AND(INTRO!$E$37=\"Non-endemic\",INTRO!$E$41=\"Non-endemic\"),\" \",IF(COUNTRY_INFO!B25=0,\" \",COUNTRY_INFO!B25))","v":"Haut Ogooué"},{"$f":"IF(AND(INTRO!$E$37=\"Non-endemic\",INTRO!$E$41=\"Non-endemic\"),\" \",IF(COUNTRY_INFO!C25=0,\" \",COUNTRY_INFO!C25))","v":"Lékabi-léwolo"},{"$f":"IF(AND(INTRO!$E$37=\"Non-endemic\",INTRO!$E$41=\"Non-endemic\"),0,COUNTRY_INFO!W25)","v":0},{"$f":"IF(AND(INTRO!$E$37=\"Non-endemic\",INTRO!$E$41=\"Non-endemic\"),0,COUNTRY_INFO!Y25)","v":1},{"$f":"IF($D25=1,IVM!G25,0)","v":0},{"$f":"IF($D25=0, \" \", IF(COUNTRY_INFO!$H25=1, IF(COUNTRY_INFO!$L25=1, 0,\" \"),\" \"))","v":" "},null,null,{"$f":"IF(OR(COUNTRY_INFO!O25=\"Unknown\",COUNTRY_INFO!O25=\"Surveillance\",COUNTRY_INFO!O25=\"Not required\",COUNTRY_INFO!O25=0),0,IF(INTRO!$E$39=\"Non-endemic\",IF(AND($E25<>0,$I25=\"\"),IF($F25=0,COUNTRY_INFO!O25*$E25,COUNTRY_INFO!O25*($E25-$D25)),IF(AND($E25<>0,$I25<>0),IF($F25=0,COUNTRY_INFO!O25*$I25,COUNTRY_INFO!O25*($I25-$D25)),0)),IF($I25=\"\",COUNTRY_INFO!O25*$E25,COUNTRY_INFO!O25*$I25)))","v":1269},{"$f":"MAX(0,IF(OR(COUNTRY_INFO!P25=\"Unknown\",COUNTRY_INFO!P25=\"Surveillance\",COUNTRY_INFO!P25=\"Not required\",COUNTRY_INFO!P25=0),0,IF($E25<>0,IF($D25=0,COUNTRY_INFO!P25*$E25,COUNTRY_INFO!P25*$E25-($F25*COUNTRY_INFO!$P25/(COUNTRY_INFO!$F25+COUNTRY_INFO!$G25)+IF($G25=\" \",0,COUNTRY_INFO!$P25/(COUNTRY_INFO!$F25+COUNTRY_INFO!$G25)*$G25*$H25))),0)))","v":2834},null,{"$f":"MAX(0,IF(OR(COUNTRY_INFO!Q25=\"Unknown\",COUNTRY_INFO!Q25=\"Surveillance\",COUNTRY_INFO!Q25=\"Not required\",COUNTRY_INFO!Q25=0),0,IF($E25<>0,IF($D25=0,COUNTRY_INFO!Q25*MIN($E25,$L25),COUNTRY_INFO!Q25*MIN($E25,$L25)-($F25*COUNTRY_INFO!$Q25/(COUNTRY_INFO!$F25+COUNTRY_INFO!$G25)+IF($G25=\" \",0,COUNTRY_INFO!$Q25/(COUNTRY_INFO!$F25+COUNTRY_INFO!$G25)*$G25*$H25))),0)))","v":3014},7117,0,null,0,2834,null,2834,0,null,0,null," "]
[{"$f":"IF(AND(INTRO!$E$37=\"Non-endemic\",INTRO!$E$41=\"Non-endemic\"),\" \",IF(COUNTRY_INFO!A26=0,\" \",COUNTRY_INFO!A26))","v":"Gabon"},{"$f":"IF(AND(INTRO!$E$37=\"Non-endemic\",INTRO!$E$41=\"Non-endemic\"),\" \",IF(COUNTRY_INFO!B26=0,\" \",COUNTRY_INFO!B26))","v":"Haut Ogooué"},{"$f":"IF(AND(INTRO!$E$37=\"Non-endemic\",INTRO!$E$41=\"Non-endemic\"),\" \",IF(COUNTRY_INFO!C26=0,\" \",COUNTRY_INFO!C26))","v":"Sébé-brikoli"},{"$f":"IF(AND(INTRO!$E$37=\"Non-endemic\",INTRO!$E$41=\"Non-endemic\"),0,COUNTRY_INFO!W26)","v":0},{"$f":"IF(AND(INTRO!$E$37=\"Non-endemic\",INTRO!$E$41=\"Non-endemic\"),0,COUNTRY_INFO!Y26)","v":1},{"$f":"IF($D26=1,IVM!G26,0)","v":0},{"$f":"IF($D26=0, \" \", IF(COUNTRY_INFO!$H26=1, IF(COUNTRY_INFO!$L26=1, 0,\" \"),\" \"))","v":" "},null,null,{"$f":"IF(OR(COUNTRY_INFO!O26=\"Unknown\",COUNTRY_INFO!O26=\"Surveillance\",COUNTRY_INFO!O26=\"Not required\",COUNTRY_INFO!O26=0),0,IF(INTRO!$E$39=\"Non-endemic\",IF(AND($E26<>0,$I26=\"\"),IF($F26=0,COUNTRY_INFO!O26*$E26,COUNTRY_INFO!O26*($E26-$D26)),IF(AND($E26<>0,$I26<>0),IF($F26=0,COUNTRY_INFO!O26*$I26,COUNTRY_INFO!O26*($I26-$D26)),0)),IF($I26=\"\",COUNTRY_INFO!O26*$E26,COUNTRY_INFO!O26*$I26)))","v":2385},{"$f":"MAX(0,IF(OR(COUNTRY_INFO!P26=\"Unknown\",COUNTRY_INFO!P26=\"Surveillance\",COUNTRY_INFO!P26=\"Not required\",COUNTRY_INFO!P26=0),0,IF($E26<>0,IF($D26=0,COUNTRY_INFO!P26*$E26,COUNTRY_INFO!P26*$E26-($F26*COUNTRY_INFO!$P26/(COUNTRY_INFO!$F26+COUNTRY_INFO!$G26)+IF($G26=\" \",0,COUNTRY_INFO!$P26/(COUNTRY_INFO!$F26+COUNTRY_INFO!$G26)*$G26*$H26))),0)))","v":5325},null,{"$f":"MAX(0,IF(OR(COUNTRY_INFO!Q26=\"Unknown\",COUNTRY_INFO!Q26=\"Surveillance\",COUNTRY_INFO!Q26=\"Not required\",COUNTRY_INFO!Q26=0),0,IF($E26<>0,IF($D26=0,COUNTRY_INFO!Q26*MIN($E26,$L26),COUNTRY_INFO!Q26*MIN($E26,$L26)-($F26*COUNTRY_INFO!$Q26/(COUNTRY_INFO!$F26+COUNTRY_INFO!$G26)+IF($G26=\" \",0,COUNTRY_INFO!$Q26/(COUNTRY_INFO!$F26+COUNTRY_INFO!$G26)*$G26*$H26))),0)))","v":5663},13373,0,null,0,5325,null,5325,0,null,0,null," "]
[{"$f":"IF(AND(INTRO!$E$37=\"Non-endemic\",INTRO!$E$41=\"Non-endemic\"),\" \",IF(COUNTRY_INFO!A27=0,\" \",COUNTRY_INFO!A27))","v":"Gabon"},{"$f":"IF(AND(INTRO!$E$37=\"Non-endemic\",INTRO!$E$41=\"Non-endemic\"),\" \",IF(COUNTRY_INFO!B27=0,\" \",COUNTRY_INFO!B27))","v":"Haut Ogooué"},{"$f":"IF(AND(INTRO!$E$37=\"Non-endemic\",INTRO!$E$41=\"Non-endemic\"),\" \",IF(COUNTRY_INFO!C27=0,\" \",COUNTRY_INFO!C27))","v":"Djoué"},{"$f":"IF(AND(INTRO!$E$37=\"Non-endemic\",INTRO!$E$41=\"Non-endemic\"),0,COUNTRY_INFO!W27)","v":0},{"$f":"IF(AND(INTRO!$E$37=\"Non-endemic\",INTRO!$E$41=\"Non-endemic\"),0,COUNTRY_INFO!Y27)","v":2},{"$f":"IF($D27=1,IVM!G27,0)","v":0},{"$f":"IF($D27=0, \" \", IF(COUNTRY_INFO!$H27=1, IF(COUNTRY_INFO!$L27=1, 0,\" \"),\" \"))","v":" "},null,null,{"$f":"IF(OR(COUNTRY_INFO!O27=\"Unknown\",COUNTRY_INFO!O27=\"Surveillance\",COUNTRY_INFO!O27=\"Not required\",COUNTRY_INFO!O27=0),0,IF(INTRO!$E$39=\"Non-endemic\",IF(AND($E27<>0,$I27=\"\"),IF($F27=0,COUNTRY_INFO!O27*$E27,COUNTRY_INFO!O27*($E27-$D27)),IF(AND($E27<>0,$I27<>0),IF($F27=0,COUNTRY_INFO!O27*$I27,COUNTRY_INFO!O27*($I27-$D27)),0)),IF($I27=\"\",COUNTRY_INFO!O27*$E27,COUNTRY_INFO!O27*$I27)))","v":1072},{"$f":"MAX(0,IF(OR(COUNTRY_INFO!P27=\"Unknown\",COUNTRY_INFO!P27=\"Surveillance\",COUNTRY_INFO!P27=\"Not required\",COUNTRY_INFO!P27=0),0,IF($E27<>0,IF($D27=0,COUNTRY_INFO!P27*$E27,COUNTRY_INFO!P27*$E27-($F27*COUNTRY_INFO!$P27/(COUNTRY_INFO!$F27+COUNTRY_INFO!$G27)+IF($G27=\" \",0,COUNTRY_INFO!$P27/(COUNTRY_INFO!$F27+COUNTRY_INFO!$G27)*$G27*$H27))),0)))","v":2394},null,{"$f":"MAX(0,IF(OR(COUNTRY_INFO!Q27=\"Unknown\",COUNTRY_INFO!Q27=\"Surveillance\",COUNTRY_INFO!Q27=\"Not required\",COUNTRY_INFO!Q27=0),0,IF($E27<>0,IF($D27=0,COUNTRY_INFO!Q27*MIN($E27,$L27),COUNTRY_INFO!Q27*MIN($E27,$L27)-($F27*COUNTRY_INFO!$Q27/(COUNTRY_INFO!$F27+COUNTRY_INFO!$G27)+IF($G27=\" \",0,COUNTRY_INFO!$Q27/(COUNTRY_INFO!$F27+COUNTRY_INFO!$G27)*$G27*$H27))),0)))","v":2546},6012,0,null,0,2394,null,2394,0,null,0,null," "]
[{"$f":"IF(AND(INTRO!$E$37=\"Non-endemic\",INTRO!$E$41=\"Non-endemic\"),\" \",IF(COUNTRY_INFO!A28=0,\" \",COUNTRY_INFO!A28))","v":"Gabon"},{"$f":"IF(AND(INTRO!$E$37=\"Non-endemic\",INTRO!$E$41=\"Non-endemic\"),\" \",IF(COUNTRY_INFO!B28=0,\" \",COUNTRY_INFO!B28))","v":"Moyen Ogooué"},{"$f":"IF(AND(INTRO!$E$37=\"Non-endemic\",INTRO!$E$41=\"Non-endemic\"),\" \",IF(COUNTRY_INFO!C28=0,\" \",COUNTRY_INFO!C28))","v":"Ogooué et Lacs"},{"$f":"IF(AND(INTRO!$E$37=\"Non-endemic\",INTRO!$E$41=\"Non-endemic\"),0,COUNTRY_INFO!W28)","v":0},{"$f":"IF(AND(INTRO!$E$37=\"Non-endemic\",INTRO!$E$41=\"Non-endemic\"),0,COUNTRY_INFO!Y28)","v":1},{"$f":"IF($D28=1,IVM!G28,0)","v":0},{"$f":"IF($D28=0, \" \", IF(COUNTRY_INFO!$H28=1, IF(COUNTRY_INFO!$L28=1, 0,\" \"),\" \"))","v":" "},null,null,{"$f":"IF(OR(COUNTRY_INFO!O28=\"Unknown\",COUNTRY_INFO!O28=\"Surveillance\",COUNTRY_INFO!O28=\"Not required\",COUNTRY_INFO!O28=0),0,IF(INTRO!$E$39=\"Non-endemic\",IF(AND($E28<>0,$I28=\"\"),IF($F28=0,COUNTRY_INFO!O28*$E28,COUNTRY_INFO!O28*($E28-$D28)),IF(AND($E28<>0,$I28<>0),IF($F28=0,COUNTRY_INFO!O28*$I28,COUNTRY_INFO!O28*($I28-$D28)),0)),IF($I28=\"\",COUNTRY_INFO!O28*$E28,COUNTRY_INFO!O28*$I28)))","v":7408},{"$f":"MAX(0,IF(OR(COUNTRY_INFO!P28=\"Unknown\",COUNTRY_INFO!P28=\"Surveillance\",COUNTRY_INFO!P28=\"Not required\",COUNTRY_INFO!P28=0),0,IF($E28<>0,IF($D28=0,COUNTRY_INFO!P28*$E28,COUNTRY_INFO!P28*$E28-($F28*COUNTRY_INFO!$P28/(COUNTRY_INFO!$F28+COUNTRY_INFO!$G28)+IF($G28=\" \",0,COUNTRY_INFO!$P28/(COUNTRY_INFO!$F28+COUNTRY_INFO!$G28)*$G28*$H28))),0)))","v":16538},null,{"$f":"MAX(0,IF(OR(COUNTRY_INFO!Q28=\"Unknown\",COUNTRY_INFO!Q28=\"Surveillance\",COUNTRY_INFO!Q28=\"Not required\",COUNTRY_INFO!Q28=0),0,IF($E28<>0,IF($D28=0,COUNTRY_INFO!Q28*MIN($E28,$L28),COUNTRY_INFO!Q28*MIN($E28,$L28)-($F28*COUNTRY_INFO!$Q28/(COUNTRY_INFO!$F28+COUNTRY_INFO!$G28)+IF($G28=\" \",0,COUNTRY_INFO!$Q28/(COUNTRY_INFO!$F28+COUNTRY_INFO!$G28)*$G28*$H28))),0)))","v":17587},41533,0,null,0,16538,null,16538,0,null,0,null," "]
[{"$f":"IF(AND(INTRO!$E$37=\"Non-endemic\",INTRO!$E$41=\"Non-endemic\"),\" \",IF(COUNTRY_INFO!A29=0,\" \",COUNTRY_INFO!A29))","v":"Gabon"},{"$f":"IF(AND(INTRO!$E$37=\"Non-endemic\",INTRO!$E$41=\"Non-endemic\"),\" \",IF(COUNTRY_INFO!B29=0,\" \",COUNTRY_INFO!B29))","v":"Moyen Ogooué"},{"$f":"IF(AND(INTRO!$E$37=\"Non-endemic\",INTRO!$E$41=\"Non-endemic\"),\" \",IF(COUNTRY_INFO!C29=0,\" \",COUNTRY_INFO!C29))","v":"Abanga -Bigné"},{"$f":"IF(AND(INTRO!$E$37=\"Non-endemic\",INTRO!$E$41=\"Non-endemic\"),0,COUNTRY_INFO!W29)","v":1},{"$f":"IF(AND(INTRO!$E$37=\"Non-endemic\",INTRO!$E$41=\"Non-endemic\"),0,COUNTRY_INFO!Y29)","v":1},{"$f":"IF($D29=1,IVM!G29,0)","v":1964},15381,2,null,{"$f":"IF(OR(COUNTRY_INFO!O29=\"Unknown\",COUNTRY_INFO!O29=\"Surveillance\",COUNTRY_INFO!O29=\"Not required\",COUNTRY_INFO!O29=0),0,IF(INTRO!$E$39=\"Non-endemic\",IF(AND($E29<>0,$I29=\"\"),IF($F29=0,COUNTRY_INFO!O29*$E29,COUNTRY_INFO!O29*($E29-$D29)),IF(AND($E29<>0,$I29<>0),IF($F29=0,COUNTRY_INFO!O29*$I29,COUNTRY_INFO!O29*($I29-$D29)),0)),IF($I29=\"\",COUNTRY_INFO!O29*$E29,COUNTRY_INFO!O29*$I29)))","v":2086},{"$f":"MAX(0,IF(OR(COUNTRY_INFO!P29=\"Unknown\",COUNTRY_INFO!P29=\"Surveillance\",COUNTRY_INFO!P29=\"Not required\",COUNTRY_INFO!P29=0),0,IF($E29<>0,IF($D29=0,COUNTRY_INFO!P29*$E29,COUNTRY_INFO!P29*$E29-($F29*COUNTRY_INFO!$P29/(COUNTRY_INFO!$F29+COUNTRY_INFO!$G29)+IF($G29=\" \",0,COUNTRY_INFO!$P29/(COUNTRY_INFO!$F29+COUNTRY_INFO!$G29)*$G29*$H29))),0)))","v":0},null,{"$f":"MAX(0,IF(OR(COUNTRY_INFO!Q29=\"Unknown\",COUNTRY_INFO!Q29=\"Surveillance\",COUNTRY_INFO!Q29=\"Not required\",COUNTRY_INFO!Q29=0),0,IF($E29<>0,IF($D29=0,COUNTRY_INFO!Q29*MIN($E29,$L29),COUNTRY_INFO!Q29*MIN($E29,$L29)-($F29*COUNTRY_INFO!$Q29/(COUNTRY_INFO!$F29+COUNTRY_INFO!$G29)+IF($G29=\" \",0,COUNTRY_INFO!$Q29/(COUNTRY_INFO!$F29+COUNTRY_INFO!$G29)*$G29*$H29))),0)))","v":0},2086,32726,null,32726,0,null,0,0,null,0]
[{"$f":"IF(AND(INTRO!$E$37=\"Non-endemic\",INTRO!$E$41=\"Non-endemic\"),\" \",IF(COUNTRY_INFO!A30=0,\" \",COUNTRY_INFO!A30))","v":"Gabon"},{"$f":"IF(AND(INTRO!$E$37=\"Non-endemic\",INTRO!$E$41=\"Non-endemic\"),\" \",IF(COUNTRY_INFO!B30=0,\" \",COUNTRY_INFO!B30))","v":"Ngounié"},{"$f":"IF(AND(INTRO!$E$37=\"Non-endemic\",INTRO!$E$41=\"Non-endemic\"),\" \",IF(COUNTRY_INFO!C30=0,\" \",COUNTRY_INFO!C30))","v":"Tsamba -Magotsi"},{"$f":"IF(AND(INTRO!$E$37=\"Non-endemic\",INTRO!$E$41=\"Non-endemic\"),0,COUNTRY_INFO!W30)","v":0},{"$f":"IF(AND(INTRO!$E$37=\"Non-endemic\",INTRO!$E$41=\"Non-endemic\"),0,COUNTRY_INFO!Y30)","v":1},{"$f":"IF($D30=1,IVM!G30,0)","v":0},{"$f":"IF($D30=0, \" \", IF(COUNTRY_INFO!$H30=1, IF(COUNTRY_INFO!$L30=1, 0,\" \"),\" \"))","v":" "},null,null,{"$f":"IF(OR(COUNTRY_INFO!O30=\"Unknown\",COUNTRY_INFO!O30=\"Surveillance\",COUNTRY_INFO!O30=\"Not required\",COUNTRY_INFO!O30=0),0,IF(INTRO!$E$39=\"Non-endemic\",IF(AND($E30<>0,$I30=\"\"),IF($F30=0,COUNTRY_INFO!O30*$E30,COUNTRY_INFO!O30*($E30-$D30)),IF(AND($E30<>0,$I30<>0),IF($F30=0,COUNTRY_INFO!O30*$I30,COUNTRY_INFO!O30*($I30-$D30)),0)),IF($I30=\"\",COUNTRY_INFO!O30*$E30,COUNTRY_INFO!O30*$I30)))","v":1786},{"$f":"MAX(0,IF(OR(COUNTRY_INFO!P30=\"Unknown\",COUNTRY_INFO!P30=\"Surveillance\",COUNTRY_INFO!P30=\"Not required\",COUNTRY_INFO!P30=0),0,IF($E30<>0,IF($D30=0,COUNTRY_INFO!P30*$E30,COUNTRY_INFO!P30*$E30-($F30*COUNTRY_INFO!$P30/(COUNTRY_INFO!$F30+COUNTRY_INFO!$G30)+IF($G30=\" \",0,COUNTRY_INFO!$P30/(COUNTRY_INFO!$F30+COUNTRY_INFO!$G30)*$G30*$H30))),0)))","v":3988},null,{"$f":"MAX(0,IF(OR(COUNTRY_INFO!Q30=\"Unknown\",COUNTRY_INFO!Q30=\"Surveillance\",COUNTRY_INFO!Q30=\"Not required\",COUNTRY_INFO!Q30=0),0,IF($E30<>0,IF($D30=0,COUNTRY_INFO!Q30*MIN($E30,$L30),COUNTRY_INFO!Q30*MIN($E30,$L30)-($F30*COUNTRY_INFO!$Q30/(COUNTRY_INFO!$F30+COUNTRY_INFO!$G30)+IF($G30=\" \",0,COUNTRY_INFO!$Q30/(COUNTRY_INFO!$F30+COUNTRY_INFO!$G30)*$G30*$H30))),0)))","v":4241},10015,0,null,0,3988,null,3988,0,null,0,null," "]
[{"$f":"IF(AND(INTRO!$E$37=\"Non-endemic\",INTRO!$E$41=\"Non-endemic\"),\" \",IF(COUNTRY_INFO!A31=0,\" \",COUNTRY_INFO!A31))","v":"Gabon"},{"$f":"IF(AND(INTRO!$E$37=\"Non-endemic\",INTRO!$E$41=\"Non-endemic\"),\" \",IF(COUNTRY_INFO!B31=0,\" \",COUNTRY_INFO!B31))","v":"Ngounié"},{"$f":"IF(AND(INTRO!$E$37=\"Non-endemic\",INTRO!$E$41=\"Non-endemic\"),\" \",IF(COUNTRY_INFO!C31=0,\" \",COUNTRY_INFO!C31))","v":"Louetsi-Wano"},{"$f":"IF(AND(INTRO!$E$37=\"Non-endemic\",INTRO!$E$41=\"Non-endemic\"),0,COUNTRY_INFO!W31)","v":1},{"$f":"IF(AND(INTRO!$E$37=\"Non-endemic\",INTRO!$E$41=\"Non-endemic\"),0,COUNTRY_INFO!Y31)","v":2},{"$f":"IF($D31=1,IVM!G31,0)","v":684},10050,2,null,{"$f":"IF(OR(COUNTRY_INFO!O31=\"Unknown\",COUNTRY_INFO!O31=\"Surveillance\",COUNTRY_INFO!O31=\"Not required\",COUNTRY_INFO!O31=0),0,IF(INTRO!$E$39=\"Non-endemic\",IF(AND($E31<>0,$I31=\"\"),IF($F31=0,COUNTRY_INFO!O31*$E31,COUNTRY_INFO!O31*($E31-$D31)),IF(AND($E31<>0,$I31<>0),IF($F31=0,COUNTRY_INFO!O31*$I31,COUNTRY_INFO!O31*($I31-$D31)),0)),IF($I31=\"\",COUNTRY_INFO!O31*$E31,COUNTRY_INFO!O31*$I31)))","v":2582},{"$f":"MAX(0,IF(OR(COUNTRY_INFO!P31=\"Unknown\",COUNTRY_INFO!P31=\"Surveillance\",COUNTRY_INFO!P31=\"Not required\",COUNTRY_INFO!P31=0),0,IF($E31<>0,IF($D31=0,COUNTRY_INFO!P31*$E31,COUNTRY_INFO!P31*$E31-($F31*COUNTRY_INFO!$P31/(COUNTRY_INFO!$F31+COUNTRY_INFO!$G31)+IF($G31=\" \",0,COUNTRY_INFO!$P31/(COUNTRY_INFO!$F31+COUNTRY_INFO!$G31)*$G31*$H31))),0)))","v":183.58524315259911},null,{"$f":"MAX(0,IF(OR(COUNTRY_INFO!Q31=\"Unknown\",COUNTRY_INFO!Q31=\"Surveillance\",COUNTRY_INFO!Q31=\"Not required\",COUNTRY_INFO!Q31=0),0,IF($E31<>0,IF($D31=0,COUNTRY_INFO!Q31*MIN($E31,$L31),COUNTRY_INFO!Q31*MIN($E31,$L31)-($F31*COUNTRY_INFO!$Q31/(COUNTRY_INFO!$F31+COUNTRY_INFO!$G31)+IF($G31=\" \",0,COUNTRY_INFO!$Q31/(COUNTRY_INFO!$F31+COUNTRY_INFO!$G31)*$G31*$H31))),0)))","v":195.24650642817141},2961,20784,null,20784,184,null,184,0,null,0]
[{"$f":"IF(AND(INTRO!$E$37=\"Non-endemic\",INTRO!$E$41=\"Non-endemic\"),\" \",IF(COUNTRY_INFO!A32=0,\" \",COUNTRY_INFO!A32))","v":"Gabon"},{"$f":"IF(AND(INTRO!$E$37=\"Non-endemic\",INTRO!$E$41=\"Non-endemic\"),\" \",IF(COUNTRY_INFO!B32=0,\" \",COUNTRY_INFO!B32))","v":"Ngounié"},{"$f":"IF(AND(INTRO!$E$37=\"Non-endemic\",INTRO!$E$41=\"Non-endemic\"),\" \",IF(COUNTRY_INFO!C32=0,\" \",COUNTRY_INFO!C32))","v":"Louetsi-Bibaka"},{"$f":"IF(AND(INTRO!$E$37=\"Non-endemic\",INTRO!$E$41=\"Non-endemic\"),0,COUNTRY_INFO!W32)","v":1},{"$f":"IF(AND(INTRO!$E$37=\"Non-endemic\",INTRO!$E$41=\"Non-endemic\"),0,COUNTRY_INFO!Y32)","v":2},{"$f":"IF($D32=1,IVM!G32,0)","v":159},2345,2,null,{"$f":"IF(OR(COUNTRY_INFO!O32=\"Unknown\",COUNTRY_INFO!O32=\"Surveillance\",COUNTRY_INFO!O32=\"Not required\",COUNTRY_INFO!O32=0),0,IF(INTRO!$E$39=\"Non-endemic\",IF(AND($E32<>0,$I32=\"\"),IF($F32=0,COUNTRY_INFO!O32*$E32,COUNTRY_INFO!O32*($E32-$D32)),IF(AND($E32<>0,$I32<>0),IF($F32=0,COUNTRY_INFO!O32*$I32,COUNTRY_INFO!O32*($I32-$D32)),0)),IF($I32=\"\",COUNTRY_INFO!O32*$E32,COUNTRY_INFO!O32*$I32)))","v":602},{"$f":"MAX(0,IF(OR(COUNTRY_INFO!P32=\"Unknown\",COUNTRY_INFO!P32=\"Surveillance\",COUNTRY_INFO!P32=\"Not required\",COUNTRY_INFO!P32=0),0,IF($E32<>0,IF($D32=0,COUNTRY_INFO!P32*$E32,COUNTRY_INFO!P32*$E32-($F32*COUNTRY_INFO!$P32/(COUNTRY_INFO!$F32+COUNTRY_INFO!$G32)+IF($G32=\" \",0,COUNTRY_INFO!$P32/(COUNTRY_INFO!$F32+COUNTRY_INFO!$G32)*$G32*$H32))),0)))","v":42.67092651757207},null,{"$f":"MAX(0,IF(OR(COUNTRY_INFO!Q32=\"Unknown\",COUNTRY_INFO!Q32=\"Surveillance\",COUNTRY_INFO!Q32=\"Not required\",COUNTRY_INFO!Q32=0),0,IF($E32<>0,IF($D32=0,COUNTRY_INFO!Q32*MIN($E32,$L32),COUNTRY_INFO!Q32*MIN($E32,$L32)-($F32*COUNTRY_INFO!$Q32/(COUNTRY_INFO!$F32+COUNTRY_INFO!$G32)+IF($G32=\" \",0,COUNTRY_INFO!$Q32/(COUNTRY_INFO!$F32+COUNTRY_INFO!$G32)*$G32*$H32))),0)))","v":45.401357827475977},690,4849,null,4849,43,null,43,0,null,0]
[{"$f":"IF(AND(INTRO!$E$37=\"Non-endemic\",INTRO!$E$41=\"Non-endemic\"),\" \",IF(COUNTRY_INFO!A33=0,\" \",COUNTRY_INFO!A33))","v":"Gabon"},{"$f":"IF(AND(INTRO!$E$37=\"Non-endemic\",INTRO!$E$41=\"Non-endemic\"),\" \",IF(COUNTRY_INFO!B33=0,\" \",COUNTRY_INFO!B33))","v":"Ngounié"},{"$f":"IF(AND(INTRO!$E$37=\"Non-endemic\",INTRO!$E$41=\"Non-endemic\"),\" \",IF(COUNTRY_INFO!C33=0,\" \",COUNTRY_INFO!C33))","v":"Ndolou"},{"$f":"IF(AND(INTRO!$E$37=\"Non-endemic\",INTRO!$E$41=\"Non-endemic\"),0,COUNTRY_INFO!W33)","v":1},{"$f":"IF(AND(INTRO!$E$37=\"Non-endemic\",INTRO!$E$41=\"Non-endemic\"),0,COUNTRY_INFO!Y33)","v":1},{"$f":"IF($D33=1,IVM!G33,0)","v":374},5500,2,null,{"$f":"IF(OR(COUNTRY_INFO!O33=\"Unknown\",COUNTRY_INFO!O33=\"Surveillance\",COUNTRY_INFO!O33=\"Not required\",COUNTRY_INFO!O33=0),0,IF(INTRO!$E$39=\"Non-endemic\",IF(AND($E33<>0,$I33=\"\"),IF($F33=0,COUNTRY_INFO!O33*$E33,COUNTRY_INFO!O33*($E33-$D33)),IF(AND($E33<>0,$I33<>0),IF($F33=0,COUNTRY_INFO!O33*$I33,COUNTRY_INFO!O33*($I33-$D33)),0)),IF($I33=\"\",COUNTRY_INFO!O33*$E33,COUNTRY_INFO!O33*$I33)))","v":706},{"$f":"MAX(0,IF(OR(COUNTRY_INFO!P33=\"Unknown\",COUNTRY_INFO!P33=\"Surveillance\",COUNTRY_INFO!P33=\"Not required\",COUNTRY_INFO!P33=0),0,IF($E33<>0,IF($D33=0,COUNTRY_INFO!P33*$E33,COUNTRY_INFO!P33*$E33-($F33*COUNTRY_INFO!$P33/(COUNTRY_INFO!$F33+COUNTRY_INFO!$G33)+IF($G33=\" \",0,COUNTRY_INFO!$P33/(COUNTRY_INFO!$F33+COUNTRY_INFO!$G33)*$G33*$H33))),0)))","v":0},null,{"$f":"MAX(0,IF(OR(COUNTRY_INFO!Q33=\"Unknown\",COUNTRY_INFO!Q33=\"Surveillance\",COUNTRY_INFO!Q33=\"Not required\",COUNTRY_INFO!Q33=0),0,IF($E33<>0,IF($D33=0,COUNTRY_INFO!Q33*MIN($E33,$L33),COUNTRY_INFO!Q33*MIN($E33,$L33)-($F33*COUNTRY_INFO!$Q33/(COUNTRY_INFO!$F33+COUNTRY_INFO!$G33)+IF($G33=\" \",0,COUNTRY_INFO!$Q33/(COUNTRY_INFO!$F33+COUNTRY_INFO!$G33)*$G33*$H33))),0)))","v":0},706,11374,null,11374,0,null,0,0,null,0]
[{"$f":"IF(AND(INTRO!$E$37=\"Non-endemic\",INTRO!$E$41=\"Non-endemic\"),\" \",IF(COUNTRY_INFO!A34=0,\" \",COUNTRY_INFO!A34))","v":"Gabon"},{"$f":"IF(AND(INTRO!$E$37=\"Non-endemic\",INTRO!$E$41=\"Non-endemic\"),\" \",IF(COUNTRY_INFO!B34=0,\" \",COUNTRY_INFO!B34))","v":"Ngounié"},{"$f":"IF(AND(INTRO!$E$37=\"Non-endemic\",INTRO!$E$41=\"Non-endemic\"),\" \",IF(COUNTRY_INFO!C34=0,\" \",COUNTRY_INFO!C34))","v":"Boumi-Louetsi"},{"$f":"IF(AND(INTRO!$E$37=\"Non-endemic\",INTRO!$E$41=\"Non-endemic\"),0,COUNTRY_INFO!W34)","v":1},{"$f":"IF(AND(INTRO!$E$37=\"Non-endemic\",INTRO!$E$41=\"Non-endemic\"),0,COUNTRY_INFO!Y34)","v":2},{"$f":"IF($D34=1,IVM!G34,0)","v":963},14169,2,null,{"$f":"IF(OR(COUNTRY_INFO!O34=\"Unknown\",COUNTRY_INFO!O34=\"Surveillance\",COUNTRY_INFO!O34=\"Not required\",COUNTRY_INFO!O34=0),0,IF(INTRO!$E$39=\"Non-endemic\",IF(AND($E34<>0,$I34=\"\"),IF($F34=0,COUNTRY_INFO!O34*$E34,COUNTRY_INFO!O34*($E34-$D34)),IF(AND($E34<>0,$I34<>0),IF($F34=0,COUNTRY_INFO!O34*$I34,COUNTRY_INFO!O34*($I34-$D34)),0)),IF($I34=\"\",COUNTRY_INFO!O34*$E34,COUNTRY_INFO!O34*$I34)))","v":3638},{"$f":"MAX(0,IF(OR(COUNTRY_INFO!P34=\"Unknown\",COUNTRY_INFO!P34=\"Surveillance\",COUNTRY_INFO!P34=\"Not required\",COUNTRY_INFO!P34=0),0,IF($E34<>0,IF($D34=0,COUNTRY_INFO!P34*$E34,COUNTRY_INFO!P34*$E34-($F34*COUNTRY_INFO!$P34/(COUNTRY_INFO!$F34+COUNTRY_INFO!$G34)+IF($G34=\" \",0,COUNTRY_INFO!$P34/(COUNTRY_INFO!$F34+COUNTRY_INFO!$G34)*$G34*$H34))),0)))","v":258.50555114988128},null,{"$f":"MAX(0,IF(OR(COUNTRY_INFO!Q34=\"Unknown\",COUNTRY_INFO!Q34=\"Surveillance\",COUNTRY_INFO!Q34=\"Not required\",COUNTRY_INFO!Q34=0),0,IF($E34<>0,IF($D34=0,COUNTRY_INFO!Q34*MIN($E34,$L34),COUNTRY_INFO!Q34*MIN($E34,$L34)-($F34*COUNTRY_INFO!$Q34/(COUNTRY_INFO!$F34+COUNTRY_INFO!$G34)+IF($G34=\" \",0,COUNTRY_INFO!$Q34/(COUNTRY_INFO!$F34+COUNTRY_INFO!$G34)*$G34*$H34))),0)))","v":274.92466296589919},4172,29301,null,29301,259,null,259,0,null,0]
[{"$f":"IF(AND(INTRO!$E$37=\"Non-endemic\",INTRO!$E$41=\"Non-endemic\"),\" \",IF(COUNTRY_INFO!A35=0,\" \",COUNTRY_INFO!A35))","v":"Gabon"},{"$f":"IF(AND(INTRO!$E$37=\"Non-endemic\",INTRO!$E$41=\"Non-endemic\"),\" \",IF(COUNTRY_INFO!B35=0,\" \",COUNTRY_INFO!B35))","v":"Ngounié"},{"$f":"IF(AND(INTRO!$E$37=\"Non-endemic\",INTRO!$E$41=\"Non-endemic\"),\" \",IF(COUNTRY_INFO!C35=0,\" \",COUNTRY_INFO!C35))","v":"Ogoulou"},{"$f":"IF(AND(INTRO!$E$37=\"Non-endemic\",INTRO!$E$41=\"Non-endemic\"),0,COUNTRY_INFO!W35)","v":1},{"$f":"IF(AND(INTRO!$E$37=\"Non-endemic\",INTRO!$E$41=\"Non-endemic\"),0,COUNTRY_INFO!Y35)","v":2},{"$f":"IF($D35=1,IVM!G35,0)","v":521},7663,2,null,{"$f":"IF(OR(COUNTRY_INFO!O35=\"Unknown\",COUNTRY_INFO!O35=\"Surveillance\",COUNTRY_INFO!O35=\"Not required\",COUNTRY_INFO!O35=0),0,IF(INTRO!$E$39=\"Non-endemic\",IF(AND($E35<>0,$I35=\"\"),IF($F35=0,COUNTRY_INFO!O35*$E35,COUNTRY_INFO!O35*($E35-$D35)),IF(AND($E35<>0,$I35<>0),IF($F35=0,COUNTRY_INFO!O35*$I35,COUNTRY_INFO!O35*($I35-$D35)),0)),IF($I35=\"\",COUNTRY_INFO!O35*$E35,COUNTRY_INFO!O35*$I35)))","v":1968},{"$f":"MAX(0,IF(OR(COUNTRY_INFO!P35=\"Unknown\",COUNTRY_INFO!P35=\"Surveillance\",COUNTRY_INFO!P35=\"Not required\",COUNTRY_INFO!P35=0),0,IF($E35<>0,IF($D35=0,COUNTRY_INFO!P35*$E35,COUNTRY_INFO!P35*$E35-($F35*COUNTRY_INFO!$P35/(COUNTRY_INFO!$F35+COUNTRY_INFO!$G35)+IF($G35=\" \",0,COUNTRY_INFO!$P35/(COUNTRY_INFO!$F35+COUNTRY_INFO!$G35)*$G35*$H35))),0)))","v":139.8627810361686},null,{"$f":"MAX(0,IF(OR(COUNTRY_INFO!Q35=\"Unknown\",COUNTRY_INFO!Q35=\"Surveillance\",COUNTRY_INFO!Q35=\"Not required\",COUNTRY_INFO!Q35=0),0,IF($E35<>0,IF($D35=0,COUNTRY_INFO!Q35*MIN($E35,$L35),COUNTRY_INFO!Q35*MIN($E35,$L35)-($F35*COUNTRY_INFO!$Q35/(COUNTRY_INFO!$F35+COUNTRY_INFO!$G35)+IF($G35=\" \",0,COUNTRY_INFO!$Q35/(COUNTRY_INFO!$F35+COUNTRY_INFO!$G35)*$G35*$H35))),0)))","v":148.71163245356729},2257,15847,null,15847,140,null,140,0,null,0]
[{"$f":"IF(AND(INTRO!$E$37=\"Non-endemic\",INTRO!$E$41=\"Non-endemic\"),\" \",IF(COUNTRY_INFO!A36=0,\" \",COUNTRY_INFO!A36))","v":"Gabon"},{"$f":"IF(AND(INTRO!$E$37=\"Non-endemic\",INTRO!$E$41=\"Non-endemic\"),\" \",IF(COUNTRY_INFO!B36=0,\" \",COUNTRY_INFO!B36))","v":"Ngounié"},{"$f":"IF(AND(INTRO!$E$37=\"Non-endemic\",INTRO!$E$41=\"Non-endemic\"),\" \",IF(COUNTRY_INFO!C36=0,\" \",COUNTRY_INFO!C36))","v":"Douya-Onoye"},{"$f":"IF(AND(INTRO!$E$37=\"Non-endemic\",INTRO!$E$41=\"Non-endemic\"),0,COUNTRY_INFO!W36)","v":1},{"$f":"IF(AND(INTRO!$E$37=\"Non-endemic\",INTRO!$E$41=\"Non-endemic\"),0,COUNTRY_INFO!Y36)","v":1},{"$f":"IF($D36=1,IVM!G36,0)","v":2210},32489,2,null,{"$f":"IF(OR(COUNTRY_INFO!O36=\"Unknown\",COUNTRY_INFO!O36=\"Surveillance\",COUNTRY_INFO!O36=\"Not required\",COUNTRY_INFO!O36=0),0,IF(INTRO!$E$39=\"Non-endemic\",IF(AND($E36<>0,$I36=\"\"),IF($F36=0,COUNTRY_INFO!O36*$E36,COUNTRY_INFO!O36*($E36-$D36)),IF(AND($E36<>0,$I36<>0),IF($F36=0,COUNTRY_INFO!O36*$I36,COUNTRY_INFO!O36*($I36-$D36)),0)),IF($I36=\"\",COUNTRY_INFO!O36*$E36,COUNTRY_INFO!O36*$I36)))","v":4172},{"$f":"MAX(0,IF(OR(COUNTRY_INFO!P36=\"Unknown\",COUNTRY_INFO!P36=\"Surveillance\",COUNTRY_INFO!P36=\"Not required\",COUNTRY_INFO!P36=0),0,IF($E36<>0,IF($D36=0,COUNTRY_INFO!P36*$E36,COUNTRY_INFO!P36*$E36-($F36*COUNTRY_INFO!$P36/(COUNTRY_INFO!$F36+COUNTRY_INFO!$G36)+IF($G36=\" \",0,COUNTRY_INFO!$P36/(COUNTRY_INFO!$F36+COUNTRY_INFO!$G36)*$G36*$H36))),0)))","v":0},null,{"$f":"MAX(0,IF(OR(COUNTRY_INFO!Q36=\"Unknown\",COUNTRY_INFO!Q36=\"Surveillance\",COUNTRY_INFO!Q36=\"Not required\",COUNTRY_INFO!Q36=0),0,IF($E36<>0,IF($D36=0,COUNTRY_INFO!Q36*MIN($E36,$L36),COUNTRY_INFO!Q36*MIN($E36,$L36)-($F36*COUNTRY_INFO!$Q36/(COUNTRY_INFO!$F36+COUNTRY_INFO!$G36)+IF($G36=\" \",0,COUNTRY_INFO!$Q36/(COUNTRY_INFO!$F36+COUNTRY_INFO!$G36)*$G36*$H36))),0)))","v":0},4172,67188,null,67188,0,null,0,0,null,0]
[{"$f":"IF(AND(INTRO!$E$37=\"Non-endemic\",INTRO!$E$41=\"Non-endemic\"),\" \",IF(COUNTRY_INFO!A37=0,\" \",COUNTRY_INFO!A37))","v":"Gabon"},{"$f":"IF(AND(INTRO!$E$37=\"Non-endemic\",INTRO!$E$41=\"Non-endemic\"),\" \",IF(COUNTRY_INFO!B37=0,\" \",COUNTRY_INFO!B37))","v":"Ngounié"},{"$f":"IF(AND(INTRO!$E$37=\"Non-endemic\",INTRO!$E$41=\"Non-endemic\"),\" \",IF(COUNTRY_INFO!C37=0,\" \",COUNTRY_INFO!C37))","v":"Dola"},{"$f":"IF(AND(INTRO!$E$37=\"Non-endemic\",INTRO!$E$41=\"Non-endemic\"),0,COUNTRY_INFO!W37)","v":0},{"$f":"IF(AND(INTRO!$E$37=\"Non-endemic\",INTRO!$E$41=\"Non-endemic\"),0,COUNTRY_INFO!Y37)","v":1},{"$f":"IF($D37=1,IVM!G37,0)","v":0},{"$f":"IF($D37=0, \" \", IF(COUNTRY_INFO!$H37=1, IF(COUNTRY_INFO!$L37=1, 0,\" \"),\" \"))","v":" "},null,null,{"$f":"IF(OR(COUNTRY_INFO!O37=\"Unknown\",COUNTRY_INFO!O37=\"Surveillance\",COUNTRY_INFO!O37=\"Not required\",COUNTRY_INFO!O37=0),0,IF(INTRO!$E$39=\"Non-endemic\",IF(AND($E37<>0,$I37=\"\"),IF($F37=0,COUNTRY_INFO!O37*$E37,COUNTRY_INFO!O37*($E37-$D37)),IF(AND($E37<>0,$I37<>0),IF($F37=0,COUNTRY_INFO!O37*$I37,COUNTRY_INFO!O37*($I37-$D37)),0)),IF($I37=\"\",COUNTRY_INFO!O37*$E37,COUNTRY_INFO!O37*$I37)))","v":1050},{"$f":"MAX(0,IF(OR(COUNTRY_INFO!P37=\"Unknown\",COUNTRY_INFO!P37=\"Surveillance\",COUNTRY_INFO!P37=\"Not required\",COUNTRY_INFO!P37=0),0,IF($E37<>0,IF($D37=0,COUNTRY_INFO!P37*$E37,COUNTRY_INFO!P37*$E37-($F37*COUNTRY_INFO!$P37/(COUNTRY_INFO!$F37+COUNTRY_INFO!$G37)+IF($G37=\" \",0,COUNTRY_INFO!$P37/(COUNTRY_INFO!$F37+COUNTRY_INFO!$G37)*$G37*$H37))),0)))","v":2345},null,{"$f":"MAX(0,IF(OR(COUNTRY_INFO!Q37=\"Unknown\",COUNTRY_INFO!Q37=\"Surveillance\",COUNTRY_INFO!Q37=\"Not required\",COUNTRY_INFO!Q37=0),0,IF($E37<>0,IF($D37=0,COUNTRY_INFO!Q37*MIN($E37,$L37),COUNTRY_INFO!Q37*MIN($E37,$L37)-($F37*COUNTRY_INFO!$Q37/(COUNTRY_INFO!$F37+COUNTRY_INFO!$G37)+IF($G37=\" \",0,COUNTRY_INFO!$Q37/(COUNTRY_INFO!$F37+COUNTRY_INFO!$G37)*$G37*$H37))),0)))","v":2493},5888,0,null,0,2345,null,2345,0,null,0,null," "]
[{"$f":"IF(AND(INTRO!$E$37=\"Non-endemic\",INTRO!$E$41=\"Non-endemic\"),\" \",IF(COUNTRY_INFO!A38=0,\" \",COUNTRY_INFO!A38))","v":"Gabon"},{"$f":"IF(AND(INTRO!$E$37=\"Non-endemic\",INTRO!$E$41=\"Non-endemic\"),\" \",IF(COUNTRY_INFO!B38=0,\" \",COUNTRY_INFO!B38))","v":"Ngounié"},{"$f":"IF(AND(INTRO!$E$37=\"Non-endemic\",INTRO!$E$41=\"Non-endemic\"),\" \",IF(COUNTRY_INFO!C38=0,\" \",COUNTRY_INFO!C38))","v":"Mougalaba"},{"$f":"IF(AND(INTRO!$E$37=\"Non-endemic\",INTRO!$E$41=\"Non-endemic\"),0,COUNTRY_INFO!W38)","v":1},{"$f":"IF(AND(INTRO!$E$37=\"Non-endemic\",INTRO!$E$41=\"Non-endemic\"),0,COUNTRY_INFO!Y38)","v":2},{"$f":"IF($D38=1,IVM!G38,0)","v":71},1055,2,null,{"$f":"IF(OR(COUNTRY_INFO!O38=\"Unknown\",COUNTRY_INFO!O38=\"Surveillance\",COUNTRY_INFO!O38=\"Not required\",COUNTRY_INFO!O38=0),0,IF(INTRO!$E$39=\"Non-endemic\",IF(AND($E38<>0,$I38=\"\"),IF($F38=0,COUNTRY_INFO!O38*$E38,COUNTRY_INFO!O38*($E38-$D38)),IF(AND($E38<>0,$I38<>0),IF($F38=0,COUNTRY_INFO!O38*$I38,COUNTRY_INFO!O38*($I38-$D38)),0)),IF($I38=\"\",COUNTRY_INFO!O38*$E38,COUNTRY_INFO!O38*$I38)))","v":270},{"$f":"MAX(0,IF(OR(COUNTRY_INFO!P38=\"Unknown\",COUNTRY_INFO!P38=\"Surveillance\",COUNTRY_INFO!P38=\"Not required\",COUNTRY_INFO!P38=0),0,IF($E38<>0,IF($D38=0,COUNTRY_INFO!P38*$E38,COUNTRY_INFO!P38*$E38-($F38*COUNTRY_INFO!$P38/(COUNTRY_INFO!$F38+COUNTRY_INFO!$G38)+IF($G38=\" \",0,COUNTRY_INFO!$P38/(COUNTRY_INFO!$F38+COUNTRY_INFO!$G38)*$G38*$H38))),0)))","v":19.042628774422724},null,{"$f":"MAX(0,IF(OR(COUNTRY_INFO!Q38=\"Unknown\",COUNTRY_INFO!Q38=\"Surveillance\",COUNTRY_INFO!Q38=\"Not required\",COUNTRY_INFO!Q38=0),0,IF($E38<>0,IF($D38=0,COUNTRY_INFO!Q38*MIN($E38,$L38),COUNTRY_INFO!Q38*MIN($E38,$L38)-($F38*COUNTRY_INFO!$Q38/(COUNTRY_INFO!$F38+COUNTRY_INFO!$G38)+IF($G38=\" \",0,COUNTRY_INFO!$Q38/(COUNTRY_INFO!$F38+COUNTRY_INFO!$G38)*$G38*$H38))),0)))","v":20.303730017762064},309,2181,null,2181,19,null,19,0,null,0]
[{"$f":"IF(AND(INTRO!$E$37=\"Non-endemic\",INTRO!$E$41=\"Non-endemic\"),\" \",IF(COUNTRY_INFO!A39=0,\" \",COUNTRY_INFO!A39))","v":"Gabon"},{"$f":"IF(AND(INTRO!$E$37=\"Non-endemic\",INTRO!$E$41=\"Non-endemic\"),\" \",IF(COUNTRY_INFO!B39=0,\" \",COUNTRY_INFO!B39))","v":"Nyanga"},{"$f":"IF(AND(INTRO!$E$37=\"Non-endemic\",INTRO!$E$41=\"Non-endemic\"),\" \",IF(COUNTRY_INFO!C39=0,\" \",COUNTRY_INFO!C39))","v":"Doutsila"},{"$f":"IF(AND(INTRO!$E$37=\"Non-endemic\",INTRO!$E$41=\"Non-endemic\"),0,COUNTRY_INFO!W39)","v":0},{"$f":"IF(AND(INTRO!$E$37=\"Non-endemic\",INTRO!$E$41=\"Non-endemic\"),0,COUNTRY_INFO!Y39)","v":2},{"$f":"IF($D39=1,IVM!G39,0)","v":0},{"$f":"IF($D39=0, \" \", IF(COUNTRY_INFO!$H39=1, IF(COUNTRY_INFO!$L39=1, 0,\" \"),\" \"))","v":" "},null,null,{"$f":"IF(OR(COUNTRY_INFO!O39=\"Unknown\",COUNTRY_INFO!O39=\"Surveillance\",COUNTRY_INFO!O39=\"Not required\",COUNTRY_INFO!O39=0),0,IF(INTRO!$E$39=\"Non-endemic\",IF(AND($E39<>0,$I39=\"\"),IF($F39=0,COUNTRY_INFO!O39*$E39,COUNTRY_INFO!O39*($E39-$D39)),IF(AND($E39<>0,$I39<>0),IF($F39=0,COUNTRY_INFO!O39*$I39,COUNTRY_INFO!O39*($I39-$D39)),0)),IF($I39=\"\",COUNTRY_INFO!O39*$E39,COUNTRY_INFO!O39*$I39)))","v":760},{"$f":"MAX(0,IF(OR(COUNTRY_INFO!P39=\"Unknown\",COUNTRY_INFO!P39=\"Surveillance\",COUNTRY_INFO!P39=\"Not required\",COUNTRY_INFO!P39=0),0,IF($E39<>0,IF($D39=0,COUNTRY_INFO!P39*$E39,COUNTRY_INFO!P39*$E39-($F39*COUNTRY_INFO!$P39/(COUNTRY_INFO!$F39+COUNTRY_INFO!$G39)+IF($G39=\" \",0,COUNTRY_INFO!$P39/(COUNTRY_INFO!$F39+COUNTRY_INFO!$G39)*$G39*$H39))),0)))","v":1698},null,{"$f":"MAX(0,IF(OR(COUNTRY_INFO!Q39=\"Unknown\",COUNTRY_INFO!Q39=\"Surveillance\",COUNTRY_INFO!Q39=\"Not required\",COUNTRY_INFO!Q39=0),0,IF($E39<>0,IF($D39=0,COUNTRY_INFO!Q39*MIN($E39,$L39),COUNTRY_INFO!Q39*MIN($E39,$L39)-($F39*COUNTRY_INFO!$Q39/(COUNTRY_INFO!$F39+COUNTRY_INFO!$G39)+IF($G39=\" \",0,COUNTRY_INFO!$Q39/(COUNTRY_INFO!$F39+COUNTRY_INFO!$G39)*$G39*$H39))),0)))","v":1806},4264,0,null,0,1698,null,1698,0,null,0,null," "]
[{"$f":"IF(AND(INTRO!$E$37=\"Non-endemic\",INTRO!$E$41=\"Non-endemic\"),\" \",IF(COUNTRY_INFO!A40=0,\" \",COUNTRY_INFO!A40))","v":"Gabon"},{"$f":"IF(AND(INTRO!$E$37=\"Non-endemic\",INTRO!$E$41=\"Non-endemic\"),\" \",IF(COUNTRY_INFO!B40=0,\" \",COUNTRY_INFO!B40))","v":"Nyanga"},{"$f":"IF(AND(INTRO!$E$37=\"Non-endemic\",INTRO!$E$41=\"Non-endemic\"),\" \",IF(COUNTRY_INFO!C40=0,\" \",COUNTRY_INFO!C40))","v":"Basse-Banio"},{"$f":"IF(AND(INTRO!$E$37=\"Non-endemic\",INTRO!$E$41=\"Non-endemic\"),0,COUNTRY_INFO!W40)","v":1},{"$f":"IF(AND(INTRO!$E$37=\"Non-endemic\",INTRO!$E$41=\"Non-endemic\"),0,COUNTRY_INFO!Y40)","v":1},{"$f":"IF($D40=1,IVM!G40,0)","v":420},6592,2,null,{"$f":"IF(OR(COUNTRY_INFO!O40=\"Unknown\",COUNTRY_INFO!O40=\"Surveillance\",COUNTRY_INFO!O40=\"Not required\",COUNTRY_INFO!O40=0),0,IF(INTRO!$E$39=\"Non-endemic\",IF(AND($E40<>0,$I40=\"\"),IF($F40=0,COUNTRY_INFO!O40*$E40,COUNTRY_INFO!O40*($E40-$D40)),IF(AND($E40<>0,$I40<>0),IF($F40=0,COUNTRY_INFO!O40*$I40,COUNTRY_INFO!O40*($I40-$D40)),0)),IF($I40=\"\",COUNTRY_INFO!O40*$E40,COUNTRY_INFO!O40*$I40)))","v":843},{"$f":"MAX(0,IF(OR(COUNTRY_INFO!P40=\"Unknown\",COUNTRY_INFO!P40=\"Surveillance\",COUNTRY_INFO!P40=\"Not required\",COUNTRY_INFO!P40=0),0,IF($E40<>0,IF($D40=0,COUNTRY_INFO!P40*$E40,COUNTRY_INFO!P40*$E40-($F40*COUNTRY_INFO!$P40/(COUNTRY_INFO!$F40+COUNTRY_INFO!$G40)+IF($G40=\" \",0,COUNTRY_INFO!$P40/(COUNTRY_INFO!$F40+COUNTRY_INFO!$G40)*$G40*$H40))),0)))","v":0},null,{"$f":"MAX(0,IF(OR(COUNTRY_INFO!Q40=\"Unknown\",COUNTRY_INFO!Q40=\"Surveillance\",COUNTRY_INFO!Q40=\"Not required\",COUNTRY_INFO!Q40=0),0,IF($E40<>0,IF($D40=0,COUNTRY_INFO!Q40*MIN($E40,$L40),COUNTRY_INFO!Q40*MIN($E40,$L40)-($F40*COUNTRY_INFO!$Q40/(COUNTRY_INFO!$F40+COUNTRY_INFO!$G40)+IF($G40=\" \",0,COUNTRY_INFO!$Q40/(COUNTRY_INFO!$F40+COUNTRY_INFO!$G40)*$G40*$H40))),0)))","v":0},843,13604,null,13604,0,null,0,0,null,0]
[{"$f":"IF(AND(INTRO!$E$37=\"Non-endemic\",INTRO!$E$41=\"Non-endemic\"),\" \",IF(COUNTRY_INFO!A41=0,\" \",COUNTRY_INFO!A41))","v":"Gabon"},{"$f":"IF(AND(INTRO!$E$37=\"Non-endemic\",INTRO!$E$41=\"Non-endemic\"),\" \",IF(COUNTRY_INFO!B41=0,\" \",COUNTRY_INFO!B41))","v":"Nyanga"},{"$f":"IF(AND(INTRO!$E$37=\"Non-endemic\",INTRO!$E$41=\"Non-endemic\"),\" \",IF(COUNTRY_INFO!C41=0,\" \",COUNTRY_INFO!C41))","v":"Douigny"},{"$f":"IF(AND(INTRO!$E$37=\"Non-endemic\",INTRO!$E$41=\"Non-endemic\"),0,COUNTRY_INFO!W41)","v":0},{"$f":"IF(AND(INTRO!$E$37=\"Non-endemic\",INTRO!$E$41=\"Non-endemic\"),0,COUNTRY_INFO!Y41)","v":2},{"$f":"IF($D41=1,IVM!G41,0)","v":0},{"$f":"IF($D41=0, \" \", IF(COUNTRY_INFO!$H41=1, IF(COUNTRY_INFO!$L41=1, 0,\" \"),\" \"))","v":" "},null,null,{"$f":"IF(OR(COUNTRY_INFO!O41=\"Unknown\",COUNTRY_INFO!O41=\"Surveillance\",COUNTRY_INFO!O41=\"Not required\",COUNTRY_INFO!O41=0),0,IF(INTRO!$E$39=\"Non-endemic\",IF(AND($E41<>0,$I41=\"\"),IF($F41=0,COUNTRY_INFO!O41*$E41,COUNTRY_INFO!O41*($E41-$D41)),IF(AND($E41<>0,$I41<>0),IF($F41=0,COUNTRY_INFO!O41*$I41,COUNTRY_INFO!O41*($I41-$D41)),0)),IF($I41=\"\",COUNTRY_INFO!O41*$E41,COUNTRY_INFO!O41*$I41)))","v":1314},{"$f":"MAX(0,IF(OR(COUNTRY_INFO!P41=\"Unknown\",COUNTRY_INFO!P41=\"Surveillance\",COUNTRY_INFO!P41=\"Not required\",COUNTRY_INFO!P41=0),0,IF($E41<>0,IF($D41=0,COUNTRY_INFO!P41*$E41,COUNTRY_INFO!P41*$E41-($F41*COUNTRY_INFO!$P41/(COUNTRY_INFO!$F41+COUNTRY_INFO!$G41)+IF($G41=\" \",0,COUNTRY_INFO!$P41/(COUNTRY_INFO!$F41+COUNTRY_INFO!$G41)*$G41*$H41))),0)))","v":2934},null,{"$f":"MAX(0,IF(OR(COUNTRY_INFO!Q41=\"Unknown\",COUNTRY_INFO!Q41=\"Surveillance\",COUNTRY_INFO!Q41=\"Not required\",COUNTRY_INFO!Q41=0),0,IF($E41<>0,IF($D41=0,COUNTRY_INFO!Q41*MIN($E41,$L41),COUNTRY_INFO!Q41*MIN($E41,$L41)-($F41*COUNTRY_INFO!$Q41/(COUNTRY_INFO!$F41+COUNTRY_INFO!$G41)+IF($G41=\" \",0,COUNTRY_INFO!$Q41/(COUNTRY_INFO!$F41+COUNTRY_INFO!$G41)*$G41*$H41))),0)))","v":3120},7368,0,null,0,2934,null,2934,0,null,0,null," "]
[{"$f":"IF(AND(INTRO!$E$37=\"Non-endemic\",INTRO!$E$41=\"Non-endemic\"),\" \",IF(COUNTRY_INFO!A42=0,\" \",COUNTRY_INFO!A42))","v":"Gabon"},{"$f":"IF(AND(INTRO!$E$37=\"Non-endemic\",INTRO!$E$41=\"Non-endemic\"),\" \",IF(COUNTRY_INFO!B42=0,\" \",COUNTRY_INFO!B42))","v":"Nyanga"},{"$f":"IF(AND(INTRO!$E$37=\"Non-endemic\",INTRO!$E$41=\"Non-endemic\"),\" \",IF(COUNTRY_INFO!C42=0,\" \",COUNTRY_INFO!C42))","v":"Mongo"},{"$f":"IF(AND(INTRO!$E$37=\"Non-endemic\",INTRO!$E$41=\"Non-endemic\"),0,COUNTRY_INFO!W42)","v":0},{"$f":"IF(AND(INTRO!$E$37=\"Non-endemic\",INTRO!$E$41=\"Non-endemic\"),0,COUNTRY_INFO!Y42)","v":1},{"$f":"IF($D42=1,IVM!G42,0)","v":0},{"$f":"IF($D42=0, \" \", IF(COUNTRY_INFO!$H42=1, IF(COUNTRY_INFO!$L42=1, 0,\" \"),\" \"))","v":" "},null,null,{"$f":"IF(OR(COUNTRY_INFO!O42=\"Unknown\",COUNTRY_INFO!O42=\"Surveillance\",COUNTRY_INFO!O42=\"Not required\",COUNTRY_INFO!O42=0),0,IF(INTRO!$E$39=\"Non-endemic\",IF(AND($E42<>0,$I42=\"\"),IF($F42=0,COUNTRY_INFO!O42*$E42,COUNTRY_INFO!O42*($E42-$D42)),IF(AND($E42<>0,$I42<>0),IF($F42=0,COUNTRY_INFO!O42*$I42,COUNTRY_INFO!O42*($I42-$D42)),0)),IF($I42=\"\",COUNTRY_INFO!O42*$E42,COUNTRY_INFO!O42*$I42)))","v":430},{"$f":"MAX(0,IF(OR(COUNTRY_INFO!P42=\"Unknown\",COUNTRY_INFO!P42=\"Surveillance\",COUNTRY_INFO!P42=\"Not required\",COUNTRY_INFO!P42=0),0,IF($E42<>0,IF($D42=0,COUNTRY_INFO!P42*$E42,COUNTRY_INFO!P42*$E42-($F42*COUNTRY_INFO!$P42/(COUNTRY_INFO!$F42+COUNTRY_INFO!$G42)+IF($G42=\" \",0,COUNTRY_INFO!$P42/(COUNTRY_INFO!$F42+COUNTRY_INFO!$G42)*$G42*$H42))),0)))","v":959},null,{"$f":"MAX(0,IF(OR(COUNTRY_INFO!Q42=\"Unknown\",COUNTRY_INFO!Q42=\"Surveillance\",COUNTRY_INFO!Q42=\"Not required\",COUNTRY_INFO!Q42=0),0,IF($E42<>0,IF($D42=0,COUNTRY_INFO!Q42*MIN($E42,$L42),COUNTRY_INFO!Q42*MIN($E42,$L42)-($F42*COUNTRY_INFO!$Q42/(COUNTRY_INFO!$F42+COUNTRY_INFO!$G42)+IF($G42=\" \",0,COUNTRY_INFO!$Q42/(COUNTRY_INFO!$F42+COUNTRY_INFO!$G42)*$G42*$H42))),0)))","v":1020},2409,0,null,0,959,null,959,0,null,0,null," "]
[{"$f":"IF(AND(INTRO!$E$37=\"Non-endemic\",INTRO!$E$41=\"Non-endemic\"),\" \",IF(COUNTRY_INFO!A43=0,\" \",COUNTRY_INFO!A43))","v":"Gabon"},{"$f":"IF(AND(INTRO!$E$37=\"Non-endemic\",INTRO!$E$41=\"Non-endemic\"),\" \",IF(COUNTRY_INFO!B43=0,\" \",COUNTRY_INFO!B43))","v":"Nyanga"},{"$f":"IF(AND(INTRO!$E$37=\"Non-endemic\",INTRO!$E$41=\"Non-endemic\"),\" \",IF(COUNTRY_INFO!C43=0,\" \",COUNTRY_INFO!C43))","v":"Haute-Banio"},{"$f":"IF(AND(INTRO!$E$37=\"Non-endemic\",INTRO!$E$41=\"Non-endemic\"),0,COUNTRY_INFO!W43)","v":0},{"$f":"IF(AND(INTRO!$E$37=\"Non-endemic\",INTRO!$E$41=\"Non-endemic\"),0,COUNTRY_INFO!Y43)","v":2},{"$f":"IF($D43=1,IVM!G43,0)","v":0},{"$f":"IF($D43=0, \" \", IF(COUNTRY_INFO!$H43=1, IF(COUNTRY_INFO!$L43=1, 0,\" \"),\" \"))","v":" "},null,null,{"$f":"IF(OR(COUNTRY_INFO!O43=\"Unknown\",COUNTRY_INFO!O43=\"Surveillance\",COUNTRY_INFO!O43=\"Not required\",COUNTRY_INFO!O43=0),0,IF(INTRO!$E$39=\"Non-endemic\",IF(AND($E43<>0,$I43=\"\"),IF($F43=0,COUNTRY_INFO!O43*$E43,COUNTRY_INFO!O43*($E43-$D43)),IF(AND($E43<>0,$I43<>0),IF($F43=0,COUNTRY_INFO!O43*$I43,COUNTRY_INFO!O43*($I43-$D43)),0)),IF($I43=\"\",COUNTRY_INFO!O43*$E43,COUNTRY_INFO!O43*$I43)))","v":432},{"$f":"MAX(0,IF(OR(COUNTRY_INFO!P43=\"Unknown\",COUNTRY_INFO!P43=\"Surveillance\",COUNTRY_INFO!P43=\"Not required\",COUNTRY_INFO!P43=0),0,IF($E43<>0,IF($D43=0,COUNTRY_INFO!P43*$E43,COUNTRY_INFO!P43*$E43-($F43*COUNTRY_INFO!$P43/(COUNTRY_INFO!$F43+COUNTRY_INFO!$G43)+IF($G43=\" \",0,COUNTRY_INFO!$P43/(COUNTRY_INFO!$F43+COUNTRY_INFO!$G43)*$G43*$H43))),0)))","v":966},null,{"$f":"MAX(0,IF(OR(COUNTRY_INFO!Q43=\"Unknown\",COUNTRY_INFO!Q43=\"Surveillance\",COUNTRY_INFO!Q43=\"Not required\",COUNTRY_INFO!Q43=0),0,IF($E43<>0,IF($D43=0,COUNTRY_INFO!Q43*MIN($E43,$L43),COUNTRY_INFO!Q43*MIN($E43,$L43)-($F43*COUNTRY_INFO!$Q43/(COUNTRY_INFO!$F43+COUNTRY_INFO!$G43)+IF($G43=\" \",0,COUNTRY_INFO!$Q43/(COUNTRY_INFO!$F43+COUNTRY_INFO!$G43)*$G43*$H43))),0)))","v":1026},2424,0,null,0,966,null,966,0,null,0,null," "]
[{"$f":"IF(AND(INTRO!$E$37=\"Non-endemic\",INTRO!$E$41=\"Non-endemic\"),\" \",IF(COUNTRY_INFO!A44=0,\" \",COUNTRY_INFO!A44))","v":"Gabon"},{"$f":"IF(AND(INTRO!$E$37=\"Non-endemic\",INTRO!$E$41=\"Non-endemic\"),\" \",IF(COUNTRY_INFO!B44=0,\" \",COUNTRY_INFO!B44))","v":"Nyanga"},{"$f":"IF(AND(INTRO!$E$37=\"Non-endemic\",INTRO!$E$41=\"Non-endemic\"),\" \",IF(COUNTRY_INFO!C44=0,\" \",COUNTRY_INFO!C44))","v":"Mougoutsi"},{"$f":"IF(AND(INTRO!$E$37=\"Non-endemic\",INTRO!$E$41=\"Non-endemic\"),0,COUNTRY_INFO!W44)","v":0},{"$f":"IF(AND(INTRO!$E$37=\"Non-endemic\",INTRO!$E$41=\"Non-endemic\"),0,COUNTRY_INFO!Y44)","v":1},{"$f":"IF($D44=1,IVM!G44,0)","v":0},{"$f":"IF($D44=0, \" \", IF(COUNTRY_INFO!$H44=1, IF(COUNTRY_INFO!$L44=1, 0,\" \"),\" \"))","v":" "},null,null,{"$f":"IF(OR(COUNTRY_INFO!O44=\"Unknown\",COUNTRY_INFO!O44=\"Surveillance\",COUNTRY_INFO!O44=\"Not required\",COUNTRY_INFO!O44=0),0,IF(INTRO!$E$39=\"Non-endemic\",IF(AND($E44<>0,$I44=\"\"),IF($F44=0,COUNTRY_INFO!O44*$E44,COUNTRY_INFO!O44*($E44-$D44)),IF(AND($E44<>0,$I44<>0),IF($F44=0,COUNTRY_INFO!O44*$I44,COUNTRY_INFO!O44*($I44-$D44)),0)),IF($I44=\"\",COUNTRY_INFO!O44*$E44,COUNTRY_INFO!O44*$I44)))","v":3643},{"$f":"MAX(0,IF(OR(COUNTRY_INFO!P44=\"Unknown\",COUNTRY_INFO!P44=\"Surveillance\",COUNTRY_INFO!P44=\"Not required\",COUNTRY_INFO!P44=0),0,IF($E44<>0,IF($D44=0,COUNTRY_INFO!P44*$E44,COUNTRY_INFO!P44*$E44-($F44*COUNTRY_INFO!$P44/(COUNTRY_INFO!$F44+COUNTRY_INFO!$G44)+IF($G44=\" \",0,COUNTRY_INFO!$P44/(COUNTRY_INFO!$F44+COUNTRY_INFO!$G44)*$G44*$H44))),0)))","v":8133},null,{"$f":"MAX(0,IF(OR(COUNTRY_INFO!Q44=\"Unknown\",COUNTRY_INFO!Q44=\"Surveillance\",COUNTRY_INFO!Q44=\"Not required\",COUNTRY_INFO!Q44=0),0,IF($E44<>0,IF($D44=0,COUNTRY_INFO!Q44*MIN($E44,$L44),COUNTRY_INFO!Q44*MIN($E44,$L44)-($F44*COUNTRY_INFO!$Q44/(COUNTRY_INFO!$F44+COUNTRY_INFO!$G44)+IF($G44=\" \",0,COUNTRY_INFO!$Q44/(COUNTRY_INFO!$F44+COUNTRY_INFO!$G44)*$G44*$H44))),0)))","v":8649},20425,0,null,0,8133,null,8133,0,null,0,null," "]
[{"$f":"IF(AND(INTRO!$E$37=\"Non-endemic\",INTRO!$E$41=\"Non-endemic\"),\" \",IF(COUNTRY_INFO!A45=0,\" \",COUNTRY_INFO!A45))","v":"Gabon"},{"$f":"IF(AND(INTRO!$E$37=\"Non-endemic\",INTRO!$E$41=\"Non-endemic\"),\" \",IF(COUNTRY_INFO!B45=0,\" \",COUNTRY_INFO!B45))","v":"Ogooué-Ivindo"},{"$f":"IF(AND(INTRO!$E$37=\"Non-endemic\",INTRO!$E$41=\"Non-endemic\"),\" \",IF(COUNTRY_INFO!C45=0,\" \",COUNTRY_INFO!C45))","v":"Lopé"},{"$f":"IF(AND(INTRO!$E$37=\"Non-endemic\",INTRO!$E$41=\"Non-endemic\"),0,COUNTRY_INFO!W45)","v":1},{"$f":"IF(AND(INTRO!$E$37=\"Non-endemic\",INTRO!$E$41=\"Non-endemic\"),0,COUNTRY_INFO!Y45)","v":1},{"$f":"IF($D45=1,IVM!G45,0)","v":968},14247,2,null,{"$f":"IF(OR(COUNTRY_INFO!O45=\"Unknown\",COUNTRY_INFO!O45=\"Surveillance\",COUNTRY_INFO!O45=\"Not required\",COUNTRY_INFO!O45=0),0,IF(INTRO!$E$39=\"Non-endemic\",IF(AND($E45<>0,$I45=\"\"),IF($F45=0,COUNTRY_INFO!O45*$E45,COUNTRY_INFO!O45*($E45-$D45)),IF(AND($E45<>0,$I45<>0),IF($F45=0,COUNTRY_INFO!O45*$I45,COUNTRY_INFO!O45*($I45-$D45)),0)),IF($I45=\"\",COUNTRY_INFO!O45*$E45,COUNTRY_INFO!O45*$I45)))","v":1829},{"$f":"MAX(0,IF(OR(COUNTRY_INFO!P45=\"Unknown\",COUNTRY_INFO!P45=\"Surveillance\",COUNTRY_INFO!P45=\"Not required\",COUNTRY_INFO!P45=0),0,IF($E45<>0,IF($D45=0,COUNTRY_INFO!P45*$E45,COUNTRY_INFO!P45*$E45-($F45*COUNTRY_INFO!$P45/(COUNTRY_INFO!$F45+COUNTRY_INFO!$G45)+IF($G45=\" \",0,COUNTRY_INFO!$P45/(COUNTRY_INFO!$F45+COUNTRY_INFO!$G45)*$G45*$H45))),0)))","v":0},null,{"$f":"MAX(0,IF(OR(COUNTRY_INFO!Q45=\"Unknown\",COUNTRY_INFO!Q45=\"Surveillance\",COUNTRY_INFO!Q45=\"Not required\",COUNTRY_INFO!Q45=0),0,IF($E45<>0,IF($D45=0,COUNTRY_INFO!Q45*MIN($E45,$L45),COUNTRY_INFO!Q45*MIN($E45,$L45)-($F45*COUNTRY_INFO!$Q45/(COUNTRY_INFO!$F45+COUNTRY_INFO!$G45)+IF($G45=\" \",0,COUNTRY_INFO!$Q45/(COUNTRY_INFO!$F45+COUNTRY_INFO!$G45)*$G45*$H45))),0)))","v":0},1829,29462,null,29462,0,null,0,0,null,0]
[{"$f":"IF(AND(INTRO!$E$37=\"Non-endemic\",INTRO!$E$41=\"Non-endemic\"),\" \",IF(COUNTRY_INFO!A46=0,\" \",COUNTRY_INFO!A46))","v":"Gabon"},{"$f":"IF(AND(INTRO!$E$37=\"Non-endemic\",INTRO!$E$41=\"Non-endemic\"),\" \",IF(COUNTRY_INFO!B46=0,\" \",COUNTRY_INFO!B46))","v":"Ogooué-Ivindo"},{"$f":"IF(AND(INTRO!$E$37=\"Non-endemic\",INTRO!$E$41=\"Non-endemic\"),\" \",IF(COUNTRY_INFO!C46=0,\" \",COUNTRY_INFO!C46))","v":"Ivindo"},{"$f":"IF(AND(INTRO!$E$37=\"Non-endemic\",INTRO!$E$41=\"Non-endemic\"),0,COUNTRY_INFO!W46)","v":1},{"$f":"IF(AND(INTRO!$E$37=\"Non-endemic\",INTRO!$E$41=\"Non-endemic\"),0,COUNTRY_INFO!Y46)","v":1},{"$f":"IF($D46=1,IVM!G46,0)","v":2133},31368,2,null,{"$f":"IF(OR(COUNTRY_INFO!O46=\"Unknown\",COUNTRY_INFO!O46=\"Surveillance\",COUNTRY_INFO!O46=\"Not required\",COUNTRY_INFO!O46=0),0,IF(INTRO!$E$39=\"Non-endemic\",IF(AND($E46<>0,$I46=\"\"),IF($F46=0,COUNTRY_INFO!O46*$E46,COUNTRY_INFO!O46*($E46-$D46)),IF(AND($E46<>0,$I46<>0),IF($F46=0,COUNTRY_INFO!O46*$I46,COUNTRY_INFO!O46*($I46-$D46)),0)),IF($I46=\"\",COUNTRY_INFO!O46*$E46,COUNTRY_INFO!O46*$I46)))","v":4028},{"$f":"MAX(0,IF(OR(COUNTRY_INFO!P46=\"Unknown\",COUNTRY_INFO!P46=\"Surveillance\",COUNTRY_INFO!P46=\"Not required\",COUNTRY_INFO!P46=0),0,IF($E46<>0,IF($D46=0,COUNTRY_INFO!P46*$E46,COUNTRY_INFO!P46*$E46-($F46*COUNTRY_INFO!$P46/(COUNTRY_INFO!$F46+COUNTRY_INFO!$G46)+IF($G46=\" \",0,COUNTRY_INFO!$P46/(COUNTRY_INFO!$F46+COUNTRY_INFO!$G46)*$G46*$H46))),0)))","v":0},null,{"$f":"MAX(0,IF(OR(COUNTRY_INFO!Q46=\"Unknown\",COUNTRY_INFO!Q46=\"Surveillance\",COUNTRY_INFO!Q46=\"Not required\",COUNTRY_INFO!Q46=0),0,IF($E46<>0,IF($D46=0,COUNTRY_INFO!Q46*MIN($E46,$L46),COUNTRY_INFO!Q46*MIN($E46,$L46)-($F46*COUNTRY_INFO!$Q46/(COUNTRY_INFO!$F46+COUNTRY_INFO!$G46)+IF($G46=\" \",0,COUNTRY_INFO!$Q46/(COUNTRY_INFO!$F46+COUNTRY_INFO!$G46)*$G46*$H46))),0)))","v":0},4028,64869,null,64869,0,null,0,0,null,0]
[{"$f":"IF(AND(INTRO!$E$37=\"Non-endemic\",INTRO!$E$41=\"Non-endemic\"),\" \",IF(COUNTRY_INFO!A47=0,\" \",COUNTRY_INFO!A47))","v":"Gabon"},{"$f":"IF(AND(INTRO!$E$37=\"Non-endemic\",INTRO!$E$41=\"Non-endemic\"),\" \",IF(COUNTRY_INFO!B47=0,\" \",COUNTRY_INFO!B47))","v":"Ogooué-Ivindo"},{"$f":"IF(AND(INTRO!$E$37=\"Non-endemic\",INTRO!$E$41=\"Non-endemic\"),\" \",IF(COUNTRY_INFO!C47=0,\" \",COUNTRY_INFO!C47))","v":"Zadié"},{"$f":"IF(AND(INTRO!$E$37=\"Non-endemic\",INTRO!$E$41=\"Non-endemic\"),0,COUNTRY_INFO!W47)","v":1},{"$f":"IF(AND(INTRO!$E$37=\"Non-endemic\",INTRO!$E$41=\"Non-endemic\"),0,COUNTRY_INFO!Y47)","v":2},{"$f":"IF($D47=1,IVM!G47,0)","v":880},12945,2,null,{"$f":"IF(OR(COUNTRY_INFO!O47=\"Unknown\",COUNTRY_INFO!O47=\"Surveillance\",COUNTRY_INFO!O47=\"Not required\",COUNTRY_INFO!O47=0),0,IF(INTRO!$E$39=\"Non-endemic\",IF(AND($E47<>0,$I47=\"\"),IF($F47=0,COUNTRY_INFO!O47*$E47,COUNTRY_INFO!O47*($E47-$D47)),IF(AND($E47<>0,$I47<>0),IF($F47=0,COUNTRY_INFO!O47*$I47,COUNTRY_INFO!O47*($I47-$D47)),0)),IF($I47=\"\",COUNTRY_INFO!O47*$E47,COUNTRY_INFO!O47*$I47)))","v":3324},{"$f":"MAX(0,IF(OR(COUNTRY_INFO!P47=\"Unknown\",COUNTRY_INFO!P47=\"Surveillance\",COUNTRY_INFO!P47=\"Not required\",COUNTRY_INFO!P47=0),0,IF($E47<>0,IF($D47=0,COUNTRY_INFO!P47*$E47,COUNTRY_INFO!P47*$E47-($F47*COUNTRY_INFO!$P47/(COUNTRY_INFO!$F47+COUNTRY_INFO!$G47)+IF($G47=\" \",0,COUNTRY_INFO!$P47/(COUNTRY_INFO!$F47+COUNTRY_INFO!$G47)*$G47*$H47))),0)))","v":236.21555153707141},null,{"$f":"MAX(0,IF(OR(COUNTRY_INFO!Q47=\"Unknown\",COUNTRY_INFO!Q47=\"Surveillance\",COUNTRY_INFO!Q47=\"Not required\",COUNTRY_INFO!Q47=0),0,IF($E47<>0,IF($D47=0,COUNTRY_INFO!Q47*MIN($E47,$L47),COUNTRY_INFO!Q47*MIN($E47,$L47)-($F47*COUNTRY_INFO!$Q47/(COUNTRY_INFO!$F47+COUNTRY_INFO!$G47)+IF($G47=\" \",0,COUNTRY_INFO!$Q47/(COUNTRY_INFO!$F47+COUNTRY_INFO!$G47)*$G47*$H47))),0)))","v":251.23761301989089},3811,26770,null,26770,236,null,236,0,null,0]
[{"$f":"IF(AND(INTRO!$E$37=\"Non-endemic\",INTRO!$E$41=\"Non-endemic\"),\" \",IF(COUNTRY_INFO!A48=0,\" \",COUNTRY_INFO!A48))","v":"Gabon"},{"$f":"IF(AND(INTRO!$E$37=\"Non-endemic\",INTRO!$E$41=\"Non-endemic\"),\" \",IF(COUNTRY_INFO!B48=0,\" \",COUNTRY_INFO!B48))","v":"Ogooué-Ivindo"},{"$f":"IF(AND(INTRO!$E$37=\"Non-endemic\",INTRO!$E$41=\"Non-endemic\"),\" \",IF(COUNTRY_INFO!C48=0,\" \",COUNTRY_INFO!C48))","v":"Mvoung"},{"$f":"IF(AND(INTRO!$E$37=\"Non-endemic\",INTRO!$E$41=\"Non-endemic\"),0,COUNTRY_INFO!W48)","v":1},{"$f":"IF(AND(INTRO!$E$37=\"Non-endemic\",INTRO!$E$41=\"Non-endemic\"),0,COUNTRY_INFO!Y48)","v":2},{"$f":"IF($D48=1,IVM!G48,0)","v":277},4066,2,null,{"$f":"IF(OR(COUNTRY_INFO!O48=\"Unknown\",COUNTRY_INFO!O48=\"Surveillance\",COUNTRY_INFO!O48=\"Not required\",COUNTRY_INFO!O48=0),0,IF(INTRO!$E$39=\"Non-endemic\",IF(AND($E48<>0,$I48=\"\"),IF($F48=0,COUNTRY_INFO!O48*$E48,COUNTRY_INFO!O48*($E48-$D48)),IF(AND($E48<>0,$I48<>0),IF($F48=0,COUNTRY_INFO!O48*$I48,COUNTRY_INFO!O48*($I48-$D48)),0)),IF($I48=\"\",COUNTRY_INFO!O48*$E48,COUNTRY_INFO!O48*$I48)))","v":1044},{"$f":"MAX(0,IF(OR(COUNTRY_INFO!P48=\"Unknown\",COUNTRY_INFO!P48=\"Surveillance\",COUNTRY_INFO!P48=\"Not required\",COUNTRY_INFO!P48=0),0,IF($E48<>0,IF($D48=0,COUNTRY_INFO!P48*$E48,COUNTRY_INFO!P48*$E48-($F48*COUNTRY_INFO!$P48/(COUNTRY_INFO!$F48+COUNTRY_INFO!$G48)+IF($G48=\" \",0,COUNTRY_INFO!$P48/(COUNTRY_INFO!$F48+COUNTRY_INFO!$G48)*$G48*$H48))),0)))","v":74.368408933916726},null,{"$f":"MAX(0,IF(OR(COUNTRY_INFO!Q48=\"Unknown\",COUNTRY_INFO!Q48=\"Surveillance\",COUNTRY_INFO!Q48=\"Not required\",COUNTRY_INFO!Q48=0),0,IF($E48<>0,IF($D48=0,COUNTRY_INFO!Q48*MIN($E48,$L48),COUNTRY_INFO!Q48*MIN($E48,$L48)-($F48*COUNTRY_INFO!$Q48/(COUNTRY_INFO!$F48+COUNTRY_INFO!$G48)+IF($G48=\" \",0,COUNTRY_INFO!$Q48/(COUNTRY_INFO!$F48+COUNTRY_INFO!$G48)*$G48*$H48))),0)))","v":79.088187888556604},1197,8409,null,8409,74,null,74,0,null,0]
[{"$f":"IF(AND(INTRO!$E$37=\"Non-endemic\",INTRO!$E$41=\"Non-endemic\"),\" \",IF(COUNTRY_INFO!A49=0,\" \",COUNTRY_INFO!A49))","v":"Gabon"},{"$f":"IF(AND(INTRO!$E$37=\"Non-endemic\",INTRO!$E$41=\"Non-endemic\"),\" \",IF(COUNTRY_INFO!B49=0,\" \",COUNTRY_INFO!B49))","v":"Ogooué-Lolo"},{"$f":"IF(AND(INTRO!$E$37=\"Non-endemic\",INTRO!$E$41=\"Non-endemic\"),\" \",IF(COUNTRY_INFO!C49=0,\" \",COUNTRY_INFO!C49))","v":"Offoué-Onoye"},{"$f":"IF(AND(INTRO!$E$37=\"Non-endemic\",INTRO!$E$41=\"Non-endemic\"),0,COUNTRY_INFO!W49)","v":1},{"$f":"IF(AND(INTRO!$E$37=\"Non-endemic\",INTRO!$E$41=\"Non-endemic\"),0,COUNTRY_INFO!Y49)","v":2},{"$f":"IF($D49=1,IVM!G49,0)","v":227},2855,2,null,{"$f":"IF(OR(COUNTRY_INFO!O49=\"Unknown\",COUNTRY_INFO!O49=\"Surveillance\",COUNTRY_INFO!O49=\"Not required\",COUNTRY_INFO!O49=0),0,IF(INTRO!$E$39=\"Non-endemic\",IF(AND($E49<>0,$I49=\"\"),IF($F49=0,COUNTRY_INFO!O49*$E49,COUNTRY_INFO!O49*($E49-$D49)),IF(AND($E49<>0,$I49<>0),IF($F49=0,COUNTRY_INFO!O49*$I49,COUNTRY_INFO!O49*($I49-$D49)),0)),IF($I49=\"\",COUNTRY_INFO!O49*$E49,COUNTRY_INFO!O49*$I49)))","v":742},{"$f":"MAX(0,IF(OR(COUNTRY_INFO!P49=\"Unknown\",COUNTRY_INFO!P49=\"Surveillance\",COUNTRY_INFO!P49=\"Not required\",COUNTRY_INFO!P49=0),0,IF($E49<>0,IF($D49=0,COUNTRY_INFO!P49*$E49,COUNTRY_INFO!P49*$E49-($F49*COUNTRY_INFO!$P49/(COUNTRY_INFO!$F49+COUNTRY_INFO!$G49)+IF($G49=\" \",0,COUNTRY_INFO!$P49/(COUNTRY_INFO!$F49+COUNTRY_INFO!$G49)*$G49*$H49))),0)))","v":60.911421155094104},null,{"$f":"MAX(0,IF(OR(COUNTRY_INFO!Q49=\"Unknown\",COUNTRY_INFO!Q49=\"Surveillance\",COUNTRY_INFO!Q49=\"Not required\",COUNTRY_INFO!Q49=0),0,IF($E49<>0,IF($D49=0,COUNTRY_INFO!Q49*MIN($E49,$L49),COUNTRY_INFO!Q49*MIN($E49,$L49)-($F49*COUNTRY_INFO!$Q49/(COUNTRY_INFO!$F49+COUNTRY_INFO!$G49)+IF($G49=\" \",0,COUNTRY_INFO!$Q49/(COUNTRY_INFO!$F49+COUNTRY_INFO!$G49)*$G49*$H49))),0)))","v":64.815055158987661},868,5937,null,5937,61,null,61,0,null,0]
[{"$f":"IF(AND(INTRO!$E$37=\"Non-endemic\",INTRO!$E$41=\"Non-endemic\"),\" \",IF(COUNTRY_INFO!A50=0,\" \",COUNTRY_INFO!A50))","v":"Gabon"},{"$f":"IF(AND(INTRO!$E$37=\"Non-endemic\",INTRO!$E$41=\"Non-endemic\"),\" \",IF(COUNTRY_INFO!B50=0,\" \",COUNTRY_INFO!B50))","v":"Ogooué-Lolo"},{"$f":"IF(AND(INTRO!$E$37=\"Non-endemic\",INTRO!$E$41=\"Non-endemic\"),\" \",IF(COUNTRY_INFO!C50=0,\" \",COUNTRY_INFO!C50))","v":"Lolo-Bouenguidi"},{"$f":"IF(AND(INTRO!$E$37=\"Non-endemic\",INTRO!$E$41=\"Non-endemic\"),0,COUNTRY_INFO!W50)","v":1},{"$f":"IF(AND(INTRO!$E$37=\"Non-endemic\",INTRO!$E$41=\"Non-endemic\"),0,COUNTRY_INFO!Y50)","v":1},{"$f":"IF($D50=1,IVM!G50,0)","v":2375},29838,2,null,{"$f":"IF(OR(COUNTRY_INFO!O50=\"Unknown\",COUNTRY_INFO!O50=\"Surveillance\",COUNTRY_INFO!O50=\"Not required\",COUNTRY_INFO!O50=0),0,IF(INTRO!$E$39=\"Non-endemic\",IF(AND($E50<>0,$I50=\"\"),IF($F50=0,COUNTRY_INFO!O50*$E50,COUNTRY_INFO!O50*($E50-$D50)),IF(AND($E50<>0,$I50<>0),IF($F50=0,COUNTRY_INFO!O50*$I50,COUNTRY_INFO!O50*($I50-$D50)),0)),IF($I50=\"\",COUNTRY_INFO!O50*$E50,COUNTRY_INFO!O50*$I50)))","v":3873},{"$f":"MAX(0,IF(OR(COUNTRY_INFO!P50=\"Unknown\",COUNTRY_INFO!P50=\"Surveillance\",COUNTRY_INFO!P50=\"Not required\",COUNTRY_INFO!P50=0),0,IF($E50<>0,IF($D50=0,COUNTRY_INFO!P50*$E50,COUNTRY_INFO!P50*$E50-($F50*COUNTRY_INFO!$P50/(COUNTRY_INFO!$F50+COUNTRY_INFO!$G50)+IF($G50=\" \",0,COUNTRY_INFO!$P50/(COUNTRY_INFO!$F50+COUNTRY_INFO!$G50)*$G50*$H50))),0)))","v":0},null,{"$f":"MAX(0,IF(OR(COUNTRY_INFO!Q50=\"Unknown\",COUNTRY_INFO!Q50=\"Surveillance\",COUNTRY_INFO!Q50=\"Not required\",COUNTRY_INFO!Q50=0),0,IF($E50<>0,IF($D50=0,COUNTRY_INFO!Q50*MIN($E50,$L50),COUNTRY_INFO!Q50*MIN($E50,$L50)-($F50*COUNTRY_INFO!$Q50/(COUNTRY_INFO!$F50+COUNTRY_INFO!$G50)+IF($G50=\" \",0,COUNTRY_INFO!$Q50/(COUNTRY_INFO!$F50+COUNTRY_INFO!$G50)*$G50*$H50))),0)))","v":0},3873,62051,null,62051,0,null,0,0,null,0]
[{"$f":"IF(AND(INTRO!$E$37=\"Non-endemic\",INTRO!$E$41=\"Non-endemic\"),\" \",IF(COUNTRY_INFO!A51=0,\" \",COUNTRY_INFO!A51))","v":"Gabon"},{"$f":"IF(AND(INTRO!$E$37=\"Non-endemic\",INTRO!$E$41=\"Non-endemic\"),\" \",IF(COUNTRY_INFO!B51=0,\" \",COUNTRY_INFO!B51))","v":"Ogooué-Lolo"},{"$f":"IF(AND(INTRO!$E$37=\"Non-endemic\",INTRO!$E$41=\"Non-endemic\"),\" \",IF(COUNTRY_INFO!C51=0,\" \",COUNTRY_INFO!C51))","v":"Mulundu"},{"$f":"IF(AND(INTRO!$E$37=\"Non-endemic\",INTRO!$E$41=\"Non-endemic\"),0,COUNTRY_INFO!W51)","v":1},{"$f":"IF(AND(INTRO!$E$37=\"Non-endemic\",INTRO!$E$41=\"Non-endemic\"),0,COUNTRY_INFO!Y51)","v":1},{"$f":"IF($D51=1,IVM!G51,0)","v":2398},30120,2,null,{"$f":"IF(OR(COUNTRY_INFO!O51=\"Unknown\",COUNTRY_INFO!O51=\"Surveillance\",COUNTRY_INFO!O51=\"Not required\",COUNTRY_INFO!O51=0),0,IF(INTRO!$E$39=\"Non-endemic\",IF(AND($E51<>0,$I51=\"\"),IF($F51=0,COUNTRY_INFO!O51*$E51,COUNTRY_INFO!O51*($E51-$D51)),IF(AND($E51<>0,$I51<>0),IF($F51=0,COUNTRY_INFO!O51*$I51,COUNTRY_INFO!O51*($I51-$D51)),0)),IF($I51=\"\",COUNTRY_INFO!O51*$E51,COUNTRY_INFO!O51*$I51)))","v":3910},{"$f":"MAX(0,IF(OR(COUNTRY_INFO!P51=\"Unknown\",COUNTRY_INFO!P51=\"Surveillance\",COUNTRY_INFO!P51=\"Not required\",COUNTRY_INFO!P51=0),0,IF($E51<>0,IF($D51=0,COUNTRY_INFO!P51*$E51,COUNTRY_INFO!P51*$E51-($F51*COUNTRY_INFO!$P51/(COUNTRY_INFO!$F51+COUNTRY_INFO!$G51)+IF($G51=\" \",0,COUNTRY_INFO!$P51/(COUNTRY_INFO!$F51+COUNTRY_INFO!$G51)*$G51*$H51))),0)))","v":0},null,{"$f":"MAX(0,IF(OR(COUNTRY_INFO!Q51=\"Unknown\",COUNTRY_INFO!Q51=\"Surveillance\",COUNTRY_INFO!Q51=\"Not required\",COUNTRY_INFO!Q51=0),0,IF($E51<>0,IF($D51=0,COUNTRY_INFO!Q51*MIN($E51,$L51),COUNTRY_INFO!Q51*MIN($E51,$L51)-($F51*COUNTRY_INFO!$Q51/(COUNTRY_INFO!$F51+COUNTRY_INFO!$G51)+IF($G51=\" \",0,COUNTRY_INFO!$Q51/(COUNTRY_INFO!$F51+COUNTRY_INFO!$G51)*$G51*$H51))),0)))","v":0},3910,62638,null,62638,0,null,0,0,null,0]
[{"$f":"IF(AND(INTRO!$E$37=\"Non-endemic\",INTRO!$E$41=\"Non-endemic\"),\" \",IF(COUNTRY_INFO!A52=0,\" \",COUNTRY_INFO!A52))","v":"Gabon"},{"$f":"IF(AND(INTRO!$E$37=\"Non-endemic\",INTRO!$E$41=\"Non-endemic\"),\" \",IF(COUNTRY_INFO!B52=0,\" \",COUNTRY_INFO!B52))","v":"Ogooué-Lolo"},{"$f":"IF(AND(INTRO!$E$37=\"Non-endemic\",INTRO!$E$41=\"Non-endemic\"),\" \",IF(COUNTRY_INFO!C52=0,\" \",COUNTRY_INFO!C52))","v":"Lombo-Bouenguidi"},{"$f":"IF(AND(INTRO!$E$37=\"Non-endemic\",INTRO!$E$41=\"Non-endemic\"),0,COUNTRY_INFO!W52)","v":0},{"$f":"IF(AND(INTRO!$E$37=\"Non-endemic\",INTRO!$E$41=\"Non-endemic\"),0,COUNTRY_INFO!Y52)","v":2},{"$f":"IF($D52=1,IVM!G52,0)","v":0},{"$f":"IF($D52=0, \" \", IF(COUNTRY_INFO!$H52=1, IF(COUNTRY_INFO!$L52=1, 0,\" \"),\" \"))","v":" "},null,null,{"$f":"IF(OR(COUNTRY_INFO!O52=\"Unknown\",COUNTRY_INFO!O52=\"Surveillance\",COUNTRY_INFO!O52=\"Not required\",COUNTRY_INFO!O52=0),0,IF(INTRO!$E$39=\"Non-endemic\",IF(AND($E52<>0,$I52=\"\"),IF($F52=0,COUNTRY_INFO!O52*$E52,COUNTRY_INFO!O52*($E52-$D52)),IF(AND($E52<>0,$I52<>0),IF($F52=0,COUNTRY_INFO!O52*$I52,COUNTRY_INFO!O52*($I52-$D52)),0)),IF($I52=\"\",COUNTRY_INFO!O52*$E52,COUNTRY_INFO!O52*$I52)))","v":1022},{"$f":"MAX(0,IF(OR(COUNTRY_INFO!P52=\"Unknown\",COUNTRY_INFO!P52=\"Surveillance\",COUNTRY_INFO!P52=\"Not required\",COUNTRY_INFO!P52=0),0,IF($E52<>0,IF($D52=0,COUNTRY_INFO!P52*$E52,COUNTRY_INFO!P52*$E52-($F52*COUNTRY_INFO!$P52/(COUNTRY_INFO!$F52+COUNTRY_INFO!$G52)+IF($G52=\" \",0,COUNTRY_INFO!$P52/(COUNTRY_INFO!$F52+COUNTRY_INFO!$G52)*$G52*$H52))),0)))","v":2284},null,{"$f":"MAX(0,IF(OR(COUNTRY_INFO!Q52=\"Unknown\",COUNTRY_INFO!Q52=\"Surveillance\",COUNTRY_INFO!Q52=\"Not required\",COUNTRY_INFO!Q52=0),0,IF($E52<>0,IF($D52=0,COUNTRY_INFO!Q52*MIN($E52,$L52),COUNTRY_INFO!Q52*MIN($E52,$L52)-($F52*COUNTRY_INFO!$Q52/(COUNTRY_INFO!$F52+COUNTRY_INFO!$G52)+IF($G52=\" \",0,COUNTRY_INFO!$Q52/(COUNTRY_INFO!$F52+COUNTRY_INFO!$G52)*$G52*$H52))),0)))","v":2428},5734,0,null,0,2284,null,2284,0,null,0,null," "]
[{"$f":"IF(AND(INTRO!$E$37=\"Non-endemic\",INTRO!$E$41=\"Non-endemic\"),\" \",IF(COUNTRY_INFO!A53=0,\" \",COUNTRY_INFO!A53))","v":"Gabon"},{"$f":"IF(AND(INTRO!$E$37=\"Non-endemic\",INTRO!$E$41=\"Non-endemic\"),\" \",IF(COUNTRY_INFO!B53=0,\" \",COUNTRY_INFO!B53))","v":"Ogooué-maritime"},{"$f":"IF(AND(INTRO!$E$37=\"Non-endemic\",INTRO!$E$41=\"Non-endemic\"),\" \",IF(COUNTRY_INFO!C53=0,\" \",COUNTRY_INFO!C53))","v":"Ndougou"},{"$f":"IF(AND(INTRO!$E$37=\"Non-endemic\",INTRO!$E$41=\"Non-endemic\"),0,COUNTRY_INFO!W53)","v":0},{"$f":"IF(AND(INTRO!$E$37=\"Non-endemic\",INTRO!$E$41=\"Non-endemic\"),0,COUNTRY_INFO!Y53)","v":1},{"$f":"IF($D53=1,IVM!G53,0)","v":0},{"$f":"IF($D53=0, \" \", IF(COUNTRY_INFO!$H53=1, IF(COUNTRY_INFO!$L53=1, 0,\" \"),\" \"))","v":" "},null,null,{"$f":"IF(OR(COUNTRY_INFO!O53=\"Unknown\",COUNTRY_INFO!O53=\"Surveillance\",COUNTRY_INFO!O53=\"Not required\",COUNTRY_INFO!O53=0),0,IF(INTRO!$E$39=\"Non-endemic\",IF(AND($E53<>0,$I53=\"\"),IF($F53=0,COUNTRY_INFO!O53*$E53,COUNTRY_INFO!O53*($E53-$D53)),IF(AND($E53<>0,$I53<>0),IF($F53=0,COUNTRY_INFO!O53*$I53,COUNTRY_INFO!O53*($I53-$D53)),0)),IF($I53=\"\",COUNTRY_INFO!O53*$E53,COUNTRY_INFO!O53*$I53)))","v":1379},{"$f":"MAX(0,IF(OR(COUNTRY_INFO!P53=\"Unknown\",COUNTRY_INFO!P53=\"Surveillance\",COUNTRY_INFO!P53=\"Not required\",COUNTRY_INFO!P53=0),0,IF($E53<>0,IF($D53=0,COUNTRY_INFO!P53*$E53,COUNTRY_INFO!P53*$E53-($F53*COUNTRY_INFO!$P53/(COUNTRY_INFO!$F53+COUNTRY_INFO!$G53)+IF($G53=\" \",0,COUNTRY_INFO!$P53/(COUNTRY_INFO!$F53+COUNTRY_INFO!$G53)*$G53*$H53))),0)))","v":3078},null,{"$f":"MAX(0,IF(OR(COUNTRY_INFO!Q53=\"Unknown\",COUNTRY_INFO!Q53=\"Surveillance\",COUNTRY_INFO!Q53=\"Not required\",COUNTRY_INFO!Q53=0),0,IF($E53<>0,IF($D53=0,COUNTRY_INFO!Q53*MIN($E53,$L53),COUNTRY_INFO!Q53*MIN($E53,$L53)-($F53*COUNTRY_INFO!$Q53/(COUNTRY_INFO!$F53+COUNTRY_INFO!$G53)+IF($G53=\" \",0,COUNTRY_INFO!$Q53/(COUNTRY_INFO!$F53+COUNTRY_INFO!$G53)*$G53*$H53))),0)))","v":3273},7730,0,null,0,3078,null,3078,0,null,0,null," "]
[{"$f":"IF(AND(INTRO!$E$37=\"Non-endemic\",INTRO!$E$41=\"Non-endemic\"),\" \",IF(COUNTRY_INFO!A54=0,\" \",COUNTRY_INFO!A54))","v":"Gabon"},{"$f":"IF(AND(INTRO!$E$37=\"Non-endemic\",INTRO!$E$41=\"Non-endemic\"),\" \",IF(COUNTRY_INFO!B54=0,\" \",COUNTRY_INFO!B54))","v":"Ogooué-maritime"},{"$f":"IF(AND(INTRO!$E$37=\"Non-endemic\",INTRO!$E$41=\"Non-endemic\"),\" \",IF(COUNTRY_INFO!C54=0,\" \",COUNTRY_INFO!C54))","v":"Etimboué"},{"$f":"IF(AND(INTRO!$E$37=\"Non-endemic\",INTRO!$E$41=\"Non-endemic\"),0,COUNTRY_INFO!W54)","v":0},{"$f":"IF(AND(INTRO!$E$37=\"Non-endemic\",INTRO!$E$41=\"Non-endemic\"),0,COUNTRY_INFO!Y54)","v":1},{"$f":"IF($D54=1,IVM!G54,0)","v":0},{"$f":"IF($D54=0, \" \", IF(COUNTRY_INFO!$H54=1, IF(COUNTRY_INFO!$L54=1, 0,\" \"),\" \"))","v":" "},null,null,{"$f":"IF(OR(COUNTRY_INFO!O54=\"Unknown\",COUNTRY_INFO!O54=\"Surveillance\",COUNTRY_INFO!O54=\"Not required\",COUNTRY_INFO!O54=0),0,IF(INTRO!$E$39=\"Non-endemic\",IF(AND($E54<>0,$I54=\"\"),IF($F54=0,COUNTRY_INFO!O54*$E54,COUNTRY_INFO!O54*($E54-$D54)),IF(AND($E54<>0,$I54<>0),IF($F54=0,COUNTRY_INFO!O54*$I54,COUNTRY_INFO!O54*($I54-$D54)),0)),IF($I54=\"\",COUNTRY_INFO!O54*$E54,COUNTRY_INFO!O54*$I54)))","v":616},{"$f":"MAX(0,IF(OR(COUNTRY_INFO!P54=\"Unknown\",COUNTRY_INFO!P54=\"Surveillance\",COUNTRY_INFO!P54=\"Not required\",COUNTRY_INFO!P54=0),0,IF($E54<>0,IF($D54=0,COUNTRY_INFO!P54*$E54,COUNTRY_INFO!P54*$E54-($F54*COUNTRY_INFO!$P54/(COUNTRY_INFO!$F54+COUNTRY_INFO!$G54)+IF($G54=\" \",0,COUNTRY_INFO!$P54/(COUNTRY_INFO!$F54+COUNTRY_INFO!$G54)*$G54*$H54))),0)))","v":1374},null,{"$f":"MAX(0,IF(OR(COUNTRY_INFO!Q54=\"Unknown\",COUNTRY_INFO!Q54=\"Surveillance\",COUNTRY_INFO!Q54=\"Not required\",COUNTRY_INFO!Q54=0),0,IF($E54<>0,IF($D54=0,COUNTRY_INFO!Q54*MIN($E54,$L54),COUNTRY_INFO!Q54*MIN($E54,$L54)-($F54*COUNTRY_INFO!$Q54/(COUNTRY_INFO!$F54+COUNTRY_INFO!$G54)+IF($G54=\" \",0,COUNTRY_INFO!$Q54/(COUNTRY_INFO!$F54+COUNTRY_INFO!$G54)*$G54*$H54))),0)))","v":1461},3451,0,null,0,1374,null,1374,0,null,0,null," "]
[{"$f":"IF(AND(INTRO!$E$37=\"Non-endemic\",INTRO!$E$41=\"Non-endemic\"),\" \",IF(COUNTRY_INFO!A55=0,\" \",COUNTRY_INFO!A55))","v":"Gabon"},{"$f":"IF(AND(INTRO!$E$37=\"Non-endemic\",INTRO!$E$41=\"Non-endemic\"),\" \",IF(COUNTRY_INFO!B55=0,\" \",COUNTRY_INFO!B55))","v":"Ogooué-maritime"},{"$f":"IF(AND(INTRO!$E$37=\"Non-endemic\",INTRO!$E$41=\"Non-endemic\"),\" \",IF(COUNTRY_INFO!C55=0,\" \",COUNTRY_INFO!C55))","v":"Bendjé"},{"$f":"IF(AND(INTRO!$E$37=\"Non-endemic\",INTRO!$E$41=\"Non-endemic\"),0,COUNTRY_INFO!W55)","v":0},{"$f":"IF(AND(INTRO!$E$37=\"Non-endemic\",INTRO!$E$41=\"Non-endemic\"),0,COUNTRY_INFO!Y55)","v":0},{"$f":"IF($D55=1,IVM!G55,0)","v":0},{"$f":"IF($D55=0, \" \", IF(COUNTRY_INFO!$H55=1, IF(COUNTRY_INFO!$L55=1, 0,\" \"),\" \"))","v":" "},null,null,{"$f":"IF(OR(COUNTRY_INFO!O55=\"Unknown\",COUNTRY_INFO!O55=\"Surveillance\",COUNTRY_INFO!O55=\"Not required\",COUNTRY_INFO!O55=0),0,IF(INTRO!$E$39=\"Non-endemic\",IF(AND($E55<>0,$I55=\"\"),IF($F55=0,COUNTRY_INFO!O55*$E55,COUNTRY_INFO!O55*($E55-$D55)),IF(AND($E55<>0,$I55<>0),IF($F55=0,COUNTRY_INFO!O55*$I55,COUNTRY_INFO!O55*($I55-$D55)),0)),IF($I55=\"\",COUNTRY_INFO!O55*$E55,COUNTRY_INFO!O55*$I55)))","v":0},{"$f":"MAX(0,IF(OR(COUNTRY_INFO!P55=\"Unknown\",COUNTRY_INFO!P55=\"Surveillance\",COUNTRY_INFO!P55=\"Not required\",COUNTRY_INFO!P55=0),0,IF($E55<>0,IF($D55=0,COUNTRY_INFO!P55*$E55,COUNTRY_INFO!P55*$E55-($F55*COUNTRY_INFO!$P55/(COUNTRY_INFO!$F55+COUNTRY_INFO!$G55)+IF($G55=\" \",0,COUNTRY_INFO!$P55/(COUNTRY_INFO!$F55+COUNTRY_INFO!$G55)*$G55*$H55))),0)))","v":0},null,{"$f":"MAX(0,IF(OR(COUNTRY_INFO!Q55=\"Unknown\",COUNTRY_INFO!Q55=\"Surveillance\",COUNTRY_INFO!Q55=\"Not required\",COUNTRY_INFO!Q55=0),0,IF($E55<>0,IF($D55=0,COUNTRY_INFO!Q55*MIN($E55,$L55),COUNTRY_INFO!Q55*MIN($E55,$L55)-($F55*COUNTRY_INFO!$Q55/(COUNTRY_INFO!$F55+COUNTRY_INFO!$G55)+IF($G55=\" \",0,COUNTRY_INFO!$Q55/(COUNTRY_INFO!$F55+COUNTRY_INFO!$G55)*$G55*$H55))),0)))","v":0},0,0,null,0,0,null,0,0,null,0,null," "]
[{"$f":"IF(AND(INTRO!$E$37=\"Non-endemic\",INTRO!$E$41=\"Non-endemic\"),\" \",IF(COUNTRY_INFO!A56=0,\" \",COUNTRY_INFO!A56))","v":"Gabon"},{"$f":"IF(AND(INTRO!$E$37=\"Non-endemic\",INTRO!$E$41=\"Non-endemic\"),\" \",IF(COUNTRY_INFO!B56=0,\" \",COUNTRY_INFO!B56))","v":"Woleu-Ntem"},{"$f":"IF(AND(INTRO!$E$37=\"Non-endemic\",INTRO!$E$41=\"Non-endemic\"),\" \",IF(COUNTRY_INFO!C56=0,\" \",COUNTRY_INFO!C56))","v":"Ntem"},{"$f":"IF(AND(INTRO!$E$37=\"Non-endemic\",INTRO!$E$41=\"Non-endemic\"),0,COUNTRY_INFO!W56)","v":0},{"$f":"IF(AND(INTRO!$E$37=\"Non-endemic\",INTRO!$E$41=\"Non-endemic\"),0,COUNTRY_INFO!Y56)","v":2},{"$f":"IF($D56=1,IVM!G56,0)","v":0},{"$f":"IF($D56=0, \" \", IF(COUNTRY_INFO!$H56=1, IF(COUNTRY_INFO!$L56=1, 0,\" \"),\" \"))","v":" "},null,null,{"$f":"IF(OR(COUNTRY_INFO!O56=\"Unknown\",COUNTRY_INFO!O56=\"Surveillance\",COUNTRY_INFO!O56=\"Not required\",COUNTRY_INFO!O56=0),0,IF(INTRO!$E$39=\"Non-endemic\",IF(AND($E56<>0,$I56=\"\"),IF($F56=0,COUNTRY_INFO!O56*$E56,COUNTRY_INFO!O56*($E56-$D56)),IF(AND($E56<>0,$I56<>0),IF($F56=0,COUNTRY_INFO!O56*$I56,COUNTRY_INFO!O56*($I56-$D56)),0)),IF($I56=\"\",COUNTRY_INFO!O56*$E56,COUNTRY_INFO!O56*$I56)))","v":10254},{"$f":"MAX(0,IF(OR(COUNTRY_INFO!P56=\"Unknown\",COUNTRY_INFO!P56=\"Surveillance\",COUNTRY_INFO!P56=\"Not required\",COUNTRY_INFO!P56=0),0,IF($E56<>0,IF($D56=0,COUNTRY_INFO!P56*$E56,COUNTRY_INFO!P56*$E56-($F56*COUNTRY_INFO!$P56/(COUNTRY_INFO!$F56+COUNTRY_INFO!$G56)+IF($G56=\" \",0,COUNTRY_INFO!$P56/(COUNTRY_INFO!$F56+COUNTRY_INFO!$G56)*$G56*$H56))),0)))","v":22892},null,{"$f":"MAX(0,IF(OR(COUNTRY_INFO!Q56=\"Unknown\",COUNTRY_INFO!Q56=\"Surveillance\",COUNTRY_INFO!Q56=\"Not required\",COUNTRY_INFO!Q56=0),0,IF($E56<>0,IF($D56=0,COUNTRY_INFO!Q56*MIN($E56,$L56),COUNTRY_INFO!Q56*MIN($E56,$L56)-($F56*COUNTRY_INFO!$Q56/(COUNTRY_INFO!$F56+COUNTRY_INFO!$G56)+IF($G56=\" \",0,COUNTRY_INFO!$Q56/(COUNTRY_INFO!$F56+COUNTRY_INFO!$G56)*$G56*$H56))),0)))","v":24344},57490,0,null,0,22892,null,22892,0,null,0,null," "]
[{"$f":"IF(AND(INTRO!$E$37=\"Non-endemic\",INTRO!$E$41=\"Non-endemic\"),\" \",IF(COUNTRY_INFO!A57=0,\" \",COUNTRY_INFO!A57))","v":"Gabon"},{"$f":"IF(AND(INTRO!$E$37=\"Non-endemic\",INTRO!$E$41=\"Non-endemic\"),\" \",IF(COUNTRY_INFO!B57=0,\" \",COUNTRY_INFO!B57))","v":"Woleu-Ntem"},{"$f":"IF(AND(INTRO!$E$37=\"Non-endemic\",INTRO!$E$41=\"Non-endemic\"),\" \",IF(COUNTRY_INFO!C57=0,\" \",COUNTRY_INFO!C57))","v":"Haut-Komo"},{"$f":"IF(AND(INTRO!$E$37=\"Non-endemic\",INTRO!$E$41=\"Non-endemic\"),0,COUNTRY_INFO!W57)","v":0},{"$f":"IF(AND(INTRO!$E$37=\"Non-endemic\",INTRO!$E$41=\"Non-endemic\"),0,COUNTRY_INFO!Y57)","v":2},{"$f":"IF($D57=1,IVM!G57,0)","v":0},{"$f":"IF($D57=0, \" \", IF(COUNTRY_INFO!$H57=1, IF(COUNTRY_INFO!$L57=1, 0,\" \"),\" \"))","v":" "},null,null,{"$f":"IF(OR(COUNTRY_INFO!O57=\"Unknown\",COUNTRY_INFO!O57=\"Surveillance\",COUNTRY_INFO!O57=\"Not required\",COUNTRY_INFO!O57=0),0,IF(INTRO!$E$39=\"Non-endemic\",IF(AND($E57<>0,$I57=\"\"),IF($F57=0,COUNTRY_INFO!O57*$E57,COUNTRY_INFO!O57*($E57-$D57)),IF(AND($E57<>0,$I57<>0),IF($F57=0,COUNTRY_INFO!O57*$I57,COUNTRY_INFO!O57*($I57-$D57)),0)),IF($I57=\"\",COUNTRY_INFO!O57*$E57,COUNTRY_INFO!O57*$I57)))","v":980},{"$f":"MAX(0,IF(OR(COUNTRY_INFO!P57=\"Unknown\",COUNTRY_INFO!P57=\"Surveillance\",COUNTRY_INFO!P57=\"Not required\",COUNTRY_INFO!P57=0),0,IF($E57<>0,IF($D57=0,COUNTRY_INFO!P57*$E57,COUNTRY_INFO!P57*$E57-($F57*COUNTRY_INFO!$P57/(COUNTRY_INFO!$F57+COUNTRY_INFO!$G57)+IF($G57=\" \",0,COUNTRY_INFO!$P57/(COUNTRY_INFO!$F57+COUNTRY_INFO!$G57)*$G57*$H57))),0)))","v":2188},null,{"$f":"MAX(0,IF(OR(COUNTRY_INFO!Q57=\"Unknown\",COUNTRY_INFO!Q57=\"Surveillance\",COUNTRY_INFO!Q57=\"Not required\",COUNTRY_INFO!Q57=0),0,IF($E57<>0,IF($D57=0,COUNTRY_INFO!Q57*MIN($E57,$L57),COUNTRY_INFO!Q57*MIN($E57,$L57)-($F57*COUNTRY_INFO!$Q57/(COUNTRY_INFO!$F57+COUNTRY_INFO!$G57)+IF($G57=\" \",0,COUNTRY_INFO!$Q57/(COUNTRY_INFO!$F57+COUNTRY_INFO!$G57)*$G57*$H57))),0)))","v":2328},5496,0,null,0,2188,null,2188,0,null,0,null," "]
[{"$f":"IF(AND(INTRO!$E$37=\"Non-endemic\",INTRO!$E$41=\"Non-endemic\"),\" \",IF(COUNTRY_INFO!A58=0,\" \",COUNTRY_INFO!A58))","v":"Gabon"},{"$f":"IF(AND(INTRO!$E$37=\"Non-endemic\",INTRO!$E$41=\"Non-endemic\"),\" \",IF(COUNTRY_INFO!B58=0,\" \",COUNTRY_INFO!B58))","v":"Woleu-Ntem"},{"$f":"IF(AND(INTRO!$E$37=\"Non-endemic\",INTRO!$E$41=\"Non-endemic\"),\" \",IF(COUNTRY_INFO!C58=0,\" \",COUNTRY_INFO!C58))","v":"Haut-Ntem"},{"$f":"IF(AND(INTRO!$E$37=\"Non-endemic\",INTRO!$E$41=\"Non-endemic\"),0,COUNTRY_INFO!W58)","v":0},{"$f":"IF(AND(INTRO!$E$37=\"Non-endemic\",INTRO!$E$41=\"Non-endemic\"),0,COUNTRY_INFO!Y58)","v":2},{"$f":"IF($D58=1,IVM!G58,0)","v":0},{"$f":"IF($D58=0, \" \", IF(COUNTRY_INFO!$H58=1, IF(COUNTRY_INFO!$L58=1, 0,\" \"),\" \"))","v":" "},null,null,{"$f":"IF(OR(COUNTRY_INFO!O58=\"Unknown\",COUNTRY_INFO!O58=\"Surveillance\",COUNTRY_INFO!O58=\"Not required\",COUNTRY_INFO!O58=0),0,IF(INTRO!$E$39=\"Non-endemic\",IF(AND($E58<>0,$I58=\"\"),IF($F58=0,COUNTRY_INFO!O58*$E58,COUNTRY_INFO!O58*($E58-$D58)),IF(AND($E58<>0,$I58<>0),IF($F58=0,COUNTRY_INFO!O58*$I58,COUNTRY_INFO!O58*($I58-$D58)),0)),IF($I58=\"\",COUNTRY_INFO!O58*$E58,COUNTRY_INFO!O58*$I58)))","v":3224},{"$f":"MAX(0,IF(OR(COUNTRY_INFO!P58=\"Unknown\",COUNTRY_INFO!P58=\"Surveillance\",COUNTRY_INFO!P58=\"Not required\",COUNTRY_INFO!P58=0),0,IF($E58<>0,IF($D58=0,COUNTRY_INFO!P58*$E58,COUNTRY_INFO!P58*$E58-($F58*COUNTRY_INFO!$P58/(COUNTRY_INFO!$F58+COUNTRY_INFO!$G58)+IF($G58=\" \",0,COUNTRY_INFO!$P58/(COUNTRY_INFO!$F58+COUNTRY_INFO!$G58)*$G58*$H58))),0)))","v":7196},null,{"$f":"MAX(0,IF(OR(COUNTRY_INFO!Q58=\"Unknown\",COUNTRY_INFO!Q58=\"Surveillance\",COUNTRY_INFO!Q58=\"Not required\",COUNTRY_INFO!Q58=0),0,IF($E58<>0,IF($D58=0,COUNTRY_INFO!Q58*MIN($E58,$L58),COUNTRY_INFO!Q58*MIN($E58,$L58)-($F58*COUNTRY_INFO!$Q58/(COUNTRY_INFO!$F58+COUNTRY_INFO!$G58)+IF($G58=\" \",0,COUNTRY_INFO!$Q58/(COUNTRY_INFO!$F58+COUNTRY_INFO!$G58)*$G58*$H58))),0)))","v":7652},18072,0,null,0,7196,null,7196,0,null,0,null," "]
[{"$f":"IF(AND(INTRO!$E$37=\"Non-endemic\",INTRO!$E$41=\"Non-endemic\"),\" \",IF(COUNTRY_INFO!A59=0,\" \",COUNTRY_INFO!A59))","v":"Gabon"},{"$f":"IF(AND(INTRO!$E$37=\"Non-endemic\",INTRO!$E$41=\"Non-endemic\"),\" \",IF(COUNTRY_INFO!B59=0,\" \",COUNTRY_INFO!B59))","v":"Woleu-Ntem"},{"$f":"IF(AND(INTRO!$E$37=\"Non-endemic\",INTRO!$E$41=\"Non-endemic\"),\" \",IF(COUNTRY_INFO!C59=0,\" \",COUNTRY_INFO!C59))","v":"Okano"},{"$f":"IF(AND(INTRO!$E$37=\"Non-endemic\",INTRO!$E$41=\"Non-endemic\"),0,COUNTRY_INFO!W59)","v":0},{"$f":"IF(AND(INTRO!$E$37=\"Non-endemic\",INTRO!$E$41=\"Non-endemic\"),0,COUNTRY_INFO!Y59)","v":2},{"$f":"IF($D59=1,IVM!G59,0)","v":0},{"$f":"IF($D59=0, \" \", IF(COUNTRY_INFO!$H59=1, IF(COUNTRY_INFO!$L59=1, 0,\" \"),\" \"))","v":" "},null,null,{"$f":"IF(OR(COUNTRY_INFO!O59=\"Unknown\",COUNTRY_INFO!O59=\"Surveillance\",COUNTRY_INFO!O59=\"Not required\",COUNTRY_INFO!O59=0),0,IF(INTRO!$E$39=\"Non-endemic\",IF(AND($E59<>0,$I59=\"\"),IF($F59=0,COUNTRY_INFO!O59*$E59,COUNTRY_INFO!O59*($E59-$D59)),IF(AND($E59<>0,$I59<>0),IF($F59=0,COUNTRY_INFO!O59*$I59,COUNTRY_INFO!O59*($I59-$D59)),0)),IF($I59=\"\",COUNTRY_INFO!O59*$E59,COUNTRY_INFO!O59*$I59)))","v":4004},{"$f":"MAX(0,IF(OR(COUNTRY_INFO!P59=\"Unknown\",COUNTRY_INFO!P59=\"Surveillance\",COUNTRY_INFO!P59=\"Not required\",COUNTRY_INFO!P59=0),0,IF($E59<>0,IF($D59=0,COUNTRY_INFO!P59*$E59,COUNTRY_INFO!P59*$E59-($F59*COUNTRY_INFO!$P59/(COUNTRY_INFO!$F59+COUNTRY_INFO!$G59)+IF($G59=\" \",0,COUNTRY_INFO!$P59/(COUNTRY_INFO!$F59+COUNTRY_INFO!$G59)*$G59*$H59))),0)))","v":8938},null,{"$f":"MAX(0,IF(OR(COUNTRY_INFO!Q59=\"Unknown\",COUNTRY_INFO!Q59=\"Surveillance\",COUNTRY_INFO!Q59=\"Not required\",COUNTRY_INFO!Q59=0),0,IF($E59<>0,IF($D59=0,COUNTRY_INFO!Q59*MIN($E59,$L59),COUNTRY_INFO!Q59*MIN($E59,$L59)-($F59*COUNTRY_INFO!$Q59/(COUNTRY_INFO!$F59+COUNTRY_INFO!$G59)+IF($G59=\" \",0,COUNTRY_INFO!$Q59/(COUNTRY_INFO!$F59+COUNTRY_INFO!$G59)*$G59*$H59))),0)))","v":9504},22446,0,null,0,8938,null,8938,0,null,0,null," "]
[{"$f":"IF(AND(INTRO!$E$37=\"Non-endemic\",INTRO!$E$41=\"Non-endemic\"),\" \",IF(COUNTRY_INFO!A60=0,\" \",COUNTRY_INFO!A60))","v":"Gabon"},{"$f":"IF(AND(INTRO!$E$37=\"Non-endemic\",INTRO!$E$41=\"Non-endemic\"),\" \",IF(COUNTRY_INFO!B60=0,\" \",COUNTRY_INFO!B60))","v":"Woleu-Ntem"},{"$f":"IF(AND(INTRO!$E$37=\"Non-endemic\",INTRO!$E$41=\"Non-endemic\"),\" \",IF(COUNTRY_INFO!C60=0,\" \",COUNTRY_INFO!C60))","v":"Woleu"},{"$f":"IF(AND(INTRO!$E$37=\"Non-endemic\",INTRO!$E$41=\"Non-endemic\"),0,COUNTRY_INFO!W60)","v":0},{"$f":"IF(AND(INTRO!$E$37=\"Non-endemic\",INTRO!$E$41=\"Non-endemic\"),0,COUNTRY_INFO!Y60)","v":1},{"$f":"IF($D60=1,IVM!G60,0)","v":0},{"$f":"IF($D60=0, \" \", IF(COUNTRY_INFO!$H60=1, IF(COUNTRY_INFO!$L60=1, 0,\" \"),\" \"))","v":" "},null,null,{"$f":"IF(OR(COUNTRY_INFO!O60=\"Unknown\",COUNTRY_INFO!O60=\"Surveillance\",COUNTRY_INFO!O60=\"Not required\",COUNTRY_INFO!O60=0),0,IF(INTRO!$E$39=\"Non-endemic\",IF(AND($E60<>0,$I60=\"\"),IF($F60=0,COUNTRY_INFO!O60*$E60,COUNTRY_INFO!O60*($E60-$D60)),IF(AND($E60<>0,$I60<>0),IF($F60=0,COUNTRY_INFO!O60*$I60,COUNTRY_INFO!O60*($I60-$D60)),0)),IF($I60=\"\",COUNTRY_INFO!O60*$E60,COUNTRY_INFO!O60*$I60)))","v":10238},{"$f":"MAX(0,IF(OR(COUNTRY_INFO!P60=\"Unknown\",COUNTRY_INFO!P60=\"Surveillance\",COUNTRY_INFO!P60=\"Not required\",COUNTRY_INFO!P60=0),0,IF($E60<>0,IF($D60=0,COUNTRY_INFO!P60*$E60,COUNTRY_INFO!P60*$E60-($F60*COUNTRY_INFO!$P60/(COUNTRY_INFO!$F60+COUNTRY_INFO!$G60)+IF($G60=\" \",0,COUNTRY_INFO!$P60/(COUNTRY_INFO!$F60+COUNTRY_INFO!$G60)*$G60*$H60))),0)))","v":22856},null,{"$f":"MAX(0,IF(OR(COUNTRY_INFO!Q60=\"Unknown\",COUNTRY_INFO!Q60=\"Surveillance\",COUNTRY_INFO!Q60=\"Not required\",COUNTRY_INFO!Q60=0),0,IF($E60<>0,IF($D60=0,COUNTRY_INFO!Q60*MIN($E60,$L60),COUNTRY_INFO!Q60*MIN($E60,$L60)-($F60*COUNTRY_INFO!$Q60/(COUNTRY_INFO!$F60+COUNTRY_INFO!$G60)+IF($G60=\" \",0,COUNTRY_INFO!$Q60/(COUNTRY_INFO!$F60+COUNTRY_INFO!$G60)*$G60*$H60))),0)))","v":24306},57400,0,null,0,22856,null,22856,0,null,0,null," "]

{"sheet":"PZQ","index":3,"n_rows":60,"n_cols":18,"rows_kept":60,"cut":false,"hidden":false,"merged":[[3,0,3,2],[5,0,5,2],[5,4,5,7],[5,8,5,9],[6,17,7,17],[6,6,7,6],[6,7,7,7],[6,9,7,9],[6,0,7,0],[6,1,7,1],[6,2,7,2],[6,4,7,4],[5,3,7,3],[6,5,7,5],[6,8,7,8],[6,12,7,12],[5,12,5,17],[5,10,5,11],[6,10,7,10],[6,14,7,14],[6,15,7,15],[6,16,7,16],[6,13,7,13],[6,11,7,11]]}
["Praziquantel (PZQ)"]
["Administrative structure, eligible population by age group, treatment plan and information about tablets"]
[]
["TOTAL",null,null,null,{"$f":"SUBTOTAL(9,E$10:E$1010)","v":26706},26704,63882,117292,null,0,null,null,{"$f":"SUBTOTAL(9,M$10:M$1010)","v":0},53408,191646,245054,0,245054]
[]
["Country administrative structure",null,null,"Treatment plan\nSCH","Target population for SCH",null,null,null,"Hot spots",null,"Previous year MDA",null,"Praziquantel (PZQ)"]
["Country","Province/State","District",null,"PreSAC","SAC","Adults","Total","Planned","Population","Rounds","Age groups","PreSAC","SAC","Adults","Total required","Remaining in stock","Tablets to be procured"]
[]
[]
[{"$f":"IF(INTRO!$E$43=\"Non-endemic\",\" \", IF(COUNTRY_INFO!A10=0,\" \",COUNTRY_INFO!A10))","v":"Gabon"},{"$f":"IF(INTRO!$E$43=\"Non-endemic\",\" \", IF(COUNTRY_INFO!B10=0,\" \",COUNTRY_INFO!B10))","v":"Libreville -Owendo"},{"$f":"IF(INTRO!$E$43=\"Non-endemic\",\" \", IF(COUNTRY_INFO!C10=0,\" \",COUNTRY_INFO!C10))","v":"Libreville 1"},{"$f":"IF(INTRO!$E$43=\"Non-endemic\", \"Not required\", COUNTRY_INFO!Z10)","v":0},{"$f":"IF(OR(COUNTRY_INFO!S10=\"Unknown\",COUNTRY_INFO!S10=\"Surveillance\",COUNTRY_INFO!S10=\"Not required\",COUNTRY_INFO!S10=0),0,IF($D10<>0, COUNTRY_INFO!S10,0))","v":0},{"$f":"IF(OR(COUNTRY_INFO!T10=\"Unknown\",COUNTRY_INFO!T10=\"Surveillance\",COUNTRY_INFO!T10=\"Not required\",COUNTRY_INFO!T10=0),0,IF($D10<>0, COUNTRY_INFO!T10,0))","v":0},{"$f":"IF(OR(COUNTRY_INFO!U10=\"Unknown\",COUNTRY_INFO!U10=\"Surveillance\",COUNTRY_INFO!U10=\"Not required\",COUNTRY_INFO!U10=0),0,IF($D10<>0, COUNTRY_INFO!U10,0))","v":0},{"$f":"SUM(E10:G10)","v":0},null,null,null,null,null,{"$f":"IF($I10<>\"Yes\",$F10*2,($F10+ROUND(J10*$F10/SUM(COUNTRY_INFO!$E10:$G10),0))*2)","v":0},{"$f":"IF($I10<>\"Yes\",$G10*3,($G10+ROUND(J10*$G10/SUM(COUNTRY_INFO!$E10:$G10),0))*3)","v":0},{"$f":"SUM(M10:O10)","v":0},null,{"$f":"IF($P10>$Q10,P10-Q10,0)","v":0}]
[{"$f":"IF(INTRO!$E$43=\"Non-endemic\",\" \", IF(COUNTRY_INFO!A11=0,\" \",COUNTRY_INFO!A11))","v":"Gabon"},{"$f":"IF(INTRO!$E$43=\"Non-endemic\",\" \", IF(COUNTRY_INFO!B11=0,\" \",COUNTRY_INFO!B11))","v":"Libreville -Owendo"},{"$f":"IF(INTRO!$E$43=\"Non-endemic\",\" \", IF(COUNTRY_INFO!C11=0,\" \",COUNTRY_INFO!C11))","v":"Libreville 2"},{"$f":"IF(INTRO!$E$43=\"Non-endemic\", \"Not required\", COUNTRY_INFO!Z11)","v":0},{"$f":"IF(OR(COUNTRY_INFO!S11=\"Unknown\",COUNTRY_INFO!S11=\"Surveillance\",COUNTRY_INFO!S11=\"Not required\",COUNTRY_INFO!S11=0),0,IF($D11<>0, COUNTRY_INFO!S11,0))","v":0},{"$f":"IF(OR(COUNTRY_INFO!T11=\"Unknown\",COUNTRY_INFO!T11=\"Surveillance\",COUNTRY_INFO!T11=\"Not required\",COUNTRY_INFO!T11=0),0,IF($D11<>0, COUNTRY_INFO!T11,0))","v":0},{"$f":"IF(OR(COUNTRY_INFO!U11=\"Unknown\",COUNTRY_INFO!U11=\"Surveillance\",COUNTRY_INFO!U11=\"Not required\",COUNTRY_INFO!U11=0),0,IF($D11<>0, COUNTRY_INFO!U11,0))","v":0},{"$f":"SUM(E11:G11)","v":0},null,null,null,null,null,{"$f":"IF($I11<>\"Yes\",$F11*2,($F11+ROUND(J11*$F11/SUM(COUNTRY_INFO!$E11:$G11),0))*2)","v":0},{"$f":"IF($I11<>\"Yes\",$G11*3,($G11+ROUND(J11*$G11/SUM(COUNTRY_INFO!$E11:$G11),0))*3)","v":0},{"$f":"SUM(M11:O11)","v":0},null,{"$f":"IF($P11>$Q11,P11-Q11,0)","v":0}]
[{"$f":"IF(INTRO!$E$43=\"Non-endemic\",\" \", IF(COUNTRY_INFO!A12=0,\" \",COUNTRY_INFO!A12))","v":"Gabon"},{"$f":"IF(INTRO!$E$43=\"Non-endemic\",\" \", IF(COUNTRY_INFO!B12=0,\" \",COUNTRY_INFO!B12))","v":"Libreville -Owendo"},{"$f":"IF(INTRO!$E$43=\"Non-endemic\",\" \", IF(COUNTRY_INFO!C12=0,\" \",COUNTRY_INFO!C12))","v":"Libreville 3"},{"$f":"IF(INTRO!$E$43=\"Non-endemic\", \"Not required\", COUNTRY_INFO!Z12)","v":0},{"$f":"IF(OR(COUNTRY_INFO!S12=\"Unknown\",COUNTRY_INFO!S12=\"Surveillance\",COUNTRY_INFO!S12=\"Not required\",COUNTRY_INFO!S12=0),0,IF($D12<>0, COUNTRY_INFO!S12,0))","v":0},{"$f":"IF(OR(COUNTRY_INFO!T12=\"Unknown\",COUNTRY_INFO!T12=\"Surveillance\",COUNTRY_INFO!T12=\"Not required\",COUNTRY_INFO!T12=0),0,IF($D12<>0, COUNTRY_INFO!T12,0))","v":0},{"$f":"IF(OR(COUNTRY_INFO!U12=\"Unknown\",COUNTRY_INFO!U12=\"Surveillance\",COUNTRY_INFO!U12=\"Not required\",COUNTRY_INFO!U12=0),0,IF($D12<>0, COUNTRY_INFO!U12,0))","v":0},0,null,null,null,null,null,{"$f":"IF($I12<>\"Yes\",$F12*2,($F12+ROUND(J12*$F12/SUM(COUNTRY_INFO!$E12:$G12),0))*2)","v":0},{"$f":"IF($I12<>\"Yes\",$G12*3,($G12+ROUND(J12*$G12/SUM(COUNTRY_INFO!$E12:$G12),0))*3)","v":0},0,null,0]
[{"$f":"IF(INTRO!$E$43=\"Non-endemic\",\" \", IF(COUNTRY_INFO!A13=0,\" \",COUNTRY_INFO!A13))","v":"Gabon"},{"$f":"IF(INTRO!$E$43=\"Non-endemic\",\" \", IF(COUNTRY_INFO!B13=0,\" \",COUNTRY_INFO!B13))","v":"Libreville -Owendo"},{"$f":"IF(INTRO!$E$43=\"Non-endemic\",\" \", IF(COUNTRY_INFO!C13=0,\" \",COUNTRY_INFO!C13))","v":"Owendo"},{"$f":"IF(INTRO!$E$43=\"Non-endemic\", \"Not required\", COUNTRY_INFO!Z13)","v":0},{"$f":"IF(OR(COUNTRY_INFO!S13=\"Unknown\",COUNTRY_INFO!S13=\"Surveillance\",COUNTRY_INFO!S13=\"Not required\",COUNTRY_INFO!S13=0),0,IF($D13<>0, COUNTRY_INFO!S13,0))","v":0},{"$f":"IF(OR(COUNTRY_INFO!T13=\"Unknown\",COUNTRY_INFO!T13=\"Surveillance\",COUNTRY_INFO!T13=\"Not required\",COUNTRY_INFO!T13=0),0,IF($D13<>0, COUNTRY_INFO!T13,0))","v":0},{"$f":"IF(OR(COUNTRY_INFO!U13=\"Unknown\",COUNTRY_INFO!U13=\"Surveillance\",COUNTRY_INFO!U13=\"Not required\",COUNTRY_INFO!U13=0),0,IF($D13<>0, COUNTRY_INFO!U13,0))","v":0},0,null,null,null,null,null,{"$f":"IF($I13<>\"Yes\",$F13*2,($F13+ROUND(J13*$F13/SUM(COUNTRY_INFO!$E13:$G13),0))*2)","v":0},{"$f":"IF($I13<>\"Yes\",$G13*3,($G13+ROUND(J13*$G13/SUM(COUNTRY_INFO!$E13:$G13),0))*3)","v":0},0,null,0]
[{"$f":"IF(INTRO!$E$43=\"Non-endemic\",\" \", IF(COUNTRY_INFO!A14=0,\" \",COUNTRY_INFO!A14))","v":"Gabon"},{"$f":"IF(INTRO!$E$43=\"Non-endemic\",\" \", IF(COUNTRY_INFO!B14=0,\" \",COUNTRY_INFO!B14))","v":"Estuaire"},{"$f":"IF(INTRO!$E$43=\"Non-endemic\",\" \", IF(COUNTRY_INFO!C14=0,\" \",COUNTRY_INFO!C14))","v":"Komo-Mondah"},{"$f":"IF(INTRO!$E$43=\"Non-endemic\", \"Not required\", COUNTRY_INFO!Z14)","v":1},{"$f":"IF(OR(COUNTRY_INFO!S14=\"Unknown\",COUNTRY_INFO!S14=\"Surveillance\",COUNTRY_INFO!S14=\"Not required\",COUNTRY_INFO!S14=0),0,IF($D14<>0, COUNTRY_INFO!S14,0))","v":3037},{"$f":"IF(OR(COUNTRY_INFO!T14=\"Unknown\",COUNTRY_INFO!T14=\"Surveillance\",COUNTRY_INFO!T14=\"Not required\",COUNTRY_INFO!T14=0),0,IF($D14<>0, COUNTRY_INFO!T14,0))","v":3037},{"$f":"IF(OR(COUNTRY_INFO!U14=\"Unknown\",COUNTRY_INFO!U14=\"Surveillance\",COUNTRY_INFO!U14=\"Not required\",COUNTRY_INFO!U14=0),0,IF($D14<>0, COUNTRY_INFO!U14,0))","v":7266},13340,null,null,null,null,null,{"$f":"IF($I14<>\"Yes\",$F14*2,($F14+ROUND(J14*$F14/SUM(COUNTRY_INFO!$E14:$G14),0))*2)","v":6074},{"$f":"IF($I14<>\"Yes\",$G14*3,($G14+ROUND(J14*$G14/SUM(COUNTRY_INFO!$E14:$G14),0))*3)","v":21798},27872,null,27872]
[{"$f":"IF(INTRO!$E$43=\"Non-endemic\",\" \", IF(COUNTRY_INFO!A15=0,\" \",COUNTRY_INFO!A15))","v":"Gabon"},{"$f":"IF(INTRO!$E$43=\"Non-endemic\",\" \", IF(COUNTRY_INFO!B15=0,\" \",COUNTRY_INFO!B15))","v":"Estuaire"},{"$f":"IF(INTRO!$E$43=\"Non-endemic\",\" \", IF(COUNTRY_INFO!C15=0,\" \",COUNTRY_INFO!C15))","v":"Komo-Kango"},{"$f":"IF(INTRO!$E$43=\"Non-endemic\", \"Not required\", COUNTRY_INFO!Z15)","v":1},{"$f":"IF(OR(COUNTRY_INFO!S15=\"Unknown\",COUNTRY_INFO!S15=\"Surveillance\",COUNTRY_INFO!S15=\"Not required\",COUNTRY_INFO!S15=0),0,IF($D15<>0, COUNTRY_INFO!S15,0))","v":630},{"$f":"IF(OR(COUNTRY_INFO!T15=\"Unknown\",COUNTRY_INFO!T15=\"Surveillance\",COUNTRY_INFO!T15=\"Not required\",COUNTRY_INFO!T15=0),0,IF($D15<>0, COUNTRY_INFO!T15,0))","v":630},{"$f":"IF(OR(COUNTRY_INFO!U15=\"Unknown\",COUNTRY_INFO!U15=\"Surveillance\",COUNTRY_INFO!U15=\"Not required\",COUNTRY_INFO!U15=0),0,IF($D15<>0, COUNTRY_INFO!U15,0))","v":1507},2767,null,null,null,null,null,{"$f":"IF($I15<>\"Yes\",$F15*2,($F15+ROUND(J15*$F15/SUM(COUNTRY_INFO!$E15:$G15),0))*2)","v":1260},{"$f":"IF($I15<>\"Yes\",$G15*3,($G15+ROUND(J15*$G15/SUM(COUNTRY_INFO!$E15:$G15),0))*3)","v":4521},5781,null,5781]
[{"$f":"IF(INTRO!$E$43=\"Non-endemic\",\" \", IF(COUNTRY_INFO!A16=0,\" \",COUNTRY_INFO!A16))","v":"Gabon"},{"$f":"IF(INTRO!$E$43=\"Non-endemic\",\" \", IF(COUNTRY_INFO!B16=0,\" \",COUNTRY_INFO!B16))","v":"Estuaire"},{"$f":"IF(INTRO!$E$43=\"Non-endemic\",\" \", IF(COUNTRY_INFO!C16=0,\" \",COUNTRY_INFO!C16))","v":"Noya"},{"$f":"IF(INTRO!$E$43=\"Non-endemic\", \"Not required\", COUNTRY_INFO!Z16)","v":0},{"$f":"IF(OR(COUNTRY_INFO!S16=\"Unknown\",COUNTRY_INFO!S16=\"Surveillance\",COUNTRY_INFO!S16=\"Not required\",COUNTRY_INFO!S16=0),0,IF($D16<>0, COUNTRY_INFO!S16,0))","v":0},{"$f":"IF(OR(COUNTRY_INFO!T16=\"Unknown\",COUNTRY_INFO!T16=\"Surveillance\",COUNTRY_INFO!T16=\"Not required\",COUNTRY_INFO!T16=0),0,IF($D16<>0, COUNTRY_INFO!T16,0))","v":0},{"$f":"IF(OR(COUNTRY_INFO!U16=\"Unknown\",COUNTRY_INFO!U16=\"Surveillance\",COUNTRY_INFO!U16=\"Not required\",COUNTRY_INFO!U16=0),0,IF($D16<>0, COUNTRY_INFO!U16,0))","v":0},0,null,null,null,null,null,{"$f":"IF($I16<>\"Yes\",$F16*2,($F16+ROUND(J16*$F16/SUM(COUNTRY_INFO!$E16:$G16),0))*2)","v":0},{"$f":"IF($I16<>\"Yes\",$G16*3,($G16+ROUND(J16*$G16/SUM(COUNTRY_INFO!$E16:$G16),0))*3)","v":0},0,null,0]
[{"$f":"IF(INTRO!$E$43=\"Non-endemic\",\" \", IF(COUNTRY_INFO!A17=0,\" \",COUNTRY_INFO!A17))","v":"Gabon"},{"$f":"IF(INTRO!$E$43=\"Non-endemic\",\" \", IF(COUNTRY_INFO!B17=0,\" \",COUNTRY_INFO!B17))","v":"Haut Ogooué"},{"$f":"IF(INTRO!$E$43=\"Non-endemic\",\" \", IF(COUNTRY_INFO!C17=0,\" \",COUNTRY_INFO!C17))","v":"Bayi-brikolo"},{"$f":"IF(INTRO!$E$43=\"Non-endemic\", \"Not required\", COUNTRY_INFO!Z17)","v":0},{"$f":"IF(OR(COUNTRY_INFO!S17=\"Unknown\",COUNTRY_INFO!S17=\"Surveillance\",COUNTRY_INFO!S17=\"Not required\",COUNTRY_INFO!S17=0),0,IF($D17<>0, COUNTRY_INFO!S17,0))","v":0},{"$f":"IF(OR(COUNTRY_INFO!T17=\"Unknown\",COUNTRY_INFO!T17=\"Surveillance\",COUNTRY_INFO!T17=\"Not required\",COUNTRY_INFO!T17=0),0,IF($D17<>0, COUNTRY_INFO!T17,0))","v":0},{"$f":"IF(OR(COUNTRY_INFO!U17=\"Unknown\",COUNTRY_INFO!U17=\"Surveillance\",COUNTRY_INFO!U17=\"Not required\",COUNTRY_INFO!U17=0),0,IF($D17<>0, COUNTRY_INFO!U17,0))","v":0},0,null,null,null,null,null,{"$f":"IF($I17<>\"Yes\",$F17*2,($F17+ROUND(J17*$F17/SUM(COUNTRY_INFO!$E17:$G17),0))*2)","v":0},{"$f":"IF($I17<>\"Yes\",$G17*3,($G17+ROUND(J17*$G17/SUM(COUNTRY_INFO!$E17:$G17),0))*3)","v":0},0,null,0]
[{"$f":"IF(INTRO!$E$43=\"Non-endemic\",\" \", IF(COUNTRY_INFO!A18=0,\" \",COUNTRY_INFO!A18))","v":"Gabon"},{"$f":"IF(INTRO!$E$43=\"Non-endemic\",\" \", IF(COUNTRY_INFO!B18=0,\" \",COUNTRY_INFO!B18))","v":"Haut Ogooué"},{"$f":"IF(INTRO!$E$43=\"Non-endemic\",\" \", IF(COUNTRY_INFO!C18=0,\" \",COUNTRY_INFO!C18))","v":"Lékoni-lékori"},{"$f":"IF(INTRO!$E$43=\"Non-endemic\", \"Not required\", COUNTRY_INFO!Z18)","v":0},{"$f":"IF(OR(COUNTRY_INFO!S18=\"Unknown\",COUNTRY_INFO!S18=\"Surveillance\",COUNTRY_INFO!S18=\"Not required\",COUNTRY_INFO!S18=0),0,IF($D18<>0, COUNTRY_INFO!S18,0))","v":0},{"$f":"IF(OR(COUNTRY_INFO!T18=\"Unknown\",COUNTRY_INFO!T18=\"Surveillance\",COUNTRY_INFO!T18=\"Not required\",COUNTRY_INFO!T18=0),0,IF($D18<>0, COUNTRY_INFO!T18,0))","v":0},{"$f":"IF(OR(COUNTRY_INFO!U18=\"Unknown\",COUNTRY_INFO!U18=\"Surveillance\",COUNTRY_INFO!U18=\"Not required\",COUNTRY_INFO!U18=0),0,IF($D18<>0, COUNTRY_INFO!U18,0))","v":0},0,null,null,null,null,null,{"$f":"IF($I18<>\"Yes\",$F18*2,($F18+ROUND(J18*$F18/SUM(COUNTRY_INFO!$E18:$G18),0))*2)","v":0},{"$f":"IF($I18<>\"Yes\",$G18*3,($G18+ROUND(J18*$G18/SUM(COUNTRY_INFO!$E18:$G18),0))*3)","v":0},0,null,0]
[{"$f":"IF(INTRO!$E$43=\"Non-endemic\",\" \", IF(COUNTRY_INFO!A19=0,\" \",COUNTRY_INFO!A19))","v":"Gabon"},{"$f":"IF(INTRO!$E$43=\"Non-endemic\",\" \", IF(COUNTRY_INFO!B19=0,\" \",COUNTRY_INFO!B19))","v":"Haut Ogooué"},{"$f":"IF(INTRO!$E$43=\"Non-endemic\",\" \", IF(COUNTRY_INFO!C19=0,\" \",COUNTRY_INFO!C19))","v":"Lékoko"},{"$f":"IF(INTRO!$E$43=\"Non-endemic\", \"Not required\", COUNTRY_INFO!Z19)","v":0},{"$f":"IF(OR(COUNTRY_INFO!S19=\"Unknown\",COUNTRY_INFO!S19=\"Surveillance\",COUNTRY_INFO!S19=\"Not required\",COUNTRY_INFO!S19=0),0,IF($D19<>0, COUNTRY_INFO!S19,0))","v":0},{"$f":"IF(OR(COUNTRY_INFO!T19=\"Unknown\",COUNTRY_INFO!T19=\"Surveillance\",COUNTRY_INFO!T19=\"Not required\",COUNTRY_INFO!T19=0),0,IF($D19<>0, COUNTRY_INFO!T19,0))","v":0},{"$f":"IF(OR(COUNTRY_INFO!U19=\"Unknown\",COUNTRY_INFO!U19=\"Surveillance\",COUNTRY_INFO!U19=\"Not required\",COUNTRY_INFO!U19=0),0,IF($D19<>0, COUNTRY_INFO!U19,0))","v":0},0,null,null,null,null,null,{"$f":"IF($I19<>\"Yes\",$F19*2,($F19+ROUND(J19*$F19/SUM(COUNTRY_INFO!$E19:$G19),0))*2)","v":0},{"$f":"IF($I19<>\"Yes\",$G19*3,($G19+ROUND(J19*$G19/SUM(COUNTRY_INFO!$E19:$G19),0))*3)","v":0},0,null,0]
[{"$f":"IF(INTRO!$E$43=\"Non-endemic\",\" \", IF(COUNTRY_INFO!A20=0,\" \",COUNTRY_INFO!A20))","v":"Gabon"},{"$f":"IF(INTRO!$E$43=\"Non-endemic\",\" \", IF(COUNTRY_INFO!B20=0,\" \",COUNTRY_INFO!B20))","v":"Haut Ogooué"},{"$f":"IF(INTRO!$E$43=\"Non-endemic\",\" \", IF(COUNTRY_INFO!C20=0,\" \",COUNTRY_INFO!C20))","v":"Djouori-Agnili"},{"$f":"IF(INTRO!$E$43=\"Non-endemic\", \"Not required\", COUNTRY_INFO!Z20)","v":0},{"$f":"IF(OR(COUNTRY_INFO!S20=\"Unknown\",COUNTRY_INFO!S20=\"Surveillance\",COUNTRY_INFO!S20=\"Not required\",COUNTRY_INFO!S20=0),0,IF($D20<>0, COUNTRY_INFO!S20,0))","v":0},{"$f":"IF(OR(COUNTRY_INFO!T20=\"Unknown\",COUNTRY_INFO!T20=\"Surveillance\",COUNTRY_INFO!T20=\"Not required\",COUNTRY_INFO!T20=0),0,IF($D20<>0, COUNTRY_INFO!T20,0))","v":0},{"$f":"IF(OR(COUNTRY_INFO!U20=\"Unknown\",COUNTRY_INFO!U20=\"Surveillance\",COUNTRY_INFO!U20=\"Not required\",COUNTRY_INFO!U20=0),0,IF($D20<>0, COUNTRY_INFO!U20,0))","v":0},0,null,null,null,null,null,{"$f":"IF($I20<>\"Yes\",$F20*2,($F20+ROUND(J20*$F20/SUM(COUNTRY_INFO!$E20:$G20),0))*2)","v":0},{"$f":"IF($I20<>\"Yes\",$G20*3,($G20+ROUND(J20*$G20/SUM(COUNTRY_INFO!$E20:$G20),0))*3)","v":0},0,null,0]
[{"$f":"IF(INTRO!$E$43=\"Non-endemic\",\" \", IF(COUNTRY_INFO!A21=0,\" \",COUNTRY_INFO!A21))","v":"Gabon"},{"$f":"IF(INTRO!$E$43=\"Non-endemic\",\" \", IF(COUNTRY_INFO!B21=0,\" \",COUNTRY_INFO!B21))","v":"Haut Ogooué"},{"$f":"IF(INTRO!$E$43=\"Non-endemic\",\" \", IF(COUNTRY_INFO!C21=0,\" \",COUNTRY_INFO!C21))","v":"Ogooué -létili"},{"$f":"IF(INTRO!$E$43=\"Non-endemic\", \"Not required\", COUNTRY_INFO!Z21)","v":0},{"$f":"IF(OR(COUNTRY_INFO!S21=\"Unknown\",COUNTRY_INFO!S21=\"Surveillance\",COUNTRY_INFO!S21=\"Not required\",COUNTRY_INFO!S21=0),0,IF($D21<>0, COUNTRY_INFO!S21,0))","v":0},{"$f":"IF(OR(COUNTRY_INFO!T21=\"Unknown\",COUNTRY_INFO!T21=\"Surveillance\",COUNTRY_INFO!T21=\"Not required\",COUNTRY_INFO!T21=0),0,IF($D21<>0, COUNTRY_INFO!T21,0))","v":0},{"$f":"IF(OR(COUNTRY_INFO!U21=\"Unknown\",COUNTRY_INFO!U21=\"Surveillance\",COUNTRY_INFO!U21=\"Not required\",COUNTRY_INFO!U21=0),0,IF($D21<>0, COUNTRY_INFO!U21,0))","v":0},0,null,null,null,null,null,{"$f":"IF($I21<>\"Yes\",$F21*2,($F21+ROUND(J21*$F21/SUM(COUNTRY_INFO!$E21:$G21),0))*2)","v":0},{"$f":"IF($I21<>\"Yes\",$G21*3,($G21+ROUND(J21*$G21/SUM(COUNTRY_INFO!$E21:$G21),0))*3)","v":0},0,null,0]
[{"$f":"IF(INTRO!$E$43=\"Non-endemic\",\" \", IF(COUNTRY_INFO!A22=0,\" \",COUNTRY_INFO!A22))","v":"Gabon"},{"$f":"IF(INTRO!$E$43=\"Non-endemic\",\" \", IF(COUNTRY_INFO!B22=0,\" \",COUNTRY_INFO!B22))","v":"Haut Ogooué"},{"$f":"IF(INTRO!$E$43=\"Non-endemic\",\" \", IF(COUNTRY_INFO!C22=0,\" \",COUNTRY_INFO!C22))","v":"Mpassa"},{"$f":"IF(INTRO!$E$43=\"Non-endemic\", \"Not required\", COUNTRY_INFO!Z22)","v":1},{"$f":"IF(OR(COUNTRY_INFO!S22=\"Unknown\",COUNTRY_INFO!S22=\"Surveillance\",COUNTRY_INFO!S22=\"Not required\",COUNTRY_INFO!S22=0),0,IF($D22<>0, COUNTRY_INFO!S22,0))","v":2982},{"$f":"IF(OR(COUNTRY_INFO!T22=\"Unknown\",COUNTRY_INFO!T22=\"Surveillance\",COUNTRY_INFO!T22=\"Not required\",COUNTRY_INFO!T22=0),0,IF($D22<>0, COUNTRY_INFO!T22,0))","v":2982},{"$f":"IF(OR(COUNTRY_INFO!U22=\"Unknown\",COUNTRY_INFO!U22=\"Surveillance\",COUNTRY_INFO!U22=\"Not required\",COUNTRY_INFO!U22=0),0,IF($D22<>0, COUNTRY_INFO!U22,0))","v":7135},13099,null,null,null,null,null,{"$f":"IF($I22<>\"Yes\",$F22*2,($F22+ROUND(J22*$F22/SUM(COUNTRY_INFO!$E22:$G22),0))*2)","v":5964},{"$f":"IF($I22<>\"Yes\",$G22*3,($G22+ROUND(J22*$G22/SUM(COUNTRY_INFO!$E22:$G22),0))*3)","v":21405},27369,null,27369]
[{"$f":"IF(INTRO!$E$43=\"Non-endemic\",\" \", IF(COUNTRY_INFO!A23=0,\" \",COUNTRY_INFO!A23))","v":"Gabon"},{"$f":"IF(INTRO!$E$43=\"Non-endemic\",\" \", IF(COUNTRY_INFO!B23=0,\" \",COUNTRY_INFO!B23))","v":"Haut Ogooué"},{"$f":"IF(INTRO!$E$43=\"Non-endemic\",\" \", IF(COUNTRY_INFO!C23=0,\" \",COUNTRY_INFO!C23))","v":"Plateaux"},{"$f":"IF(INTRO!$E$43=\"Non-endemic\", \"Not required\", COUNTRY_INFO!Z23)","v":0},{"$f":"IF(OR(COUNTRY_INFO!S23=\"Unknown\",COUNTRY_INFO!S23=\"Surveillance\",COUNTRY_INFO!S23=\"Not required\",COUNTRY_INFO!S23=0),0,IF($D23<>0, COUNTRY_INFO!S23,0))","v":0},{"$f":"IF(OR(COUNTRY_INFO!T23=\"Unknown\",COUNTRY_INFO!T23=\"Surveillance\",COUNTRY_INFO!T23=\"Not required\",COUNTRY_INFO!T23=0),0,IF($D23<>0, COUNTRY_INFO!T23,0))","v":0},{"$f":"IF(OR(COUNTRY_INFO!U23=\"Unknown\",COUNTRY_INFO!U23=\"Surveillance\",COUNTRY_INFO!U23=\"Not required\",COUNTRY_INFO!U23=0),0,IF($D23<>0, COUNTRY_INFO!U23,0))","v":0},0,null,null,null,null,null,{"$f":"IF($I23<>\"Yes\",$F23*2,($F23+ROUND(J23*$F23/SUM(COUNTRY_INFO!$E23:$G23),0))*2)","v":0},{"$f":"IF($I23<>\"Yes\",$G23*3,($G23+ROUND(J23*$G23/SUM(COUNTRY_INFO!$E23:$G23),0))*3)","v":0},0,null,0]
[{"$f":"IF(INTRO!$E$43=\"Non-endemic\",\" \", IF(COUNTRY_INFO!A24=0,\" \",COUNTRY_INFO!A24))","v":"Gabon"},{"$f":"IF(INTRO!$E$43=\"Non-endemic\",\" \", IF(COUNTRY_INFO!B24=0,\" \",COUNTRY_INFO!B24))","v":"Haut Ogooué"},{"$f":"IF(INTRO!$E$43=\"Non-endemic\",\" \", IF(COUNTRY_INFO!C24=0,\" \",COUNTRY_INFO!C24))","v":"Lébombi-Léyou"},{"$f":"IF(INTRO!$E$43=\"Non-endemic\", \"Not required\", COUNTRY_INFO!Z24)","v":0},{"$f":"IF(OR(COUNTRY_INFO!S24=\"Unknown\",COUNTRY_INFO!S24=\"Surveillance\",COUNTRY_INFO!S24=\"Not required\",COUNTRY_INFO!S24=0),0,IF($D24<>0, COUNTRY_INFO!S24,0))","v":0},{"$f":"IF(OR(COUNTRY_INFO!T24=\"Unknown\",COUNTRY_INFO!T24=\"Surveillance\",COUNTRY_INFO!T24=\"Not required\",COUNTRY_INFO!T24=0),0,IF($D24<>0, COUNTRY_INFO!T24,0))","v":0},{"$f":"IF(OR(COUNTRY_INFO!U24=\"Unknown\",COUNTRY_INFO!U24=\"Surveillance\",COUNTRY_INFO!U24=\"Not required\",COUNTRY_INFO!U24=0),0,IF($D24<>0, COUNTRY_INFO!U24,0))","v":0},0,null,null,null,null,null,{"$f":"IF($I24<>\"Yes\",$F24*2,($F24+ROUND(J24*$F24/SUM(COUNTRY_INFO!$E24:$G24),0))*2)","v":0},{"$f":"IF($I24<>\"Yes\",$G24*3,($G24+ROUND(J24*$G24/SUM(COUNTRY_INFO!$E24:$G24),0))*3)","v":0},0,null,0]
[{"$f":"IF(INTRO!$E$43=\"Non-endemic\",\" \", IF(COUNTRY_INFO!A25=0,\" \",COUNTRY_INFO!A25))","v":"Gabon"},{"$f":"IF(INTRO!$E$43=\"Non-endemic\",\" \", IF(COUNTRY_INFO!B25=0,\" \",COUNTRY_INFO!B25))","v":"Haut Ogooué"},{"$f":"IF(INTRO!$E$43=\"Non-endemic\",\" \", IF(COUNTRY_INFO!C25=0,\" \",COUNTRY_INFO!C25))","v":"Lékabi-léwolo"},{"$f":"IF(INTRO!$E$43=\"Non-endemic\", \"Not required\", COUNTRY_INFO!Z25)","v":0},{"$f":"IF(OR(COUNTRY_INFO!S25=\"Unknown\",COUNTRY_INFO!S25=\"Surveillance\",COUNTRY_INFO!S25=\"Not required\",COUNTRY_INFO!S25=0),0,IF($D25<>0, COUNTRY_INFO!S25,0))","v":0},{"$f":"IF(OR(COUNTRY_INFO!T25=\"Unknown\",COUNTRY_INFO!T25=\"Surveillance\",COUNTRY_INFO!T25=\"Not required\",COUNTRY_INFO!T25=0),0,IF($D25<>0, COUNTRY_INFO!T25,0))","v":0},{"$f":"IF(OR(COUNTRY_INFO!U25=\"Unknown\",COUNTRY_INFO!U25=\"Surveillance\",COUNTRY_INFO!U25=\"Not required\",COUNTRY_INFO!U25=0),0,IF($D25<>0, COUNTRY_INFO!U25,0))","v":0},0,null,null,null,null,null,{"$f":"IF($I25<>\"Yes\",$F25*2,($F25+ROUND(J25*$F25/SUM(COUNTRY_INFO!$E25:$G25),0))*2)","v":0},{"$f":"IF($I25<>\"Yes\",$G25*3,($G25+ROUND(J25*$G25/SUM(COUNTRY_INFO!$E25:$G25),0))*3)","v":0},0,null,0]
[{"$f":"IF(INTRO!$E$43=\"Non-endemic\",\" \", IF(COUNTRY_INFO!A26=0,\" \",COUNTRY_INFO!A26))","v":"Gabon"},{"$f":"IF(INTRO!$E$43=\"Non-endemic\",\" \", IF(COUNTRY_INFO!B26=0,\" \",COUNTRY_INFO!B26))","v":"Haut Ogooué"},{"$f":"IF(INTRO!$E$43=\"Non-endemic\",\" \", IF(COUNTRY_INFO!C26=0,\" \",COUNTRY_INFO!C26))","v":"Sébé-brikoli"},{"$f":"IF(INTRO!$E$43=\"Non-endemic\", \"Not required\", COUNTRY_INFO!Z26)","v":1},{"$f":"IF(OR(COUNTRY_INFO!S26=\"Unknown\",COUNTRY_INFO!S26=\"Surveillance\",COUNTRY_INFO!S26=\"Not required\",COUNTRY_INFO!S26=0),0,IF($D26<>0, COUNTRY_INFO!S26,0))","v":107},{"$f":"IF(OR(COUNTRY_INFO!T26=\"Unknown\",COUNTRY_INFO!T26=\"Surveillance\",COUNTRY_INFO!T26=\"Not required\",COUNTRY_INFO!T26=0),0,IF($D26<>0, COUNTRY_INFO!T26,0))","v":107},{"$f":"IF(OR(COUNTRY_INFO!U26=\"Unknown\",COUNTRY_INFO!U26=\"Surveillance\",COUNTRY_INFO!U26=\"Not required\",COUNTRY_INFO!U26=0),0,IF($D26<>0, COUNTRY_INFO!U26,0))","v":256},470,null,null,null,null,null,{"$f":"IF($I26<>\"Yes\",$F26*2,($F26+ROUND(J26*$F26/SUM(COUNTRY_INFO!$E26:$G26),0))*2)","v":214},{"$f":"IF($I26<>\"Yes\",$G26*3,($G26+ROUND(J26*$G26/SUM(COUNTRY_INFO!$E26:$G26),0))*3)","v":768},982,null,982]
[{"$f":"IF(INTRO!$E$43=\"Non-endemic\",\" \", IF(COUNTRY_INFO!A27=0,\" \",COUNTRY_INFO!A27))","v":"Gabon"},{"$f":"IF(INTRO!$E$43=\"Non-endemic\",\" \", IF(COUNTRY_INFO!B27=0,\" \",COUNTRY_INFO!B27))","v":"Haut Ogooué"},{"$f":"IF(INTRO!$E$43=\"Non-endemic\",\" \", IF(COUNTRY_INFO!C27=0,\" \",COUNTRY_INFO!C27))","v":"Djoué"},{"$f":"IF(INTRO!$E$43=\"Non-endemic\", \"Not required\", COUNTRY_INFO!Z27)","v":0},{"$f":"IF(OR(COUNTRY_INFO!S27=\"Unknown\",COUNTRY_INFO!S27=\"Surveillance\",COUNTRY_INFO!S27=\"Not required\",COUNTRY_INFO!S27=0),0,IF($D27<>0, COUNTRY_INFO!S27,0))","v":0},{"$f":"IF(OR(COUNTRY_INFO!T27=\"Unknown\",COUNTRY_INFO!T27=\"Surveillance\",COUNTRY_INFO!T27=\"Not required\",COUNTRY_INFO!T27=0),0,IF($D27<>0, COUNTRY_INFO!T27,0))","v":0},{"$f":"IF(OR(COUNTRY_INFO!U27=\"Unknown\",COUNTRY_INFO!U27=\"Surveillance\",COUNTRY_INFO!U27=\"Not required\",COUNTRY_INFO!U27=0),0,IF($D27<>0, COUNTRY_INFO!U27,0))","v":0},0,null,null,null,null,null,{"$f":"IF($I27<>\"Yes\",$F27*2,($F27+ROUND(J27*$F27/SUM(COUNTRY_INFO!$E27:$G27),0))*2)","v":0},{"$f":"IF($I27<>\"Yes\",$G27*3,($G27+ROUND(J27*$G27/SUM(COUNTRY_INFO!$E27:$G27),0))*3)","v":0},0,null,0]
[{"$f":"IF(INTRO!$E$43=\"Non-endemic\",\" \", IF(COUNTRY_INFO!A28=0,\" \",COUNTRY_INFO!A28))","v":"Gabon"},{"$f":"IF(INTRO!$E$43=\"Non-endemic\",\" \", IF(COUNTRY_INFO!B28=0,\" \",COUNTRY_INFO!B28))","v":"Moyen Ogooué"},{"$f":"IF(INTRO!$E$43=\"Non-endemic\",\" \", IF(COUNTRY_INFO!C28=0,\" \",COUNTRY_INFO!C28))","v":"Ogooué et Lacs"},{"$f":"IF(INTRO!$E$43=\"Non-endemic\", \"Not required\", COUNTRY_INFO!Z28)","v":1},{"$f":"IF(OR(COUNTRY_INFO!S28=\"Unknown\",COUNTRY_INFO!S28=\"Surveillance\",COUNTRY_INFO!S28=\"Not required\",COUNTRY_INFO!S28=0),0,IF($D28<>0, COUNTRY_INFO!S28,0))","v":4392},{"$f":"IF(OR(COUNTRY_INFO!T28=\"Unknown\",COUNTRY_INFO!T28=\"Surveillance\",COUNTRY_INFO!T28=\"Not required\",COUNTRY_INFO!T28=0),0,IF($D28<>0, COUNTRY_INFO!T28,0))","v":4391},{"$f":"IF(OR(COUNTRY_INFO!U28=\"Unknown\",COUNTRY_INFO!U28=\"Surveillance\",COUNTRY_INFO!U28=\"Not required\",COUNTRY_INFO!U28=0),0,IF($D28<>0, COUNTRY_INFO!U28,0))","v":10503},19286,null,null,null,null,null,{"$f":"IF($I28<>\"Yes\",$F28*2,($F28+ROUND(J28*$F28/SUM(COUNTRY_INFO!$E28:$G28),0))*2)","v":8782},{"$f":"IF($I28<>\"Yes\",$G28*3,($G28+ROUND(J28*$G28/SUM(COUNTRY_INFO!$E28:$G28),0))*3)","v":31509},40291,null,40291]
[{"$f":"IF(INTRO!$E$43=\"Non-endemic\",\" \", IF(COUNTRY_INFO!A29=0,\" \",COUNTRY_INFO!A29))","v":"Gabon"},{"$f":"IF(INTRO!$E$43=\"Non-endemic\",\" \", IF(COUNTRY_INFO!B29=0,\" \",COUNTRY_INFO!B29))","v":"Moyen Ogooué"},{"$f":"IF(INTRO!$E$43=\"Non-endemic\",\" \", IF(COUNTRY_INFO!C29=0,\" \",COUNTRY_INFO!C29))","v":"Abanga -Bigné"},{"$f":"IF(INTRO!$E$43=\"Non-endemic\", \"Not required\", COUNTRY_INFO!Z29)","v":1},{"$f":"IF(OR(COUNTRY_INFO!S29=\"Unknown\",COUNTRY_INFO!S29=\"Surveillance\",COUNTRY_INFO!S29=\"Not required\",COUNTRY_INFO!S29=0),0,IF($D29<>0, COUNTRY_INFO!S29,0))","v":91},{"$f":"IF(OR(COUNTRY_INFO!T29=\"Unknown\",COUNTRY_INFO!T29=\"Surveillance\",COUNTRY_INFO!T29=\"Not required\",COUNTRY_INFO!T29=0),0,IF($D29<>0, COUNTRY_INFO!T29,0))","v":91},{"$f":"IF(OR(COUNTRY_INFO!U29=\"Unknown\",COUNTRY_INFO!U29=\"Surveillance\",COUNTRY_INFO!U29=\"Not required\",COUNTRY_INFO!U29=0),0,IF($D29<>0, COUNTRY_INFO!U29,0))","v":215},397,null,null,null,null,null,{"$f":"IF($I29<>\"Yes\",$F29*2,($F29+ROUND(J29*$F29/SUM(COUNTRY_INFO!$E29:$G29),0))*2)","v":182},{"$f":"IF($I29<>\"Yes\",$G29*3,($G29+ROUND(J29*$G29/SUM(COUNTRY_INFO!$E29:$G29),0))*3)","v":645},827,null,827]
[{"$f":"IF(INTRO!$E$43=\"Non-endemic\",\" \", IF(COUNTRY_INFO!A30=0,\" \",COUNTRY_INFO!A30))","v":"Gabon"},{"$f":"IF(INTRO!$E$43=\"Non-endemic\",\" \", IF(COUNTRY_INFO!B30=0,\" \",COUNTRY_INFO!B30))","v":"Ngounié"},{"$f":"IF(INTRO!$E$43=\"Non-endemic\",\" \", IF(COUNTRY_INFO!C30=0,\" \",COUNTRY_INFO!C30))","v":"Tsamba -Magotsi"},{"$f":"IF(INTRO!$E$43=\"Non-endemic\", \"Not required\", COUNTRY_INFO!Z30)","v":1},{"$f":"IF(OR(COUNTRY_INFO!S30=\"Unknown\",COUNTRY_INFO!S30=\"Surveillance\",COUNTRY_INFO!S30=\"Not required\",COUNTRY_INFO!S30=0),0,IF($D30<>0, COUNTRY_INFO!S30,0))","v":684},{"$f":"IF(OR(COUNTRY_INFO!T30=\"Unknown\",COUNTRY_INFO!T30=\"Surveillance\",COUNTRY_INFO!T30=\"Not required\",COUNTRY_INFO!T30=0),0,IF($D30<>0, COUNTRY_INFO!T30,0))","v":684},{"$f":"IF(OR(COUNTRY_INFO!U30=\"Unknown\",COUNTRY_INFO!U30=\"Surveillance\",COUNTRY_INFO!U30=\"Not required\",COUNTRY_INFO!U30=0),0,IF($D30<>0, COUNTRY_INFO!U30,0))","v":1639},3007,null,null,null,null,null,{"$f":"IF($I30<>\"Yes\",$F30*2,($F30+ROUND(J30*$F30/SUM(COUNTRY_INFO!$E30:$G30),0))*2)","v":1368},{"$f":"IF($I30<>\"Yes\",$G30*3,($G30+ROUND(J30*$G30/SUM(COUNTRY_INFO!$E30:$G30),0))*3)","v":4917},6285,null,6285]
[{"$f":"IF(INTRO!$E$43=\"Non-endemic\",\" \", IF(COUNTRY_INFO!A31=0,\" \",COUNTRY_INFO!A31))","v":"Gabon"},{"$f":"IF(INTRO!$E$43=\"Non-endemic\",\" \", IF(COUNTRY_INFO!B31=0,\" \",COUNTRY_INFO!B31))","v":"Ngounié"},{"$f":"IF(INTRO!$E$43=\"Non-endemic\",\" \", IF(COUNTRY_INFO!C31=0,\" \",COUNTRY_INFO!C31))","v":"Louetsi-Wano"},{"$f":"IF(INTRO!$E$43=\"Non-endemic\", \"Not required\", COUNTRY_INFO!Z31)","v":0},{"$f":"IF(OR(COUNTRY_INFO!S31=\"Unknown\",COUNTRY_INFO!S31=\"Surveillance\",COUNTRY_INFO!S31=\"Not required\",COUNTRY_INFO!S31=0),0,IF($D31<>0, COUNTRY_INFO!S31,0))","v":0},{"$f":"IF(OR(COUNTRY_INFO!T31=\"Unknown\",COUNTRY_INFO!T31=\"Surveillance\",COUNTRY_INFO!T31=\"Not required\",COUNTRY_INFO!T31=0),0,IF($D31<>0, COUNTRY_INFO!T31,0))","v":0},{"$f":"IF(OR(COUNTRY_INFO!U31=\"Unknown\",COUNTRY_INFO!U31=\"Surveillance\",COUNTRY_INFO!U31=\"Not required\",COUNTRY_INFO!U31=0),0,IF($D31<>0, COUNTRY_INFO!U31,0))","v":0},0,null,null,null,null,null,{"$f":"IF($I31<>\"Yes\",$F31*2,($F31+ROUND(J31*$F31/SUM(COUNTRY_INFO!$E31:$G31),0))*2)","v":0},{"$f":"IF($I31<>\"Yes\",$G31*3,($G31+ROUND(J31*$G31/SUM(COUNTRY_INFO!$E31:$G31),0))*3)","v":0},0,null,0]
[{"$f":"IF(INTRO!$E$43=\"Non-endemic\",\" \", IF(COUNTRY_INFO!A32=0,\" \",COUNTRY_INFO!A32))","v":"Gabon"},{"$f":"IF(INTRO!$E$43=\"Non-endemic\",\" \", IF(COUNTRY_INFO!B32=0,\" \",COUNTRY_INFO!B32))","v":"Ngounié"},{"$f":"IF(INTRO!$E$43=\"Non-endemic\",\" \", IF(COUNTRY_INFO!C32=0,\" \",COUNTRY_INFO!C32))","v":"Louetsi-Bibaka"},{"$f":"IF(INTRO!$E$43=\"Non-endemic\", \"Not required\", COUNTRY_INFO!Z32)","v":0},{"$f":"IF(OR(COUNTRY_INFO!S32=\"Unknown\",COUNTRY_INFO!S32=\"Surveillance\",COUNTRY_INFO!S32=\"Not required\",COUNTRY_INFO!S32=0),0,IF($D32<>0, COUNTRY_INFO!S32,0))","v":0},{"$f":"IF(OR(COUNTRY_INFO!T32=\"Unknown\",COUNTRY_INFO!T32=\"Surveillance\",COUNTRY_INFO!T32=\"Not required\",COUNTRY_INFO!T32=0),0,IF($D32<>0, COUNTRY_INFO!T32,0))","v":0},{"$f":"IF(OR(COUNTRY_INFO!U32=\"Unknown\",COUNTRY_INFO!U32=\"Surveillance\",COUNTRY_INFO!U32=\"Not required\",COUNTRY_INFO!U32=0),0,IF($D32<>0, COUNTRY_INFO!U32,0))","v":0},0,null,null,null,null,null,{"$f":"IF($I32<>\"Yes\",$F32*2,($F32+ROUND(J32*$F32/SUM(COUNTRY_INFO!$E32:$G32),0))*2)","v":0},{"$f":"IF($I32<>\"Yes\",$G32*3,($G32+ROUND(J32*$G32/SUM(COUNTRY_INFO!$E32:$G32),0))*3)","v":0},0,null,0]
[{"$f":"IF(INTRO!$E$43=\"Non-endemic\",\" \", IF(COUNTRY_INFO!A33=0,\" \",COUNTRY_INFO!A33))","v":"Gabon"},{"$f":"IF(INTRO!$E$43=\"Non-endemic\",\" \", IF(COUNTRY_INFO!B33=0,\" \",COUNTRY_INFO!B33))","v":"Ngounié"},{"$f":"IF(INTRO!$E$43=\"Non-endemic\",\" \", IF(COUNTRY_INFO!C33=0,\" \",COUNTRY_INFO!C33))","v":"Ndolou"},{"$f":"IF(INTRO!$E$43=\"Non-endemic\", \"Not required\", COUNTRY_INFO!Z33)","v":0},{"$f":"IF(OR(COUNTRY_INFO!S33=\"Unknown\",COUNTRY_INFO!S33=\"Surveillance\",COUNTRY_INFO!S33=\"Not required\",COUNTRY_INFO!S33=0),0,IF($D33<>0, COUNTRY_INFO!S33,0))","v":0},{"$f":"IF(OR(COUNTRY_INFO!T33=\"Unknown\",COUNTRY_INFO!T33=\"Surveillance\",COUNTRY_INFO!T33=\"Not required\",COUNTRY_INFO!T33=0),0,IF($D33<>0, COUNTRY_INFO!T33,0))","v":0},{"$f":"IF(OR(COUNTRY_INFO!U33=\"Unknown\",COUNTRY_INFO!U33=\"Surveillance\",COUNTRY_INFO!U33=\"Not required\",COUNTRY_INFO!U33=0),0,IF($D33<>0, COUNTRY_INFO!U33,0))","v":0},0,null,null,null,null,null,{"$f":"IF($I33<>\"Yes\",$F33*2,($F33+ROUND(J33*$F33/SUM(COUNTRY_INFO!$E33:$G33),0))*2)","v":0},{"$f":"IF($I33<>\"Yes\",$G33*3,($G33+ROUND(J33*$G33/SUM(COUNTRY_INFO!$E33:$G33),0))*3)","v":0},0,null,0]
[{"$f":"IF(INTRO!$E$43=\"Non-endemic\",\" \", IF(COUNTRY_INFO!A34=0,\" \",COUNTRY_INFO!A34))","v":"Gabon"},{"$f":"IF(INTRO!$E$43=\"Non-endemic\",\" \", IF(COUNTRY_INFO!B34=0,\" \",COUNTRY_INFO!B34))","v":"Ngounié"},{"$f":"IF(INTRO!$E$43=\"Non-endemic\",\" \", IF(COUNTRY_INFO!C34=0,\" \",COUNTRY_INFO!C34))","v":"Boumi-Louetsi"},{"$f":"IF(INTRO!$E$43=\"Non-endemic\", \"Not required\", COUNTRY_INFO!Z34)","v":0},{"$f":"IF(OR(COUNTRY_INFO!S34=\"Unknown\",COUNTRY_INFO!S34=\"Surveillance\",COUNTRY_INFO!S34=\"Not required\",COUNTRY_INFO!S34=0),0,IF($D34<>0, COUNTRY_INFO!S34,0))","v":0},{"$f":"IF(OR(COUNTRY_INFO!T34=\"Unknown\",COUNTRY_INFO!T34=\"Surveillance\",COUNTRY_INFO!T34=\"Not required\",COUNTRY_INFO!T34=0),0,IF($D34<>0, COUNTRY_INFO!T34,0))","v":0},{"$f":"IF(OR(COUNTRY_INFO!U34=\"Unknown\",COUNTRY_INFO!U34=\"Surveillance\",COUNTRY_INFO!U34=\"Not required\",COUNTRY_INFO!U34=0),0,IF($D34<>0, COUNTRY_INFO!U34,0))","v":0},0,null,null,null,null,null,{"$f":"IF($I34<>\"Yes\",$F34*2,($F34+ROUND(J34*$F34/SUM(COUNTRY_INFO!$E34:$G34),0))*2)","v":0},{"$f":"IF($I34<>\"Yes\",$G34*3,($G34+ROUND(J34*$G34/SUM(COUNTRY_INFO!$E34:$G34),0))*3)","v":0},0,null,0]
[{"$f":"IF(INTRO!$E$43=\"Non-endemic\",\" \", IF(COUNTRY_INFO!A35=0,\" \",COUNTRY_INFO!A35))","v":"Gabon"},{"$f":"IF(INTRO!$E$43=\"Non-endemic\",\" \", IF(COUNTRY_INFO!B35=0,\" \",COUNTRY_INFO!B35))","v":"Ngounié"},{"$f":"IF(INTRO!$E$43=\"Non-endemic\",\" \", IF(COUNTRY_INFO!C35=0,\" \",COUNTRY_INFO!C35))","v":"Ogoulou"},{"$f":"IF(INTRO!$E$43=\"Non-endemic\", \"Not required\", COUNTRY_INFO!Z35)","v":0},{"$f":"IF(OR(COUNTRY_INFO!S35=\"Unknown\",COUNTRY_INFO!S35=\"Surveillance\",COUNTRY_INFO!S35=\"Not required\",COUNTRY_INFO!S35=0),0,IF($D35<>0, COUNTRY_INFO!S35,0))","v":0},{"$f":"IF(OR(COUNTRY_INFO!T35=\"Unknown\",COUNTRY_INFO!T35=\"Surveillance\",COUNTRY_INFO!T35=\"Not required\",COUNTRY_INFO!T35=0),0,IF($D35<>0, COUNTRY_INFO!T35,0))","v":0},{"$f":"IF(OR(COUNTRY_INFO!U35=\"Unknown\",COUNTRY_INFO!U35=\"Surveillance\",COUNTRY_INFO!U35=\"Not required\",COUNTRY_INFO!U35=0),0,IF($D35<>0, COUNTRY_INFO!U35,0))","v":0},0,null,null,null,null,null,{"$f":"IF($I35<>\"Yes\",$F35*2,($F35+ROUND(J35*$F35/SUM(COUNTRY_INFO!$E35:$G35),0))*2)","v":0},{"$f":"IF($I35<>\"Yes\",$G35*3,($G35+ROUND(J35*$G35/SUM(COUNTRY_INFO!$E35:$G35),0))*3)","v":0},0,null,0]
[{"$f":"IF(INTRO!$E$43=\"Non-endemic\",\" \", IF(COUNTRY_INFO!A36=0,\" \",COUNTRY_INFO!A36))","v":"Gabon"},{"$f":"IF(INTRO!$E$43=\"Non-endemic\",\" \", IF(COUNTRY_INFO!B36=0,\" \",COUNTRY_INFO!B36))","v":"Ngounié"},{"$f":"IF(INTRO!$E$43=\"Non-endemic\",\" \", IF(COUNTRY_INFO!C36=0,\" \",COUNTRY_INFO!C36))","v":"Douya-Onoye"},{"$f":"IF(INTRO!$E$43=\"Non-endemic\", \"Not required\", COUNTRY_INFO!Z36)","v":1},{"$f":"IF(OR(COUNTRY_INFO!S36=\"Unknown\",COUNTRY_INFO!S36=\"Surveillance\",COUNTRY_INFO!S36=\"Not required\",COUNTRY_INFO!S36=0),0,IF($D36<>0, COUNTRY_INFO!S36,0))","v":2998},{"$f":"IF(OR(COUNTRY_INFO!T36=\"Unknown\",COUNTRY_INFO!T36=\"Surveillance\",COUNTRY_INFO!T36=\"Not required\",COUNTRY_INFO!T36=0),0,IF($D36<>0, COUNTRY_INFO!T36,0))","v":2998},{"$f":"IF(OR(COUNTRY_INFO!U36=\"Unknown\",COUNTRY_INFO!U36=\"Surveillance\",COUNTRY_INFO!U36=\"Not required\",COUNTRY_INFO!U36=0),0,IF($D36<>0, COUNTRY_INFO!U36,0))","v":7175},13171,null,null,null,null,null,{"$f":"IF($I36<>\"Yes\",$F36*2,($F36+ROUND(J36*$F36/SUM(COUNTRY_INFO!$E36:$G36),0))*2)","v":5996},{"$f":"IF($I36<>\"Yes\",$G36*3,($G36+ROUND(J36*$G36/SUM(COUNTRY_INFO!$E36:$G36),0))*3)","v":21525},27521,null,27521]
[{"$f":"IF(INTRO!$E$43=\"Non-endemic\",\" \", IF(COUNTRY_INFO!A37=0,\" \",COUNTRY_INFO!A37))","v":"Gabon"},{"$f":"IF(INTRO!$E$43=\"Non-endemic\",\" \", IF(COUNTRY_INFO!B37=0,\" \",COUNTRY_INFO!B37))","v":"Ngounié"},{"$f":"IF(INTRO!$E$43=\"Non-endemic\",\" \", IF(COUNTRY_INFO!C37=0,\" \",COUNTRY_INFO!C37))","v":"Dola"},{"$f":"IF(INTRO!$E$43=\"Non-endemic\", \"Not required\", COUNTRY_INFO!Z37)","v":1},{"$f":"IF(OR(COUNTRY_INFO!S37=\"Unknown\",COUNTRY_INFO!S37=\"Surveillance\",COUNTRY_INFO!S37=\"Not required\",COUNTRY_INFO!S37=0),0,IF($D37<>0, COUNTRY_INFO!S37,0))","v":672},{"$f":"IF(OR(COUNTRY_INFO!T37=\"Unknown\",COUNTRY_INFO!T37=\"Surveillance\",COUNTRY_INFO!T37=\"Not required\",COUNTRY_INFO!T37=0),0,IF($D37<>0, COUNTRY_INFO!T37,0))","v":672},{"$f":"IF(OR(COUNTRY_INFO!U37=\"Unknown\",COUNTRY_INFO!U37=\"Surveillance\",COUNTRY_INFO!U37=\"Not required\",COUNTRY_INFO!U37=0),0,IF($D37<>0, COUNTRY_INFO!U37,0))","v":1608},2952,null,null,null,null,null,{"$f":"IF($I37<>\"Yes\",$F37*2,($F37+ROUND(J37*$F37/SUM(COUNTRY_INFO!$E37:$G37),0))*2)","v":1344},{"$f":"IF($I37<>\"Yes\",$G37*3,($G37+ROUND(J37*$G37/SUM(COUNTRY_INFO!$E37:$G37),0))*3)","v":4824},6168,null,6168]
[{"$f":"IF(INTRO!$E$43=\"Non-endemic\",\" \", IF(COUNTRY_INFO!A38=0,\" \",COUNTRY_INFO!A38))","v":"Gabon"},{"$f":"IF(INTRO!$E$43=\"Non-endemic\",\" \", IF(COUNTRY_INFO!B38=0,\" \",COUNTRY_INFO!B38))","v":"Ngounié"},{"$f":"IF(INTRO!$E$43=\"Non-endemic\",\" \", IF(COUNTRY_INFO!C38=0,\" \",COUNTRY_INFO!C38))","v":"Mougalaba"},{"$f":"IF(INTRO!$E$43=\"Non-endemic\", \"Not required\", COUNTRY_INFO!Z38)","v":0},{"$f":"IF(OR(COUNTRY_INFO!S38=\"Unknown\",COUNTRY_INFO!S38=\"Surveillance\",COUNTRY_INFO!S38=\"Not required\",COUNTRY_INFO!S38=0),0,IF($D38<>0, COUNTRY_INFO!S38,0))","v":0},{"$f":"IF(OR(COUNTRY_INFO!T38=\"Unknown\",COUNTRY_INFO!T38=\"Surveillance\",COUNTRY_INFO!T38=\"Not required\",COUNTRY_INFO!T38=0),0,IF($D38<>0, COUNTRY_INFO!T38,0))","v":0},{"$f":"IF(OR(COUNTRY_INFO!U38=\"Unknown\",COUNTRY_INFO!U38=\"Surveillance\",COUNTRY_INFO!U38=\"Not required\",COUNTRY_INFO!U38=0),0,IF($D38<>0, COUNTRY_INFO!U38,0))","v":0},0,null,null,null,null,null,{"$f":"IF($I38<>\"Yes\",$F38*2,($F38+ROUND(J38*$F38/SUM(COUNTRY_INFO!$E38:$G38),0))*2)","v":0},{"$f":"IF($I38<>\"Yes\",$G38*3,($G38+ROUND(J38*$G38/SUM(COUNTRY_INFO!$E38:$G38),0))*3)","v":0},0,null,0]
[{"$f":"IF(INTRO!$E$43=\"Non-endemic\",\" \", IF(COUNTRY_INFO!A39=0,\" \",COUNTRY_INFO!A39))","v":"Gabon"},{"$f":"IF(INTRO!$E$43=\"Non-endemic\",\" \", IF(COUNTRY_INFO!B39=0,\" \",COUNTRY_INFO!B39))","v":"Nyanga"},{"$f":"IF(INTRO!$E$43=\"Non-endemic\",\" \", IF(COUNTRY_INFO!C39=0,\" \",COUNTRY_INFO!C39))","v":"Doutsila"},{"$f":"IF(INTRO!$E$43=\"Non-endemic\", \"Not required\", COUNTRY_INFO!Z39)","v":0},{"$f":"IF(OR(COUNTRY_INFO!S39=\"Unknown\",COUNTRY_INFO!S39=\"Surveillance\",COUNTRY_INFO!S39=\"Not required\",COUNTRY_INFO!S39=0),0,IF($D39<>0, COUNTRY_INFO!S39,0))","v":0},{"$f":"IF(OR(COUNTRY_INFO!T39=\"Unknown\",COUNTRY_INFO!T39=\"Surveillance\",COUNTRY_INFO!T39=\"Not required\",COUNTRY_INFO!T39=0),0,IF($D39<>0, COUNTRY_INFO!T39,0))","v":0},{"$f":"IF(OR(COUNTRY_INFO!U39=\"Unknown\",COUNTRY_INFO!U39=\"Surveillance\",COUNTRY_INFO!U39=\"Not required\",COUNTRY_INFO!U39=0),0,IF($D39<>0, COUNTRY_INFO!U39,0))","v":0},0,null,null,null,null,null,{"$f":"IF($I39<>\"Yes\",$F39*2,($F39+ROUND(J39*$F39/SUM(COUNTRY_INFO!$E39:$G39),0))*2)","v":0},{"$f":"IF($I39<>\"Yes\",$G39*3,($G39+ROUND(J39*$G39/SUM(COUNTRY_INFO!$E39:$G39),0))*3)","v":0},0,null,0]
[{"$f":"IF(INTRO!$E$43=\"Non-endemic\",\" \", IF(COUNTRY_INFO!A40=0,\" \",COUNTRY_INFO!A40))","v":"Gabon"},{"$f":"IF(INTRO!$E$43=\"Non-endemic\",\" \", IF(COUNTRY_INFO!B40=0,\" \",COUNTRY_INFO!B40))","v":"Nyanga"},{"$f":"IF(INTRO!$E$43=\"Non-endemic\",\" \", IF(COUNTRY_INFO!C40=0,\" \",COUNTRY_INFO!C40))","v":"Basse-Banio"},{"$f":"IF(INTRO!$E$43=\"Non-endemic\", \"Not required\", COUNTRY_INFO!Z40)","v":0},{"$f":"IF(OR(COUNTRY_INFO!S40=\"Unknown\",COUNTRY_INFO!S40=\"Surveillance\",COUNTRY_INFO!S40=\"Not required\",COUNTRY_INFO!S40=0),0,IF($D40<>0, COUNTRY_INFO!S40,0))","v":0},{"$f":"IF(OR(COUNTRY_INFO!T40=\"Unknown\",COUNTRY_INFO!T40=\"Surveillance\",COUNTRY_INFO!T40=\"Not required\",COUNTRY_INFO!T40=0),0,IF($D40<>0, COUNTRY_INFO!T40,0))","v":0},{"$f":"IF(OR(COUNTRY_INFO!U40=\"Unknown\",COUNTRY_INFO!U40=\"Surveillance\",COUNTRY_INFO!U40=\"Not required\",COUNTRY_INFO!U40=0),0,IF($D40<>0, COUNTRY_INFO!U40,0))","v":0},0,null,null,null,null,null,{"$f":"IF($I40<>\"Yes\",$F40*2,($F40+ROUND(J40*$F40/SUM(COUNTRY_INFO!$E40:$G40),0))*2)","v":0},{"$f":"IF($I40<>\"Yes\",$G40*3,($G40+ROUND(J40*$G40/SUM(COUNTRY_INFO!$E40:$G40),0))*3)","v":0},0,null,0]
[{"$f":"IF(INTRO!$E$43=\"Non-endemic\",\" \", IF(COUNTRY_INFO!A41=0,\" \",COUNTRY_INFO!A41))","v":"Gabon"},{"$f":"IF(INTRO!$E$43=\"Non-endemic\",\" \", IF(COUNTRY_INFO!B41=0,\" \",COUNTRY_INFO!B41))","v":"Nyanga"},{"$f":"IF(INTRO!$E$43=\"Non-endemic\",\" \", IF(COUNTRY_INFO!C41=0,\" \",COUNTRY_INFO!C41))","v":"Douigny"},{"$f":"IF(INTRO!$E$43=\"Non-endemic\", \"Not required\", COUNTRY_INFO!Z41)","v":0},{"$f":"IF(OR(COUNTRY_INFO!S41=\"Unknown\",COUNTRY_INFO!S41=\"Surveillance\",COUNTRY_INFO!S41=\"Not required\",COUNTRY_INFO!S41=0),0,IF($D41<>0, COUNTRY_INFO!S41,0))","v":0},{"$f":"IF(OR(COUNTRY_INFO!T41=\"Unknown\",COUNTRY_INFO!T41=\"Surveillance\",COUNTRY_INFO!T41=\"Not required\",COUNTRY_INFO!T41=0),0,IF($D41<>0, COUNTRY_INFO!T41,0))","v":0},{"$f":"IF(OR(COUNTRY_INFO!U41=\"Unknown\",COUNTRY_INFO!U41=\"Surveillance\",COUNTRY_INFO!U41=\"Not required\",COUNTRY_INFO!U41=0),0,IF($D41<>0, COUNTRY_INFO!U41,0))","v":0},0,null,null,null,null,null,{"$f":"IF($I41<>\"Yes\",$F41*2,($F41+ROUND(J41*$F41/SUM(COUNTRY_INFO!$E41:$G41),0))*2)","v":0},{"$f":"IF($I41<>\"Yes\",$G41*3,($G41+ROUND(J41*$G41/SUM(COUNTRY_INFO!$E41:$G41),0))*3)","v":0},0,null,0]
[{"$f":"IF(INTRO!$E$43=\"Non-endemic\",\" \", IF(COUNTRY_INFO!A42=0,\" \",COUNTRY_INFO!A42))","v":"Gabon"},{"$f":"IF(INTRO!$E$43=\"Non-endemic\",\" \", IF(COUNTRY_INFO!B42=0,\" \",COUNTRY_INFO!B42))","v":"Nyanga"},{"$f":"IF(INTRO!$E$43=\"Non-endemic\",\" \", IF(COUNTRY_INFO!C42=0,\" \",COUNTRY_INFO!C42))","v":"Mongo"},{"$f":"IF(INTRO!$E$43=\"Non-endemic\", \"Not required\", COUNTRY_INFO!Z42)","v":0},{"$f":"IF(OR(COUNTRY_INFO!S42=\"Unknown\",COUNTRY_INFO!S42=\"Surveillance\",COUNTRY_INFO!S42=\"Not required\",COUNTRY_INFO!S42=0),0,IF($D42<>0, COUNTRY_INFO!S42,0))","v":0},{"$f":"IF(OR(COUNTRY_INFO!T42=\"Unknown\",COUNTRY_INFO!T42=\"Surveillance\",COUNTRY_INFO!T42=\"Not required\",COUNTRY_INFO!T42=0),0,IF($D42<>0, COUNTRY_INFO!T42,0))","v":0},{"$f":"IF(OR(COUNTRY_INFO!U42=\"Unknown\",COUNTRY_INFO!U42=\"Surveillance\",COUNTRY_INFO!U42=\"Not required\",COUNTRY_INFO!U42=0),0,IF($D42<>0, COUNTRY_INFO!U42,0))","v":0},0,null,null,null,null,null,{"$f":"IF($I42<>\"Yes\",$F42*2,($F42+ROUND(J42*$F42/SUM(COUNTRY_INFO!$E42:$G42),0))*2)","v":0},{"$f":"IF($I42<>\"Yes\",$G42*3,($G42+ROUND(J42*$G42/SUM(COUNTRY_INFO!$E42:$G42),0))*3)","v":0},0,null,0]
[{"$f":"IF(INTRO!$E$43=\"Non-endemic\",\" \", IF(COUNTRY_INFO!A43=0,\" \",COUNTRY_INFO!A43))","v":"Gabon"},{"$f":"IF(INTRO!$E$43=\"Non-endemic\",\" \", IF(COUNTRY_INFO!B43=0,\" \",COUNTRY_INFO!B43))","v":"Nyanga"},{"$f":"IF(INTRO!$E$43=\"Non-endemic\",\" \", IF(COUNTRY_INFO!C43=0,\" \",COUNTRY_INFO!C43))","v":"Haute-Banio"},{"$f":"IF(INTRO!$E$43=\"Non-endemic\", \"Not required\", COUNTRY_INFO!Z43)","v":0},{"$f":"IF(OR(COUNTRY_INFO!S43=\"Unknown\",COUNTRY_INFO!S43=\"Surveillance\",COUNTRY_INFO!S43=\"Not required\",COUNTRY_INFO!S43=0),0,IF($D43<>0, COUNTRY_INFO!S43,0))","v":0},{"$f":"IF(OR(COUNTRY_INFO!T43=\"Unknown\",COUNTRY_INFO!T43=\"Surveillance\",COUNTRY_INFO!T43=\"Not required\",COUNTRY_INFO!T43=0),0,IF($D43<>0, COUNTRY_INFO!T43,0))","v":0},{"$f":"IF(OR(COUNTRY_INFO!U43=\"Unknown\",COUNTRY_INFO!U43=\"Surveillance\",COUNTRY_INFO!U43=\"Not required\",COUNTRY_INFO!U43=0),0,IF($D43<>0, COUNTRY_INFO!U43,0))","v":0},0,null,null,null,null,null,{"$f":"IF($I43<>\"Yes\",$F43*2,($F43+ROUND(J43*$F43/SUM(COUNTRY_INFO!$E43:$G43),0))*2)","v":0},{"$f":"IF($I43<>\"Yes\",$G43*3,($G43+ROUND(J43*$G43/SUM(COUNTRY_INFO!$E43:$G43),0))*3)","v":0},0,null,0]
[{"$f":"IF(INTRO!$E$43=\"Non-endemic\",\" \", IF(COUNTRY_INFO!A44=0,\" \",COUNTRY_INFO!A44))","v":"Gabon"},{"$f":"IF(INTRO!$E$43=\"Non-endemic\",\" \", IF(COUNTRY_INFO!B44=0,\" \",COUNTRY_INFO!B44))","v":"Nyanga"},{"$f":"IF(INTRO!$E$43=\"Non-endemic\",\" \", IF(COUNTRY_INFO!C44=0,\" \",COUNTRY_INFO!C44))","v":"Mougoutsi"},{"$f":"IF(INTRO!$E$43=\"Non-endemic\", \"Not required\", COUNTRY_INFO!Z44)","v":0},{"$f":"IF(OR(COUNTRY_INFO!S44=\"Unknown\",COUNTRY_INFO!S44=\"Surveillance\",COUNTRY_INFO!S44=\"Not required\",COUNTRY_INFO!S44=0),0,IF($D44<>0, COUNTRY_INFO!S44,0))","v":0},{"$f":"IF(OR(COUNTRY_INFO!T44=\"Unknown\",COUNTRY_INFO!T44=\"Surveillance\",COUNTRY_INFO!T44=\"Not required\",COUNTRY_INFO!T44=0),0,IF($D44<>0, COUNTRY_INFO!T44,0))","v":0},{"$f":"IF(OR(COUNTRY_INFO!U44=\"Unknown\",COUNTRY_INFO!U44=\"Surveillance\",COUNTRY_INFO!U44=\"Not required\",COUNTRY_INFO!U44=0),0,IF($D44<>0, COUNTRY_INFO!U44,0))","v":0},0,null,null,null,null,null,{"$f":"IF($I44<>\"Yes\",$F44*2,($F44+ROUND(J44*$F44/SUM(COUNTRY_INFO!$E44:$G44),0))*2)","v":0},{"$f":"IF($I44<>\"Yes\",$G44*3,($G44+ROUND(J44*$G44/SUM(COUNTRY_INFO!$E44:$G44),0))*3)","v":0},0,null,0]
[{"$f":"IF(INTRO!$E$43=\"Non-endemic\",\" \", IF(COUNTRY_INFO!A45=0,\" \",COUNTRY_INFO!A45))","v":"Gabon"},{"$f":"IF(INTRO!$E$43=\"Non-endemic\",\" \", IF(COUNTRY_INFO!B45=0,\" \",COUNTRY_INFO!B45))","v":"Ogooué-Ivindo"},{"$f":"IF(INTRO!$E$43=\"Non-endemic\",\" \", IF(COUNTRY_INFO!C45=0,\" \",COUNTRY_INFO!C45))","v":"Lopé"},{"$f":"IF(INTRO!$E$43=\"Non-endemic\", \"Not required\", COUNTRY_INFO!Z45)","v":0},{"$f":"IF(OR(COUNTRY_INFO!S45=\"Unknown\",COUNTRY_INFO!S45=\"Surveillance\",COUNTRY_INFO!S45=\"Not required\",COUNTRY_INFO!S45=0),0,IF($D45<>0, COUNTRY_INFO!S45,0))","v":0},{"$f":"IF(OR(COUNTRY_INFO!T45=\"Unknown\",COUNTRY_INFO!T45=\"Surveillance\",COUNTRY_INFO!T45=\"Not required\",COUNTRY_INFO!T45=0),0,IF($D45<>0, COUNTRY_INFO!T45,0))","v":0},{"$f":"IF(OR(COUNTRY_INFO!U45=\"Unknown\",COUNTRY_INFO!U45=\"Surveillance\",COUNTRY_INFO!U45=\"Not required\",COUNTRY_INFO!U45=0),0,IF($D45<>0, COUNTRY_INFO!U45,0))","v":0},0,null,null,null,null,null,{"$f":"IF($I45<>\"Yes\",$F45*2,($F45+ROUND(J45*$F45/SUM(COUNTRY_INFO!$E45:$G45),0))*2)","v":0},{"$f":"IF($I45<>\"Yes\",$G45*3,($G45+ROUND(J45*$G45/SUM(COUNTRY_INFO!$E45:$G45),0))*3)","v":0},0,null,0]
[{"$f":"IF(INTRO!$E$43=\"Non-endemic\",\" \", IF(COUNTRY_INFO!A46=0,\" \",COUNTRY_INFO!A46))","v":"Gabon"},{"$f":"IF(INTRO!$E$43=\"Non-endemic\",\" \", IF(COUNTRY_INFO!B46=0,\" \",COUNTRY_INFO!B46))","v":"Ogooué-Ivindo"},{"$f":"IF(INTRO!$E$43=\"Non-endemic\",\" \", IF(COUNTRY_INFO!C46=0,\" \",COUNTRY_INFO!C46))","v":"Ivindo"},{"$f":"IF(INTRO!$E$43=\"Non-endemic\", \"Not required\", COUNTRY_INFO!Z46)","v":0},{"$f":"IF(OR(COUNTRY_INFO!S46=\"Unknown\",COUNTRY_INFO!S46=\"Surveillance\",COUNTRY_INFO!S46=\"Not required\",COUNTRY_INFO!S46=0),0,IF($D46<>0, COUNTRY_INFO!S46,0))","v":0},{"$f":"IF(OR(COUNTRY_INFO!T46=\"Unknown\",COUNTRY_INFO!T46=\"Surveillance\",COUNTRY_INFO!T46=\"Not required\",COUNTRY_INFO!T46=0),0,IF($D46<>0, COUNTRY_INFO!T46,0))","v":0},{"$f":"IF(OR(COUNTRY_INFO!U46=\"Unknown\",COUNTRY_INFO!U46=\"Surveillance\",COUNTRY_INFO!U46=\"Not required\",COUNTRY_INFO!U46=0),0,IF($D46<>0, COUNTRY_INFO!U46,0))","v":0},0,null,null,null,null,null,{"$f":"IF($I46<>\"Yes\",$F46*2,($F46+ROUND(J46*$F46/SUM(COUNTRY_INFO!$E46:$G46),0))*2)","v":0},{"$f":"IF($I46<>\"Yes\",$G46*3,($G46+ROUND(J46*$G46/SUM(COUNTRY_INFO!$E46:$G46),0))*3)","v":0},0,null,0]
[{"$f":"IF(INTRO!$E$43=\"Non-endemic\",\" \", IF(COUNTRY_INFO!A47=0,\" \",COUNTRY_INFO!A47))","v":"Gabon"},{"$f":"IF(INTRO!$E$43=\"Non-endemic\",\" \", IF(COUNTRY_INFO!B47=0,\" \",COUNTRY_INFO!B47))","v":"Ogooué-Ivindo"},{"$f":"IF(INTRO!$E$43=\"Non-endemic\",\" \", IF(COUNTRY_INFO!C47=0,\" \",COUNTRY_INFO!C47))","v":"Zadié"},{"$f":"IF(INTRO!$E$43=\"Non-endemic\", \"Not required\", COUNTRY_INFO!Z47)","v":0},{"$f":"IF(OR(COUNTRY_INFO!S47=\"Unknown\",COUNTRY_INFO!S47=\"Surveillance\",COUNTRY_INFO!S47=\"Not required\",COUNTRY_INFO!S47=0),0,IF($D47<>0, COUNTRY_INFO!S47,0))","v":0},{"$f":"IF(OR(COUNTRY_INFO!T47=\"Unknown\",COUNTRY_INFO!T47=\"Surveillance\",COUNTRY_INFO!T47=\"Not required\",COUNTRY_INFO!T47=0),0,IF($D47<>0, COUNTRY_INFO!T47,0))","v":0},{"$f":"IF(OR(COUNTRY_INFO!U47=\"Unknown\",COUNTRY_INFO!U47=\"Surveillance\",COUNTRY_INFO!U47=\"Not required\",COUNTRY_INFO!U47=0),0,IF($D47<>0, COUNTRY_INFO!U47,0))","v":0},0,null,null,null,null,null,{"$f":"IF($I47<>\"Yes\",$F47*2,($F47+ROUND(J47*$F47/SUM(COUNTRY_INFO!$E47:$G47),0))*2)","v":0},{"$f":"IF($I47<>\"Yes\",$G47*3,($G47+ROUND(J47*$G47/SUM(COUNTRY_INFO!$E47:$G47),0))*3)","v":0},0,null,0]
[{"$f":"IF(INTRO!$E$43=\"Non-endemic\",\" \", IF(COUNTRY_INFO!A48=0,\" \",COUNTRY_INFO!A48))","v":"Gabon"},{"$f":"IF(INTRO!$E$43=\"Non-endemic\",\" \", IF(COUNTRY_INFO!B48=0,\" \",COUNTRY_INFO!B48))","v":"Ogooué-Ivindo"},{"$f":"IF(INTRO!$E$43=\"Non-endemic\",\" \", IF(COUNTRY_INFO!C48=0,\" \",COUNTRY_INFO!C48))","v":"Mvoung"},{"$f":"IF(INTRO!$E$43=\"Non-endemic\", \"Not required\", COUNTRY_INFO!Z48)","v":1},{"$f":"IF(OR(COUNTRY_INFO!S48=\"Unknown\",COUNTRY_INFO!S48=\"Surveillance\",COUNTRY_INFO!S48=\"Not required\",COUNTRY_INFO!S48=0),0,IF($D48<>0, COUNTRY_INFO!S48,0))","v":46},{"$f":"IF(OR(COUNTRY_INFO!T48=\"Unknown\",COUNTRY_INFO!T48=\"Surveillance\",COUNTRY_INFO!T48=\"Not required\",COUNTRY_INFO!T48=0),0,IF($D48<>0, COUNTRY_INFO!T48,0))","v":46},{"$f":"IF(OR(COUNTRY_INFO!U48=\"Unknown\",COUNTRY_INFO!U48=\"Surveillance\",COUNTRY_INFO!U48=\"Not required\",COUNTRY_INFO!U48=0),0,IF($D48<>0, COUNTRY_INFO!U48,0))","v":108},200,null,null,null,null,null,{"$f":"IF($I48<>\"Yes\",$F48*2,($F48+ROUND(J48*$F48/SUM(COUNTRY_INFO!$E48:$G48),0))*2)","v":92},{"$f":"IF($I48<>\"Yes\",$G48*3,($G48+ROUND(J48*$G48/SUM(COUNTRY_INFO!$E48:$G48),0))*3)","v":324},416,null,416]
[{"$f":"IF(INTRO!$E$43=\"Non-endemic\",\" \", IF(COUNTRY_INFO!A49=0,\" \",COUNTRY_INFO!A49))","v":"Gabon"},{"$f":"IF(INTRO!$E$43=\"Non-endemic\",\" \", IF(COUNTRY_INFO!B49=0,\" \",COUNTRY_INFO!B49))","v":"Ogooué-Lolo"},{"$f":"IF(INTRO!$E$43=\"Non-endemic\",\" \", IF(COUNTRY_INFO!C49=0,\" \",COUNTRY_INFO!C49))","v":"Offoué-Onoye"},{"$f":"IF(INTRO!$E$43=\"Non-endemic\", \"Not required\", COUNTRY_INFO!Z49)","v":1},{"$f":"IF(OR(COUNTRY_INFO!S49=\"Unknown\",COUNTRY_INFO!S49=\"Surveillance\",COUNTRY_INFO!S49=\"Not required\",COUNTRY_INFO!S49=0),0,IF($D49<>0, COUNTRY_INFO!S49,0))","v":55},{"$f":"IF(OR(COUNTRY_INFO!T49=\"Unknown\",COUNTRY_INFO!T49=\"Surveillance\",COUNTRY_INFO!T49=\"Not required\",COUNTRY_INFO!T49=0),0,IF($D49<>0, COUNTRY_INFO!T49,0))","v":55},{"$f":"IF(OR(COUNTRY_INFO!U49=\"Unknown\",COUNTRY_INFO!U49=\"Surveillance\",COUNTRY_INFO!U49=\"Not required\",COUNTRY_INFO!U49=0),0,IF($D49<>0, COUNTRY_INFO!U49,0))","v":132},242,null,null,null,null,null,{"$f":"IF($I49<>\"Yes\",$F49*2,($F49+ROUND(J49*$F49/SUM(COUNTRY_INFO!$E49:$G49),0))*2)","v":110},{"$f":"IF($I49<>\"Yes\",$G49*3,($G49+ROUND(J49*$G49/SUM(COUNTRY_INFO!$E49:$G49),0))*3)","v":396},506,null,506]
[{"$f":"IF(INTRO!$E$43=\"Non-endemic\",\" \", IF(COUNTRY_INFO!A50=0,\" \",COUNTRY_INFO!A50))","v":"Gabon"},{"$f":"IF(INTRO!$E$43=\"Non-endemic\",\" \", IF(COUNTRY_INFO!B50=0,\" \",COUNTRY_INFO!B50))","v":"Ogooué-Lolo"},{"$f":"IF(INTRO!$E$43=\"Non-endemic\",\" \", IF(COUNTRY_INFO!C50=0,\" \",COUNTRY_INFO!C50))","v":"Lolo-Bouenguidi"},{"$f":"IF(INTRO!$E$43=\"Non-endemic\", \"Not required\", COUNTRY_INFO!Z50)","v":1},{"$f":"IF(OR(COUNTRY_INFO!S50=\"Unknown\",COUNTRY_INFO!S50=\"Surveillance\",COUNTRY_INFO!S50=\"Not required\",COUNTRY_INFO!S50=0),0,IF($D50<>0, COUNTRY_INFO!S50,0))","v":2468},{"$f":"IF(OR(COUNTRY_INFO!T50=\"Unknown\",COUNTRY_INFO!T50=\"Surveillance\",COUNTRY_INFO!T50=\"Not required\",COUNTRY_INFO!T50=0),0,IF($D50<>0, COUNTRY_INFO!T50,0))","v":2468},{"$f":"IF(OR(COUNTRY_INFO!U50=\"Unknown\",COUNTRY_INFO!U50=\"Surveillance\",COUNTRY_INFO!U50=\"Not required\",COUNTRY_INFO!U50=0),0,IF($D50<>0, COUNTRY_INFO!U50,0))","v":5903},10839,null,null,null,null,null,{"$f":"IF($I50<>\"Yes\",$F50*2,($F50+ROUND(J50*$F50/SUM(COUNTRY_INFO!$E50:$G50),0))*2)","v":4936},{"$f":"IF($I50<>\"Yes\",$G50*3,($G50+ROUND(J50*$G50/SUM(COUNTRY_INFO!$E50:$G50),0))*3)","v":17709},22645,null,22645]
[{"$f":"IF(INTRO!$E$43=\"Non-endemic\",\" \", IF(COUNTRY_INFO!A51=0,\" \",COUNTRY_INFO!A51))","v":"Gabon"},{"$f":"IF(INTRO!$E$43=\"Non-endemic\",\" \", IF(COUNTRY_INFO!B51=0,\" \",COUNTRY_INFO!B51))","v":"Ogooué-Lolo"},{"$f":"IF(INTRO!$E$43=\"Non-endemic\",\" \", IF(COUNTRY_INFO!C51=0,\" \",COUNTRY_INFO!C51))","v":"Mulundu"},{"$f":"IF(INTRO!$E$43=\"Non-endemic\", \"Not required\", COUNTRY_INFO!Z51)","v":1},{"$f":"IF(OR(COUNTRY_INFO!S51=\"Unknown\",COUNTRY_INFO!S51=\"Surveillance\",COUNTRY_INFO!S51=\"Not required\",COUNTRY_INFO!S51=0),0,IF($D51<>0, COUNTRY_INFO!S51,0))","v":752},{"$f":"IF(OR(COUNTRY_INFO!T51=\"Unknown\",COUNTRY_INFO!T51=\"Surveillance\",COUNTRY_INFO!T51=\"Not required\",COUNTRY_INFO!T51=0),0,IF($D51<>0, COUNTRY_INFO!T51,0))","v":752},{"$f":"IF(OR(COUNTRY_INFO!U51=\"Unknown\",COUNTRY_INFO!U51=\"Surveillance\",COUNTRY_INFO!U51=\"Not required\",COUNTRY_INFO!U51=0),0,IF($D51<>0, COUNTRY_INFO!U51,0))","v":1797},3301,null,null,null,null,null,{"$f":"IF($I51<>\"Yes\",$F51*2,($F51+ROUND(J51*$F51/SUM(COUNTRY_INFO!$E51:$G51),0))*2)","v":1504},{"$f":"IF($I51<>\"Yes\",$G51*3,($G51+ROUND(J51*$G51/SUM(COUNTRY_INFO!$E51:$G51),0))*3)","v":5391},6895,null,6895]
[{"$f":"IF(INTRO!$E$43=\"Non-endemic\",\" \", IF(COUNTRY_INFO!A52=0,\" \",COUNTRY_INFO!A52))","v":"Gabon"},{"$f":"IF(INTRO!$E$43=\"Non-endemic\",\" \", IF(COUNTRY_INFO!B52=0,\" \",COUNTRY_INFO!B52))","v":"Ogooué-Lolo"},{"$f":"IF(INTRO!$E$43=\"Non-endemic\",\" \", IF(COUNTRY_INFO!C52=0,\" \",COUNTRY_INFO!C52))","v":"Lombo-Bouenguidi"},{"$f":"IF(INTRO!$E$43=\"Non-endemic\", \"Not required\", COUNTRY_INFO!Z52)","v":0},{"$f":"IF(OR(COUNTRY_INFO!S52=\"Unknown\",COUNTRY_INFO!S52=\"Surveillance\",COUNTRY_INFO!S52=\"Not required\",COUNTRY_INFO!S52=0),0,IF($D52<>0, COUNTRY_INFO!S52,0))","v":0},{"$f":"IF(OR(COUNTRY_INFO!T52=\"Unknown\",COUNTRY_INFO!T52=\"Surveillance\",COUNTRY_INFO!T52=\"Not required\",COUNTRY_INFO!T52=0),0,IF($D52<>0, COUNTRY_INFO!T52,0))","v":0},{"$f":"IF(OR(COUNTRY_INFO!U52=\"Unknown\",COUNTRY_INFO!U52=\"Surveillance\",COUNTRY_INFO!U52=\"Not required\",COUNTRY_INFO!U52=0),0,IF($D52<>0, COUNTRY_INFO!U52,0))","v":0},0,null,null,null,null,null,{"$f":"IF($I52<>\"Yes\",$F52*2,($F52+ROUND(J52*$F52/SUM(COUNTRY_INFO!$E52:$G52),0))*2)","v":0},{"$f":"IF($I52<>\"Yes\",$G52*3,($G52+ROUND(J52*$G52/SUM(COUNTRY_INFO!$E52:$G52),0))*3)","v":0},0,null,0]
[{"$f":"IF(INTRO!$E$43=\"Non-endemic\",\" \", IF(COUNTRY_INFO!A53=0,\" \",COUNTRY_INFO!A53))","v":"Gabon"},{"$f":"IF(INTRO!$E$43=\"Non-endemic\",\" \", IF(COUNTRY_INFO!B53=0,\" \",COUNTRY_INFO!B53))","v":"Ogooué-maritime"},{"$f":"IF(INTRO!$E$43=\"Non-endemic\",\" \", IF(COUNTRY_INFO!C53=0,\" \",COUNTRY_INFO!C53))","v":"Ndougou"},{"$f":"IF(INTRO!$E$43=\"Non-endemic\", \"Not required\", COUNTRY_INFO!Z53)","v":0},{"$f":"IF(OR(COUNTRY_INFO!S53=\"Unknown\",COUNTRY_INFO!S53=\"Surveillance\",COUNTRY_INFO!S53=\"Not required\",COUNTRY_INFO!S53=0),0,IF($D53<>0, COUNTRY_INFO!S53,0))","v":0},{"$f":"IF(OR(COUNTRY_INFO!T53=\"Unknown\",COUNTRY_INFO!T53=\"Surveillance\",COUNTRY_INFO!T53=\"Not required\",COUNTRY_INFO!T53=0),0,IF($D53<>0, COUNTRY_INFO!T53,0))","v":0},{"$f":"IF(OR(COUNTRY_INFO!U53=\"Unknown\",COUNTRY_INFO!U53=\"Surveillance\",COUNTRY_INFO!U53=\"Not required\",COUNTRY_INFO!U53=0),0,IF($D53<>0, COUNTRY_INFO!U53,0))","v":0},0,null,null,null,null,null,{"$f":"IF($I53<>\"Yes\",$F53*2,($F53+ROUND(J53*$F53/SUM(COUNTRY_INFO!$E53:$G53),0))*2)","v":0},{"$f":"IF($I53<>\"Yes\",$G53*3,($G53+ROUND(J53*$G53/SUM(COUNTRY_INFO!$E53:$G53),0))*3)","v":0},0,null,0]
[{"$f":"IF(INTRO!$E$43=\"Non-endemic\",\" \", IF(COUNTRY_INFO!A54=0,\" \",COUNTRY_INFO!A54))","v":"Gabon"},{"$f":"IF(INTRO!$E$43=\"Non-endemic\",\" \", IF(COUNTRY_INFO!B54=0,\" \",COUNTRY_INFO!B54))","v":"Ogooué-maritime"},{"$f":"IF(INTRO!$E$43=\"Non-endemic\",\" \", IF(COUNTRY_INFO!C54=0,\" \",COUNTRY_INFO!C54))","v":"Etimboué"},{"$f":"IF(INTRO!$E$43=\"Non-endemic\", \"Not required\", COUNTRY_INFO!Z54)","v":0},{"$f":"IF(OR(COUNTRY_INFO!S54=\"Unknown\",COUNTRY_INFO!S54=\"Surveillance\",COUNTRY_INFO!S54=\"Not required\",COUNTRY_INFO!S54=0),0,IF($D54<>0, COUNTRY_INFO!S54,0))","v":0},{"$f":"IF(OR(COUNTRY_INFO!T54=\"Unknown\",COUNTRY_INFO!T54=\"Surveillance\",COUNTRY_INFO!T54=\"Not required\",COUNTRY_INFO!T54=0),0,IF($D54<>0, COUNTRY_INFO!T54,0))","v":0},{"$f":"IF(OR(COUNTRY_INFO!U54=\"Unknown\",COUNTRY_INFO!U54=\"Surveillance\",COUNTRY_INFO!U54=\"Not required\",COUNTRY_INFO!U54=0),0,IF($D54<>0, COUNTRY_INFO!U54,0))","v":0},0,null,null,null,null,null,{"$f":"IF($I54<>\"Yes\",$F54*2,($F54+ROUND(J54*$F54/SUM(COUNTRY_INFO!$E54:$G54),0))*2)","v":0},{"$f":"IF($I54<>\"Yes\",$G54*3,($G54+ROUND(J54*$G54/SUM(COUNTRY_INFO!$E54:$G54),0))*3)","v":0},0,null,0]
[{"$f":"IF(INTRO!$E$43=\"Non-endemic\",\" \", IF(COUNTRY_INFO!A55=0,\" \",COUNTRY_INFO!A55))","v":"Gabon"},{"$f":"IF(INTRO!$E$43=\"Non-endemic\",\" \", IF(COUNTRY_INFO!B55=0,\" \",COUNTRY_INFO!B55))","v":"Ogooué-maritime"},{"$f":"IF(INTRO!$E$43=\"Non-endemic\",\" \", IF(COUNTRY_INFO!C55=0,\" \",COUNTRY_INFO!C55))","v":"Bendjé"},{"$f":"IF(INTRO!$E$43=\"Non-endemic\", \"Not required\", COUNTRY_INFO!Z55)","v":1},{"$f":"IF(OR(COUNTRY_INFO!S55=\"Unknown\",COUNTRY_INFO!S55=\"Surveillance\",COUNTRY_INFO!S55=\"Not required\",COUNTRY_INFO!S55=0),0,IF($D55<>0, COUNTRY_INFO!S55,0))","v":7792},{"$f":"IF(OR(COUNTRY_INFO!T55=\"Unknown\",COUNTRY_INFO!T55=\"Surveillance\",COUNTRY_INFO!T55=\"Not required\",COUNTRY_INFO!T55=0),0,IF($D55<>0, COUNTRY_INFO!T55,0))","v":7791},{"$f":"IF(OR(COUNTRY_INFO!U55=\"Unknown\",COUNTRY_INFO!U55=\"Surveillance\",COUNTRY_INFO!U55=\"Not required\",COUNTRY_INFO!U55=0),0,IF($D55<>0, COUNTRY_INFO!U55,0))","v":18638},34221,null,null,null,null,null,{"$f":"IF($I55<>\"Yes\",$F55*2,($F55+ROUND(J55*$F55/SUM(COUNTRY_INFO!$E55:$G55),0))*2)","v":15582},{"$f":"IF($I55<>\"Yes\",$G55*3,($G55+ROUND(J55*$G55/SUM(COUNTRY_INFO!$E55:$G55),0))*3)","v":55914},71496,null,71496]
[{"$f":"IF(INTRO!$E$43=\"Non-endemic\",\" \", IF(COUNTRY_INFO!A56=0,\" \",COUNTRY_INFO!A56))","v":"Gabon"},{"$f":"IF(INTRO!$E$43=\"Non-endemic\",\" \", IF(COUNTRY_INFO!B56=0,\" \",COUNTRY_INFO!B56))","v":"Woleu-Ntem"},{"$f":"IF(INTRO!$E$43=\"Non-endemic\",\" \", IF(COUNTRY_INFO!C56=0,\" \",COUNTRY_INFO!C56))","v":"Ntem"},{"$f":"IF(INTRO!$E$43=\"Non-endemic\", \"Not required\", COUNTRY_INFO!Z56)","v":0},{"$f":"IF(OR(COUNTRY_INFO!S56=\"Unknown\",COUNTRY_INFO!S56=\"Surveillance\",COUNTRY_INFO!S56=\"Not required\",COUNTRY_INFO!S56=0),0,IF($D56<>0, COUNTRY_INFO!S56,0))","v":0},{"$f":"IF(OR(COUNTRY_INFO!T56=\"Unknown\",COUNTRY_INFO!T56=\"Surveillance\",COUNTRY_INFO!T56=\"Not required\",COUNTRY_INFO!T56=0),0,IF($D56<>0, COUNTRY_INFO!T56,0))","v":0},{"$f":"IF(OR(COUNTRY_INFO!U56=\"Unknown\",COUNTRY_INFO!U56=\"Surveillance\",COUNTRY_INFO!U56=\"Not required\",COUNTRY_INFO!U56=0),0,IF($D56<>0, COUNTRY_INFO!U56,0))","v":0},0,null,null,null,null,null,{"$f":"IF($I56<>\"Yes\",$F56*2,($F56+ROUND(J56*$F56/SUM(COUNTRY_INFO!$E56:$G56),0))*2)","v":0},{"$f":"IF($I56<>\"Yes\",$G56*3,($G56+ROUND(J56*$G56/SUM(COUNTRY_INFO!$E56:$G56),0))*3)","v":0},0,null,0]
[{"$f":"IF(INTRO!$E$43=\"Non-endemic\",\" \", IF(COUNTRY_INFO!A57=0,\" \",COUNTRY_INFO!A57))","v":"Gabon"},{"$f":"IF(INTRO!$E$43=\"Non-endemic\",\" \", IF(COUNTRY_INFO!B57=0,\" \",COUNTRY_INFO!B57))","v":"Woleu-Ntem"},{"$f":"IF(INTRO!$E$43=\"Non-endemic\",\" \", IF(COUNTRY_INFO!C57=0,\" \",COUNTRY_INFO!C57))","v":"Haut-Komo"},{"$f":"IF(INTRO!$E$43=\"Non-endemic\", \"Not required\", COUNTRY_INFO!Z57)","v":0},{"$f":"IF(OR(COUNTRY_INFO!S57=\"Unknown\",COUNTRY_INFO!S57=\"Surveillance\",COUNTRY_INFO!S57=\"Not required\",COUNTRY_INFO!S57=0),0,IF($D57<>0, COUNTRY_INFO!S57,0))","v":0},{"$f":"IF(OR(COUNTRY_INFO!T57=\"Unknown\",COUNTRY_INFO!T57=\"Surveillance\",COUNTRY_INFO!T57=\"Not required\",COUNTRY_INFO!T57=0),0,IF($D57<>0, COUNTRY_INFO!T57,0))","v":0},{"$f":"IF(OR(COUNTRY_INFO!U57=\"Unknown\",COUNTRY_INFO!U57=\"Surveillance\",COUNTRY_INFO!U57=\"Not required\",COUNTRY_INFO!U57=0),0,IF($D57<>0, COUNTRY_INFO!U57,0))","v":0},0,null,null,null,null,null,{"$f":"IF($I57<>\"Yes\",$F57*2,($F57+ROUND(J57*$F57/SUM(COUNTRY_INFO!$E57:$G57),0))*2)","v":0},{"$f":"IF($I57<>\"Yes\",$G57*3,($G57+ROUND(J57*$G57/SUM(COUNTRY_INFO!$E57:$G57),0))*3)","v":0},0,null,0]
[{"$f":"IF(INTRO!$E$43=\"Non-endemic\",\" \", IF(COUNTRY_INFO!A58=0,\" \",COUNTRY_INFO!A58))","v":"Gabon"},{"$f":"IF(INTRO!$E$43=\"Non-endemic\",\" \", IF(COUNTRY_INFO!B58=0,\" \",COUNTRY_INFO!B58))","v":"Woleu-Ntem"},{"$f":"IF(INTRO!$E$43=\"Non-endemic\",\" \", IF(COUNTRY_INFO!C58=0,\" \",COUNTRY_INFO!C58))","v":"Haut-Ntem"},{"$f":"IF(INTRO!$E$43=\"Non-endemic\", \"Not required\", COUNTRY_INFO!Z58)","v":0},{"$f":"IF(OR(COUNTRY_INFO!S58=\"Unknown\",COUNTRY_INFO!S58=\"Surveillance\",COUNTRY_INFO!S58=\"Not required\",COUNTRY_INFO!S58=0),0,IF($D58<>0, COUNTRY_INFO!S58,0))","v":0},{"$f":"IF(OR(COUNTRY_INFO!T58=\"Unknown\",COUNTRY_INFO!T58=\"Surveillance\",COUNTRY_INFO!T58=\"Not required\",COUNTRY_INFO!T58=0),0,IF($D58<>0, COUNTRY_INFO!T58,0))","v":0},{"$f":"IF(OR(COUNTRY_INFO!U58=\"Unknown\",COUNTRY_INFO!U58=\"Surveillance\",COUNTRY_INFO!U58=\"Not required\",COUNTRY_INFO!U58=0),0,IF($D58<>0, COUNTRY_INFO!U58,0))","v":0},0,null,null,null,null,null,{"$f":"IF($I58<>\"Yes\",$F58*2,($F58+ROUND(J58*$F58/SUM(COUNTRY_INFO!$E58:$G58),0))*2)","v":0},{"$f":"IF($I58<>\"Yes\",$G58*3,($G58+ROUND(J58*$G58/SUM(COUNTRY_INFO!$E58:$G58),0))*3)","v":0},0,null,0]
[{"$f":"IF(INTRO!$E$43=\"Non-endemic\",\" \", IF(COUNTRY_INFO!A59=0,\" \",COUNTRY_INFO!A59))","v":"Gabon"},{"$f":"IF(INTRO!$E$43=\"Non-endemic\",\" \", IF(COUNTRY_INFO!B59=0,\" \",COUNTRY_INFO!B59))","v":"Woleu-Ntem"},{"$f":"IF(INTRO!$E$43=\"Non-endemic\",\" \", IF(COUNTRY_INFO!C59=0,\" \",COUNTRY_INFO!C59))","v":"Okano"},{"$f":"IF(INTRO!$E$43=\"Non-endemic\", \"Not required\", COUNTRY_INFO!Z59)","v":0},{"$f":"IF(OR(COUNTRY_INFO!S59=\"Unknown\",COUNTRY_INFO!S59=\"Surveillance\",COUNTRY_INFO!S59=\"Not required\",COUNTRY_INFO!S59=0),0,IF($D59<>0, COUNTRY_INFO!S59,0))","v":0},{"$f":"IF(OR(COUNTRY_INFO!T59=\"Unknown\",COUNTRY_INFO!T59=\"Surveillance\",COUNTRY_INFO!T59=\"Not required\",COUNTRY_INFO!T59=0),0,IF($D59<>0, COUNTRY_INFO!T59,0))","v":0},{"$f":"IF(OR(COUNTRY_INFO!U59=\"Unknown\",COUNTRY_INFO!U59=\"Surveillance\",COUNTRY_INFO!U59=\"Not required\",COUNTRY_INFO!U59=0),0,IF($D59<>0, COUNTRY_INFO!U59,0))","v":0},0,null,null,null,null,null,{"$f":"IF($I59<>\"Yes\",$F59*2,($F59+ROUND(J59*$F59/SUM(COUNTRY_INFO!$E59:$G59),0))*2)","v":0},{"$f":"IF($I59<>\"Yes\",$G59*3,($G59+ROUND(J59*$G59/SUM(COUNTRY_INFO!$E59:$G59),0))*3)","v":0},0,null,0]
[{"$f":"IF(INTRO!$E$43=\"Non-endemic\",\" \", IF(COUNTRY_INFO!A60=0,\" \",COUNTRY_INFO!A60))","v":"Gabon"},{"$f":"IF(INTRO!$E$43=\"Non-endemic\",\" \", IF(COUNTRY_INFO!B60=0,\" \",COUNTRY_INFO!B60))","v":"Woleu-Ntem"},{"$f":"IF(INTRO!$E$43=\"Non-endemic\",\" \", IF(COUNTRY_INFO!C60=0,\" \",COUNTRY_INFO!C60))","v":"Woleu"},{"$f":"IF(INTRO!$E$43=\"Non-endemic\", \"Not required\", COUNTRY_INFO!Z60)","v":0},{"$f":"IF(OR(COUNTRY_INFO!S60=\"Unknown\",COUNTRY_INFO!S60=\"Surveillance\",COUNTRY_INFO!S60=\"Not required\",COUNTRY_INFO!S60=0),0,IF($D60<>0, COUNTRY_INFO!S60,0))","v":0},{"$f":"IF(OR(COUNTRY_INFO!T60=\"Unknown\",COUNTRY_INFO!T60=\"Surveillance\",COUNTRY_INFO!T60=\"Not required\",COUNTRY_INFO!T60=0),0,IF($D60<>0, COUNTRY_INFO!T60,0))","v":0},{"$f":"IF(OR(COUNTRY_INFO!U60=\"Unknown\",COUNTRY_INFO!U60=\"Surveillance\",COUNTRY_INFO!U60=\"Not required\",COUNTRY_INFO!U60=0),0,IF($D60<>0, COUNTRY_INFO!U60,0))","v":0},0,null,null,null,null,null,{"$f":"IF($I60<>\"Yes\",$F60*2,($F60+ROUND(J60*$F60/SUM(COUNTRY_INFO!$E60:$G60),0))*2)","v":0},{"$f":"IF($I60<>\"Yes\",$G60*3,($G60+ROUND(J60*$G60/SUM(COUNTRY_INFO!$E60:$G60),0))*3)","v":0},0,null,0]

{"sheet":"IVM","index":4,"n_rows":60,"n_cols":14,"rows_kept":60,"cut":false,"hidden":false,"merged":[[5,3,7,3],[6,13,7,13],[6,8,7,8],[6,6,7,6],[6,7,7,7],[6,9,7,9],[6,10,7,10],[6,11,7,11],[3,0,3,2],[3,4,3,5],[6,4,7,4],[6,5,7,5],[5,8,5,13],[6,0,7,0],[6,1,7,1],[6,2,7,2],[5,0,5,2],[5,4,5,5],[5,6,5,7],[6,12,7,12]]}
["Ivermectin (IVM)"]
["Administrative structure, eligible population by age group, treatment plan and information about tablets"]
[]
["TOTAL",null,null,{"$f":"SUBTOTAL(9,D$10:D$1010)","v":808894},null,null,{"$f":"SUBTOTAL(9,G$10:G$1010)","v":26298},0,73634.399999999994,0,0,73634.399999999994,0,73634.399999999994]
[]
["Country administrative structure",null,null,"Population requiring treatment with IVM","Treatment plan",null,"Target population",null,"Ivermectin (IVM)"]
["Country","Province/State","District",null,"LF","Oncho","LF","Oncho","LF only","Oncho only","LF+Oncho","Total required","Remaining in stock","Tablets to be procured"]
[]
[]
[{"$f":"IF(INTRO!$E$39=\"Non-endemic\",\" \",IF(COUNTRY_INFO!A10=0,\" \",COUNTRY_INFO!A10))","v":"Gabon"},{"$f":"IF(INTRO!$E$39=\"Non-endemic\",\" \",IF(COUNTRY_INFO!B10=0,\" \",COUNTRY_INFO!B10))","v":"Libreville -Owendo"},{"$f":"IF(INTRO!$E$39=\"Non-endemic\",\" \",IF(COUNTRY_INFO!C10=0,\" \",COUNTRY_INFO!C10))","v":"Libreville 1"},{"$f":"IF(INTRO!$E$39=\"Non-endemic\",0,IF(INTRO!$E$39=\"Endemic but PC is not required\",IF(COUNTRY_INFO!$H10=1,COUNTRY_INFO!F10+COUNTRY_INFO!G10,0),IF(COUNTRY_INFO!$H10=1,COUNTRY_INFO!F10+COUNTRY_INFO!G10,IF(COUNTRY_INFO!$I10=1,IF(COUNTRY_INFO!N10>=(COUNTRY_INFO!F10+COUNTRY_INFO!G10),COUNTRY_INFO!F10+COUNTRY_INFO!G10,COUNTRY_INFO!$N10),0))))","v":0},{"$f":"IF(AND(INTRO!$E$39=\"Non-endemic\",INTRO!$E$37=\"Non-endemic\"),\"Not required\",IF(INTRO!$E$39=\"Non-endemic\",\"Treat with DEC\",COUNTRY_INFO!W10))","v":0},{"$f":"IF(INTRO!$E$39<>\"Non-endemic\",COUNTRY_INFO!X10,\"Not required\")","v":0},{"$f":"IF(COUNTRY_INFO!H10=1, IF($E10=1,IF(ALB_MBD!$G10<>\" \",COUNTRY_INFO!F10+COUNTRY_INFO!G10-ALB_MBD!$G10,COUNTRY_INFO!F10+COUNTRY_INFO!G10), 0),0)","v":0},{"$f":"IF(INTRO!$E$39<>\"Endemic\",0, IF(AND(COUNTRY_INFO!$I10=1,$F10<>0),IF(COUNTRY_INFO!N10>=(COUNTRY_INFO!F10+COUNTRY_INFO!G10),COUNTRY_INFO!F10+COUNTRY_INFO!G10,COUNTRY_INFO!$N10), 0))","v":0},{"$f":"IF(G10<H10,0,IF($E10=1, (G10-H10)*2.8, 0))","v":0},{"$f":"IF($E10<$F10, H10*(F10-E10)*2.8, 0)","v":0},{"$f":"IF(AND($E10=1, $F10<>0), H10*2.8, 0)","v":0},{"$f":"SUM(I10:K10)","v":0},null,{"$f":"IF($L10>$M10,$L10-$M10,0)","v":0}]
[{"$f":"IF(INTRO!$E$39=\"Non-endemic\",\" \",IF(COUNTRY_INFO!A11=0,\" \",COUNTRY_INFO!A11))","v":"Gabon"},{"$f":"IF(INTRO!$E$39=\"Non-endemic\",\" \",IF(COUNTRY_INFO!B11=0,\" \",COUNTRY_INFO!B11))","v":"Libreville -Owendo"},{"$f":"IF(INTRO!$E$39=\"Non-endemic\",\" \",IF(COUNTRY_INFO!C11=0,\" \",COUNTRY_INFO!C11))","v":"Libreville 2"},{"$f":"IF(INTRO!$E$39=\"Non-endemic\",0,IF(INTRO!$E$39=\"Endemic but PC is not required\",IF(COUNTRY_INFO!$H11=1,COUNTRY_INFO!F11+COUNTRY_INFO!G11,0),IF(COUNTRY_INFO!$H11=1,COUNTRY_INFO!F11+COUNTRY_INFO!G11,IF(COUNTRY_INFO!$I11=1,IF(COUNTRY_INFO!N11>=(COUNTRY_INFO!F11+COUNTRY_INFO!G11),COUNTRY_INFO!F11+COUNTRY_INFO!G11,COUNTRY_INFO!$N11),0))))","v":0},{"$f":"IF(AND(INTRO!$E$39=\"Non-endemic\",INTRO!$E$37=\"Non-endemic\"),\"Not required\",IF(INTRO!$E$39=\"Non-endemic\",\"Treat with DEC\",COUNTRY_INFO!W11))","v":0},{"$f":"IF(INTRO!$E$39<>\"Non-endemic\",COUNTRY_INFO!X11,\"Not required\")","v":0},{"$f":"IF(COUNTRY_INFO!H11=1, IF($E11=1,IF(ALB_MBD!$G11<>\" \",COUNTRY_INFO!F11+COUNTRY_INFO!G11-ALB_MBD!$G11,COUNTRY_INFO!F11+COUNTRY_INFO!G11), 0),0)","v":0},{"$f":"IF(INTRO!$E$39<>\"Endemic\",0, IF(AND(COUNTRY_INFO!$I11=1,$F11<>0),IF(COUNTRY_INFO!N11>=(COUNTRY_INFO!F11+COUNTRY_INFO!G11),COUNTRY_INFO!F11+COUNTRY_INFO!G11,COUNTRY_INFO!$N11), 0))","v":0},{"$f":"IF(G11<H11,0,IF($E11=1, (G11-H11)*2.8, 0))","v":0},{"$f":"IF($E11<$F11, H11*(F11-E11)*2.8, 0)","v":0},{"$f":"IF(AND($E11=1, $F11<>0), H11*2.8, 0)","v":0},{"$f":"SUM(I11:K11)","v":0},null,0]
[{"$f":"IF(INTRO!$E$39=\"Non-endemic\",\" \",IF(COUNTRY_INFO!A12=0,\" \",COUNTRY_INFO!A12))","v":"Gabon"},{"$f":"IF(INTRO!$E$39=\"Non-endemic\",\" \",IF(COUNTRY_INFO!B12=0,\" \",COUNTRY_INFO!B12))","v":"Libreville -Owendo"},{"$f":"IF(INTRO!$E$39=\"Non-endemic\",\" \",IF(COUNTRY_INFO!C12=0,\" \",COUNTRY_INFO!C12))","v":"Libreville 3"},{"$f":"IF(INTRO!$E$39=\"Non-endemic\",0,IF(INTRO!$E$39=\"Endemic but PC is not required\",IF(COUNTRY_INFO!$H12=1,COUNTRY_INFO!F12+COUNTRY_INFO!G12,0),IF(COUNTRY_INFO!$H12=1,COUNTRY_INFO!F12+COUNTRY_INFO!G12,IF(COUNTRY_INFO!$I12=1,IF(COUNTRY_INFO!N12>=(COUNTRY_INFO!F12+COUNTRY_INFO!G12),COUNTRY_INFO!F12+COUNTRY_INFO!G12,COUNTRY_INFO!$N12),0))))","v":0},{"$f":"IF(AND(INTRO!$E$39=\"Non-endemic\",INTRO!$E$37=\"Non-endemic\"),\"Not required\",IF(INTRO!$E$39=\"Non-endemic\",\"Treat with DEC\",COUNTRY_INFO!W12))","v":0},{"$f":"IF(INTRO!$E$39<>\"Non-endemic\",COUNTRY_INFO!X12,\"Not required\")","v":0},{"$f":"IF(COUNTRY_INFO!H12=1, IF($E12=1,IF(ALB_MBD!$G12<>\" \",COUNTRY_INFO!F12+COUNTRY_INFO!G12-ALB_MBD!$G12,COUNTRY_INFO!F12+COUNTRY_INFO!G12), 0),0)","v":0},{"$f":"IF(INTRO!$E$39<>\"Endemic\",0, IF(AND(COUNTRY_INFO!$I12=1,$F12<>0),IF(COUNTRY_INFO!N12>=(COUNTRY_INFO!F12+COUNTRY_INFO!G12),COUNTRY_INFO!F12+COUNTRY_INFO!G12,COUNTRY_INFO!$N12), 0))","v":0},0,0,0,0,null,0]
[{"$f":"IF(INTRO!$E$39=\"Non-endemic\",\" \",IF(COUNTRY_INFO!A13=0,\" \",COUNTRY_INFO!A13))","v":"Gabon"},{"$f":"IF(INTRO!$E$39=\"Non-endemic\",\" \",IF(COUNTRY_INFO!B13=0,\" \",COUNTRY_INFO!B13))","v":"Libreville -Owendo"},{"$f":"IF(INTRO!$E$39=\"Non-endemic\",\" \",IF(COUNTRY_INFO!C13=0,\" \",COUNTRY_INFO!C13))","v":"Owendo"},{"$f":"IF(INTRO!$E$39=\"Non-endemic\",0,IF(INTRO!$E$39=\"Endemic but PC is not required\",IF(COUNTRY_INFO!$H13=1,COUNTRY_INFO!F13+COUNTRY_INFO!G13,0),IF(COUNTRY_INFO!$H13=1,COUNTRY_INFO!F13+COUNTRY_INFO!G13,IF(COUNTRY_INFO!$I13=1,IF(COUNTRY_INFO!N13>=(COUNTRY_INFO!F13+COUNTRY_INFO!G13),COUNTRY_INFO!F13+COUNTRY_INFO!G13,COUNTRY_INFO!$N13),0))))","v":0},{"$f":"IF(AND(INTRO!$E$39=\"Non-endemic\",INTRO!$E$37=\"Non-endemic\"),\"Not required\",IF(INTRO!$E$39=\"Non-endemic\",\"Treat with DEC\",COUNTRY_INFO!W13))","v":0},{"$f":"IF(INTRO!$E$39<>\"Non-endemic\",COUNTRY_INFO!X13,\"Not required\")","v":0},{"$f":"IF(COUNTRY_INFO!H13=1, IF($E13=1,IF(ALB_MBD!$G13<>\" \",COUNTRY_INFO!F13+COUNTRY_INFO!G13-ALB_MBD!$G13,COUNTRY_INFO!F13+COUNTRY_INFO!G13), 0),0)","v":0},{"$f":"IF(INTRO!$E$39<>\"Endemic\",0, IF(AND(COUNTRY_INFO!$I13=1,$F13<>0),IF(COUNTRY_INFO!N13>=(COUNTRY_INFO!F13+COUNTRY_INFO!G13),COUNTRY_INFO!F13+COUNTRY_INFO!G13,COUNTRY_INFO!$N13), 0))","v":0},0,0,0,0,null,0]
[{"$f":"IF(INTRO!$E$39=\"Non-endemic\",\" \",IF(COUNTRY_INFO!A14=0,\" \",COUNTRY_INFO!A14))","v":"Gabon"},{"$f":"IF(INTRO!$E$39=\"Non-endemic\",\" \",IF(COUNTRY_INFO!B14=0,\" \",COUNTRY_INFO!B14))","v":"Estuaire"},{"$f":"IF(INTRO!$E$39=\"Non-endemic\",\" \",IF(COUNTRY_INFO!C14=0,\" \",COUNTRY_INFO!C14))","v":"Komo-Mondah"},{"$f":"IF(INTRO!$E$39=\"Non-endemic\",0,IF(INTRO!$E$39=\"Endemic but PC is not required\",IF(COUNTRY_INFO!$H14=1,COUNTRY_INFO!F14+COUNTRY_INFO!G14,0),IF(COUNTRY_INFO!$H14=1,COUNTRY_INFO!F14+COUNTRY_INFO!G14,IF(COUNTRY_INFO!$I14=1,IF(COUNTRY_INFO!N14>=(COUNTRY_INFO!F14+COUNTRY_INFO!G14),COUNTRY_INFO!F14+COUNTRY_INFO!G14,COUNTRY_INFO!$N14),0))))","v":96678},{"$f":"IF(AND(INTRO!$E$39=\"Non-endemic\",INTRO!$E$37=\"Non-endemic\"),\"Not required\",IF(INTRO!$E$39=\"Non-endemic\",\"Treat with DEC\",COUNTRY_INFO!W14))","v":1},{"$f":"IF(INTRO!$E$39<>\"Non-endemic\",COUNTRY_INFO!X14,\"Not required\")","v":0},{"$f":"IF(COUNTRY_INFO!H14=1, IF($E14=1,IF(ALB_MBD!$G14<>\" \",COUNTRY_INFO!F14+COUNTRY_INFO!G14-ALB_MBD!$G14,COUNTRY_INFO!F14+COUNTRY_INFO!G14), 0),0)","v":8942},{"$f":"IF(INTRO!$E$39<>\"Endemic\",0, IF(AND(COUNTRY_INFO!$I14=1,$F14<>0),IF(COUNTRY_INFO!N14>=(COUNTRY_INFO!F14+COUNTRY_INFO!G14),COUNTRY_INFO!F14+COUNTRY_INFO!G14,COUNTRY_INFO!$N14), 0))","v":0},25037.599999999999,0,0,25037.599999999999,null,25037.599999999999]
[{"$f":"IF(INTRO!$E$39=\"Non-endemic\",\" \",IF(COUNTRY_INFO!A15=0,\" \",COUNTRY_INFO!A15))","v":"Gabon"},{"$f":"IF(INTRO!$E$39=\"Non-endemic\",\" \",IF(COUNTRY_INFO!B15=0,\" \",COUNTRY_INFO!B15))","v":"Estuaire"},{"$f":"IF(INTRO!$E$39=\"Non-endemic\",\" \",IF(COUNTRY_INFO!C15=0,\" \",COUNTRY_INFO!C15))","v":"Komo-Kango"},{"$f":"IF(INTRO!$E$39=\"Non-endemic\",0,IF(INTRO!$E$39=\"Endemic but PC is not required\",IF(COUNTRY_INFO!$H15=1,COUNTRY_INFO!F15+COUNTRY_INFO!G15,0),IF(COUNTRY_INFO!$H15=1,COUNTRY_INFO!F15+COUNTRY_INFO!G15,IF(COUNTRY_INFO!$I15=1,IF(COUNTRY_INFO!N15>=(COUNTRY_INFO!F15+COUNTRY_INFO!G15),COUNTRY_INFO!F15+COUNTRY_INFO!G15,COUNTRY_INFO!$N15),0))))","v":0},{"$f":"IF(AND(INTRO!$E$39=\"Non-endemic\",INTRO!$E$37=\"Non-endemic\"),\"Not required\",IF(INTRO!$E$39=\"Non-endemic\",\"Treat with DEC\",COUNTRY_INFO!W15))","v":0},{"$f":"IF(INTRO!$E$39<>\"Non-endemic\",COUNTRY_INFO!X15,\"Not required\")","v":0},{"$f":"IF(COUNTRY_INFO!H15=1, IF($E15=1,IF(ALB_MBD!$G15<>\" \",COUNTRY_INFO!F15+COUNTRY_INFO!G15-ALB_MBD!$G15,COUNTRY_INFO!F15+COUNTRY_INFO!G15), 0),0)","v":0},{"$f":"IF(INTRO!$E$39<>\"Endemic\",0, IF(AND(COUNTRY_INFO!$I15=1,$F15<>0),IF(COUNTRY_INFO!N15>=(COUNTRY_INFO!F15+COUNTRY_INFO!G15),COUNTRY_INFO!F15+COUNTRY_INFO!G15,COUNTRY_INFO!$N15), 0))","v":0},0,0,0,0,null,0]
[{"$f":"IF(INTRO!$E$39=\"Non-endemic\",\" \",IF(COUNTRY_INFO!A16=0,\" \",COUNTRY_INFO!A16))","v":"Gabon"},{"$f":"IF(INTRO!$E$39=\"Non-endemic\",\" \",IF(COUNTRY_INFO!B16=0,\" \",COUNTRY_INFO!B16))","v":"Estuaire"},{"$f":"IF(INTRO!$E$39=\"Non-endemic\",\" \",IF(COUNTRY_INFO!C16=0,\" \",COUNTRY_INFO!C16))","v":"Noya"},{"$f":"IF(INTRO!$E$39=\"Non-endemic\",0,IF(INTRO!$E$39=\"Endemic but PC is not required\",IF(COUNTRY_INFO!$H16=1,COUNTRY_INFO!F16+COUNTRY_INFO!G16,0),IF(COUNTRY_INFO!$H16=1,COUNTRY_INFO!F16+COUNTRY_INFO!G16,IF(COUNTRY_INFO!$I16=1,IF(COUNTRY_INFO!N16>=(COUNTRY_INFO!F16+COUNTRY_INFO!G16),COUNTRY_INFO!F16+COUNTRY_INFO!G16,COUNTRY_INFO!$N16),0))))","v":0},{"$f":"IF(AND(INTRO!$E$39=\"Non-endemic\",INTRO!$E$37=\"Non-endemic\"),\"Not required\",IF(INTRO!$E$39=\"Non-endemic\",\"Treat with DEC\",COUNTRY_INFO!W16))","v":0},{"$f":"IF(INTRO!$E$39<>\"Non-endemic\",COUNTRY_INFO!X16,\"Not required\")","v":0},{"$f":"IF(COUNTRY_INFO!H16=1, IF($E16=1,IF(ALB_MBD!$G16<>\" \",COUNTRY_INFO!F16+COUNTRY_INFO!G16-ALB_MBD!$G16,COUNTRY_INFO!F16+COUNTRY_INFO!G16), 0),0)","v":0},{"$f":"IF(INTRO!$E$39<>\"Endemic\",0, IF(AND(COUNTRY_INFO!$I16=1,$F16<>0),IF(COUNTRY_INFO!N16>=(COUNTRY_INFO!F16+COUNTRY_INFO!G16),COUNTRY_INFO!F16+COUNTRY_INFO!G16,COUNTRY_INFO!$N16), 0))","v":0},0,0,0,0,null,0]
[{"$f":"IF(INTRO!$E$39=\"Non-endemic\",\" \",IF(COUNTRY_INFO!A17=0,\" \",COUNTRY_INFO!A17))","v":"Gabon"},{"$f":"IF(INTRO!$E$39=\"Non-endemic\",\" \",IF(COUNTRY_INFO!B17=0,\" \",COUNTRY_INFO!B17))","v":"Haut Ogooué"},{"$f":"IF(INTRO!$E$39=\"Non-endemic\",\" \",IF(COUNTRY_INFO!C17=0,\" \",COUNTRY_INFO!C17))","v":"Bayi-brikolo"},{"$f":"IF(INTRO!$E$39=\"Non-endemic\",0,IF(INTRO!$E$39=\"Endemic but PC is not required\",IF(COUNTRY_INFO!$H17=1,COUNTRY_INFO!F17+COUNTRY_INFO!G17,0),IF(COUNTRY_INFO!$H17=1,COUNTRY_INFO!F17+COUNTRY_INFO!G17,IF(COUNTRY_INFO!$I17=1,IF(COUNTRY_INFO!N17>=(COUNTRY_INFO!F17+COUNTRY_INFO!G17),COUNTRY_INFO!F17+COUNTRY_INFO!G17,COUNTRY_INFO!$N17),0))))","v":0},{"$f":"IF(AND(INTRO!$E$39=\"Non-endemic\",INTRO!$E$37=\"Non-endemic\"),\"Not required\",IF(INTRO!$E$39=\"Non-endemic\",\"Treat with DEC\",COUNTRY_INFO!W17))","v":0},{"$f":"IF(INTRO!$E$39<>\"Non-endemic\",COUNTRY_INFO!X17,\"Not required\")","v":0},{"$f":"IF(COUNTRY_INFO!H17=1, IF($E17=1,IF(ALB_MBD!$G17<>\" \",COUNTRY_INFO!F17+COUNTRY_INFO!G17-ALB_MBD!$G17,COUNTRY_INFO!F17+COUNTRY_INFO!G17), 0),0)","v":0},{"$f":"IF(INTRO!$E$39<>\"Endemic\",0, IF(AND(COUNTRY_INFO!$I17=1,$F17<>0),IF(COUNTRY_INFO!N17>=(COUNTRY_INFO!F17+COUNTRY_INFO!G17),COUNTRY_INFO!F17+COUNTRY_INFO!G17,COUNTRY_INFO!$N17), 0))","v":0},0,0,0,0,null,0]
[{"$f":"IF(INTRO!$E$39=\"Non-endemic\",\" \",IF(COUNTRY_INFO!A18=0,\" \",COUNTRY_INFO!A18))","v":"Gabon"},{"$f":"IF(INTRO!$E$39=\"Non-endemic\",\" \",IF(COUNTRY_INFO!B18=0,\" \",COUNTRY_INFO!B18))","v":"Haut Ogooué"},{"$f":"IF(INTRO!$E$39=\"Non-endemic\",\" \",IF(COUNTRY_INFO!C18=0,\" \",COUNTRY_INFO!C18))","v":"Lékoni-lékori"},{"$f":"IF(INTRO!$E$39=\"Non-endemic\",0,IF(INTRO!$E$39=\"Endemic but PC is not required\",IF(COUNTRY_INFO!$H18=1,COUNTRY_INFO!F18+COUNTRY_INFO!G18,0),IF(COUNTRY_INFO!$H18=1,COUNTRY_INFO!F18+COUNTRY_INFO!G18,IF(COUNTRY_INFO!$I18=1,IF(COUNTRY_INFO!N18>=(COUNTRY_INFO!F18+COUNTRY_INFO!G18),COUNTRY_INFO!F18+COUNTRY_INFO!G18,COUNTRY_INFO!$N18),0))))","v":0},{"$f":"IF(AND(INTRO!$E$39=\"Non-endemic\",INTRO!$E$37=\"Non-endemic\"),\"Not required\",IF(INTRO!$E$39=\"Non-endemic\",\"Treat with DEC\",COUNTRY_INFO!W18))","v":0},{"$f":"IF(INTRO!$E$39<>\"Non-endemic\",COUNTRY_INFO!X18,\"Not required\")","v":0},{"$f":"IF(COUNTRY_INFO!H18=1, IF($E18=1,IF(ALB_MBD!$G18<>\" \",COUNTRY_INFO!F18+COUNTRY_INFO!G18-ALB_MBD!$G18,COUNTRY_INFO!F18+COUNTRY_INFO!G18), 0),0)","v":0},{"$f":"IF(INTRO!$E$39<>\"Endemic\",0, IF(AND(COUNTRY_INFO!$I18=1,$F18<>0),IF(COUNTRY_INFO!N18>=(COUNTRY_INFO!F18+COUNTRY_INFO!G18),COUNTRY_INFO!F18+COUNTRY_INFO!G18,COUNTRY_INFO!$N18), 0))","v":0},0,0,0,0,null,0]
[{"$f":"IF(INTRO!$E$39=\"Non-endemic\",\" \",IF(COUNTRY_INFO!A19=0,\" \",COUNTRY_INFO!A19))","v":"Gabon"},{"$f":"IF(INTRO!$E$39=\"Non-endemic\",\" \",IF(COUNTRY_INFO!B19=0,\" \",COUNTRY_INFO!B19))","v":"Haut Ogooué"},{"$f":"IF(INTRO!$E$39=\"Non-endemic\",\" \",IF(COUNTRY_INFO!C19=0,\" \",COUNTRY_INFO!C19))","v":"Lékoko"},{"$f":"IF(INTRO!$E$39=\"Non-endemic\",0,IF(INTRO!$E$39=\"Endemic but PC is not required\",IF(COUNTRY_INFO!$H19=1,COUNTRY_INFO!F19+COUNTRY_INFO!G19,0),IF(COUNTRY_INFO!$H19=1,COUNTRY_INFO!F19+COUNTRY_INFO!G19,IF(COUNTRY_INFO!$I19=1,IF(COUNTRY_INFO!N19>=(COUNTRY_INFO!F19+COUNTRY_INFO!G19),COUNTRY_INFO!F19+COUNTRY_INFO!G19,COUNTRY_INFO!$N19),0))))","v":0},{"$f":"IF(AND(INTRO!$E$39=\"Non-endemic\",INTRO!$E$37=\"Non-endemic\"),\"Not required\",IF(INTRO!$E$39=\"Non-endemic\",\"Treat with DEC\",COUNTRY_INFO!W19))","v":0},{"$f":"IF(INTRO!$E$39<>\"Non-endemic\",COUNTRY_INFO!X19,\"Not required\")","v":0},{"$f":"IF(COUNTRY_INFO!H19=1, IF($E19=1,IF(ALB_MBD!$G19<>\" \",COUNTRY_INFO!F19+COUNTRY_INFO!G19-ALB_MBD!$G19,COUNTRY_INFO!F19+COUNTRY_INFO!G19), 0),0)","v":0},{"$f":"IF(INTRO!$E$39<>\"Endemic\",0, IF(AND(COUNTRY_INFO!$I19=1,$F19<>0),IF(COUNTRY_INFO!N19>=(COUNTRY_INFO!F19+COUNTRY_INFO!G19),COUNTRY_INFO!F19+COUNTRY_INFO!G19,COUNTRY_INFO!$N19), 0))","v":0},0,0,0,0,null,0]
[{"$f":"IF(INTRO!$E$39=\"Non-endemic\",\" \",IF(COUNTRY_INFO!A20=0,\" \",COUNTRY_INFO!A20))","v":"Gabon"},{"$f":"IF(INTRO!$E$39=\"Non-endemic\",\" \",IF(COUNTRY_INFO!B20=0,\" \",COUNTRY_INFO!B20))","v":"Haut Ogooué"},{"$f":"IF(INTRO!$E$39=\"Non-endemic\",\" \",IF(COUNTRY_INFO!C20=0,\" \",COUNTRY_INFO!C20))","v":"Djouori-Agnili"},{"$f":"IF(INTRO!$E$39=\"Non-endemic\",0,IF(INTRO!$E$39=\"Endemic but PC is not required\",IF(COUNTRY_INFO!$H20=1,COUNTRY_INFO!F20+COUNTRY_INFO!G20,0),IF(COUNTRY_INFO!$H20=1,COUNTRY_INFO!F20+COUNTRY_INFO!G20,IF(COUNTRY_INFO!$I20=1,IF(COUNTRY_INFO!N20>=(COUNTRY_INFO!F20+COUNTRY_INFO!G20),COUNTRY_INFO!F20+COUNTRY_INFO!G20,COUNTRY_INFO!$N20),0))))","v":6475},{"$f":"IF(AND(INTRO!$E$39=\"Non-endemic\",INTRO!$E$37=\"Non-endemic\"),\"Not required\",IF(INTRO!$E$39=\"Non-endemic\",\"Treat with DEC\",COUNTRY_INFO!W20))","v":1},{"$f":"IF(INTRO!$E$39<>\"Non-endemic\",COUNTRY_INFO!X20,\"Not required\")","v":0},{"$f":"IF(COUNTRY_INFO!H20=1, IF($E20=1,IF(ALB_MBD!$G20<>\" \",COUNTRY_INFO!F20+COUNTRY_INFO!G20-ALB_MBD!$G20,COUNTRY_INFO!F20+COUNTRY_INFO!G20), 0),0)","v":732},{"$f":"IF(INTRO!$E$39<>\"Endemic\",0, IF(AND(COUNTRY_INFO!$I20=1,$F20<>0),IF(COUNTRY_INFO!N20>=(COUNTRY_INFO!F20+COUNTRY_INFO!G20),COUNTRY_INFO!F20+COUNTRY_INFO!G20,COUNTRY_INFO!$N20), 0))","v":0},2049.6,0,0,2049.6,null,2049.6]
[{"$f":"IF(INTRO!$E$39=\"Non-endemic\",\" \",IF(COUNTRY_INFO!A21=0,\" \",COUNTRY_INFO!A21))","v":"Gabon"},{"$f":"IF(INTRO!$E$39=\"Non-endemic\",\" \",IF(COUNTRY_INFO!B21=0,\" \",COUNTRY_INFO!B21))","v":"Haut Ogooué"},{"$f":"IF(INTRO!$E$39=\"Non-endemic\",\" \",IF(COUNTRY_INFO!C21=0,\" \",COUNTRY_INFO!C21))","v":"Ogooué -létili"},{"$f":"IF(INTRO!$E$39=\"Non-endemic\",0,IF(INTRO!$E$39=\"Endemic but PC is not required\",IF(COUNTRY_INFO!$H21=1,COUNTRY_INFO!F21+COUNTRY_INFO!G21,0),IF(COUNTRY_INFO!$H21=1,COUNTRY_INFO!F21+COUNTRY_INFO!G21,IF(COUNTRY_INFO!$I21=1,IF(COUNTRY_INFO!N21>=(COUNTRY_INFO!F21+COUNTRY_INFO!G21),COUNTRY_INFO!F21+COUNTRY_INFO!G21,COUNTRY_INFO!$N21),0))))","v":0},{"$f":"IF(AND(INTRO!$E$39=\"Non-endemic\",INTRO!$E$37=\"Non-endemic\"),\"Not required\",IF(INTRO!$E$39=\"Non-endemic\",\"Treat with DEC\",COUNTRY_INFO!W21))","v":0},{"$f":"IF(INTRO!$E$39<>\"Non-endemic\",COUNTRY_INFO!X21,\"Not required\")","v":0},{"$f":"IF(COUNTRY_INFO!H21=1, IF($E21=1,IF(ALB_MBD!$G21<>\" \",COUNTRY_INFO!F21+COUNTRY_INFO!G21-ALB_MBD!$G21,COUNTRY_INFO!F21+COUNTRY_INFO!G21), 0),0)","v":0},{"$f":"IF(INTRO!$E$39<>\"Endemic\",0, IF(AND(COUNTRY_INFO!$I21=1,$F21<>0),IF(COUNTRY_INFO!N21>=(COUNTRY_INFO!F21+COUNTRY_INFO!G21),COUNTRY_INFO!F21+COUNTRY_INFO!G21,COUNTRY_INFO!$N21), 0))","v":0},0,0,0,0,null,0]
[{"$f":"IF(INTRO!$E$39=\"Non-endemic\",\" \",IF(COUNTRY_INFO!A22=0,\" \",COUNTRY_INFO!A22))","v":"Gabon"},{"$f":"IF(INTRO!$E$39=\"Non-endemic\",\" \",IF(COUNTRY_INFO!B22=0,\" \",COUNTRY_INFO!B22))","v":"Haut Ogooué"},{"$f":"IF(INTRO!$E$39=\"Non-endemic\",\" \",IF(COUNTRY_INFO!C22=0,\" \",COUNTRY_INFO!C22))","v":"Mpassa"},{"$f":"IF(INTRO!$E$39=\"Non-endemic\",0,IF(INTRO!$E$39=\"Endemic but PC is not required\",IF(COUNTRY_INFO!$H22=1,COUNTRY_INFO!F22+COUNTRY_INFO!G22,0),IF(COUNTRY_INFO!$H22=1,COUNTRY_INFO!F22+COUNTRY_INFO!G22,IF(COUNTRY_INFO!$I22=1,IF(COUNTRY_INFO!N22>=(COUNTRY_INFO!F22+COUNTRY_INFO!G22),COUNTRY_INFO!F22+COUNTRY_INFO!G22,COUNTRY_INFO!$N22),0))))","v":163649},{"$f":"IF(AND(INTRO!$E$39=\"Non-endemic\",INTRO!$E$37=\"Non-endemic\"),\"Not required\",IF(INTRO!$E$39=\"Non-endemic\",\"Treat with DEC\",COUNTRY_INFO!W22))","v":0},{"$f":"IF(INTRO!$E$39<>\"Non-endemic\",COUNTRY_INFO!X22,\"Not required\")","v":0},{"$f":"IF(COUNTRY_INFO!H22=1, IF($E22=1,IF(ALB_MBD!$G22<>\" \",COUNTRY_INFO!F22+COUNTRY_INFO!G22-ALB_MBD!$G22,COUNTRY_INFO!F22+COUNTRY_INFO!G22), 0),0)","v":0},{"$f":"IF(INTRO!$E$39<>\"Endemic\",0, IF(AND(COUNTRY_INFO!$I22=1,$F22<>0),IF(COUNTRY_INFO!N22>=(COUNTRY_INFO!F22+COUNTRY_INFO!G22),COUNTRY_INFO!F22+COUNTRY_INFO!G22,COUNTRY_INFO!$N22), 0))","v":0},0,0,0,0,null,0]
[{"$f":"IF(INTRO!$E$39=\"Non-endemic\",\" \",IF(COUNTRY_INFO!A23=0,\" \",COUNTRY_INFO!A23))","v":"Gabon"},{"$f":"IF(INTRO!$E$39=\"Non-endemic\",\" \",IF(COUNTRY_INFO!B23=0,\" \",COUNTRY_INFO!B23))","v":"Haut Ogooué"},{"$f":"IF(INTRO!$E$39=\"Non-endemic\",\" \",IF(COUNTRY_INFO!C23=0,\" \",COUNTRY_INFO!C23))","v":"Plateaux"},{"$f":"IF(INTRO!$E$39=\"Non-endemic\",0,IF(INTRO!$E$39=\"Endemic but PC is not required\",IF(COUNTRY_INFO!$H23=1,COUNTRY_INFO!F23+COUNTRY_INFO!G23,0),IF(COUNTRY_INFO!$H23=1,COUNTRY_INFO!F23+COUNTRY_INFO!G23,IF(COUNTRY_INFO!$I23=1,IF(COUNTRY_INFO!N23>=(COUNTRY_INFO!F23+COUNTRY_INFO!G23),COUNTRY_INFO!F23+COUNTRY_INFO!G23,COUNTRY_INFO!$N23),0))))","v":0},{"$f":"IF(AND(INTRO!$E$39=\"Non-endemic\",INTRO!$E$37=\"Non-endemic\"),\"Not required\",IF(INTRO!$E$39=\"Non-endemic\",\"Treat with DEC\",COUNTRY_INFO!W23))","v":0},{"$f":"IF(INTRO!$E$39<>\"Non-endemic\",COUNTRY_INFO!X23,\"Not required\")","v":0},{"$f":"IF(COUNTRY_INFO!H23=1, IF($E23=1,IF(ALB_MBD!$G23<>\" \",COUNTRY_INFO!F23+COUNTRY_INFO!G23-ALB_MBD!$G23,COUNTRY_INFO!F23+COUNTRY_INFO!G23), 0),0)","v":0},{"$f":"IF(INTRO!$E$39<>\"Endemic\",0, IF(AND(COUNTRY_INFO!$I23=1,$F23<>0),IF(COUNTRY_INFO!N23>=(COUNTRY_INFO!F23+COUNTRY_INFO!G23),COUNTRY_INFO!F23+COUNTRY_INFO!G23,COUNTRY_INFO!$N23), 0))","v":0},0,0,0,0,null,0]
[{"$f":"IF(INTRO!$E$39=\"Non-endemic\",\" \",IF(COUNTRY_INFO!A24=0,\" \",COUNTRY_INFO!A24))","v":"Gabon"},{"$f":"IF(INTRO!$E$39=\"Non-endemic\",\" \",IF(COUNTRY_INFO!B24=0,\" \",COUNTRY_INFO!B24))","v":"Haut Ogooué"},{"$f":"IF(INTRO!$E$39=\"Non-endemic\",\" \",IF(COUNTRY_INFO!C24=0,\" \",COUNTRY_INFO!C24))","v":"Lébombi-Léyou"},{"$f":"IF(INTRO!$E$39=\"Non-endemic\",0,IF(INTRO!$E$39=\"Endemic but PC is not required\",IF(COUNTRY_INFO!$H24=1,COUNTRY_INFO!F24+COUNTRY_INFO!G24,0),IF(COUNTRY_INFO!$H24=1,COUNTRY_INFO!F24+COUNTRY_INFO!G24,IF(COUNTRY_INFO!$I24=1,IF(COUNTRY_INFO!N24>=(COUNTRY_INFO!F24+COUNTRY_INFO!G24),COUNTRY_INFO!F24+COUNTRY_INFO!G24,COUNTRY_INFO!$N24),0))))","v":72507},{"$f":"IF(AND(INTRO!$E$39=\"Non-endemic\",INTRO!$E$37=\"Non-endemic\"),\"Not required\",IF(INTRO!$E$39=\"Non-endemic\",\"Treat with DEC\",COUNTRY_INFO!W24))","v":0},{"$f":"IF(INTRO!$E$39<>\"Non-endemic\",COUNTRY_INFO!X24,\"Not required\")","v":0},{"$f":"IF(COUNTRY_INFO!H24=1, IF($E24=1,IF(ALB_MBD!$G24<>\" \",COUNTRY_INFO!F24+COUNTRY_INFO!G24-ALB_MBD!$G24,COUNTRY_INFO!F24+COUNTRY_INFO!G24), 0),0)","v":0},{"$f":"IF(INTRO!$E$39<>\"Endemic\",0, IF(AND(COUNTRY_INFO!$I24=1,$F24<>0),IF(COUNTRY_INFO!N24>=(COUNTRY_INFO!F24+COUNTRY_INFO!G24),COUNTRY_INFO!F24+COUNTRY_INFO!G24,COUNTRY_INFO!$N24), 0))","v":0},0,0,0,0,null,0]
[{"$f":"IF(INTRO!$E$39=\"Non-endemic\",\" \",IF(COUNTRY_INFO!A25=0,\" \",COUNTRY_INFO!A25))","v":"Gabon"},{"$f":"IF(INTRO!$E$39=\"Non-endemic\",\" \",IF(COUNTRY_INFO!B25=0,\" \",COUNTRY_INFO!B25))","v":"Haut Ogooué"},{"$f":"IF(INTRO!$E$39=\"Non-endemic\",\" \",IF(COUNTRY_INFO!C25=0,\" \",COUNTRY_INFO!C25))","v":"Lékabi-léwolo"},{"$f":"IF(INTRO!$E$39=\"Non-endemic\",0,IF(INTRO!$E$39=\"Endemic but PC is not required\",IF(COUNTRY_INFO!$H25=1,COUNTRY_INFO!F25+COUNTRY_INFO!G25,0),IF(COUNTRY_INFO!$H25=1,COUNTRY_INFO!F25+COUNTRY_INFO!G25,IF(COUNTRY_INFO!$I25=1,IF(COUNTRY_INFO!N25>=(COUNTRY_INFO!F25+COUNTRY_INFO!G25),COUNTRY_INFO!F25+COUNTRY_INFO!G25,COUNTRY_INFO!$N25),0))))","v":0},{"$f":"IF(AND(INTRO!$E$39=\"Non-endemic\",INTRO!$E$37=\"Non-endemic\"),\"Not required\",IF(INTRO!$E$39=\"Non-endemic\",\"Treat with DEC\",COUNTRY_INFO!W25))","v":0},{"$f":"IF(INTRO!$E$39<>\"Non-endemic\",COUNTRY_INFO!X25,\"Not required\")","v":0},{"$f":"IF(COUNTRY_INFO!H25=1, IF($E25=1,IF(ALB_MBD!$G25<>\" \",COUNTRY_INFO!F25+COUNTRY_INFO!G25-ALB_MBD!$G25,COUNTRY_INFO!F25+COUNTRY_INFO!G25), 0),0)","v":0},{"$f":"IF(INTRO!$E$39<>\"Endemic\",0, IF(AND(COUNTRY_INFO!$I25=1,$F25<>0),IF(COUNTRY_INFO!N25>=(COUNTRY_INFO!F25+COUNTRY_INFO!G25),COUNTRY_INFO!F25+COUNTRY_INFO!G25,COUNTRY_INFO!$N25), 0))","v":0},0,0,0,0,null,0]
[{"$f":"IF(INTRO!$E$39=\"Non-endemic\",\" \",IF(COUNTRY_INFO!A26=0,\" \",COUNTRY_INFO!A26))","v":"Gabon"},{"$f":"IF(INTRO!$E$39=\"Non-endemic\",\" \",IF(COUNTRY_INFO!B26=0,\" \",COUNTRY_INFO!B26))","v":"Haut Ogooué"},{"$f":"IF(INTRO!$E$39=\"Non-endemic\",\" \",IF(COUNTRY_INFO!C26=0,\" \",COUNTRY_INFO!C26))","v":"Sébé-brikoli"},{"$f":"IF(INTRO!$E$39=\"Non-endemic\",0,IF(INTRO!$E$39=\"Endemic but PC is not required\",IF(COUNTRY_INFO!$H26=1,COUNTRY_INFO!F26+COUNTRY_INFO!G26,0),IF(COUNTRY_INFO!$H26=1,COUNTRY_INFO!F26+COUNTRY_INFO!G26,IF(COUNTRY_INFO!$I26=1,IF(COUNTRY_INFO!N26>=(COUNTRY_INFO!F26+COUNTRY_INFO!G26),COUNTRY_INFO!F26+COUNTRY_INFO!G26,COUNTRY_INFO!$N26),0))))","v":19838},{"$f":"IF(AND(INTRO!$E$39=\"Non-endemic\",INTRO!$E$37=\"Non-endemic\"),\"Not required\",IF(INTRO!$E$39=\"Non-endemic\",\"Treat with DEC\",COUNTRY_INFO!W26))","v":0},{"$f":"IF(INTRO!$E$39<>\"Non-endemic\",COUNTRY_INFO!X26,\"Not required\")","v":0},{"$f":"IF(COUNTRY_INFO!H26=1, IF($E26=1,IF(ALB_MBD!$G26<>\" \",COUNTRY_INFO!F26+COUNTRY_INFO!G26-ALB_MBD!$G26,COUNTRY_INFO!F26+COUNTRY_INFO!G26), 0),0)","v":0},{"$f":"IF(INTRO!$E$39<>\"Endemic\",0, IF(AND(COUNTRY_INFO!$I26=1,$F26<>0),IF(COUNTRY_INFO!N26>=(COUNTRY_INFO!F26+COUNTRY_INFO!G26),COUNTRY_INFO!F26+COUNTRY_INFO!G26,COUNTRY_INFO!$N26), 0))","v":0},0,0,0,0,null,0]
[{"$f":"IF(INTRO!$E$39=\"Non-endemic\",\" \",IF(COUNTRY_INFO!A27=0,\" \",COUNTRY_INFO!A27))","v":"Gabon"},{"$f":"IF(INTRO!$E$39=\"Non-endemic\",\" \",IF(COUNTRY_INFO!B27=0,\" \",COUNTRY_INFO!B27))","v":"Haut Ogooué"},{"$f":"IF(INTRO!$E$39=\"Non-endemic\",\" \",IF(COUNTRY_INFO!C27=0,\" \",COUNTRY_INFO!C27))","v":"Djoué"},{"$f":"IF(INTRO!$E$39=\"Non-endemic\",0,IF(INTRO!$E$39=\"Endemic but PC is not required\",IF(COUNTRY_INFO!$H27=1,COUNTRY_INFO!F27+COUNTRY_INFO!G27,0),IF(COUNTRY_INFO!$H27=1,COUNTRY_INFO!F27+COUNTRY_INFO!G27,IF(COUNTRY_INFO!$I27=1,IF(COUNTRY_INFO!N27>=(COUNTRY_INFO!F27+COUNTRY_INFO!G27),COUNTRY_INFO!F27+COUNTRY_INFO!G27,COUNTRY_INFO!$N27),0))))","v":0},{"$f":"IF(AND(INTRO!$E$39=\"Non-endemic\",INTRO!$E$37=\"Non-endemic\"),\"Not required\",IF(INTRO!$E$39=\"Non-endemic\",\"Treat with DEC\",COUNTRY_INFO!W27))","v":0},{"$f":"IF(INTRO!$E$39<>\"Non-endemic\",COUNTRY_INFO!X27,\"Not required\")","v":0},{"$f":"IF(COUNTRY_INFO!H27=1, IF($E27=1,IF(ALB_MBD!$G27<>\" \",COUNTRY_INFO!F27+COUNTRY_INFO!G27-ALB_MBD!$G27,COUNTRY_INFO!F27+COUNTRY_INFO!G27), 0),0)","v":0},{"$f":"IF(INTRO!$E$39<>\"Endemic\",0, IF(AND(COUNTRY_INFO!$I27=1,$F27<>0),IF(COUNTRY_INFO!N27>=(COUNTRY_INFO!F27+COUNTRY_INFO!G27),COUNTRY_INFO!F27+COUNTRY_INFO!G27,COUNTRY_INFO!$N27), 0))","v":0},0,0,0,0,null,0]
[{"$f":"IF(INTRO!$E$39=\"Non-endemic\",\" \",IF(COUNTRY_INFO!A28=0,\" \",COUNTRY_INFO!A28))","v":"Gabon"},{"$f":"IF(INTRO!$E$39=\"Non-endemic\",\" \",IF(COUNTRY_INFO!B28=0,\" \",COUNTRY_INFO!B28))","v":"Moyen Ogooué"},{"$f":"IF(INTRO!$E$39=\"Non-endemic\",\" \",IF(COUNTRY_INFO!C28=0,\" \",COUNTRY_INFO!C28))","v":"Ogooué et Lacs"},{"$f":"IF(INTRO!$E$39=\"Non-endemic\",0,IF(INTRO!$E$39=\"Endemic but PC is not required\",IF(COUNTRY_INFO!$H28=1,COUNTRY_INFO!F28+COUNTRY_INFO!G28,0),IF(COUNTRY_INFO!$H28=1,COUNTRY_INFO!F28+COUNTRY_INFO!G28,IF(COUNTRY_INFO!$I28=1,IF(COUNTRY_INFO!N28>=(COUNTRY_INFO!F28+COUNTRY_INFO!G28),COUNTRY_INFO!F28+COUNTRY_INFO!G28,COUNTRY_INFO!$N28),0))))","v":0},{"$f":"IF(AND(INTRO!$E$39=\"Non-endemic\",INTRO!$E$37=\"Non-endemic\"),\"Not required\",IF(INTRO!$E$39=\"Non-endemic\",\"Treat with DEC\",COUNTRY_INFO!W28))","v":0},{"$f":"IF(INTRO!$E$39<>\"Non-endemic\",COUNTRY_INFO!X28,\"Not required\")","v":0},{"$f":"IF(COUNTRY_INFO!H28=1, IF($E28=1,IF(ALB_MBD!$G28<>\" \",COUNTRY_INFO!F28+COUNTRY_INFO!G28-ALB_MBD!$G28,COUNTRY_INFO!F28+COUNTRY_INFO!G28), 0),0)","v":0},{"$f":"IF(INTRO!$E$39<>\"Endemic\",0, IF(AND(COUNTRY_INFO!$I28=1,$F28<>0),IF(COUNTRY_INFO!N28>=(COUNTRY_INFO!F28+COUNTRY_INFO!G28),COUNTRY_INFO!F28+COUNTRY_INFO!G28,COUNTRY_INFO!$N28), 0))","v":0},0,0,0,0,null,0]
[{"$f":"IF(INTRO!$E$39=\"Non-endemic\",\" \",IF(COUNTRY_INFO!A29=0,\" \",COUNTRY_INFO!A29))","v":"Gabon"},{"$f":"IF(INTRO!$E$39=\"Non-endemic\",\" \",IF(COUNTRY_INFO!B29=0,\" \",COUNTRY_INFO!B29))","v":"Moyen Ogooué"},{"$f":"IF(INTRO!$E$39=\"Non-endemic\",\" \",IF(COUNTRY_INFO!C29=0,\" \",COUNTRY_INFO!C29))","v":"Abanga -Bigné"},{"$f":"IF(INTRO!$E$39=\"Non-endemic\",0,IF(INTRO!$E$39=\"Endemic but PC is not required\",IF(COUNTRY_INFO!$H29=1,COUNTRY_INFO!F29+COUNTRY_INFO!G29,0),IF(COUNTRY_INFO!$H29=1,COUNTRY_INFO!F29+COUNTRY_INFO!G29,IF(COUNTRY_INFO!$I29=1,IF(COUNTRY_INFO!N29>=(COUNTRY_INFO!F29+COUNTRY_INFO!G29),COUNTRY_INFO!F29+COUNTRY_INFO!G29,COUNTRY_INFO!$N29),0))))","v":17345},{"$f":"IF(AND(INTRO!$E$39=\"Non-endemic\",INTRO!$E$37=\"Non-endemic\"),\"Not required\",IF(INTRO!$E$39=\"Non-endemic\",\"Treat with DEC\",COUNTRY_INFO!W29))","v":1},{"$f":"IF(INTRO!$E$39<>\"Non-endemic\",COUNTRY_INFO!X29,\"Not required\")","v":0},{"$f":"IF(COUNTRY_INFO!H29=1, IF($E29=1,IF(ALB_MBD!$G29<>\" \",COUNTRY_INFO!F29+COUNTRY_INFO!G29-ALB_MBD!$G29,COUNTRY_INFO!F29+COUNTRY_INFO!G29), 0),0)","v":1964},{"$f":"IF(INTRO!$E$39<>\"Endemic\",0, IF(AND(COUNTRY_INFO!$I29=1,$F29<>0),IF(COUNTRY_INFO!N29>=(COUNTRY_INFO!F29+COUNTRY_INFO!G29),COUNTRY_INFO!F29+COUNTRY_INFO!G29,COUNTRY_INFO!$N29), 0))","v":0},5499.2,0,0,5499.2,null,5499.2]
[{"$f":"IF(INTRO!$E$39=\"Non-endemic\",\" \",IF(COUNTRY_INFO!A30=0,\" \",COUNTRY_INFO!A30))","v":"Gabon"},{"$f":"IF(INTRO!$E$39=\"Non-endemic\",\" \",IF(COUNTRY_INFO!B30=0,\" \",COUNTRY_INFO!B30))","v":"Ngounié"},{"$f":"IF(INTRO!$E$39=\"Non-endemic\",\" \",IF(COUNTRY_INFO!C30=0,\" \",COUNTRY_INFO!C30))","v":"Tsamba -Magotsi"},{"$f":"IF(INTRO!$E$39=\"Non-endemic\",0,IF(INTRO!$E$39=\"Endemic but PC is not required\",IF(COUNTRY_INFO!$H30=1,COUNTRY_INFO!F30+COUNTRY_INFO!G30,0),IF(COUNTRY_INFO!$H30=1,COUNTRY_INFO!F30+COUNTRY_INFO!G30,IF(COUNTRY_INFO!$I30=1,IF(COUNTRY_INFO!N30>=(COUNTRY_INFO!F30+COUNTRY_INFO!G30),COUNTRY_INFO!F30+COUNTRY_INFO!G30,COUNTRY_INFO!$N30),0))))","v":14855},{"$f":"IF(AND(INTRO!$E$39=\"Non-endemic\",INTRO!$E$37=\"Non-endemic\"),\"Not required\",IF(INTRO!$E$39=\"Non-endemic\",\"Treat with DEC\",COUNTRY_INFO!W30))","v":0},{"$f":"IF(INTRO!$E$39<>\"Non-endemic\",COUNTRY_INFO!X30,\"Not required\")","v":0},{"$f":"IF(COUNTRY_INFO!H30=1, IF($E30=1,IF(ALB_MBD!$G30<>\" \",COUNTRY_INFO!F30+COUNTRY_INFO!G30-ALB_MBD!$G30,COUNTRY_INFO!F30+COUNTRY_INFO!G30), 0),0)","v":0},{"$f":"IF(INTRO!$E$39<>\"Endemic\",0, IF(AND(COUNTRY_INFO!$I30=1,$F30<>0),IF(COUNTRY_INFO!N30>=(COUNTRY_INFO!F30+COUNTRY_INFO!G30),COUNTRY_INFO!F30+COUNTRY_INFO!G30,COUNTRY_INFO!$N30), 0))","v":0},0,0,0,0,null,0]
[{"$f":"IF(INTRO!$E$39=\"Non-endemic\",\" \",IF(COUNTRY_INFO!A31=0,\" \",COUNTRY_INFO!A31))","v":"Gabon"},{"$f":"IF(INTRO!$E$39=\"Non-endemic\",\" \",IF(COUNTRY_INFO!B31=0,\" \",COUNTRY_INFO!B31))","v":"Ngounié"},{"$f":"IF(INTRO!$E$39=\"Non-endemic\",\" \",IF(COUNTRY_INFO!C31=0,\" \",COUNTRY_INFO!C31))","v":"Louetsi-Wano"},{"$f":"IF(INTRO!$E$39=\"Non-endemic\",0,IF(INTRO!$E$39=\"Endemic but PC is not required\",IF(COUNTRY_INFO!$H31=1,COUNTRY_INFO!F31+COUNTRY_INFO!G31,0),IF(COUNTRY_INFO!$H31=1,COUNTRY_INFO!F31+COUNTRY_INFO!G31,IF(COUNTRY_INFO!$I31=1,IF(COUNTRY_INFO!N31>=(COUNTRY_INFO!F31+COUNTRY_INFO!G31),COUNTRY_INFO!F31+COUNTRY_INFO!G31,COUNTRY_INFO!$N31),0))))","v":10734},{"$f":"IF(AND(INTRO!$E$39=\"Non-endemic\",INTRO!$E$37=\"Non-endemic\"),\"Not required\",IF(INTRO!$E$39=\"Non-endemic\",\"Treat with DEC\",COUNTRY_INFO!W31))","v":1},{"$f":"IF(INTRO!$E$39<>\"Non-endemic\",COUNTRY_INFO!X31,\"Not required\")","v":0},{"$f":"IF(COUNTRY_INFO!H31=1, IF($E31=1,IF(ALB_MBD!$G31<>\" \",COUNTRY_INFO!F31+COUNTRY_INFO!G31-ALB_MBD!$G31,COUNTRY_INFO!F31+COUNTRY_INFO!G31), 0),0)","v":684},{"$f":"IF(INTRO!$E$39<>\"Endemic\",0, IF(AND(COUNTRY_INFO!$I31=1,$F31<>0),IF(COUNTRY_INFO!N31>=(COUNTRY_INFO!F31+COUNTRY_INFO!G31),COUNTRY_INFO!F31+COUNTRY_INFO!G31,COUNTRY_INFO!$N31), 0))","v":0},1915.1999999999998,0,0,1915.1999999999998,null,1915.1999999999998]
[{"$f":"IF(INTRO!$E$39=\"Non-endemic\",\" \",IF(COUNTRY_INFO!A32=0,\" \",COUNTRY_INFO!A32))","v":"Gabon"},{"$f":"IF(INTRO!$E$39=\"Non-endemic\",\" \",IF(COUNTRY_INFO!B32=0,\" \",COUNTRY_INFO!B32))","v":"Ngounié"},{"$f":"IF(INTRO!$E$39=\"Non-endemic\",\" \",IF(COUNTRY_INFO!C32=0,\" \",COUNTRY_INFO!C32))","v":"Louetsi-Bibaka"},{"$f":"IF(INTRO!$E$39=\"Non-endemic\",0,IF(INTRO!$E$39=\"Endemic but PC is not required\",IF(COUNTRY_INFO!$H32=1,COUNTRY_INFO!F32+COUNTRY_INFO!G32,0),IF(COUNTRY_INFO!$H32=1,COUNTRY_INFO!F32+COUNTRY_INFO!G32,IF(COUNTRY_INFO!$I32=1,IF(COUNTRY_INFO!N32>=(COUNTRY_INFO!F32+COUNTRY_INFO!G32),COUNTRY_INFO!F32+COUNTRY_INFO!G32,COUNTRY_INFO!$N32),0))))","v":2504},{"$f":"IF(AND(INTRO!$E$39=\"Non-endemic\",INTRO!$E$37=\"Non-endemic\"),\"Not required\",IF(INTRO!$E$39=\"Non-endemic\",\"Treat with DEC\",COUNTRY_INFO!W32))","v":1},{"$f":"IF(INTRO!$E$39<>\"Non-endemic\",COUNTRY_INFO!X32,\"Not required\")","v":0},{"$f":"IF(COUNTRY_INFO!H32=1, IF($E32=1,IF(ALB_MBD!$G32<>\" \",COUNTRY_INFO!F32+COUNTRY_INFO!G32-ALB_MBD!$G32,COUNTRY_INFO!F32+COUNTRY_INFO!G32), 0),0)","v":159},{"$f":"IF(INTRO!$E$39<>\"Endemic\",0, IF(AND(COUNTRY_INFO!$I32=1,$F32<>0),IF(COUNTRY_INFO!N32>=(COUNTRY_INFO!F32+COUNTRY_INFO!G32),COUNTRY_INFO!F32+COUNTRY_INFO!G32,COUNTRY_INFO!$N32), 0))","v":0},445.2,0,0,445.2,null,445.2]
[{"$f":"IF(INTRO!$E$39=\"Non-endemic\",\" \",IF(COUNTRY_INFO!A33=0,\" \",COUNTRY_INFO!A33))","v":"Gabon"},{"$f":"IF(INTRO!$E$39=\"Non-endemic\",\" \",IF(COUNTRY_INFO!B33=0,\" \",COUNTRY_INFO!B33))","v":"Ngounié"},{"$f":"IF(INTRO!$E$39=\"Non-endemic\",\" \",IF(COUNTRY_INFO!C33=0,\" \",COUNTRY_INFO!C33))","v":"Ndolou"},{"$f":"IF(INTRO!$E$39=\"Non-endemic\",0,IF(INTRO!$E$39=\"Endemic but PC is not required\",IF(COUNTRY_INFO!$H33=1,COUNTRY_INFO!F33+COUNTRY_INFO!G33,0),IF(COUNTRY_INFO!$H33=1,COUNTRY_INFO!F33+COUNTRY_INFO!G33,IF(COUNTRY_INFO!$I33=1,IF(COUNTRY_INFO!N33>=(COUNTRY_INFO!F33+COUNTRY_INFO!G33),COUNTRY_INFO!F33+COUNTRY_INFO!G33,COUNTRY_INFO!$N33),0))))","v":5874},{"$f":"IF(AND(INTRO!$E$39=\"Non-endemic\",INTRO!$E$37=\"Non-endemic\"),\"Not required\",IF(INTRO!$E$39=\"Non-endemic\",\"Treat with DEC\",COUNTRY_INFO!W33))","v":1},{"$f":"IF(INTRO!$E$39<>\"Non-endemic\",COUNTRY_INFO!X33,\"Not required\")","v":0},{"$f":"IF(COUNTRY_INFO!H33=1, IF($E33=1,IF(ALB_MBD!$G33<>\" \",COUNTRY_INFO!F33+COUNTRY_INFO!G33-ALB_MBD!$G33,COUNTRY_INFO!F33+COUNTRY_INFO!G33), 0),0)","v":374},{"$f":"IF(INTRO!$E$39<>\"Endemic\",0, IF(AND(COUNTRY_INFO!$I33=1,$F33<>0),IF(COUNTRY_INFO!N33>=(COUNTRY_INFO!F33+COUNTRY_INFO!G33),COUNTRY_INFO!F33+COUNTRY_INFO!G33,COUNTRY_INFO!$N33), 0))","v":0},1047.2,0,0,1047.2,null,1047.2]
[{"$f":"IF(INTRO!$E$39=\"Non-endemic\",\" \",IF(COUNTRY_INFO!A34=0,\" \",COUNTRY_INFO!A34))","v":"Gabon"},{"$f":"IF(INTRO!$E$39=\"Non-endemic\",\" \",IF(COUNTRY_INFO!B34=0,\" \",COUNTRY_INFO!B34))","v":"Ngounié"},{"$f":"IF(INTRO!$E$39=\"Non-endemic\",\" \",IF(COUNTRY_INFO!C34=0,\" \",COUNTRY_INFO!C34))","v":"Boumi-Louetsi"},{"$f":"IF(INTRO!$E$39=\"Non-endemic\",0,IF(INTRO!$E$39=\"Endemic but PC is not required\",IF(COUNTRY_INFO!$H34=1,COUNTRY_INFO!F34+COUNTRY_INFO!G34,0),IF(COUNTRY_INFO!$H34=1,COUNTRY_INFO!F34+COUNTRY_INFO!G34,IF(COUNTRY_INFO!$I34=1,IF(COUNTRY_INFO!N34>=(COUNTRY_INFO!F34+COUNTRY_INFO!G34),COUNTRY_INFO!F34+COUNTRY_INFO!G34,COUNTRY_INFO!$N34),0))))","v":15132},{"$f":"IF(AND(INTRO!$E$39=\"Non-endemic\",INTRO!$E$37=\"Non-endemic\"),\"Not required\",IF(INTRO!$E$39=\"Non-endemic\",\"Treat with DEC\",COUNTRY_INFO!W34))","v":1},{"$f":"IF(INTRO!$E$39<>\"Non-endemic\",COUNTRY_INFO!X34,\"Not required\")","v":0},{"$f":"IF(COUNTRY_INFO!H34=1, IF($E34=1,IF(ALB_MBD!$G34<>\" \",COUNTRY_INFO!F34+COUNTRY_INFO!G34-ALB_MBD!$G34,COUNTRY_INFO!F34+COUNTRY_INFO!G34), 0),0)","v":963},{"$f":"IF(INTRO!$E$39<>\"Endemic\",0, IF(AND(COUNTRY_INFO!$I34=1,$F34<>0),IF(COUNTRY_INFO!N34>=(COUNTRY_INFO!F34+COUNTRY_INFO!G34),COUNTRY_INFO!F34+COUNTRY_INFO!G34,COUNTRY_INFO!$N34), 0))","v":0},2696.3999999999996,0,0,2696.3999999999996,null,2696.3999999999996]
[{"$f":"IF(INTRO!$E$39=\"Non-endemic\",\" \",IF(COUNTRY_INFO!A35=0,\" \",COUNTRY_INFO!A35))","v":"Gabon"},{"$f":"IF(INTRO!$E$39=\"Non-endemic\",\" \",IF(COUNTRY_INFO!B35=0,\" \",COUNTRY_INFO!B35))","v":"Ngounié"},{"$f":"IF(INTRO!$E$39=\"Non-endemic\",\" \",IF(COUNTRY_INFO!C35=0,\" \",COUNTRY_INFO!C35))","v":"Ogoulou"},{"$f":"IF(INTRO!$E$39=\"Non-endemic\",0,IF(INTRO!$E$39=\"Endemic but PC is not required\",IF(COUNTRY_INFO!$H35=1,COUNTRY_INFO!F35+COUNTRY_INFO!G35,0),IF(COUNTRY_INFO!$H35=1,COUNTRY_INFO!F35+COUNTRY_INFO!G35,IF(COUNTRY_INFO!$I35=1,IF(COUNTRY_INFO!N35>=(COUNTRY_INFO!F35+COUNTRY_INFO!G35),COUNTRY_INFO!F35+COUNTRY_INFO!G35,COUNTRY_INFO!$N35),0))))","v":8184},{"$f":"IF(AND(INTRO!$E$39=\"Non-endemic\",INTRO!$E$37=\"Non-endemic\"),\"Not required\",IF(INTRO!$E$39=\"Non-endemic\",\"Treat with DEC\",COUNTRY_INFO!W35))","v":1},{"$f":"IF(INTRO!$E$39<>\"Non-endemic\",COUNTRY_INFO!X35,\"Not required\")","v":0},{"$f":"IF(COUNTRY_INFO!H35=1, IF($E35=1,IF(ALB_MBD!$G35<>\" \",COUNTRY_INFO!F35+COUNTRY_INFO!G35-ALB_MBD!$G35,COUNTRY_INFO!F35+COUNTRY_INFO!G35), 0),0)","v":521},{"$f":"IF(INTRO!$E$39<>\"Endemic\",0, IF(AND(COUNTRY_INFO!$I35=1,$F35<>0),IF(COUNTRY_INFO!N35>=(COUNTRY_INFO!F35+COUNTRY_INFO!G35),COUNTRY_INFO!F35+COUNTRY_INFO!G35,COUNTRY_INFO!$N35), 0))","v":0},1458.8,0,0,1458.8,null,1458.8]
[{"$f":"IF(INTRO!$E$39=\"Non-endemic\",\" \",IF(COUNTRY_INFO!A36=0,\" \",COUNTRY_INFO!A36))","v":"Gabon"},{"$f":"IF(INTRO!$E$39=\"Non-endemic\",\" \",IF(COUNTRY_INFO!B36=0,\" \",COUNTRY_INFO!B36))","v":"Ngounié"},{"$f":"IF(INTRO!$E$39=\"Non-endemic\",\" \",IF(COUNTRY_INFO!C36=0,\" \",COUNTRY_INFO!C36))","v":"Douya-Onoye"},{"$f":"IF(INTRO!$E$39=\"Non-endemic\",0,IF(INTRO!$E$39=\"Endemic but PC is not required\",IF(COUNTRY_INFO!$H36=1,COUNTRY_INFO!F36+COUNTRY_INFO!G36,0),IF(COUNTRY_INFO!$H36=1,COUNTRY_INFO!F36+COUNTRY_INFO!G36,IF(COUNTRY_INFO!$I36=1,IF(COUNTRY_INFO!N36>=(COUNTRY_INFO!F36+COUNTRY_INFO!G36),COUNTRY_INFO!F36+COUNTRY_INFO!G36,COUNTRY_INFO!$N36),0))))","v":34699},{"$f":"IF(AND(INTRO!$E$39=\"Non-endemic\",INTRO!$E$37=\"Non-endemic\"),\"Not required\",IF(INTRO!$E$39=\"Non-endemic\",\"Treat with DEC\",COUNTRY_INFO!W36))","v":1},{"$f":"IF(INTRO!$E$39<>\"Non-endemic\",COUNTRY_INFO!X36,\"Not required\")","v":0},{"$f":"IF(COUNTRY_INFO!H36=1, IF($E36=1,IF(ALB_MBD!$G36<>\" \",COUNTRY_INFO!F36+COUNTRY_INFO!G36-ALB_MBD!$G36,COUNTRY_INFO!F36+COUNTRY_INFO!G36), 0),0)","v":2210},{"$f":"IF(INTRO!$E$39<>\"Endemic\",0, IF(AND(COUNTRY_INFO!$I36=1,$F36<>0),IF(COUNTRY_INFO!N36>=(COUNTRY_INFO!F36+COUNTRY_INFO!G36),COUNTRY_INFO!F36+COUNTRY_INFO!G36,COUNTRY_INFO!$N36), 0))","v":0},6188,0,0,6188,null,6188]
[{"$f":"IF(INTRO!$E$39=\"Non-endemic\",\" \",IF(COUNTRY_INFO!A37=0,\" \",COUNTRY_INFO!A37))","v":"Gabon"},{"$f":"IF(INTRO!$E$39=\"Non-endemic\",\" \",IF(COUNTRY_INFO!B37=0,\" \",COUNTRY_INFO!B37))","v":"Ngounié"},{"$f":"IF(INTRO!$E$39=\"Non-endemic\",\" \",IF(COUNTRY_INFO!C37=0,\" \",COUNTRY_INFO!C37))","v":"Dola"},{"$f":"IF(INTRO!$E$39=\"Non-endemic\",0,IF(INTRO!$E$39=\"Endemic but PC is not required\",IF(COUNTRY_INFO!$H37=1,COUNTRY_INFO!F37+COUNTRY_INFO!G37,0),IF(COUNTRY_INFO!$H37=1,COUNTRY_INFO!F37+COUNTRY_INFO!G37,IF(COUNTRY_INFO!$I37=1,IF(COUNTRY_INFO!N37>=(COUNTRY_INFO!F37+COUNTRY_INFO!G37),COUNTRY_INFO!F37+COUNTRY_INFO!G37,COUNTRY_INFO!$N37),0))))","v":8735},{"$f":"IF(AND(INTRO!$E$39=\"Non-endemic\",INTRO!$E$37=\"Non-endemic\"),\"Not required\",IF(INTRO!$E$39=\"Non-endemic\",\"Treat with DEC\",COUNTRY_INFO!W37))","v":0},{"$f":"IF(INTRO!$E$39<>\"Non-endemic\",COUNTRY_INFO!X37,\"Not required\")","v":0},{"$f":"IF(COUNTRY_INFO!H37=1, IF($E37=1,IF(ALB_MBD!$G37<>\" \",COUNTRY_INFO!F37+COUNTRY_INFO!G37-ALB_MBD!$G37,COUNTRY_INFO!F37+COUNTRY_INFO!G37), 0),0)","v":0},{"$f":"IF(INTRO!$E$39<>\"Endemic\",0, IF(AND(COUNTRY_INFO!$I37=1,$F37<>0),IF(COUNTRY_INFO!N37>=(COUNTRY_INFO!F37+COUNTRY_INFO!G37),COUNTRY_INFO!F37+COUNTRY_INFO!G37,COUNTRY_INFO!$N37), 0))","v":0},0,0,0,0,null,0]
[{"$f":"IF(INTRO!$E$39=\"Non-endemic\",\" \",IF(COUNTRY_INFO!A38=0,\" \",COUNTRY_INFO!A38))","v":"Gabon"},{"$f":"IF(INTRO!$E$39=\"Non-endemic\",\" \",IF(COUNTRY_INFO!B38=0,\" \",COUNTRY_INFO!B38))","v":"Ngounié"},{"$f":"IF(INTRO!$E$39=\"Non-endemic\",\" \",IF(COUNTRY_INFO!C38=0,\" \",COUNTRY_INFO!C38))","v":"Mougalaba"},{"$f":"IF(INTRO!$E$39=\"Non-endemic\",0,IF(INTRO!$E$39=\"Endemic but PC is not required\",IF(COUNTRY_INFO!$H38=1,COUNTRY_INFO!F38+COUNTRY_INFO!G38,0),IF(COUNTRY_INFO!$H38=1,COUNTRY_INFO!F38+COUNTRY_INFO!G38,IF(COUNTRY_INFO!$I38=1,IF(COUNTRY_INFO!N38>=(COUNTRY_INFO!F38+COUNTRY_INFO!G38),COUNTRY_INFO!F38+COUNTRY_INFO!G38,COUNTRY_INFO!$N38),0))))","v":1126},{"$f":"IF(AND(INTRO!$E$39=\"Non-endemic\",INTRO!$E$37=\"Non-endemic\"),\"Not required\",IF(INTRO!$E$39=\"Non-endemic\",\"Treat with DEC\",COUNTRY_INFO!W38))","v":1},{"$f":"IF(INTRO!$E$39<>\"Non-endemic\",COUNTRY_INFO!X38,\"Not required\")","v":0},{"$f":"IF(COUNTRY_INFO!H38=1, IF($E38=1,IF(ALB_MBD!$G38<>\" \",COUNTRY_INFO!F38+COUNTRY_INFO!G38-ALB_MBD!$G38,COUNTRY_INFO!F38+COUNTRY_INFO!G38), 0),0)","v":71},{"$f":"IF(INTRO!$E$39<>\"Endemic\",0, IF(AND(COUNTRY_INFO!$I38=1,$F38<>0),IF(COUNTRY_INFO!N38>=(COUNTRY_INFO!F38+COUNTRY_INFO!G38),COUNTRY_INFO!F38+COUNTRY_INFO!G38,COUNTRY_INFO!$N38), 0))","v":0},198.79999999999998,0,0,198.79999999999998,null,198.79999999999998]
[{"$f":"IF(INTRO!$E$39=\"Non-endemic\",\" \",IF(COUNTRY_INFO!A39=0,\" \",COUNTRY_INFO!A39))","v":"Gabon"},{"$f":"IF(INTRO!$E$39=\"Non-endemic\",\" \",IF(COUNTRY_INFO!B39=0,\" \",COUNTRY_INFO!B39))","v":"Nyanga"},{"$f":"IF(INTRO!$E$39=\"Non-endemic\",\" \",IF(COUNTRY_INFO!C39=0,\" \",COUNTRY_INFO!C39))","v":"Doutsila"},{"$f":"IF(INTRO!$E$39=\"Non-endemic\",0,IF(INTRO!$E$39=\"Endemic but PC is not required\",IF(COUNTRY_INFO!$H39=1,COUNTRY_INFO!F39+COUNTRY_INFO!G39,0),IF(COUNTRY_INFO!$H39=1,COUNTRY_INFO!F39+COUNTRY_INFO!G39,IF(COUNTRY_INFO!$I39=1,IF(COUNTRY_INFO!N39>=(COUNTRY_INFO!F39+COUNTRY_INFO!G39),COUNTRY_INFO!F39+COUNTRY_INFO!G39,COUNTRY_INFO!$N39),0))))","v":0},{"$f":"IF(AND(INTRO!$E$39=\"Non-endemic\",INTRO!$E$37=\"Non-endemic\"),\"Not required\",IF(INTRO!$E$39=\"Non-endemic\",\"Treat with DEC\",COUNTRY_INFO!W39))","v":0},{"$f":"IF(INTRO!$E$39<>\"Non-endemic\",COUNTRY_INFO!X39,\"Not required\")","v":0},{"$f":"IF(COUNTRY_INFO!H39=1, IF($E39=1,IF(ALB_MBD!$G39<>\" \",COUNTRY_INFO!F39+COUNTRY_INFO!G39-ALB_MBD!$G39,COUNTRY_INFO!F39+COUNTRY_INFO!G39), 0),0)","v":0},{"$f":"IF(INTRO!$E$39<>\"Endemic\",0, IF(AND(COUNTRY_INFO!$I39=1,$F39<>0),IF(COUNTRY_INFO!N39>=(COUNTRY_INFO!F39+COUNTRY_INFO!G39),COUNTRY_INFO!F39+COUNTRY_INFO!G39,COUNTRY_INFO!$N39), 0))","v":0},0,0,0,0,null,0]
[{"$f":"IF(INTRO!$E$39=\"Non-endemic\",\" \",IF(COUNTRY_INFO!A40=0,\" \",COUNTRY_INFO!A40))","v":"Gabon"},{"$f":"IF(INTRO!$E$39=\"Non-endemic\",\" \",IF(COUNTRY_INFO!B40=0,\" \",COUNTRY_INFO!B40))","v":"Nyanga"},{"$f":"IF(INTRO!$E$39=\"Non-endemic\",\" \",IF(COUNTRY_INFO!C40=0,\" \",COUNTRY_INFO!C40))","v":"Basse-Banio"},{"$f":"IF(INTRO!$E$39=\"Non-endemic\",0,IF(INTRO!$E$39=\"Endemic but PC is not required\",IF(COUNTRY_INFO!$H40=1,COUNTRY_INFO!F40+COUNTRY_INFO!G40,0),IF(COUNTRY_INFO!$H40=1,COUNTRY_INFO!F40+COUNTRY_INFO!G40,IF(COUNTRY_INFO!$I40=1,IF(COUNTRY_INFO!N40>=(COUNTRY_INFO!F40+COUNTRY_INFO!G40),COUNTRY_INFO!F40+COUNTRY_INFO!G40,COUNTRY_INFO!$N40),0))))","v":7012},{"$f":"IF(AND(INTRO!$E$39=\"Non-endemic\",INTRO!$E$37=\"Non-endemic\"),\"Not required\",IF(INTRO!$E$39=\"Non-endemic\",\"Treat with DEC\",COUNTRY_INFO!W40))","v":1},{"$f":"IF(INTRO!$E$39<>\"Non-endemic\",COUNTRY_INFO!X40,\"Not required\")","v":0},{"$f":"IF(COUNTRY_INFO!H40=1, IF($E40=1,IF(ALB_MBD!$G40<>\" \",COUNTRY_INFO!F40+COUNTRY_INFO!G40-ALB_MBD!$G40,COUNTRY_INFO!F40+COUNTRY_INFO!G40), 0),0)","v":420},{"$f":"IF(INTRO!$E$39<>\"Endemic\",0, IF(AND(COUNTRY_INFO!$I40=1,$F40<>0),IF(COUNTRY_INFO!N40>=(COUNTRY_INFO!F40+COUNTRY_INFO!G40),COUNTRY_INFO!F40+COUNTRY_INFO!G40,COUNTRY_INFO!$N40), 0))","v":0},1176,0,0,1176,null,1176]
[{"$f":"IF(INTRO!$E$39=\"Non-endemic\",\" \",IF(COUNTRY_INFO!A41=0,\" \",COUNTRY_INFO!A41))","v":"Gabon"},{"$f":"IF(INTRO!$E$39=\"Non-endemic\",\" \",IF(COUNTRY_INFO!B41=0,\" \",COUNTRY_INFO!B41))","v":"Nyanga"},{"$f":"IF(INTRO!$E$39=\"Non-endemic\",\" \",IF(COUNTRY_INFO!C41=0,\" \",COUNTRY_INFO!C41))","v":"Douigny"},{"$f":"IF(INTRO!$E$39=\"Non-endemic\",0,IF(INTRO!$E$39=\"Endemic but PC is not required\",IF(COUNTRY_INFO!$H41=1,COUNTRY_INFO!F41+COUNTRY_INFO!G41,0),IF(COUNTRY_INFO!$H41=1,COUNTRY_INFO!F41+COUNTRY_INFO!G41,IF(COUNTRY_INFO!$I41=1,IF(COUNTRY_INFO!N41>=(COUNTRY_INFO!F41+COUNTRY_INFO!G41),COUNTRY_INFO!F41+COUNTRY_INFO!G41,COUNTRY_INFO!$N41),0))))","v":5464},{"$f":"IF(AND(INTRO!$E$39=\"Non-endemic\",INTRO!$E$37=\"Non-endemic\"),\"Not required\",IF(INTRO!$E$39=\"Non-endemic\",\"Treat with DEC\",COUNTRY_INFO!W41))","v":0},{"$f":"IF(INTRO!$E$39<>\"Non-endemic\",COUNTRY_INFO!X41,\"Not required\")","v":0},{"$f":"IF(COUNTRY_INFO!H41=1, IF($E41=1,IF(ALB_MBD!$G41<>\" \",COUNTRY_INFO!F41+COUNTRY_INFO!G41-ALB_MBD!$G41,COUNTRY_INFO!F41+COUNTRY_INFO!G41), 0),0)","v":0},{"$f":"IF(INTRO!$E$39<>\"Endemic\",0, IF(AND(COUNTRY_INFO!$I41=1,$F41<>0),IF(COUNTRY_INFO!N41>=(COUNTRY_INFO!F41+COUNTRY_INFO!G41),COUNTRY_INFO!F41+COUNTRY_INFO!G41,COUNTRY_INFO!$N41), 0))","v":0},0,0,0,0,null,0]
[{"$f":"IF(INTRO!$E$39=\"Non-endemic\",\" \",IF(COUNTRY_INFO!A42=0,\" \",COUNTRY_INFO!A42))","v":"Gabon"},{"$f":"IF(INTRO!$E$39=\"Non-endemic\",\" \",IF(COUNTRY_INFO!B42=0,\" \",COUNTRY_INFO!B42))","v":"Nyanga"},{"$f":"IF(INTRO!$E$39=\"Non-endemic\",\" \",IF(COUNTRY_INFO!C42=0,\" \",COUNTRY_INFO!C42))","v":"Mongo"},{"$f":"IF(INTRO!$E$39=\"Non-endemic\",0,IF(INTRO!$E$39=\"Endemic but PC is not required\",IF(COUNTRY_INFO!$H42=1,COUNTRY_INFO!F42+COUNTRY_INFO!G42,0),IF(COUNTRY_INFO!$H42=1,COUNTRY_INFO!F42+COUNTRY_INFO!G42,IF(COUNTRY_INFO!$I42=1,IF(COUNTRY_INFO!N42>=(COUNTRY_INFO!F42+COUNTRY_INFO!G42),COUNTRY_INFO!F42+COUNTRY_INFO!G42,COUNTRY_INFO!$N42),0))))","v":3573},{"$f":"IF(AND(INTRO!$E$39=\"Non-endemic\",INTRO!$E$37=\"Non-endemic\"),\"Not required\",IF(INTRO!$E$39=\"Non-endemic\",\"Treat with DEC\",COUNTRY_INFO!W42))","v":0},{"$f":"IF(INTRO!$E$39<>\"Non-endemic\",COUNTRY_INFO!X42,\"Not required\")","v":0},{"$f":"IF(COUNTRY_INFO!H42=1, IF($E42=1,IF(ALB_MBD!$G42<>\" \",COUNTRY_INFO!F42+COUNTRY_INFO!G42-ALB_MBD!$G42,COUNTRY_INFO!F42+COUNTRY_INFO!G42), 0),0)","v":0},{"$f":"IF(INTRO!$E$39<>\"Endemic\",0, IF(AND(COUNTRY_INFO!$I42=1,$F42<>0),IF(COUNTRY_INFO!N42>=(COUNTRY_INFO!F42+COUNTRY_INFO!G42),COUNTRY_INFO!F42+COUNTRY_INFO!G42,COUNTRY_INFO!$N42), 0))","v":0},0,0,0,0,null,0]
[{"$f":"IF(INTRO!$E$39=\"Non-endemic\",\" \",IF(COUNTRY_INFO!A43=0,\" \",COUNTRY_INFO!A43))","v":"Gabon"},{"$f":"IF(INTRO!$E$39=\"Non-endemic\",\" \",IF(COUNTRY_INFO!B43=0,\" \",COUNTRY_INFO!B43))","v":"Nyanga"},{"$f":"IF(INTRO!$E$39=\"Non-endemic\",\" \",IF(COUNTRY_INFO!C43=0,\" \",COUNTRY_INFO!C43))","v":"Haute-Banio"},{"$f":"IF(INTRO!$E$39=\"Non-endemic\",0,IF(INTRO!$E$39=\"Endemic but PC is not required\",IF(COUNTRY_INFO!$H43=1,COUNTRY_INFO!F43+COUNTRY_INFO!G43,0),IF(COUNTRY_INFO!$H43=1,COUNTRY_INFO!F43+COUNTRY_INFO!G43,IF(COUNTRY_INFO!$I43=1,IF(COUNTRY_INFO!N43>=(COUNTRY_INFO!F43+COUNTRY_INFO!G43),COUNTRY_INFO!F43+COUNTRY_INFO!G43,COUNTRY_INFO!$N43),0))))","v":0},{"$f":"IF(AND(INTRO!$E$39=\"Non-endemic\",INTRO!$E$37=\"Non-endemic\"),\"Not required\",IF(INTRO!$E$39=\"Non-endemic\",\"Treat with DEC\",COUNTRY_INFO!W43))","v":0},{"$f":"IF(INTRO!$E$39<>\"Non-endemic\",COUNTRY_INFO!X43,\"Not required\")","v":0},{"$f":"IF(COUNTRY_INFO!H43=1, IF($E43=1,IF(ALB_MBD!$G43<>\" \",COUNTRY_INFO!F43+COUNTRY_INFO!G43-ALB_MBD!$G43,COUNTRY_INFO!F43+COUNTRY_INFO!G43), 0),0)","v":0},{"$f":"IF(INTRO!$E$39<>\"Endemic\",0, IF(AND(COUNTRY_INFO!$I43=1,$F43<>0),IF(COUNTRY_INFO!N43>=(COUNTRY_INFO!F43+COUNTRY_INFO!G43),COUNTRY_INFO!F43+COUNTRY_INFO!G43,COUNTRY_INFO!$N43), 0))","v":0},0,0,0,0,null,0]
[{"$f":"IF(INTRO!$E$39=\"Non-endemic\",\" \",IF(COUNTRY_INFO!A44=0,\" \",COUNTRY_INFO!A44))","v":"Gabon"},{"$f":"IF(INTRO!$E$39=\"Non-endemic\",\" \",IF(COUNTRY_INFO!B44=0,\" \",COUNTRY_INFO!B44))","v":"Nyanga"},{"$f":"IF(INTRO!$E$39=\"Non-endemic\",\" \",IF(COUNTRY_INFO!C44=0,\" \",COUNTRY_INFO!C44))","v":"Mougoutsi"},{"$f":"IF(INTRO!$E$39=\"Non-endemic\",0,IF(INTRO!$E$39=\"Endemic but PC is not required\",IF(COUNTRY_INFO!$H44=1,COUNTRY_INFO!F44+COUNTRY_INFO!G44,0),IF(COUNTRY_INFO!$H44=1,COUNTRY_INFO!F44+COUNTRY_INFO!G44,IF(COUNTRY_INFO!$I44=1,IF(COUNTRY_INFO!N44>=(COUNTRY_INFO!F44+COUNTRY_INFO!G44),COUNTRY_INFO!F44+COUNTRY_INFO!G44,COUNTRY_INFO!$N44),0))))","v":30298},{"$f":"IF(AND(INTRO!$E$39=\"Non-endemic\",INTRO!$E$37=\"Non-endemic\"),\"Not required\",IF(INTRO!$E$39=\"Non-endemic\",\"Treat with DEC\",COUNTRY_INFO!W44))","v":0},{"$f":"IF(INTRO!$E$39<>\"Non-endemic\",COUNTRY_INFO!X44,\"Not required\")","v":0},{"$f":"IF(COUNTRY_INFO!H44=1, IF($E44=1,IF(ALB_MBD!$G44<>\" \",COUNTRY_INFO!F44+COUNTRY_INFO!G44-ALB_MBD!$G44,COUNTRY_INFO!F44+COUNTRY_INFO!G44), 0),0)","v":0},{"$f":"IF(INTRO!$E$39<>\"Endemic\",0, IF(AND(COUNTRY_INFO!$I44=1,$F44<>0),IF(COUNTRY_INFO!N44>=(COUNTRY_INFO!F44+COUNTRY_INFO!G44),COUNTRY_INFO!F44+COUNTRY_INFO!G44,COUNTRY_INFO!$N44), 0))","v":0},0,0,0,0,null,0]
[{"$f":"IF(INTRO!$E$39=\"Non-endemic\",\" \",IF(COUNTRY_INFO!A45=0,\" \",COUNTRY_INFO!A45))","v":"Gabon"},{"$f":"IF(INTRO!$E$39=\"Non-endemic\",\" \",IF(COUNTRY_INFO!B45=0,\" \",COUNTRY_INFO!B45))","v":"Ogooué-Ivindo"},{"$f":"IF(INTRO!$E$39=\"Non-endemic\",\" \",IF(COUNTRY_INFO!C45=0,\" \",COUNTRY_INFO!C45))","v":"Lopé"},{"$f":"IF(INTRO!$E$39=\"Non-endemic\",0,IF(INTRO!$E$39=\"Endemic but PC is not required\",IF(COUNTRY_INFO!$H45=1,COUNTRY_INFO!F45+COUNTRY_INFO!G45,0),IF(COUNTRY_INFO!$H45=1,COUNTRY_INFO!F45+COUNTRY_INFO!G45,IF(COUNTRY_INFO!$I45=1,IF(COUNTRY_INFO!N45>=(COUNTRY_INFO!F45+COUNTRY_INFO!G45),COUNTRY_INFO!F45+COUNTRY_INFO!G45,COUNTRY_INFO!$N45),0))))","v":15215},{"$f":"IF(AND(INTRO!$E$39=\"Non-endemic\",INTRO!$E$37=\"Non-endemic\"),\"Not required\",IF(INTRO!$E$39=\"Non-endemic\",\"Treat with DEC\",COUNTRY_INFO!W45))","v":1},{"$f":"IF(INTRO!$E$39<>\"Non-endemic\",COUNTRY_INFO!X45,\"Not required\")","v":0},{"$f":"IF(COUNTRY_INFO!H45=1, IF($E45=1,IF(ALB_MBD!$G45<>\" \",COUNTRY_INFO!F45+COUNTRY_INFO!G45-ALB_MBD!$G45,COUNTRY_INFO!F45+COUNTRY_INFO!G45), 0),0)","v":968},{"$f":"IF(INTRO!$E$39<>\"Endemic\",0, IF(AND(COUNTRY_INFO!$I45=1,$F45<>0),IF(COUNTRY_INFO!N45>=(COUNTRY_INFO!F45+COUNTRY_INFO!G45),COUNTRY_INFO!F45+COUNTRY_INFO!G45,COUNTRY_INFO!$N45), 0))","v":0},2710.3999999999996,0,0,2710.3999999999996,null,2710.3999999999996]
[{"$f":"IF(INTRO!$E$39=\"Non-endemic\",\" \",IF(COUNTRY_INFO!A46=0,\" \",COUNTRY_INFO!A46))","v":"Gabon"},{"$f":"IF(INTRO!$E$39=\"Non-endemic\",\" \",IF(COUNTRY_INFO!B46=0,\" \",COUNTRY_INFO!B46))","v":"Ogooué-Ivindo"},{"$f":"IF(INTRO!$E$39=\"Non-endemic\",\" \",IF(COUNTRY_INFO!C46=0,\" \",COUNTRY_INFO!C46))","v":"Ivindo"},{"$f":"IF(INTRO!$E$39=\"Non-endemic\",0,IF(INTRO!$E$39=\"Endemic but PC is not required\",IF(COUNTRY_INFO!$H46=1,COUNTRY_INFO!F46+COUNTRY_INFO!G46,0),IF(COUNTRY_INFO!$H46=1,COUNTRY_INFO!F46+COUNTRY_INFO!G46,IF(COUNTRY_INFO!$I46=1,IF(COUNTRY_INFO!N46>=(COUNTRY_INFO!F46+COUNTRY_INFO!G46),COUNTRY_INFO!F46+COUNTRY_INFO!G46,COUNTRY_INFO!$N46),0))))","v":33501},{"$f":"IF(AND(INTRO!$E$39=\"Non-endemic\",INTRO!$E$37=\"Non-endemic\"),\"Not required\",IF(INTRO!$E$39=\"Non-endemic\",\"Treat with DEC\",COUNTRY_INFO!W46))","v":1},{"$f":"IF(INTRO!$E$39<>\"Non-endemic\",COUNTRY_INFO!X46,\"Not required\")","v":0},{"$f":"IF(COUNTRY_INFO!H46=1, IF($E46=1,IF(ALB_MBD!$G46<>\" \",COUNTRY_INFO!F46+COUNTRY_INFO!G46-ALB_MBD!$G46,COUNTRY_INFO!F46+COUNTRY_INFO!G46), 0),0)","v":2133},{"$f":"IF(INTRO!$E$39<>\"Endemic\",0, IF(AND(COUNTRY_INFO!$I46=1,$F46<>0),IF(COUNTRY_INFO!N46>=(COUNTRY_INFO!F46+COUNTRY_INFO!G46),COUNTRY_INFO!F46+COUNTRY_INFO!G46,COUNTRY_INFO!$N46), 0))","v":0},5972.4,0,0,5972.4,null,5972.4]
[{"$f":"IF(INTRO!$E$39=\"Non-endemic\",\" \",IF(COUNTRY_INFO!A47=0,\" \",COUNTRY_INFO!A47))","v":"Gabon"},{"$f":"IF(INTRO!$E$39=\"Non-endemic\",\" \",IF(COUNTRY_INFO!B47=0,\" \",COUNTRY_INFO!B47))","v":"Ogooué-Ivindo"},{"$f":"IF(INTRO!$E$39=\"Non-endemic\",\" \",IF(COUNTRY_INFO!C47=0,\" \",COUNTRY_INFO!C47))","v":"Zadié"},{"$f":"IF(INTRO!$E$39=\"Non-endemic\",0,IF(INTRO!$E$39=\"Endemic but PC is not required\",IF(COUNTRY_INFO!$H47=1,COUNTRY_INFO!F47+COUNTRY_INFO!G47,0),IF(COUNTRY_INFO!$H47=1,COUNTRY_INFO!F47+COUNTRY_INFO!G47,IF(COUNTRY_INFO!$I47=1,IF(COUNTRY_INFO!N47>=(COUNTRY_INFO!F47+COUNTRY_INFO!G47),COUNTRY_INFO!F47+COUNTRY_INFO!G47,COUNTRY_INFO!$N47),0))))","v":13825},{"$f":"IF(AND(INTRO!$E$39=\"Non-endemic\",INTRO!$E$37=\"Non-endemic\"),\"Not required\",IF(INTRO!$E$39=\"Non-endemic\",\"Treat with DEC\",COUNTRY_INFO!W47))","v":1},{"$f":"IF(INTRO!$E$39<>\"Non-endemic\",COUNTRY_INFO!X47,\"Not required\")","v":0},{"$f":"IF(COUNTRY_INFO!H47=1, IF($E47=1,IF(ALB_MBD!$G47<>\" \",COUNTRY_INFO!F47+COUNTRY_INFO!G47-ALB_MBD!$G47,COUNTRY_INFO!F47+COUNTRY_INFO!G47), 0),0)","v":880},{"$f":"IF(INTRO!$E$39<>\"Endemic\",0, IF(AND(COUNTRY_INFO!$I47=1,$F47<>0),IF(COUNTRY_INFO!N47>=(COUNTRY_INFO!F47+COUNTRY_INFO!G47),COUNTRY_INFO!F47+COUNTRY_INFO!G47,COUNTRY_INFO!$N47), 0))","v":0},2464,0,0,2464,null,2464]
[{"$f":"IF(INTRO!$E$39=\"Non-endemic\",\" \",IF(COUNTRY_INFO!A48=0,\" \",COUNTRY_INFO!A48))","v":"Gabon"},{"$f":"IF(INTRO!$E$39=\"Non-endemic\",\" \",IF(COUNTRY_INFO!B48=0,\" \",COUNTRY_INFO!B48))","v":"Ogooué-Ivindo"},{"$f":"IF(INTRO!$E$39=\"Non-endemic\",\" \",IF(COUNTRY_INFO!C48=0,\" \",COUNTRY_INFO!C48))","v":"Mvoung"},{"$f":"IF(INTRO!$E$39=\"Non-endemic\",0,IF(INTRO!$E$39=\"Endemic but PC is not required\",IF(COUNTRY_INFO!$H48=1,COUNTRY_INFO!F48+COUNTRY_INFO!G48,0),IF(COUNTRY_INFO!$H48=1,COUNTRY_INFO!F48+COUNTRY_INFO!G48,IF(COUNTRY_INFO!$I48=1,IF(COUNTRY_INFO!N48>=(COUNTRY_INFO!F48+COUNTRY_INFO!G48),COUNTRY_INFO!F48+COUNTRY_INFO!G48,COUNTRY_INFO!$N48),0))))","v":4343},{"$f":"IF(AND(INTRO!$E$39=\"Non-endemic\",INTRO!$E$37=\"Non-endemic\"),\"Not required\",IF(INTRO!$E$39=\"Non-endemic\",\"Treat with DEC\",COUNTRY_INFO!W48))","v":1},{"$f":"IF(INTRO!$E$39<>\"Non-endemic\",COUNTRY_INFO!X48,\"Not required\")","v":0},{"$f":"IF(COUNTRY_INFO!H48=1, IF($E48=1,IF(ALB_MBD!$G48<>\" \",COUNTRY_INFO!F48+COUNTRY_INFO!G48-ALB_MBD!$G48,COUNTRY_INFO!F48+COUNTRY_INFO!G48), 0),0)","v":277},{"$f":"IF(INTRO!$E$39<>\"Endemic\",0, IF(AND(COUNTRY_INFO!$I48=1,$F48<>0),IF(COUNTRY_INFO!N48>=(COUNTRY_INFO!F48+COUNTRY_INFO!G48),COUNTRY_INFO!F48+COUNTRY_INFO!G48,COUNTRY_INFO!$N48), 0))","v":0},775.59999999999991,0,0,775.59999999999991,null,775.59999999999991]
[{"$f":"IF(INTRO!$E$39=\"Non-endemic\",\" \",IF(COUNTRY_INFO!A49=0,\" \",COUNTRY_INFO!A49))","v":"Gabon"},{"$f":"IF(INTRO!$E$39=\"Non-endemic\",\" \",IF(COUNTRY_INFO!B49=0,\" \",COUNTRY_INFO!B49))","v":"Ogooué-Lolo"},{"$f":"IF(INTRO!$E$39=\"Non-endemic\",\" \",IF(COUNTRY_INFO!C49=0,\" \",COUNTRY_INFO!C49))","v":"Offoué-Onoye"},{"$f":"IF(INTRO!$E$39=\"Non-endemic\",0,IF(INTRO!$E$39=\"Endemic but PC is not required\",IF(COUNTRY_INFO!$H49=1,COUNTRY_INFO!F49+COUNTRY_INFO!G49,0),IF(COUNTRY_INFO!$H49=1,COUNTRY_INFO!F49+COUNTRY_INFO!G49,IF(COUNTRY_INFO!$I49=1,IF(COUNTRY_INFO!N49>=(COUNTRY_INFO!F49+COUNTRY_INFO!G49),COUNTRY_INFO!F49+COUNTRY_INFO!G49,COUNTRY_INFO!$N49),0))))","v":3082},{"$f":"IF(AND(INTRO!$E$39=\"Non-endemic\",INTRO!$E$37=\"Non-endemic\"),\"Not required\",IF(INTRO!$E$39=\"Non-endemic\",\"Treat with DEC\",COUNTRY_INFO!W49))","v":1},{"$f":"IF(INTRO!$E$39<>\"Non-endemic\",COUNTRY_INFO!X49,\"Not required\")","v":0},{"$f":"IF(COUNTRY_INFO!H49=1, IF($E49=1,IF(ALB_MBD!$G49<>\" \",COUNTRY_INFO!F49+COUNTRY_INFO!G49-ALB_MBD!$G49,COUNTRY_INFO!F49+COUNTRY_INFO!G49), 0),0)","v":227},{"$f":"IF(INTRO!$E$39<>\"Endemic\",0, IF(AND(COUNTRY_INFO!$I49=1,$F49<>0),IF(COUNTRY_INFO!N49>=(COUNTRY_INFO!F49+COUNTRY_INFO!G49),COUNTRY_INFO!F49+COUNTRY_INFO!G49,COUNTRY_INFO!$N49), 0))","v":0},635.59999999999991,0,0,635.59999999999991,null,635.59999999999991]
[{"$f":"IF(INTRO!$E$39=\"Non-endemic\",\" \",IF(COUNTRY_INFO!A50=0,\" \",COUNTRY_INFO!A50))","v":"Gabon"},{"$f":"IF(INTRO!$E$39=\"Non-endemic\",\" \",IF(COUNTRY_INFO!B50=0,\" \",COUNTRY_INFO!B50))","v":"Ogooué-Lolo"},{"$f":"IF(INTRO!$E$39=\"Non-endemic\",\" \",IF(COUNTRY_INFO!C50=0,\" \",COUNTRY_INFO!C50))","v":"Lolo-Bouenguidi"},{"$f":"IF(INTRO!$E$39=\"Non-endemic\",0,IF(INTRO!$E$39=\"Endemic but PC is not required\",IF(COUNTRY_INFO!$H50=1,COUNTRY_INFO!F50+COUNTRY_INFO!G50,0),IF(COUNTRY_INFO!$H50=1,COUNTRY_INFO!F50+COUNTRY_INFO!G50,IF(COUNTRY_INFO!$I50=1,IF(COUNTRY_INFO!N50>=(COUNTRY_INFO!F50+COUNTRY_INFO!G50),COUNTRY_INFO!F50+COUNTRY_INFO!G50,COUNTRY_INFO!$N50),0))))","v":32213},{"$f":"IF(AND(INTRO!$E$39=\"Non-endemic\",INTRO!$E$37=\"Non-endemic\"),\"Not required\",IF(INTRO!$E$39=\"Non-endemic\",\"Treat with DEC\",COUNTRY_INFO!W50))","v":1},{"$f":"IF(INTRO!$E$39<>\"Non-endemic\",COUNTRY_INFO!X50,\"Not required\")","v":0},{"$f":"IF(COUNTRY_INFO!H50=1, IF($E50=1,IF(ALB_MBD!$G50<>\" \",COUNTRY_INFO!F50+COUNTRY_INFO!G50-ALB_MBD!$G50,COUNTRY_INFO!F50+COUNTRY_INFO!G50), 0),0)","v":2375},{"$f":"IF(INTRO!$E$39<>\"Endemic\",0, IF(AND(COUNTRY_INFO!$I50=1,$F50<>0),IF(COUNTRY_INFO!N50>=(COUNTRY_INFO!F50+COUNTRY_INFO!G50),COUNTRY_INFO!F50+COUNTRY_INFO!G50,COUNTRY_INFO!$N50), 0))","v":0},6650,0,0,6650,null,6650]
[{"$f":"IF(INTRO!$E$39=\"Non-endemic\",\" \",IF(COUNTRY_INFO!A51=0,\" \",COUNTRY_INFO!A51))","v":"Gabon"},{"$f":"IF(INTRO!$E$39=\"Non-endemic\",\" \",IF(COUNTRY_INFO!B51=0,\" \",COUNTRY_INFO!B51))","v":"Ogooué-Lolo"},{"$f":"IF(INTRO!$E$39=\"Non-endemic\",\" \",IF(COUNTRY_INFO!C51=0,\" \",COUNTRY_INFO!C51))","v":"Mulundu"},{"$f":"IF(INTRO!$E$39=\"Non-endemic\",0,IF(INTRO!$E$39=\"Endemic but PC is not required\",IF(COUNTRY_INFO!$H51=1,COUNTRY_INFO!F51+COUNTRY_INFO!G51,0),IF(COUNTRY_INFO!$H51=1,COUNTRY_INFO!F51+COUNTRY_INFO!G51,IF(COUNTRY_INFO!$I51=1,IF(COUNTRY_INFO!N51>=(COUNTRY_INFO!F51+COUNTRY_INFO!G51),COUNTRY_INFO!F51+COUNTRY_INFO!G51,COUNTRY_INFO!$N51),0))))","v":32518},{"$f":"IF(AND(INTRO!$E$39=\"Non-endemic\",INTRO!$E$37=\"Non-endemic\"),\"Not required\",IF(INTRO!$E$39=\"Non-endemic\",\"Treat with DEC\",COUNTRY_INFO!W51))","v":1},{"$f":"IF(INTRO!$E$39<>\"Non-endemic\",COUNTRY_INFO!X51,\"Not required\")","v":0},{"$f":"IF(COUNTRY_INFO!H51=1, IF($E51=1,IF(ALB_MBD!$G51<>\" \",COUNTRY_INFO!F51+COUNTRY_INFO!G51-ALB_MBD!$G51,COUNTRY_INFO!F51+COUNTRY_INFO!G51), 0),0)","v":2398},{"$f":"IF(INTRO!$E$39<>\"Endemic\",0, IF(AND(COUNTRY_INFO!$I51=1,$F51<>0),IF(COUNTRY_INFO!N51>=(COUNTRY_INFO!F51+COUNTRY_INFO!G51),COUNTRY_INFO!F51+COUNTRY_INFO!G51,COUNTRY_INFO!$N51), 0))","v":0},6714.4,0,0,6714.4,null,6714.4]
[{"$f":"IF(INTRO!$E$39=\"Non-endemic\",\" \",IF(COUNTRY_INFO!A52=0,\" \",COUNTRY_INFO!A52))","v":"Gabon"},{"$f":"IF(INTRO!$E$39=\"Non-endemic\",\" \",IF(COUNTRY_INFO!B52=0,\" \",COUNTRY_INFO!B52))","v":"Ogooué-Lolo"},{"$f":"IF(INTRO!$E$39=\"Non-endemic\",\" \",IF(COUNTRY_INFO!C52=0,\" \",COUNTRY_INFO!C52))","v":"Lombo-Bouenguidi"},{"$f":"IF(INTRO!$E$39=\"Non-endemic\",0,IF(INTRO!$E$39=\"Endemic but PC is not required\",IF(COUNTRY_INFO!$H52=1,COUNTRY_INFO!F52+COUNTRY_INFO!G52,0),IF(COUNTRY_INFO!$H52=1,COUNTRY_INFO!F52+COUNTRY_INFO!G52,IF(COUNTRY_INFO!$I52=1,IF(COUNTRY_INFO!N52>=(COUNTRY_INFO!F52+COUNTRY_INFO!G52),COUNTRY_INFO!F52+COUNTRY_INFO!G52,COUNTRY_INFO!$N52),0))))","v":4253},{"$f":"IF(AND(INTRO!$E$39=\"Non-endemic\",INTRO!$E$37=\"Non-endemic\"),\"Not required\",IF(INTRO!$E$39=\"Non-endemic\",\"Treat with DEC\",COUNTRY_INFO!W52))","v":0},{"$f":"IF(INTRO!$E$39<>\"Non-endemic\",COUNTRY_INFO!X52,\"Not required\")","v":0},{"$f":"IF(COUNTRY_INFO!H52=1, IF($E52=1,IF(ALB_MBD!$G52<>\" \",COUNTRY_INFO!F52+COUNTRY_INFO!G52-ALB_MBD!$G52,COUNTRY_INFO!F52+COUNTRY_INFO!G52), 0),0)","v":0},{"$f":"IF(INTRO!$E$39<>\"Endemic\",0, IF(AND(COUNTRY_INFO!$I52=1,$F52<>0),IF(COUNTRY_INFO!N52>=(COUNTRY_INFO!F52+COUNTRY_INFO!G52),COUNTRY_INFO!F52+COUNTRY_INFO!G52,COUNTRY_INFO!$N52), 0))","v":0},0,0,0,0,null,0]
[{"$f":"IF(INTRO!$E$39=\"Non-endemic\",\" \",IF(COUNTRY_INFO!A53=0,\" \",COUNTRY_INFO!A53))","v":"Gabon"},{"$f":"IF(INTRO!$E$39=\"Non-endemic\",\" \",IF(COUNTRY_INFO!B53=0,\" \",COUNTRY_INFO!B53))","v":"Ogooué-maritime"},{"$f":"IF(INTRO!$E$39=\"Non-endemic\",\" \",IF(COUNTRY_INFO!C53=0,\" \",COUNTRY_INFO!C53))","v":"Ndougou"},{"$f":"IF(INTRO!$E$39=\"Non-endemic\",0,IF(INTRO!$E$39=\"Endemic but PC is not required\",IF(COUNTRY_INFO!$H53=1,COUNTRY_INFO!F53+COUNTRY_INFO!G53,0),IF(COUNTRY_INFO!$H53=1,COUNTRY_INFO!F53+COUNTRY_INFO!G53,IF(COUNTRY_INFO!$I53=1,IF(COUNTRY_INFO!N53>=(COUNTRY_INFO!F53+COUNTRY_INFO!G53),COUNTRY_INFO!F53+COUNTRY_INFO!G53,COUNTRY_INFO!$N53),0))))","v":0},{"$f":"IF(AND(INTRO!$E$39=\"Non-endemic\",INTRO!$E$37=\"Non-endemic\"),\"Not required\",IF(INTRO!$E$39=\"Non-endemic\",\"Treat with DEC\",COUNTRY_INFO!W53))","v":0},{"$f":"IF(INTRO!$E$39<>\"Non-endemic\",COUNTRY_INFO!X53,\"Not required\")","v":0},{"$f":"IF(COUNTRY_INFO!H53=1, IF($E53=1,IF(ALB_MBD!$G53<>\" \",COUNTRY_INFO!F53+COUNTRY_INFO!G53-ALB_MBD!$G53,COUNTRY_INFO!F53+COUNTRY_INFO!G53), 0),0)","v":0},{"$f":"IF(INTRO!$E$39<>\"Endemic\",0, IF(AND(COUNTRY_INFO!$I53=1,$F53<>0),IF(COUNTRY_INFO!N53>=(COUNTRY_INFO!F53+COUNTRY_INFO!G53),COUNTRY_INFO!F53+COUNTRY_INFO!G53,COUNTRY_INFO!$N53), 0))","v":0},0,0,0,0,null,0]
[{"$f":"IF(INTRO!$E$39=\"Non-endemic\",\" \",IF(COUNTRY_INFO!A54=0,\" \",COUNTRY_INFO!A54))","v":"Gabon"},{"$f":"IF(INTRO!$E$39=\"Non-endemic\",\" \",IF(COUNTRY_INFO!B54=0,\" \",COUNTRY_INFO!B54))","v":"Ogooué-maritime"},{"$f":"IF(INTRO!$E$39=\"Non-endemic\",\" \",IF(COUNTRY_INFO!C54=0,\" \",COUNTRY_INFO!C54))","v":"Etimboué"},{"$f":"IF(INTRO!$E$39=\"Non-endemic\",0,IF(INTRO!$E$39=\"Endemic but PC is not required\",IF(COUNTRY_INFO!$H54=1,COUNTRY_INFO!F54+COUNTRY_INFO!G54,0),IF(COUNTRY_INFO!$H54=1,COUNTRY_INFO!F54+COUNTRY_INFO!G54,IF(COUNTRY_INFO!$I54=1,IF(COUNTRY_INFO!N54>=(COUNTRY_INFO!F54+COUNTRY_INFO!G54),COUNTRY_INFO!F54+COUNTRY_INFO!G54,COUNTRY_INFO!$N54),0))))","v":0},{"$f":"IF(AND(INTRO!$E$39=\"Non-endemic\",INTRO!$E$37=\"Non-endemic\"),\"Not required\",IF(INTRO!$E$39=\"Non-endemic\",\"Treat with DEC\",COUNTRY_INFO!W54))","v":0},{"$f":"IF(INTRO!$E$39<>\"Non-endemic\",COUNTRY_INFO!X54,\"Not required\")","v":0},{"$f":"IF(COUNTRY_INFO!H54=1, IF($E54=1,IF(ALB_MBD!$G54<>\" \",COUNTRY_INFO!F54+COUNTRY_INFO!G54-ALB_MBD!$G54,COUNTRY_INFO!F54+COUNTRY_INFO!G54), 0),0)","v":0},{"$f":"IF(INTRO!$E$39<>\"Endemic\",0, IF(AND(COUNTRY_INFO!$I54=1,$F54<>0),IF(COUNTRY_INFO!N54>=(COUNTRY_INFO!F54+COUNTRY_INFO!G54),COUNTRY_INFO!F54+COUNTRY_INFO!G54,COUNTRY_INFO!$N54), 0))","v":0},0,0,0,0,null,0]
[{"$f":"IF(INTRO!$E$39=\"Non-endemic\",\" \",IF(COUNTRY_INFO!A55=0,\" \",COUNTRY_INFO!A55))","v":"Gabon"},{"$f":"IF(INTRO!$E$39=\"Non-endemic\",\" \",IF(COUNTRY_INFO!B55=0,\" \",COUNTRY_INFO!B55))","v":"Ogooué-maritime"},{"$f":"IF(INTRO!$E$39=\"Non-endemic\",\" \",IF(COUNTRY_INFO!C55=0,\" \",COUNTRY_INFO!C55))","v":"Bendjé"},{"$f":"IF(INTRO!$E$39=\"Non-endemic\",0,IF(INTRO!$E$39=\"Endemic but PC is not required\",IF(COUNTRY_INFO!$H55=1,COUNTRY_INFO!F55+COUNTRY_INFO!G55,0),IF(COUNTRY_INFO!$H55=1,COUNTRY_INFO!F55+COUNTRY_INFO!G55,IF(COUNTRY_INFO!$I55=1,IF(COUNTRY_INFO!N55>=(COUNTRY_INFO!F55+COUNTRY_INFO!G55),COUNTRY_INFO!F55+COUNTRY_INFO!G55,COUNTRY_INFO!$N55),0))))","v":0},{"$f":"IF(AND(INTRO!$E$39=\"Non-endemic\",INTRO!$E$37=\"Non-endemic\"),\"Not required\",IF(INTRO!$E$39=\"Non-endemic\",\"Treat with DEC\",COUNTRY_INFO!W55))","v":0},{"$f":"IF(INTRO!$E$39<>\"Non-endemic\",COUNTRY_INFO!X55,\"Not required\")","v":0},{"$f":"IF(COUNTRY_INFO!H55=1, IF($E55=1,IF(ALB_MBD!$G55<>\" \",COUNTRY_INFO!F55+COUNTRY_INFO!G55-ALB_MBD!$G55,COUNTRY_INFO!F55+COUNTRY_INFO!G55), 0),0)","v":0},{"$f":"IF(INTRO!$E$39<>\"Endemic\",0, IF(AND(COUNTRY_INFO!$I55=1,$F55<>0),IF(COUNTRY_INFO!N55>=(COUNTRY_INFO!F55+COUNTRY_INFO!G55),COUNTRY_INFO!F55+COUNTRY_INFO!G55,COUNTRY_INFO!$N55), 0))","v":0},0,0,0,0,null,0]
[{"$f":"IF(INTRO!$E$39=\"Non-endemic\",\" \",IF(COUNTRY_INFO!A56=0,\" \",COUNTRY_INFO!A56))","v":"Gabon"},{"$f":"IF(INTRO!$E$39=\"Non-endemic\",\" \",IF(COUNTRY_INFO!B56=0,\" \",COUNTRY_INFO!B56))","v":"Woleu-Ntem"},{"$f":"IF(INTRO!$E$39=\"Non-endemic\",\" \",IF(COUNTRY_INFO!C56=0,\" \",COUNTRY_INFO!C56))","v":"Ntem"},{"$f":"IF(INTRO!$E$39=\"Non-endemic\",0,IF(INTRO!$E$39=\"Endemic but PC is not required\",IF(COUNTRY_INFO!$H56=1,COUNTRY_INFO!F56+COUNTRY_INFO!G56,0),IF(COUNTRY_INFO!$H56=1,COUNTRY_INFO!F56+COUNTRY_INFO!G56,IF(COUNTRY_INFO!$I56=1,IF(COUNTRY_INFO!N56>=(COUNTRY_INFO!F56+COUNTRY_INFO!G56),COUNTRY_INFO!F56+COUNTRY_INFO!G56,COUNTRY_INFO!$N56),0))))","v":42638},{"$f":"IF(AND(INTRO!$E$39=\"Non-endemic\",INTRO!$E$37=\"Non-endemic\"),\"Not required\",IF(INTRO!$E$39=\"Non-endemic\",\"Treat with DEC\",COUNTRY_INFO!W56))","v":0},{"$f":"IF(INTRO!$E$39<>\"Non-endemic\",COUNTRY_INFO!X56,\"Not required\")","v":0},{"$f":"IF(COUNTRY_INFO!H56=1, IF($E56=1,IF(ALB_MBD!$G56<>\" \",COUNTRY_INFO!F56+COUNTRY_INFO!G56-ALB_MBD!$G56,COUNTRY_INFO!F56+COUNTRY_INFO!G56), 0),0)","v":0},{"$f":"IF(INTRO!$E$39<>\"Endemic\",0, IF(AND(COUNTRY_INFO!$I56=1,$F56<>0),IF(COUNTRY_INFO!N56>=(COUNTRY_INFO!F56+COUNTRY_INFO!G56),COUNTRY_INFO!F56+COUNTRY_INFO!G56,COUNTRY_INFO!$N56), 0))","v":0},0,0,0,0,null,0]
[{"$f":"IF(INTRO!$E$39=\"Non-endemic\",\" \",IF(COUNTRY_INFO!A57=0,\" \",COUNTRY_INFO!A57))","v":"Gabon"},{"$f":"IF(INTRO!$E$39=\"Non-endemic\",\" \",IF(COUNTRY_INFO!B57=0,\" \",COUNTRY_INFO!B57))","v":"Woleu-Ntem"},{"$f":"IF(INTRO!$E$39=\"Non-endemic\",\" \",IF(COUNTRY_INFO!C57=0,\" \",COUNTRY_INFO!C57))","v":"Haut-Komo"},{"$f":"IF(INTRO!$E$39=\"Non-endemic\",0,IF(INTRO!$E$39=\"Endemic but PC is not required\",IF(COUNTRY_INFO!$H57=1,COUNTRY_INFO!F57+COUNTRY_INFO!G57,0),IF(COUNTRY_INFO!$H57=1,COUNTRY_INFO!F57+COUNTRY_INFO!G57,IF(COUNTRY_INFO!$I57=1,IF(COUNTRY_INFO!N57>=(COUNTRY_INFO!F57+COUNTRY_INFO!G57),COUNTRY_INFO!F57+COUNTRY_INFO!G57,COUNTRY_INFO!$N57),0))))","v":4076},{"$f":"IF(AND(INTRO!$E$39=\"Non-endemic\",INTRO!$E$37=\"Non-endemic\"),\"Not required\",IF(INTRO!$E$39=\"Non-endemic\",\"Treat with DEC\",COUNTRY_INFO!W57))","v":0},{"$f":"IF(INTRO!$E$39<>\"Non-endemic\",COUNTRY_INFO!X57,\"Not required\")","v":0},{"$f":"IF(COUNTRY_INFO!H57=1, IF($E57=1,IF(ALB_MBD!$G57<>\" \",COUNTRY_INFO!F57+COUNTRY_INFO!G57-ALB_MBD!$G57,COUNTRY_INFO!F57+COUNTRY_INFO!G57), 0),0)","v":0},{"$f":"IF(INTRO!$E$39<>\"Endemic\",0, IF(AND(COUNTRY_INFO!$I57=1,$F57<>0),IF(COUNTRY_INFO!N57>=(COUNTRY_INFO!F57+COUNTRY_INFO!G57),COUNTRY_INFO!F57+COUNTRY_INFO!G57,COUNTRY_INFO!$N57), 0))","v":0},0,0,0,0,null,0]
[{"$f":"IF(INTRO!$E$39=\"Non-endemic\",\" \",IF(COUNTRY_INFO!A58=0,\" \",COUNTRY_INFO!A58))","v":"Gabon"},{"$f":"IF(INTRO!$E$39=\"Non-endemic\",\" \",IF(COUNTRY_INFO!B58=0,\" \",COUNTRY_INFO!B58))","v":"Woleu-Ntem"},{"$f":"IF(INTRO!$E$39=\"Non-endemic\",\" \",IF(COUNTRY_INFO!C58=0,\" \",COUNTRY_INFO!C58))","v":"Haut-Ntem"},{"$f":"IF(INTRO!$E$39=\"Non-endemic\",0,IF(INTRO!$E$39=\"Endemic but PC is not required\",IF(COUNTRY_INFO!$H58=1,COUNTRY_INFO!F58+COUNTRY_INFO!G58,0),IF(COUNTRY_INFO!$H58=1,COUNTRY_INFO!F58+COUNTRY_INFO!G58,IF(COUNTRY_INFO!$I58=1,IF(COUNTRY_INFO!N58>=(COUNTRY_INFO!F58+COUNTRY_INFO!G58),COUNTRY_INFO!F58+COUNTRY_INFO!G58,COUNTRY_INFO!$N58),0))))","v":13403},{"$f":"IF(AND(INTRO!$E$39=\"Non-endemic\",INTRO!$E$37=\"Non-endemic\"),\"Not required\",IF(INTRO!$E$39=\"Non-endemic\",\"Treat with DEC\",COUNTRY_INFO!W58))","v":0},{"$f":"IF(INTRO!$E$39<>\"Non-endemic\",COUNTRY_INFO!X58,\"Not required\")","v":0},{"$f":"IF(COUNTRY_INFO!H58=1, IF($E58=1,IF(ALB_MBD!$G58<>\" \",COUNTRY_INFO!F58+COUNTRY_INFO!G58-ALB_MBD!$G58,COUNTRY_INFO!F58+COUNTRY_INFO!G58), 0),0)","v":0},{"$f":"IF(INTRO!$E$39<>\"Endemic\",0, IF(AND(COUNTRY_INFO!$I58=1,$F58<>0),IF(COUNTRY_INFO!N58>=(COUNTRY_INFO!F58+COUNTRY_INFO!G58),COUNTRY_INFO!F58+COUNTRY_INFO!G58,COUNTRY_INFO!$N58), 0))","v":0},0,0,0,0,null,0]
[{"$f":"IF(INTRO!$E$39=\"Non-endemic\",\" \",IF(COUNTRY_INFO!A59=0,\" \",COUNTRY_INFO!A59))","v":"Gabon"},{"$f":"IF(INTRO!$E$39=\"Non-endemic\",\" \",IF(COUNTRY_INFO!B59=0,\" \",COUNTRY_INFO!B59))","v":"Woleu-Ntem"},{"$f":"IF(INTRO!$E$39=\"Non-endemic\",\" \",IF(COUNTRY_INFO!C59=0,\" \",COUNTRY_INFO!C59))","v":"Okano"},{"$f":"IF(INTRO!$E$39=\"Non-endemic\",0,IF(INTRO!$E$39=\"Endemic but PC is not required\",IF(COUNTRY_INFO!$H59=1,COUNTRY_INFO!F59+COUNTRY_INFO!G59,0),IF(COUNTRY_INFO!$H59=1,COUNTRY_INFO!F59+COUNTRY_INFO!G59,IF(COUNTRY_INFO!$I59=1,IF(COUNTRY_INFO!N59>=(COUNTRY_INFO!F59+COUNTRY_INFO!G59),COUNTRY_INFO!F59+COUNTRY_INFO!G59,COUNTRY_INFO!$N59),0))))","v":0},{"$f":"IF(AND(INTRO!$E$39=\"Non-endemic\",INTRO!$E$37=\"Non-endemic\"),\"Not required\",IF(INTRO!$E$39=\"Non-endemic\",\"Treat with DEC\",COUNTRY_INFO!W59))","v":0},{"$f":"IF(INTRO!$E$39<>\"Non-endemic\",COUNTRY_INFO!X59,\"Not required\")","v":0},{"$f":"IF(COUNTRY_INFO!H59=1, IF($E59=1,IF(ALB_MBD!$G59<>\" \",COUNTRY_INFO!F59+COUNTRY_INFO!G59-ALB_MBD!$G59,COUNTRY_INFO!F59+COUNTRY_INFO!G59), 0),0)","v":0},{"$f":"IF(INTRO!$E$39<>\"Endemic\",0, IF(AND(COUNTRY_INFO!$I59=1,$F59<>0),IF(COUNTRY_INFO!N59>=(COUNTRY_INFO!F59+COUNTRY_INFO!G59),COUNTRY_INFO!F59+COUNTRY_INFO!G59,COUNTRY_INFO!$N59), 0))","v":0},0,0,0,0,null,0]
[{"$f":"IF(INTRO!$E$39=\"Non-endemic\",\" \",IF(COUNTRY_INFO!A60=0,\" \",COUNTRY_INFO!A60))","v":"Gabon"},{"$f":"IF(INTRO!$E$39=\"Non-endemic\",\" \",IF(COUNTRY_INFO!B60=0,\" \",COUNTRY_INFO!B60))","v":"Woleu-Ntem"},{"$f":"IF(INTRO!$E$39=\"Non-endemic\",\" \",IF(COUNTRY_INFO!C60=0,\" \",COUNTRY_INFO!C60))","v":"Woleu"},{"$f":"IF(INTRO!$E$39=\"Non-endemic\",0,IF(INTRO!$E$39=\"Endemic but PC is not required\",IF(COUNTRY_INFO!$H60=1,COUNTRY_INFO!F60+COUNTRY_INFO!G60,0),IF(COUNTRY_INFO!$H60=1,COUNTRY_INFO!F60+COUNTRY_INFO!G60,IF(COUNTRY_INFO!$I60=1,IF(COUNTRY_INFO!N60>=(COUNTRY_INFO!F60+COUNTRY_INFO!G60),COUNTRY_INFO!F60+COUNTRY_INFO!G60,COUNTRY_INFO!$N60),0))))","v":85145},{"$f":"IF(AND(INTRO!$E$39=\"Non-endemic\",INTRO!$E$37=\"Non-endemic\"),\"Not required\",IF(INTRO!$E$39=\"Non-endemic\",\"Treat with DEC\",COUNTRY_INFO!W60))","v":0},{"$f":"IF(INTRO!$E$39<>\"Non-endemic\",COUNTRY_INFO!X60,\"Not required\")","v":0},{"$f":"IF(COUNTRY_INFO!H60=1, IF($E60=1,IF(ALB_MBD!$G60<>\" \",COUNTRY_INFO!F60+COUNTRY_INFO!G60-ALB_MBD!$G60,COUNTRY_INFO!F60+COUNTRY_INFO!G60), 0),0)","v":0},{"$f":"IF(INTRO!$E$39<>\"Endemic\",0, IF(AND(COUNTRY_INFO!$I60=1,$F60<>0),IF(COUNTRY_INFO!N60>=(COUNTRY_INFO!F60+COUNTRY_INFO!G60),COUNTRY_INFO!F60+COUNTRY_INFO!G60,COUNTRY_INFO!$N60), 0))","v":0},0,0,0,0,null,0]

{"sheet":"SUMMARY","index":5,"n_rows":93,"n_cols":8,"rows_kept":93,"cut":false,"hidden":false,"merged":[[74,2,74,3],[74,4,74,5],[73,2,73,3],[73,4,73,5],[60,4,60,6],[61,4,61,6],[62,4,62,6],[72,2,72,3],[72,4,72,5],[25,1,27,1],[9,7,10,7],[32,2,35,4],[81,2,81,7],[83,3,83,7],[59,4,59,6],[50,1,50,7],[56,1,56,7],[51,1,51,7],[52,1,52,7],[80,1,80,7],[58,1,58,7],[78,1,78,7],[79,1,79,7],[66,1,66,7],[76,2,76,3],[9,1,10,1],[9,3,9,6],[9,2,10,2],[17,1,19,1],[21,1,23,1],[83,1,83,2],[0,1,0,7],[1,1,1,7],[2,1,2,5],[3,1,3,7],[4,1,4,7],[6,1,6,7],[5,2,5,5],[65,1,65,7],[54,1,54,7],[53,1,53,7],[36,1,36,7],[41,2,41,3],[41,4,41,5],[41,6,41,7],[55,1,55,7],[82,2,82,6],[63,4,63,6],[75,2,75,3],[97,1,97,7],[75,4,75,5],[70,4,70,5],[71,4,71,5],[70,2,70,3],[71,2,71,3],[92,1,92,7],[76,4,76,5],[87,1,87,7],[91,1,91,7],[86,1,86,7],[84,1,84,2],[84,3,84,7]]}
[]
[null,"Joint request for selected PC medicines v.4.1 (Loa)"]
[]
[null,"This form constitutes an official government request to WHO for the supply of the PC medicines. To ensure the medicines are delivered on time, the request for PC medicines should be submitted at least 9 months before the first date of MDA planned in the calendar year of the request. "]
[]
[null,"Country",{"$f":"IF(INTRO!$E$33<>0,INTRO!$E$33,\" \")","v":"Gabon"},null,null,null,"Year",{"$f":"IF(INTRO!$E$35<>0,INTRO!$E$35,\" \")","v":2024}]
[]
[null,"Information on PC medicines requested to WHO"]
[]
[null,"PC medicine","Target group","Number of tablets",null,null,null,"Specify \nsource"]
[null,null,null,"Required","In stock","In pipeline","Requested"]
[null,"Diethylcarbamazine citrate","ALL",null,null,null,{"$f":"IF(D12>(E12+F12),D12-E12-F12, 0)","v":0}]
[null,null,null,null,null,null,0]
[null,"Ivermectin","ALL",73634.399999999994,0,null,73634.399999999994,"OMS"]
[]
[null,"Albendazole for LF","ALL",654622,0,null,654622,"OMS"]
[null,null,null,null,null,null,0]
[null,"Albendazole for STH","PreSAC",null,null,null,0]
[null,null,"SAC",281878.16251225676,null,null,281878.16251225676,"OMS"]
[null,null,"WRA",null,null,null,0]
[]
[null,"Mebendazole","PreSAC",null,null,null,0]
[null,null,"SAC",null,null,null,0]
[null,null,"WRA",null,null,null,0]
[]
[null,"Praziquantel","PreSAC",0,null,null,0]
[null,null,"SAC",53408,null,null,53408,"OMS"]
[null,null,"Adults",191646,null,null,{"$f":"IF(D28>(E28+F28),D28-E28-F28, 0)","v":191646},"OMS"]
[]
[null,"Number of people to be treated with donated medicine ( see User Guide for details )"]
[]
[null,"Disease",null,null,null,"Round 1","Round 2","Round 3"]
[null,"Lymphatic filariasis","These figures are estimated only \nfor targeted age groups to be treated \nwith donated medicines in areas \nwhere treatment for \na specific disease is planned",null,null,340460,314162]
[null,"Onchocerciasis",null,null,null,0,0]
[null,"Schistosomiasis",null,null,null,90586,0]
[null,"Soil-transmitted helminthiases",null,null,null,815441,254426,0]
[]
[]
[]
[null,"Information on planned PC interventions"]
[]
[null,"PC medicine","Planned date of the \n1st round of PC",null,"Planned date of the \n2nd round of PC",null,"Date by which the medicine should arrive to the national warehouse"]
[null,"Diethylcarbamazine citrate"]
[null,"Ivermectin"]
[null,"Albendazole for LF","March",2024,null,null,"December",2023]
[null,"Albendazole for STH","March",2024,"September",2024,"December",2023]
[null,"Mebendazole"]
[null,"Praziquantel","March",2024,null,null,"December",2023]
[]
[null,"Checklist"]
[null,"Submission"]
[null,"What should be submitted?"]
[null,"The supply of the requested medicines should be based on up-to-date epidemiological data, specific usage plans, and capacity for implementation. The following checklist ensures that all necessary forms and information are provided to WHO (in electronic format). "]
[null,"Joint request for selected PC medicines"]
[null,"Joint reporting form"]
[null,"PC epidemiological data reporting form"]
[]
[null,"Availability of funding for implementation in the year for which the medicines are requested"]
[]
[null,"Diseases \ntargeted for implementation","Total treatments","Funding secured for","Source",null,null,"Amount"]
[null,{"$f":"B33","v":"Lymphatic filariasis"},{"$f":"SUM(F33:H33)","v":654622},null,"OMS"]
[null,{"$f":"B34","v":"Onchocerciasis"},{"$f":"SUM(F34:H34)","v":0}]
[null,{"$f":"B35","v":"Schistosomiasis"},{"$f":"SUM(F35:H35)","v":90586},null,"OMS"]
[null,{"$f":"B36","v":"Soil-transmitted helminthiases"},{"$f":"SUM(F36:H36)","v":1069867},null,"OMS"]
[]
[null,"Who should fill in the form? "]
[null,"National NTD coordinator should compile all required information needed to complete the request form. In the absence of such a coordinator, specific programme managers should coordinate their respective part. The final single request must be approved by the Ministry of Health."]
[]
[null,"Information on person(s) who has filled in the form"]
[]
[null,"Title ","Name",null,"Phone",null,"Email","Date"]
[null,"NTD/PC Coordinator","Dr ATSAME Julienne",null,24106047314,null,"julienneatsame@yahoo.fr"]
[null,null,"MOUIHHISSI Jeanne ep NDJOUNDOU",null,24106050791,null,"jeannendjoundou@gmail.com"]
[null,null,"KOUMBA KOUMBA Phlémon",null,24166547084,null,"kkoumbaphilemon@gmail,com "]
[]
[]
[]
[]
[null,"The WHO recommends that all serious adverse events suspected to be associated with use of PC medicines should be reported in accordance with national Pharmacovigilance guidelines. In the absence of a national Pharmacovigilance system, contact the WHO Neglected Tropical Disease department for guidance."]
[null,"The WHO is committed to facilitate PC medicines donation with a free-of-charge supply of a) albendazole, mebendazole and praziquantel to the MoH’s national warehouse; and b) diethylcarbamazine citrate to the entry port/airport of recipient countries."]
[null,"The institution submitting the present request is responsible for a) arranging the offloading of the medicines from the truck and storing it in the national warehouse and subsequent shipment to the final distribution centres; b) for registering the donated medicine, if required, by the relevant national regulatory authorities; and c) for informing about any changes of their PC campaigns (e.g. postpone of the planned MDA date, replacement of NTD coordinator, etc.)."]
[null,null,"I have read and accept WHO Data Sharing Policy"]
[null,null,"I confirm that all information provided in this form is complete and correct"]
[null,"Name and signature of NTD coordinator \nor Ministry of Health representative",null,"Dr ATSAME Julienne"]
[null,"Date:"]
[]
[null,"Please complete information on shipment and consignee in the worksheet SHIPMENT. Any additional details related to this Request should be provided in the \"Additional information\" box in the worksheet SHIPMENT."]
[null,"Please send the national request (signed and in electronic format) to the concerned WR with copy to:"]
[null,"WHO headquarters","PC_JointForms@who.int"]
[null,"WHO Regional Office","Regional Advisor for NTD"]
[null,"Mectizan donation program","Dr Yao Sodahlon, email: ysodahlon@taskforce.org"]
[]
[null,"Please note that your request will be reviewed by an independent panel before approval. The information in this form, joint reporting form and PC epidemiological data reporting form are essential for WHO to ensure efficient usage of medicines. As part of its ongoing monitoring and evaluation activities, and to meet its contractual obligations to donors and other partners, WHO and its appointed agents reserve the right to periodically inspect stocks of the medicines at country level."]

{"sheet":"SHIPMENT","index":6,"n_rows":48,"n_cols":8,"rows_kept":48,"cut":false,"hidden":false,"merged":[[34,1,34,7],[36,1,36,7],[0,1,0,7],[1,1,1,7],[2,1,2,5],[17,5,17,7],[18,5,18,7],[19,2,19,4],[19,5,19,7],[21,2,21,4],[3,2,3,5],[4,1,4,7],[22,2,22,4],[22,5,22,7],[15,2,15,4],[20,5,20,7],[15,5,15,7],[20,2,20,4],[18,2,18,4],[16,2,16,4],[47,1,56,7],[45,1,45,7],[37,1,37,6],[38,1,38,5],[40,1,40,7],[41,1,41,6],[39,1,39,6],[42,1,42,6],[43,1,43,7],[25,2,25,4],[25,5,25,7],[24,1,24,7],[6,1,6,7],[7,2,7,4],[7,5,7,7],[8,2,8,4],[8,5,8,7],[9,2,9,4],[9,5,9,7],[10,2,10,4],[10,5,10,7],[11,2,11,4],[11,5,11,7],[12,2,12,4],[12,5,12,7],[13,2,13,4],[13,5,13,7],[14,2,14,4],[14,5,14,7],[23,2,23,4],[23,5,23,7],[21,5,21,7],[16,5,16,7],[17,2,17,4],[26,2,26,4],[26,5,26,7],[27,2,27,4],[27,5,27,7],[28,2,28,4],[28,5,28,7],[32,2,32,4],[32,5,32,7],[29,2,29,4],[29,5,29,7],[30,2,30,4],[30,5,30,7],[31,2,31,4],[31,5,31,7]]}
[]
[null,"Joint request for selected PC medicines v.4.1 (Loa)"]
[]
[null,"Country",{"$f":"IF(INTRO!$E$33<>0,INTRO!$E$33,\" \")","v":"Gabon"},null,null,null,"Year",{"$f":"IF(INTRO!$E$35<>0,INTRO!$E$35,\" \")","v":2024}]
[]
[null,"Information on shipment and consignee "]
[]
[null,"ALB for STH","Consignee",null,null,"Delivery point / Final recipient\nif different from the consignee"]
[null,"Name","Dr CONOMBO KAFANDO S,Ghislaine",null,null,"Dr ATSAME Julienne"]
[null,"Department/Unit"," MTN",null,null,"Coordonnateur MTN"]
[null,"Organization","OMS GABON",null,null,"MSPP"]
[null,"Phone","00(241) 01 44 43 84 / 00 (241) 07520389",null,null,"00 241 06047314"]
[null,"Fax"]
[null,"E-mail","conombogh@who,int",null,null,"julienneatsame@yahoo.fr"]
[null,"Mailing address","BP 820 Libreville",null,null," BP 2434 Libreville"]
[]
[null,"PZQ","Consignee",null,null,"Delivery point / Final recipient\nif different from the consignee"]
[null,"Name","Dr CONOMBO KAFANDO S,Ghislaine",null,null,"Dr ATSAME Julienne"]
[null,"Department/Unit"," MTN",null,null,"Coordonnateur MTN"]
[null,"Organization","OMS GABON",null,null,"MSPP"]
[null,"Phone","00(241) 01 44 43 84 / 00 (241) 07520389",null,null,"00 241 06047314"]
[null,"Fax"]
[null,"E-mail","conombogh@who,int",null,null,"julienneatsame@yahoo.fr"]
[null,"Mailing address","BP 820 Libreville",null,null," BP 2434 Libreville"]
[]
[null,"ALB for LF","Consignee",null,null,"Delivery point / Final recipient\nif different from the consignee"]
[null,"Name","Dr CONOMBO KAFANDO S,Ghislaine",null,null,"Dr ATSAME Julienne"]
[null,"Department/Unit"," MTN",null,null,"Coordonnateur MTN"]
[null,"Organization","OMS GABON",null,null,"MSPP"]
[null,"Phone","00(241) 01 44 43 84 / 00 (241) 07520389",null,null,"00 241 06047314"]
[null,"Fax"]
[null,"E-mail","conombogh@who,int",null,null,"julienneatsame@yahoo.fr"]
[null,"Mailing address","BP 820 Libreville",null,null," BP 2434 Libreville"]
[]
[]
[null,"Information on import requirements"]
[]
[null,"Is the Import Permit required?",null,null,null,null,null,"No"]
[null,"How long does it take to obtain the Import Permit?"]
[null,"Do you require any documents to be submitted together with the Import Permit application?",null,null,null,null,null,"No"]
[]
[null,"Does the consignee have to get customs clearance before the shipment can proceed?",null,null,null,null,null,"No"]
[null,"Is there any additional information may be helpful in ensuring timely clearance and delivery of medicines to your country? ",null,null,null,null,null,"No"]
[]
[]
[null,"Additional information"]
[]
[null,"Pour des raisons de coendémicité il n'y a pas de traitement à l'IVM. Seul la LF doit être traité à l'Albendazole,"]

{"sheet":"DATA_POLICY","index":7,"n_rows":39,"n_cols":8,"rows_kept":39,"cut":false,"hidden":true,"merged":[[55,1,55,2],[0,1,0,5],[1,1,1,7],[3,3,3,5],[6,1,6,7],[8,1,12,7],[13,1,16,7],[17,1,21,7],[22,1,25,7],[26,2,36,7],[38,1,45,7]]}
[]
[null,"Joint request for selected PC medicines v.4.1 (Loa)"]
[]
[null,"Country",null,{"$f":"IF(INTRO!$E$33<>0,INTRO!$E$33,\" \")","v":"Gabon"},null,null,"Year",{"$f":"IF(INTRO!$E$35<>0,INTRO!$E$35,\" \")","v":2024}]
[]
[]
[null,"WHO Data Sharing Policy statement"]
[]
[null,"Data are the basis for all sound public health actions and the benefits of data sharing are widely recognized, including scientific and public health benefits. Whenever possible, WHO wishes to promote the sharing of health data, including but not restricted to surveillance and epidemiological data.  "]
[]
[]
[]
[]
[null,{"$f":"\"In this connection, and without prejudice to information sharing and publication pursuant to legally binding instruments, by providing data to WHO, the Ministry of Health of \" & D4 & \":\"","v":"In this connection, and without prejudice to information sharing and publication pursuant to legally binding instruments, by providing data to WHO, the Ministry of Health of Gabon:"}]
[]
[]
[]
[null,"Confirms that all data to be supplied to WHO hereunder have been collected in accordance with applicable national laws, including data protection laws aimed at protecting the confidentiality of identifiable persons;"]
[]
[]
[]
[]
[null,{"$f":"\"Agrees that WHO shall be entitled, subject always to measures to ensure the ethical and secure use of the data, and subject always to an appropriate acknowledgement of \"&D4&\":\"","v":"Agrees that WHO shall be entitled, subject always to measures to ensure the ethical and secure use of the data, and subject always to an appropriate acknowledgement of Gabon:"}]
[]
[]
[]
[null,null,"to publish the data, stripped of any personal identifiers and make the Data available to any interested party on request (to the extent they have not, or not yet, been published by WHO) on terms that allow non-commercial, not-for-profit use of the Data for public health purposes (provided always that publication of the Data shall remain under the control of WHO); \nto use, compile, aggregate, evaluate and analyse the Data and publish and disseminate the results thereof in conjunction with WHO’s work and in accordance with the Organization’s policies and practices."]
[]
[]
[]
[]
[]
[]
[]
[]
[]
[]
[]
[null,{"$f":"CONCATENATE(\"Except where data sharing and publication is required under legally binding instruments (IHR, WHO Nomenclature Regulations 1967, etc.), the Ministry of Health of \", D4,\" may in respect of certain data opt out of (any part of) the above,\" & \" by notifying WHO thereof in writing at the following address, provided that any such notification shall clearly identify the data in question and clearly indicate the scope of the opt-out (in reference to the  above), \" & \"and provided that specific reasons shall be given for the opt out.\")","v":"Except where data sharing and publication is required under legally binding instruments (IHR, WHO Nomenclature Regulations 1967, etc.), the Ministry of Health of Gabon may in respect of certain data opt out of (any part of) the above, by notifying WHO thereof in writing at the following address, provided that any such notification shall clearly identify the data in question and clearly indicate the scope of the opt-out (in reference to the  above), and provided that specific reasons shall be given for the opt out."}]